Workbook

Sheet OpeningScreen
G1: Opening Screen
G2: V2I Benefits Estimation Tool (VBET)
H5: What would you like to do?

Sheet 1. Impact
G1: 1. Investigate Potential Impacts
B2: Navigation | G2: =openingScreenTitle -> V2I Benefits Estimation Tool (VBET)
C3: Back
C4: Opening Screen
B5: u | C5: 1. Investigate Potential Impacts
C6: 2. Identify Economic Tools
C7: 3. Conduct Economic Analysis
C8: Benefit-Cost Analysis (BCA)
C9: 3.1. Determining V2I application(s) impacts in steady state
C11: 3.2. Determining CV-equipped vehicle fleet penetration rate
C13: 3.3. Determining the efficacy adjustment factor | G13: 1. V2I Application
G14: Advanced Automatic Crash Notification Relay | R14: =MATCH(G14,List_Applications,0) -> 1
C15: 3.4. BCA Results
C16: Economic Impact Analysis (EIA) | G16: 2. Impact Category
C17: 3.5. Economic Impact Analysis Assumptions | G17: Safety [Number of Crashes] | R17: =MATCH(G17,List_ImpactCategoriesShort,0) -> 4
C19: 3.6. Economic Impact Analysis Results | G19: 3. Potential Impact
G20: =IF(VLOOKUP(R14&"_"&R17,Lookup_Impacts,2,FALSE)="","",VLOOKUP(R14&"_"&R17,Lookup_Impacts,2,FALSE)) -> Unquantified safety benefits. Source: Noblis, “Benefits of Dynamic Mobility Applications – Preliminary Estimates from the Literature”. Prepared for the USDOT ITS JPO, December 2012. FHWA-JPO-13-004. http://ntl.bts.gov/lib/47000/47300/47384/FHWA-JPO-13-004_Final_Pkg_v1.pdf.
C21: 4. Model Instructions

Sheet ImpactValidations (hidden)
G1: Impact Lookup
G2: =openingScreenTitle -> V2I Benefits Estimation Tool (VBET)
C3: Back
H7: Application | J7: =COUNTIF(I8:I54,"<>0") -> 41 | K7: Validation List
G8: =IF(I8<>0,COUNT($G$7:G7)+1,"") -> 1 | H8: =ListsLookup!H5 -> Advanced Automatic Crash Notification Relay | I8: =SUMIFS('6.1. StudiesSummary'!$L$7:$L$335,'6.1. StudiesSummary'!$H$7:$H$335,H8) -> 1 | J8: 1 | K8: =IFERROR(VLOOKUP(J8,$G$8:$H$54,2,FALSE),"") -> Advanced Automatic Crash Notification Relay
G9: =IF(I9<>0,COUNT($G$7:G8)+1,"") -> 2 | H9: =ListsLookup!H6 -> Border Management Systems | I9: =SUMIFS('6.1. StudiesSummary'!$L$7:$L$335,'6.1. StudiesSummary'!$H$7:$H$335,H9) -> 1 | J9: 2 | K9: Border Management Systems
G10: =IF(I10<>0,COUNT($G$7:G9)+1,"") -> 3 | H10: =ListsLookup!H7 -> Connected Eco-Driving - Cellular (CED) | I10: =SUMIFS('6.1. StudiesSummary'!$L$7:$L$335,'6.1. StudiesSummary'!$H$7:$H$335,H10) -> 4 | J10: 3 | K10: Connected Eco-Driving - Cellular (CED)
G11: =IF(I11<>0,COUNT($G$7:G10)+1,"") -> 4 | H11: =ListsLookup!H8 -> Container Security | I11: =SUMIFS('6.1. StudiesSummary'!$L$7:$L$335,'6.1. StudiesSummary'!$H$7:$H$335,H11) -> 1 | J11: 4 | K11: Container Security
G12: =IF(I12<>0,COUNT($G$7:G11)+1,"") -> 5 | H12: =ListsLookup!H9 -> Cooperative Adaptive Cruise Control - DSRC (CACC) | I12: =SUMIFS('6.1. StudiesSummary'!$L$7:$L$335,'6.1. StudiesSummary'!$H$7:$H$335,H12) -> 1 | J12: 5 | K12: Cooperative Adaptive Cruise Control - DSRC (CACC)
G13: =IF(I13<>0,COUNT($G$7:G12)+1,"") -> 6 | H13: =ListsLookup!H10 -> Curve Speed Warning - DSRC (CSW) | I13: =SUMIFS('6.1. StudiesSummary'!$L$7:$L$335,'6.1. StudiesSummary'!$H$7:$H$335,H13) -> 1 | J13: 6 | K13: Curve Speed Warning - DSRC (CSW)
G14: =IF(I14<>0,COUNT($G$7:G13)+1,"") -> 7 | H14: =ListsLookup!H11 -> Drayage Optimization - DSRC (DO) | I14: =SUMIFS('6.1. StudiesSummary'!$L$7:$L$335,'6.1. StudiesSummary'!$H$7:$H$335,H14) -> 1 | J14: 7 | K14: Drayage Optimization - DSRC (DO)
G15: =IF(I15<>0,COUNT($G$7:G14)+1,"") -> 8 | H15: =ListsLookup!H12 -> Dynamic Eco-Routing - Cellular (DER) | I15: =SUMIFS('6.1. StudiesSummary'!$L$7:$L$335,'6.1. StudiesSummary'!$H$7:$H$335,H15) -> 1 | J15: 8 | K15: Dynamic Eco-Routing - Cellular (DER)
G16: =IF(I16<>0,COUNT($G$7:G15)+1,"") -> 9 | H16: =ListsLookup!H13 -> Dynamic Speed Harmonization - DSRC (SPD-HARM) | I16: =SUMIFS('6.1. StudiesSummary'!$L$7:$L$335,'6.1. StudiesSummary'!$H$7:$H$335,H16) -> 3 | J16: 9 | K16: Dynamic Speed Harmonization - DSRC (SPD-HARM)
G17: =IF(I17<>0,COUNT($G$7:G16)+1,"") -> 10 | H17: =ListsLookup!H14 -> Dynamic Transit Operations - Cellular (T-DISP) | I17: =SUMIFS('6.1. StudiesSummary'!$L$7:$L$335,'6.1. StudiesSummary'!$H$7:$H$335,H17) -> 1 | J17: 10 | K17: Dynamic Transit Operations - Cellular (T-DISP)
G18: =IF(I18<>0,COUNT($G$7:G17)+1,"") -> 11 | H18: =ListsLookup!H15 -> Eco-Approach and Departure at Signalized Intersections - DSRC (EADSI) | I18: =SUMIFS('6.1. StudiesSummary'!$L$7:$L$335,'6.1. StudiesSummary'!$H$7:$H$335,H18) -> 3 | J18: 11 | K18: Eco-Approach and Departure at Signalized Intersections - DSRC (EADSI)
G19: =IF(I19<>0,COUNT($G$7:G18)+1,"") -> 12 | H19: =ListsLookup!H16 -> Eco-Cooperative Adaptive Cruise Control - DSRC (ECACC) | I19: =SUMIFS('6.1. StudiesSummary'!$L$7:$L$335,'6.1. StudiesSummary'!$H$7:$H$335,H19) -> 2 | J19: 12 | K19: Eco-Cooperative Adaptive Cruise Control - DSRC (ECACC)
G20: =IF(I20<>0,COUNT($G$7:G19)+1,"") -> 13 | H20: =ListsLookup!H17 -> Eco-Lanes Management - Cellular (ELMC) | I20: =SUMIFS('6.1. StudiesSummary'!$L$7:$L$335,'6.1. StudiesSummary'!$H$7:$H$335,H20) -> 2 | J20: 13 | K20: Eco-Lanes Management - Cellular (ELMC)
G21: =IF(I21<>0,COUNT($G$7:G20)+1,"") -> 14 | H21: =ListsLookup!H18 -> Eco-Lanes Management - DSRC (ELMD) | I21: =SUMIFS('6.1. StudiesSummary'!$L$7:$L$335,'6.1. StudiesSummary'!$H$7:$H$335,H21) -> 2 | J21: 14 | K21: Eco-Lanes Management - DSRC (ELMD)
G22: =IF(I22<>0,COUNT($G$7:G21)+1,"") -> 15 | H22: =ListsLookup!H19 -> Eco-Ramp Metering - DSRC (ERM) | I22: =SUMIFS('6.1. StudiesSummary'!$L$7:$L$335,'6.1. StudiesSummary'!$H$7:$H$335,H22) -> 2 | J22: 15 | K22: Eco-Ramp Metering - DSRC (ERM)
G23: =IF(I23<>0,COUNT($G$7:G22)+1,"") ->  | H23: =ListsLookup!H20 -> Eco-Smart Parking - DSRC (ESP) | I23: =SUMIFS('6.1. StudiesSummary'!$L$7:$L$335,'6.1. StudiesSummary'!$H$7:$H$335,H23) -> 0 | J23: 16 | K23: Eco-Speed Harmonization - DSRC (ESH)
G24: =IF(I24<>0,COUNT($G$7:G23)+1,"") -> 16 | H24: =ListsLookup!H21 -> Eco-Speed Harmonization - DSRC (ESH) | I24: =SUMIFS('6.1. StudiesSummary'!$L$7:$L$335,'6.1. StudiesSummary'!$H$7:$H$335,H24) -> 3 | J24: 17 | K24: Eco-Traffic Signal Timing - DSRC (ETST)
G25: =IF(I25<>0,COUNT($G$7:G24)+1,"") ->  | H25: =ListsLookup!H22 -> Eco-Traffic Signal Priority - DSRC (ETSP) | I25: =SUMIFS('6.1. StudiesSummary'!$L$7:$L$335,'6.1. StudiesSummary'!$H$7:$H$335,H25) -> 0 | J25: 18 | K25: Enhanced MDSS - Cellular (EMDSS)
G26: =IF(I26<>0,COUNT($G$7:G25)+1,"") -> 17 | H26: =ListsLookup!H23 -> Eco-Traffic Signal Timing - DSRC (ETST) | I26: =SUMIFS('6.1. StudiesSummary'!$L$7:$L$335,'6.1. StudiesSummary'!$H$7:$H$335,H26) -> 4 | J26: 19 | K26: Freight Signal Priority - DSRC (FSP)
G27: =IF(I27<>0,COUNT($G$7:G26)+1,"") ->  | H27: =ListsLookup!H24 -> Emergency Vehicle Preemption - DSRC (PREEMPT) | I27: =SUMIFS('6.1. StudiesSummary'!$L$7:$L$335,'6.1. StudiesSummary'!$H$7:$H$335,H27) -> 0 | J27: 20 | K27: Incident Scene Work Zone Alerts for Drivers and Workers - DSRC (INC-ZONE)
G28: =IF(I28<>0,COUNT($G$7:G27)+1,"") -> 18 | H28: =ListsLookup!H25 -> Enhanced MDSS - Cellular (EMDSS) | I28: =SUMIFS('6.1. StudiesSummary'!$L$7:$L$335,'6.1. StudiesSummary'!$H$7:$H$335,H28) -> 1 | J28: 21 | K28: Intelligent Traffic Signal System - DSRC (I-SIG)
G29: =IF(I29<>0,COUNT($G$7:G28)+1,"") -> 19 | H29: =ListsLookup!H26 -> Freight Signal Priority - DSRC (FSP) | I29: =SUMIFS('6.1. StudiesSummary'!$L$7:$L$335,'6.1. StudiesSummary'!$H$7:$H$335,H29) -> 3 | J29: 22 | K29: Intermittent Bus Lanes
G30: =IF(I30<>0,COUNT($G$7:G29)+1,"") -> 20 | H30: =ListsLookup!H27 -> Incident Scene Work Zone Alerts for Drivers and Workers - DSRC (INC-ZONE) | I30: =SUMIFS('6.1. StudiesSummary'!$L$7:$L$335,'6.1. StudiesSummary'!$H$7:$H$335,H30) -> 2 | J30: 23 | K30: Motorist Advisories and Warnings - Cellular (MAW)
G31: =IF(I31<>0,COUNT($G$7:G30)+1,"") ->  | H31: =ListsLookup!H28 -> Integrated Multi-Modal Electronic Payment | I31: =SUMIFS('6.1. StudiesSummary'!$L$7:$L$335,'6.1. StudiesSummary'!$H$7:$H$335,H31) -> 0 | J31: 24 | K31: Oversize Vehicle Warning
G32: =IF(I32<>0,COUNT($G$7:G31)+1,"") -> 21 | H32: =ListsLookup!H29 -> Intelligent Traffic Signal System - DSRC (I-SIG) | I32: =SUMIFS('6.1. StudiesSummary'!$L$7:$L$335,'6.1. StudiesSummary'!$H$7:$H$335,H32) -> 2 | J32: 25 | K32: Pedestrian in Signalized Crosswalk Warning - DSRC (PSCWT)
G33: =IF(I33<>0,COUNT($G$7:G32)+1,"") -> 22 | H33: =ListsLookup!H30 -> Intermittent Bus Lanes | I33: =SUMIFS('6.1. StudiesSummary'!$L$7:$L$335,'6.1. StudiesSummary'!$H$7:$H$335,H33) -> 1 | J33: 26 | K33: Queue Warning - DSRC (Q-WARN)
G34: =IF(I34<>0,COUNT($G$7:G33)+1,"") -> 23 | H34: =ListsLookup!H31 -> Motorist Advisories and Warnings - Cellular (MAW) | I34: =SUMIFS('6.1. StudiesSummary'!$L$7:$L$335,'6.1. StudiesSummary'!$H$7:$H$335,H34) -> 1 | J34: 27 | K34: Railroad Crossing Warning
G35: =IF(I35<>0,COUNT($G$7:G34)+1,"") -> 24 | H35: =ListsLookup!H32 -> Oversize Vehicle Warning | I35: =SUMIFS('6.1. StudiesSummary'!$L$7:$L$335,'6.1. StudiesSummary'!$H$7:$H$335,H35) -> 1 | J35: 28 | K35: Red Light Violation Warning - DSRC (RLVW)
G36: =IF(I36<>0,COUNT($G$7:G35)+1,"") -> 25 | H36: =ListsLookup!H33 -> Pedestrian in Signalized Crosswalk Warning - DSRC (PSCWT) | I36: =SUMIFS('6.1. StudiesSummary'!$L$7:$L$335,'6.1. StudiesSummary'!$H$7:$H$335,H36) -> 1 | J36: 29 | K36: Reduced Speed-Work Zone Warning - DSRC (RSWZW)
G37: =IF(I37<>0,COUNT($G$7:G36)+1,"") -> 26 | H37: =ListsLookup!H34 -> Queue Warning - DSRC (Q-WARN) | I37: =SUMIFS('6.1. StudiesSummary'!$L$7:$L$335,'6.1. StudiesSummary'!$H$7:$H$335,H37) -> 3 | J37: 30 | K37: Restricted Lane Warnings
G38: =IF(I38<>0,COUNT($G$7:G37)+1,"") -> 27 | H38: =ListsLookup!H35 -> Railroad Crossing Warning | I38: =SUMIFS('6.1. StudiesSummary'!$L$7:$L$335,'6.1. StudiesSummary'!$H$7:$H$335,H38) -> 1 | J38: 31 | K38: Road Weather Information and Routing Support for Emergency Responders
G39: =IF(I39<>0,COUNT($G$7:G38)+1,"") -> 28 | H39: =ListsLookup!H36 -> Red Light Violation Warning - DSRC (RLVW) | I39: =SUMIFS('6.1. StudiesSummary'!$L$7:$L$335,'6.1. StudiesSummary'!$H$7:$H$335,H39) -> 1 | J39: 32 | K39: Road Weather Information for Freight Carriers
G40: =IF(I40<>0,COUNT($G$7:G39)+1,"") -> 29 | H40: =ListsLookup!H37 -> Reduced Speed-Work Zone Warning - DSRC (RSWZW) | I40: =SUMIFS('6.1. StudiesSummary'!$L$7:$L$335,'6.1. StudiesSummary'!$H$7:$H$335,H40) -> 1 | J40: 33 | K40: Security and Credentials Management
G41: =IF(I41<>0,COUNT($G$7:G40)+1,"") -> 30 | H41: =ListsLookup!H38 -> Restricted Lane Warnings | I41: =SUMIFS('6.1. StudiesSummary'!$L$7:$L$335,'6.1. StudiesSummary'!$H$7:$H$335,H41) -> 1 | J41: 34 | K41: Smart Park and Ride System
G42: =IF(I42<>0,COUNT($G$7:G41)+1,"") -> 31 | H42: =ListsLookup!H39 -> Road Weather Information and Routing Support for Emergency Responders | I42: =SUMIFS('6.1. StudiesSummary'!$L$7:$L$335,'6.1. StudiesSummary'!$H$7:$H$335,H42) -> 1 | J42: 35 | K42: Spot Weather Impact Warning - DSRC (SWIW)
G43: =IF(I43<>0,COUNT($G$7:G42)+1,"") -> 32 | H43: =ListsLookup!H40 -> Road Weather Information for Freight Carriers | I43: =SUMIFS('6.1. StudiesSummary'!$L$7:$L$335,'6.1. StudiesSummary'!$H$7:$H$335,H43) -> 2 | J43: 36 | K43: Stop Sign Gap Assist - DSRC (SSGA)
G44: =IF(I44<>0,COUNT($G$7:G43)+1,"") -> 33 | H44: =ListsLookup!H41 -> Security and Credentials Management | I44: =SUMIFS('6.1. StudiesSummary'!$L$7:$L$335,'6.1. StudiesSummary'!$H$7:$H$335,H44) -> 1 | J44: 37 | K44: Stop Sign Violation Warning
G45: =IF(I45<>0,COUNT($G$7:G44)+1,"") ->  | H45: =ListsLookup!H42 -> Signal Phase and Timing | I45: =SUMIFS('6.1. StudiesSummary'!$L$7:$L$335,'6.1. StudiesSummary'!$H$7:$H$335,H45) -> 0 | J45: 38 | K45: Transit Signal Priority - DSRC (TSP)
G46: =IF(I46<>0,COUNT($G$7:G45)+1,"") -> 34 | H46: =ListsLookup!H43 -> Smart Park and Ride System | I46: =SUMIFS('6.1. StudiesSummary'!$L$7:$L$335,'6.1. StudiesSummary'!$H$7:$H$335,H46) -> 1 | J46: 39 | K46: Transit Vehicle at Station/Stop Warnings
G47: =IF(I47<>0,COUNT($G$7:G46)+1,"") -> 35 | H47: =ListsLookup!H44 -> Spot Weather Impact Warning - DSRC (SWIW) | I47: =SUMIFS('6.1. StudiesSummary'!$L$7:$L$335,'6.1. StudiesSummary'!$H$7:$H$335,H47) -> 1 | J47: 40 | K47: Weather Response Traffic Information - DSRC (WxTINFO)
G48: =IF(I48<>0,COUNT($G$7:G47)+1,"") -> 36 | H48: =ListsLookup!H45 -> Stop Sign Gap Assist - DSRC (SSGA) | I48: =SUMIFS('6.1. StudiesSummary'!$L$7:$L$335,'6.1. StudiesSummary'!$H$7:$H$335,H48) -> 1 | J48: 41 | K48: Work Zone Traveler Information - Cellular (WZTI)
G49: =IF(I49<>0,COUNT($G$7:G48)+1,"") -> 37 | H49: =ListsLookup!H46 -> Stop Sign Violation Warning | I49: =SUMIFS('6.1. StudiesSummary'!$L$7:$L$335,'6.1. StudiesSummary'!$H$7:$H$335,H49) -> 1 | J49: 42
G50: =IF(I50<>0,COUNT($G$7:G49)+1,"") -> 38 | H50: =ListsLookup!H47 -> Transit Signal Priority - DSRC (TSP) | I50: =SUMIFS('6.1. StudiesSummary'!$L$7:$L$335,'6.1. StudiesSummary'!$H$7:$H$335,H50) -> 2 | J50: 43
G51: =IF(I51<>0,COUNT($G$7:G50)+1,"") -> 39 | H51: =ListsLookup!H48 -> Transit Vehicle at Station/Stop Warnings | I51: =SUMIFS('6.1. StudiesSummary'!$L$7:$L$335,'6.1. StudiesSummary'!$H$7:$H$335,H51) -> 1 | J51: 44
G52: =IF(I52<>0,COUNT($G$7:G51)+1,"") ->  | H52: =ListsLookup!H49 -> Vehicle Data Translator - Cellular (VDT) | I52: =SUMIFS('6.1. StudiesSummary'!$L$7:$L$335,'6.1. StudiesSummary'!$H$7:$H$335,H52) -> 0 | J52: 45
G53: =IF(I53<>0,COUNT($G$7:G52)+1,"") -> 40 | H53: =ListsLookup!H50 -> Weather Response Traffic Information - DSRC (WxTINFO) | I53: =SUMIFS('6.1. StudiesSummary'!$L$7:$L$335,'6.1. StudiesSummary'!$H$7:$H$335,H53) -> 1 | J53: 46
G54: =IF(I54<>0,COUNT($G$7:G53)+1,"") -> 41 | H54: =ListsLookup!H51 -> Work Zone Traveler Information - Cellular (WZTI) | I54: =SUMIFS('6.1. StudiesSummary'!$L$7:$L$335,'6.1. StudiesSummary'!$H$7:$H$335,H54) -> 1 | J54: 47
K57: ='1. Impact'!G14 -> Advanced Automatic Crash Notification Relay
H58: Impact Category | J58: =COUNTIF(I59:I65,"<>0") -> 1 | K58: Validation List
G59: =IF(I59<>0,COUNT($G$58:G58)+1,"") ->  | H59: =ListsLookup!H74 -> Throughput/Capacity | I59: =SUMIFS('6.1. StudiesSummary'!$L$7:$L$335,'6.1. StudiesSummary'!$I$7:$I$335,H59,'6.1. StudiesSummary'!$H$7:$H$335,$K$57) -> 0 | J59: 1 | K59: =IFERROR(VLOOKUP(J59,$G$58:$H$65,2,FALSE),"") -> Safety [Number of Crashes]
G60: =IF(I60<>0,COUNT($G$58:G59)+1,"") ->  | H60: =ListsLookup!H75 -> Travel Time | I60: =SUMIFS('6.1. StudiesSummary'!$L$7:$L$335,'6.1. StudiesSummary'!$I$7:$I$335,H60,'6.1. StudiesSummary'!$H$7:$H$335,$K$57) -> 0 | J60: 2
G61: =IF(I61<>0,COUNT($G$58:G60)+1,"") ->  | H61: =ListsLookup!H76 -> Vehicle Operating Costs | I61: =SUMIFS('6.1. StudiesSummary'!$L$7:$L$335,'6.1. StudiesSummary'!$I$7:$I$335,H61,'6.1. StudiesSummary'!$H$7:$H$335,$K$57) -> 0 | J61: 3
G62: =IF(I62<>0,COUNT($G$58:G61)+1,"") -> 1 | H62: =ListsLookup!H77 -> Safety [Number of Crashes] | I62: =SUMIFS('6.1. StudiesSummary'!$L$7:$L$335,'6.1. StudiesSummary'!$I$7:$I$335,H62,'6.1. StudiesSummary'!$H$7:$H$335,$K$57) -> 1 | J62: 4
G63: =IF(I63<>0,COUNT($G$58:G62)+1,"") ->  | H63: =ListsLookup!H78 -> Emissions | I63: =SUMIFS('6.1. StudiesSummary'!$L$7:$L$335,'6.1. StudiesSummary'!$I$7:$I$335,H63,'6.1. StudiesSummary'!$H$7:$H$335,$K$57) -> 0 | J63: 5
G64: =IF(I64<>0,COUNT($G$58:G63)+1,"") ->  | H64: =ListsLookup!H79 -> Agency Efficiency | I64: =SUMIFS('6.1. StudiesSummary'!$L$7:$L$335,'6.1. StudiesSummary'!$I$7:$I$335,H64,'6.1. StudiesSummary'!$H$7:$H$335,$K$57) -> 0 | J64: 6
G65: =IF(I65<>0,COUNT($G$58:G64)+1,"") ->  | H65: =ListsLookup!H80 -> Other | I65: =SUMIFS('6.1. StudiesSummary'!$L$7:$L$335,'6.1. StudiesSummary'!$I$7:$I$335,H65,'6.1. StudiesSummary'!$H$7:$H$335,$K$57) -> 0 | J65: 7
G71: Application
G72: Advanced Automatic Crash Notification Relay- DSRC (AACNR) | H72: Advanced Automatic Crash Notification Relay | I72: Provides the capability for a vehicle to automatically transmit an emergency message when the vehicle has been involved in a crash or other distress situation
G73: Border Management Systems- DSRC (BMS) | H73: Border Management Systems | I73: Provide international border registration, pre-processing and border inspection capabilities
G74: Connected Eco-Driving- Cellular (CED) | H74: Connected Eco-Driving - Cellular (CED) | I74: Provides drivers customized real-time driving advice, such as recommended driving speeds, optimal acceleration, and optimal deceleration profiles based on prevailing traffic conditions, interactions with nearby vehicles, and upcoming road grades so that they can adjust their driving behavior to save fuel and reduce emissions
G75: Container Security- Cellular (CS) | H75: Container Security | I75: Uses container to infrastructure communications to allow security and public safety agencies to interrogate a container relative to its contents
G76: Container Security- DSRC (CS) | H76: Container Security | I76: Uses container to infrastructure communications to allow security and public safety agencies to interrogate a container relative to its contents
G77: Cooperative Adaptive Cruise Control- DSRC (CACC) | H77: Cooperative Adaptive Cruise Control - DSRC (CACC) | I77: Represents an evolutionary advancement of conventional cruise control (CCC) systems and adaptive cruise control (ACC) systems by utilizing V2V communication to automatically synchronize the movements of many vehicles within a platoon
G78: Curve Speed Warning- DSRC (CSW) | H78: Curve Speed Warning - DSRC (CSW) | I78: Allows connected vehicles to receive information that it is approaching a curve along with the recommended speed for the curve
G79: Curve Speed Warning- Cellular (CSW) | H79: Curve Speed Warning - DSRC (CSW) | I79: Allows connected vehicles to receive information that it is approaching a curve along with the recommended speed for the curve
G80: Dynamic Eco-Routing- Cellular (DER) | H80: Dynamic Eco-Routing - Cellular (DER) | I80: Determines the most eco-friendly route, in terms of minimum fuel consumption or emissions, for individual travelers
G81: Eco-Approach and Departure at Signalized Intersections- DSRC (EADSI) | H81: Eco-Approach and Departure at Signalized Intersections - DSRC (EADSI) | I81: Encourages "green" approaches to and departures from signalized intersections by collecting intersection geometry information and signal phase movement information and performing calculations to provide speed advice to the driver of the vehicle allowing the driver to adapt the vehicle's speed to pass the next traffic signal on green or to decelerate to a stop in the most eco-friendly manner
G82: Eco- Cooperative Adaptive Cruise Control- DSRC (ECACC) | H82: Eco-Cooperative Adaptive Cruise Control - DSRC (ECACC) | I82: Is an extension to the adaptive cruise control (ACC) concept. ECACC includes longitudinal automated vehicle controlw hile considering eco-driving strategies
G83: Eco-Lanes Management- DSRC (ELMD) | H83: Eco-Lanes Management - DSRC (ELMD) | I83: Supports the operations of eco-lanes (dedicated lanes similar to high-occupancy vehicle (HOV) or high-occupancy toll (HOT) lanes, but optimized for the environment) by gathering real-time traffic and environmental information from multiple sources including infrastructure, vehicles, and other systems and then processing these data to determine whether an eco-lane should be created or decommissioned along a roadway
G84: Eco-Lanes Management- Cellular (ELMC) | H84: Eco-Lanes Management - Cellular (ELMC) | I84: Supports the operations of eco-lanes (dedicated lanes similar to high-occupancy vehicle (HOV) or high-occupancy toll (HOT) lanes, but optimized for the environment) by gathering real-time traffic and environmental information from multiple sources including infrastructure, vehicles, and other systems and then processing these data to determine whether an eco-lane should be created or decommissioned along a roadway
G85: Eco-Ramp Metering- DSRC (ERM) | H85: Eco-Ramp Metering - DSRC (ERM) | I85: Determines the most environmentally efficient operation of traffic signals at freeway on-ramps to manage the rate of entering automobiles by collecting traffic and environmental data from connected vehicles to allow on-ramp merge operations that minimize overall emissions, including traffic and environmental conditions on the ramp and on the freeway upstream and downstream of the ramp
G86: Eco-Speed Harmonization- DSRC (ESH) | H86: Eco-Speed Harmonization - DSRC (ESH) | I86: Determines eco-speed limits based on traffic conditions, weather information, greenhouse gas emissions, and criteria pollutant information
G87: Eco-Traffic Signal Timing- DSRC (ETST) | H87: Eco-Traffic Signal Timing - DSRC (ETST) | I87: Optimizes traffic signals for the environment rather than the current adaptive systems' objective, which is to enhance the intersection level of service or throughput, which might improve the intersection's environmental performance
G88: Eco-Traffic Signal Priority- DSRC (ETSP) | H88: Eco-Traffic Signal Priority - DSRC (ETSP) | I88: Allows a transit vehicle approaching a signalized intersection to request signal priority based upon the vehicle's location, speed, vehicle powertrain type, mass, grade, and associated modal GHG, criteria air pollutant emissions, adherence to its schedule or the number of passengers on the transit vehicle, as well as information from other vehicles approaching the intersection
G89: Emergency Vehicle Priority (Emergency Vehicle Preemption)- DSRC (PREEMPT) | H89: Emergency Vehicle Preemption - DSRC (PREEMPT) | I89: Provides traffic signal priority for emergency vehicles traveling in a signalized network
G90: Enhanced Maintenance Decision Support System- Cellular (EMDSS) | H90: Enhanced MDSS - Cellular (EMDSS) | I90: Incorporates the additional information that can come from collecting road weather data from connected vehicles into the existing Maintenance Decision Support System (MDSS) capabilities
G91: Freight Drayage Optimization- DSRC (FDO) | H91: Drayage Optimization - DSRC (DO) | I91: Covers the information exchanges between all intermodal parties to provide current drayage truck load matching and container availability and appointment scheduling at railroad and steamship line terminals
G92: Freight Drayage Optimization- Cellular (FDO) | H92: Drayage Optimization - DSRC (DO) | I92: Covers the information exchanges between all intermodal parties to provide current drayage truck load matching and container availability and appointment scheduling at railroad and steamship line terminals
G93: Freight Signal Priority- DSRC (FSP) | H93: Freight Signal Priority - DSRC (FSP) | I93: Provides traffic signal priority for freight and commercial vehicles traveling in a signalized network
G94: Incident Scene Work Zone Alerts for Drivers and Workers- DSRC (INC-ZONE) | H94: Incident Scene Work Zone Alerts for Drivers and Workers - DSRC (INC-ZONE) | I94: Employs communications technologies to provide warnings and alerts relating to incident zone operations
G95: Incident Scene Work Zone Alerts for Drivers and Workers- Cellular (INC-ZONE) | H95: Incident Scene Work Zone Alerts for Drivers and Workers - DSRC (INC-ZONE) | I95: Employs communications technologies to provide warnings and alerts relating to incident zone operations
G96: Incident Scene Pre-Arrival Staging Guidance for Emergency Responders- DSRC (RESP-STG) | I96: Provides situational awareness to and coordination among emergency responders- upon dispatch, while en route toe stablish incident scene work zones, upong initial arrival and staging of assets, and afterware if circumstances require additional dispatch and staging.
G97: Integrated Multi-Modal Electronic Payment- Cellular (IMMEP) | H97: Integrated Multi-Modal Electronic Payment | I97: Uses connected vehicle roadside and vehicle systems to provide the electronic payment capability for toll systems, parking systems, and other areas requiring electronic payments
G98: Intelligent Traffic Signal System- DSRC (I-SIG) | H98: Intelligent Traffic Signal System - DSRC (I-SIG) | I98: Uses both vehicle location and movement information from connected vehicles as well as infrastructure measurement of non-equipped vehicles to improve the operations of traffic signal control systems
G99: Intermittent Bus Lanes- DSRC (IBL) | H99: Intermittent Bus Lanes | I99: Provides dedicated bus lanes during peak demand times to enhance transit operations mobility
G100: Intermittent Bus Lanes- Cellular (IBL) | H100: Intermittent Bus Lanes | I100: Provides dedicated bus lanes during peak demand times to enhance transit operations mobility
G101: Oversize Vehicle Warning- Cellular (OVW) | H101: Oversize Vehicle Warning | I101: Uses external measurements taken by the roadside infrastructure, and transmitted to the vehicle, to support in-vehicle determination of whether an alert/warning is necessary
G102: Pedestrian in Signalized Crosswalk Warning- DSRC (PSCW) | H102: Pedestrian in Signalized Crosswalk Warning - DSRC (PSCWT) | I102: Provides to the connected vehicle information from the infrastructure that indicates the possible presence of pedestrians in a crosswalk at a signalized intersection
G103: Queue Warning- Cellular (Q-WARN) | H103: Queue Warning - DSRC (Q-WARN) | I103: Enables vehicles within the queue event to automatically broadcast their queued status information (e.g., rapid deceleration, disabled status, lane location) to nearby upstream vehicles and to infrastructure-based central entities (such as the TMC) in order to minimize or prevent rear-end or other secondary collisions
G104: Queue Warning- DSRC (Q-WARN) | H104: Queue Warning - DSRC (Q-WARN) | I104: Enables vehicles within the queue event to automatically broadcast their queued status information (e.g., rapid deceleration, disabled status, lane location) to nearby upstream vehicles and to infrastructure-based central entities (such as the TMC) in order to minimize or prevent rear-end or other secondary collisions
G105: Railroad Crossing Warning- DSRC (RCW) | H105: Railroad Crossing Warning | I105: Alerts and/or warn drivers who are approaching an at-grade railroad crossing if they are on a crash-imminent trajectory to collide with a crossing or approaching train
G106: Railroad Crossing Warning- Cellular (RCW) | H106: Railroad Crossing Warning | I106: Alerts and/or warn drivers who are approaching an at-grade railroad crossing if they are on a crash-imminent trajectory to collide with a crossing or approaching train
G107: Red Light Violation Warning- DSRC (RLW) | H107: Red Light Violation Warning - DSRC (RLVW) | I107: Enables a connected vehicle approaching an instrumented signalized intersection to receive information from the infrastructure regarding the signal timing and the geometry of the intersection
G108: Reduced Speed Work Zone Warning- DSRC (RSWZW) | H108: Reduced Speed-Work Zone Warning - DSRC (RSWZW) | I108: Provides connected vehicles which are approaching a reduced speed zone with information on the zone's posted speed limit and/or if the configuration of the roadway is altered (e.g., lane closures, lane shifts)
G109: Restricted Lane Warnings-Cellular (RLW) | H109: Restricted Lane Warnings | I109: Provides the connected vehicle with restriction information about the travel lanes, such as if the lane is restricted to high occupancy vehicles (HOV), transit, or public safety vehicles only or has defined eco-lane criteria
G110: Restricted Lane Warnings-DSRC (RLW) | H110: Restricted Lane Warnings | I110: Provides the connected vehicle with restriction information about the travel lanes, such as if the lane is restricted to high occupancy vehicles (HOV), transit, or public safety vehicles only or has defined eco-lane criteria
G111: Motorist Advisories and Warnings - Cellular (MAW) | H111: Motorist Advisories and Warnings - Cellular (MAW) | I111: Provides the capability of collecting road weather data from connected vehicles and using that data to develop short term warnings or advisories that can be provided to individual motorists
G112: Road Weather Information and Routing Support for Emergency Responders- DSRC (RWIRSER) | H112: Road Weather Information and Routing Support for Emergency Responders | I112: Provides the capability of collecting road weather data from connected vehicles and other sources and using that data to develop short term warnings or advisories that can be provided to individual emergency response vehicles or to emergency response dispatchers
G113: Road Weather Information and Routing Support for Emergency Responders- Cellular (RWIRSER) | H113: Road Weather Information and Routing Support for Emergency Responders | I113: Provides the capability of collecting road weather data from connected vehicles and other sources and using that data to develop short term warnings or advisories that can be provided to individual emergency response vehicles or to emergency response dispatchers
G114: Road Weather Information for Freight Carriers- DSRC ( RWIFC) | H114: Road Weather Information for Freight Carriers | I114: Provides the capability of collecting road weather data from connected vehicles and using that data to develop short term warnings or advisories that can be provided to individual commercial vehicles or to commercial vehicle dispatchers
G115: Road Weather Information for Freight Carriers- Cellular ( RWIFC) | H115: Road Weather Information for Freight Carriers | I115: Provides the capability of collecting road weather data from connected vehicles and using that data to develop short term warnings or advisories that can be provided to individual commercial vehicles or to commercial vehicle dispatchers
G116: Security and Credentials Management- DSRC (SCM) | H116: Security and Credentials Management | I116: A set of support applications that are used to ensure the trusted communications between mobile devices and other mobile devices or roadside devices and protect data they handle from unauthorized access
G117: Security and Credentials Management- Cellular (SCM) | H117: Security and Credentials Management | I117: A set of support applications that are used to ensure the trusted communications between mobile devices and other mobile devices or roadside devices and protect data they handle from unauthorized access
G118: Signal Phase and Timing- DSRC (SPaT) | H118: Signal Phase and Timing | I118: Provides the current intersection signal light phases, current state of all lanes at a single intersection, as well as any preemption or priority
G119: Smart Park and Ride System- DSRC (SPRS) | H119: Smart Park and Ride System | I119: Provides real-time information on Park and Ride capacity and supports traveler's decision-making on where best to park and make use of transit alternatives
G120: Smart Park and Ride System- Cellular (SPRS) | H120: Smart Park and Ride System | I120: Provides real-time information on Park and Ride capacity and supports traveler's decision-making on where best to park and make use of transit alternatives
G121: Dynamic Speed Harmonization- DSRC (SPD-HARM) | H121: Dynamic Speed Harmonization - DSRC (SPD-HARM) | I121: Determines regulatory (e.g. variable speed limits) or advisory speed recommendations based on traffic conditions and weather information
G122: Dynamic Speed Harmonization- Cellular (SPD-HARM) | H122: Dynamic Speed Harmonization - DSRC (SPD-HARM) | I122: Determines regulatory (e.g. variable speed limits) or advisory speed recommendations based on traffic conditions and weather information
G123: Spot Weather Impact Warning- DSRC (SWIW) | H123: Spot Weather Impact Warning - DSRC (SWIW) | I123: Alerts drivers to unsafe conditions at specific points on the downstream roadway as a result of weather-related impacts, which include, but are not limited to high winds, flood conditions, ice, or fog
G124: Spot Weather Impact Warning- Cellular (SWIW) | H124: Spot Weather Impact Warning - DSRC (SWIW) | I124: Alerts drivers to unsafe conditions at specific points on the downstream roadway as a result of weather-related impacts, which include, but are not limited to high winds, flood conditions, ice, or fog
G125: Stop Sign Gap Assist- DSRC (SSGA) | H125: Stop Sign Gap Assist - DSRC (SSGA) | I125: Improves safety at non-signalized intersections where only the minor road has posted stop signs
G126: Stop Sign Violation Warning- DSRC ( SSVW) | H126: Stop Sign Violation Warning | I126: Improves safety at unsignalized intersections with posted stop signs by providing warnings to the driver approaching an unsignalized intersection
G127: Stop Sign Violation Warning- Cellular ( SSVW) | H127: Stop Sign Violation Warning | I127: Improves safety at unsignalized intersections with posted stop signs by providing warnings to the driver approaching an unsignalized intersection
G128: Transit Signal Priority- DSRC (TSP) | H128: Transit Signal Priority - DSRC (TSP) | I128: Uses transit vehicle to infrastructure communications to allow a transit vehicle to request an priority at one or a series of intersection
G129: Dynamic Transit Operations- Cellular (T-DISP) | H129: Dynamic Transit Operations - Cellular (T-DISP) | I129: Allows a transit passenger to send a stop request to an approaching transit vehicle
G130: Dynamic Transit Operations- DSRC (T-DISP) | H130: Dynamic Transit Operations - Cellular (T-DISP) | I130: Allows a transit passenger to send a stop request to an approaching transit vehicle
G131: Transit Vehicle at Station/Stop Warnings- DSRC (TVSSW) | H131: Transit Vehicle at Station/Stop Warnings | I131: Informs nearby vehicles of the presence of a transit vehicle at a station or stop
G132: Eco-smart Parking (Traveler Information-Smart Parking)- DSRC (ESP) | H132: Eco-Smart Parking - DSRC (ESP) | I132: Provides users with real-time location, availability, type (e.g., street, garage, AFV only), and the price of parking
G133: Weather Response Traffic Information- DSRC (WxTINFO) | H133: Weather Response Traffic Information - DSRC (WxTINFO) | I133: Uses road weather information from connected vehicles as well as current and historical data from multiple sources to determine the appropriate current safe speed and warn drivers of coming road conditions
G134: Weather Response Traffic Information- Cellular (WxTINFO) | H134: Weather Response Traffic Information - DSRC (WxTINFO) | I134: Uses road weather information from connected vehicles as well as current and historical data from multiple sources to determine the appropriate current safe speed and warn drivers of coming road conditions
G135: Vehicle Data for Traffic Operations- Cellular (VDTO) | I135: Uses probe data information obtained from vehicles in the network to support traffic operations, including incident detection and the implementation of localized operational strategies
G136: Vehicle Data for Traffic Operations- DSRC (VDTO) | I136: Uses probe data information obtained from vehicles in the network to support traffic operations, including incident detection and the implementation of localized operational strategies
G137: Work Zone Traveler Information- DSRC ( WZTI) | H137: Work Zone Traveler Information - Cellular (WZTI) | I137: Provides warnings to maintenance personnel within a work zone about potential hazards within the work zone
G138: Work Zone Traveler Information- Cellular ( WZTI) | H138: Work Zone Traveler Information - Cellular (WZTI) | I138: Provides warnings to maintenance personnel within a work zone about potential hazards within the work zone
G139: Warnings about Upcoming Work Zone- DSRC (WUWZ) | I139: Provides information about the conditions that exist in a work zone to vehicles that are approaching the work zone
G140: Warnings about Upcoming Work Zone- Cellular (WUWZ) | I140: Provides information about the conditions that exist in a work zone to vehicles that are approaching the work zone
H142: =DropDownApplication -> Advanced Automatic Crash Notification Relay | I142: =IFERROR(VLOOKUP(H142,Lookup_AppDescriptions,2,FALSE),"N/A") -> Provides the capability for a vehicle to automatically transmit an emergency message when the vehicle has been involved in a crash or other distress situation

Sheet 2. Identify
G1: 2. Identify Economic Tools
B2: Navigation | G2: =openingScreenTitle -> V2I Benefits Estimation Tool (VBET)
C3: Back
C4: Opening Screen
C5: 1. Investigate Potential Impacts
B6: u | C6: 2. Identify Economic Tools
C7: 3. Conduct Economic Analysis
C8: Benefit-Cost Analysis (BCA)
C9: 3.1. Determining V2I application(s) impacts in steady state
C11: 3.2. Determining CV-equipped vehicle fleet penetration rate
G12: 1. Select Geography | L12: 3. Methods and Tools | U12: Geography
C13: 3.3. Determining the efficacy adjustment factor | L13: =IF(ModelsTable!L16<>"",ModelsTable!L16,"") -> Gravity models | U13: TRUE | V13: =ListsLookup!H139 -> No Preference
L14: =IF(ModelsTable!L17<>"",ModelsTable!L17,"") -> Input-output models | U14: FALSE | V14: =ListsLookup!H140 -> Regional
C15: 3.4. BCA Results | L15: =IF(ModelsTable!L18<>"",ModelsTable!L18,"") -> Computable General Equilibrium (CGE) models | U15: FALSE | V15: =ListsLookup!H141 -> State
C16: Economic Impact Analysis (EIA) | L16: =IF(ModelsTable!L19<>"",ModelsTable!L19,"") -> Integrated land-use transportation models | U16: FALSE | V16: =ListsLookup!H142 -> Local
C17: 3.5. Economic Impact Analysis Assumptions | L17: =IF(ModelsTable!L20<>"",ModelsTable!L20,"") -> Regional Economic Models (REMI) | U17: Measure
G18: 2. Select the Affected Measure | L18: =IF(ModelsTable!L21<>"",ModelsTable!L21,"") -> Transportation Economic Development Impact System (TREDIS) | U18: TRUE | V18: =ListsLookup!H146 -> No Preference
C19: 3.6. Economic Impact Analysis Results | L19: =IF(ModelsTable!L22<>"",ModelsTable!L22,"") -> Real estate market analysis | U19: FALSE | V19: =ListsLookup!H147 -> Population
L20: =IF(ModelsTable!L23<>"",ModelsTable!L23,"") -> Case study findings and benefit transfer | U20: FALSE | V20: =ListsLookup!H148 -> Employment
C21: 4. Model Instructions | U21: FALSE | V21: =ListsLookup!H149 -> Location of Households and Firms
L22: 4. Description | U22: FALSE | V22: =ListsLookup!H150 -> Economy
L23: =IF(ModelsResultSel<>"",ModelsResultSel,"") -> Gravity models | U23: FALSE | V23: =ListsLookup!H151 -> Prices
U24: FALSE | V24: =ListsLookup!H152 -> Taxes
U25: FALSE | V25: =ListsLookup!H153 -> Imports
U26: FALSE | V26: =ListsLookup!H154 -> Exports
U27: FALSE | V27: =ListsLookup!H155 -> Land Use
U28: FALSE | V28: =ListsLookup!H156 -> Travel Conditions
U29: FALSE | V29: =ListsLookup!H157 -> Market Access
U30: FALSE | V30: =ListsLookup!H158 -> Travel Behavior
U31: FALSE | V31: =ListsLookup!H159 -> Development

Sheet ModelsTable (hidden)
G1: Models Lookup Table
G2: =openingScreenTitle -> V2I Benefits Estimation Tool (VBET)
C3: Back
G4: Approach or Model | H4: Brief Description | I4: Specific Questions | J4: Current Usage | L4: Geography | M4: Measures | N4: Geography check | O4: Measures Check | P4: Both Check
I5: Being Addressed | J5: Planning & Forecasting | K5: Economic Assessment
G6: Gravity models | H6: Application of Newton's law of universal gravitation to allocate pre-determined growth in employment and population. | I6: How will future population and employment be distributed? How would a change in accessibility affect the location of households and firms? | J6: Frequently used | K6: Rarely used | L6: No Preference Regional State Local | M6: No Preference Population Employment Location of Households and Firms Economy | N6: =MAX(IFERROR(FIND($G$16:$G$20,L6),0))>1 -> TRUE | O6: =MAX(IFERROR(FIND($H$16:$H$30,M6),0))>1 -> TRUE | P6: =AND(N6,O6) -> TRUE
G7: Input-output models | H7: Use of statistical tables of inter-industry transactions to estimate the indirect and induced effects of changes in spending or production costs. | I7: What are the total impacts of a change in spending on a regional or local economy? How does a change in spending in one industry propagate through the economy? | J7: Rarely used | K7: Frequently used | L7: No Preference Regional State Local | M7: No Preference Employment Economy Prices Taxes Imports Exports | N7: =MAX(IFERROR(FIND($G$16:$G$20,L7),0))>1 -> TRUE | O7: =MAX(IFERROR(FIND($H$16:$H$30,M7),0))>1 -> TRUE | P7: =AND(N7,O7) -> TRUE
G8: Computable General Equilibrium (CGE) models | H8: Combination of input-output tables with system of equations to represent behavior and resource constraints. Use of market-clearing mechanisms to simulate equilibrium. | I8: How would a national or state economy react to large investment projects or policy changes? How would employment, prices, taxes, imports and exports adjust to a “shock”? | J8: Generally not used | K8: Rarely used | L8: No Preference Regional State | M8: No PreferenceEmployment Prices Taxes Imports Exports Land Use | N8: =MAX(IFERROR(FIND($G$16:$G$20,L8),0))>1 -> TRUE | O8: =MAX(IFERROR(FIND($H$16:$H$30,M8),0))>1 -> TRUE | P8: TRUE
G9: Integrated land-use transportation models | H9: Integration of travel model and land-use forecasting tool to simulate “feedback cycle.” Use of random utility theory to describe and predict location choices. | I9: How do changes in accessibility affect land use? How do changes in land use affect accessibility and transportation system performance? How would a transportation project or policy alter location choices? | J9: Sometimes used | K9: Rarely used | L9: No Preference Regional State Local | M9: No Preference Land Use | N9: =MAX(IFERROR(FIND($G$16:$G$20,L9),0))>1 -> TRUE | O9: =MAX(IFERROR(FIND($H$16:$H$30,M9),0))>1 -> TRUE | P9: TRUE
G10: Regional Economic Models (REMI) | H10: Hybrid model, combining elements of input-output systems, CGE models, and regional econometric models. | I10: What would be the impacts of a program, project, or policy on the economy of a state, region, or county? | J10: Sometimes used | K10: Frequently used | L10: No Preference Regional State Local | M10: No Preference Employment Economy Prices Taxes Imports Exports | N10: =MAX(IFERROR(FIND($G$16:$G$20,L10),0))>1 -> TRUE | O10: =MAX(IFERROR(FIND($H$16:$H$30,M10),0))>1 -> TRUE | P10: TRUE
G11: Transportation Economic Development Impact System (TREDIS) | H11: Hybrid model, combining elements of input-output systems and econometric models. | I11: How would a transportation project improve travel conditions and market access, and help stimulate the regional economy? | J11: Generally not used | K11: Frequently used | L11: No Preference Regional | M11: No Preference Employment Prices Taxes Imports Exports Travel Conditions Market Access Development | N11: =MAX(IFERROR(FIND($G$16:$G$20,L11),0))>1 -> TRUE | O11: =MAX(IFERROR(FIND($H$16:$H$30,M11),0))>1 -> TRUE | P11: TRUE
G12: Real estate market analysis | H12: Use of market research, interviews and stakeholder elicitation techniques to identify opportunities for development. | I12: Which economic development opportunities could be leveraged by a transportation project? What are local property developers and stakeholders expecting? | J12: Frequently used | K12: Frequently used | L12: No Preference Local | M12: No Preference Location of Households and Firms Land Use Development | N12: =MAX(IFERROR(FIND($G$16:$G$20,L12),0))>1 -> TRUE | O12: =MAX(IFERROR(FIND($H$16:$H$30,M12),0))>1 -> TRUE | P12: TRUE
G13: Case study findings and benefit transfer | H13: Application of benefit-transfer methods to derive reasonable estimates of potential economic development impacts. | I13: Based on similar projects at other sites and “analysis by analogy,” what range of economic impacts can be expected at a project site? | J13: Generally not used | K13: Frequently used | L13: No Preference Regional State Local | M13: No Preference Population Employment Location of Households and Firms Economy Prices Taxes Imports Exports Land Use Travel Conditions Market Access Travel Behavior Development | N13: =MAX(IFERROR(FIND($G$16:$G$20,L13),0))>1 -> TRUE | O13: =MAX(IFERROR(FIND($H$16:$H$30,M13),0))>1 -> TRUE | P13: TRUE
G15: Geography | H15: Measures | J15: Results List | L15: Final Sorted List
G16: =IF('2. Identify'!U13=TRUE,'2. Identify'!V13,"") -> No Preference | H16: =IF('2. Identify'!U18=TRUE,'2. Identify'!V18,"") -> No Preference | I16: =IF(J16<>"",COUNT($I$15:I15)+1,"") -> 1 | J16: =IF($P$6:$P$13=TRUE,$G$6:$G$13,"") -> Gravity models | K16: 1 | L16: =IFERROR(VLOOKUP(K16,$I$16:$J$24,2,FALSE),"") -> Gravity models
G17: =IF('2. Identify'!U14=TRUE,'2. Identify'!V14,"") ->  | H17: =IF('2. Identify'!U19=TRUE,'2. Identify'!V19,"") ->  | I17: =IF(J17<>"",COUNT($I$15:I16)+1,"") -> 2 | J17: Input-output models | K17: 2 | L17: =IFERROR(VLOOKUP(K17,$I$16:$J$24,2,FALSE),"") -> Input-output models
G18: =IF('2. Identify'!U15=TRUE,'2. Identify'!V15,"") ->  | H18: =IF('2. Identify'!U20=TRUE,'2. Identify'!V20,"") ->  | I18: =IF(J18<>"",COUNT($I$15:I17)+1,"") -> 3 | J18: Computable General Equilibrium (CGE) models | K18: 3 | L18: Computable General Equilibrium (CGE) models
G19: =IF('2. Identify'!U16=TRUE,'2. Identify'!V16,"") ->  | H19: =IF('2. Identify'!U21=TRUE,'2. Identify'!V21,"") ->  | I19: =IF(J19<>"",COUNT($I$15:I18)+1,"") -> 4 | J19: Integrated land-use transportation models | K19: 4 | L19: Integrated land-use transportation models
G20: =IF(LEN(SelectedGeographies&G17&G18&G19)=0,"No Preference","") ->  | H20: =IF('2. Identify'!U22=TRUE,'2. Identify'!V22,"") ->  | I20: =IF(J20<>"",COUNT($I$15:I19)+1,"") -> 5 | J20: Regional Economic Models (REMI) | K20: 5 | L20: Regional Economic Models (REMI)
H21: =IF('2. Identify'!U23=TRUE,'2. Identify'!V23,"") ->  | I21: =IF(J21<>"",COUNT($I$15:I20)+1,"") -> 6 | J21: Transportation Economic Development Impact System (TREDIS) | K21: 6 | L21: Transportation Economic Development Impact System (TREDIS)
H22: =IF('2. Identify'!U24=TRUE,'2. Identify'!V24,"") ->  | I22: =IF(J22<>"",COUNT($I$15:I21)+1,"") -> 7 | J22: Real estate market analysis | K22: 7 | L22: Real estate market analysis
H23: =IF('2. Identify'!U25=TRUE,'2. Identify'!V25,"") ->  | I23: =IF(J23<>"",COUNT($I$15:I22)+1,"") -> 8 | J23: Case study findings and benefit transfer | K23: 8 | L23: Case study findings and benefit transfer
H24: =IF('2. Identify'!U26=TRUE,'2. Identify'!V26,"") ->  | I24: =IF(J24<>"",COUNT($I$15:I23)+1,"") ->  | K24: 9
H25: =IF('2. Identify'!U27=TRUE,'2. Identify'!V27,"") -> 
H26: =IF('2. Identify'!U28=TRUE,'2. Identify'!V28,"") -> 
H27: =IF('2. Identify'!U29=TRUE,'2. Identify'!V29,"") -> 
H28: =IF('2. Identify'!U30=TRUE,'2. Identify'!V30,"") -> 
H29: =IF('2. Identify'!U31=TRUE,'2. Identify'!V31,"") -> 
H30: =IF(LEN(SelectedMeasures&H17&H18&H19&H20&H21&H22&H23&H24&H25&H26&H27&H28&H29)=0,"No Preference","") -> 
G32: Selected Item | H32: Item ID | I32: Description | J32: Questions
G33: Gravity models | H33: =MATCH(ModelsResultSel,$G$6:$G$13,0) -> 1 | I33: =IFERROR(INDEX($G$6:$M$13,$H$33,2),"") -> Application of Newton's law of universal gravitation to allocate pre-determined growth in employment and population. | J33: =IFERROR(INDEX($G$6:$M$13,$H$33,3),"") -> How will future population and employment be distributed? How would a change in accessibility affect the location of households and firms?

Sheet 3. ConductAnalysis
G1: 3. Conduct Economic Analysis
B2: Navigation | G2: =openingScreenTitle -> V2I Benefits Estimation Tool (VBET)
C3: Back
C4: Opening Screen
C5: 1. Investigate Potential Impacts
C6: 2. Identify Economic Tools
B7: u | C7: 3. Conduct Economic Analysis
C8: Benefit-Cost Analysis (BCA)
C9: 3.1. Determining V2I application(s) impacts in steady state | G9: Select Type of Analysis | J9: Benefit-Cost Analysis | P9: =IF(SelectAnalysisType=INDEX(List_AnalysisType,2),"* requires results of Benefit-Cost Analysis","") -> 
C11: 3.2. Determining CV-equipped vehicle fleet penetration rate
C13: 3.3. Determining the efficacy adjustment factor
C15: 3.4. BCA Results
C16: Economic Impact Analysis (EIA)
C17: 3.5. Economic Impact Analysis Assumptions
C19: 3.6. Economic Impact Analysis Results
C21: 4. Model Instructions

Sheet 3.1. BCAInputs
G1: 3.1. Determining V2I application(s) impacts in steady state
B2: Navigation | G2: =openingScreenTitle -> V2I Benefits Estimation Tool (VBET)
C3: Back
C4: Opening Screen
C5: 1. Investigate Potential Impacts
C6: 2. Identify Economic Tools | G6: 1. Basic Model Information
C7: 3. Conduct Economic Analysis | G7: Analysis start year | I7: 2015
C8: Benefit-Cost Analysis (BCA) | G8: Analysis period | I8: 30
B9: u | C9: 3.1. Determining V2I application(s) impacts in steady state | G9: Real discount rate | I9: 0.07
G10: First year (for VMT and VHT baseline) | I10: 2015
C11: 3.2. Determining CV-equipped vehicle fleet penetration rate | G11: Future year (for VMT and VHT projections) | I11: 2030
G12: Method for consolidating impacts for multiple applications | I12: Average
C13: 3.3. Determining the efficacy adjustment factor
C15: 3.4. BCA Results | G15: 2. V2I Applications and Cost Data
C16: Economic Impact Analysis (EIA) | H16: Select Application(s) to be included in the analysis | I16: Deployment start year | J16: Number of years of capital cost | K16: Total cost | L16: Total cost including O&M cost (by program year)
C17: 3.5. Economic Impact Analysis Assumptions
I18: (Year) | J18: (Years) | K18: ($) | L18: 0 | M18: 1 | N18: 2 | O18: 3 | P18: 4 | Q18: 5 | R18: 6 | S18: 7 | T18: 8 | U18: 9 | V18: 10 | W18: 11 | X18: 12 | Y18: 13 | Z18: 14 | AA18: 15 | AB18: 16 | AC18: 17 | AD18: 18 | AE18: 19 | AF18: 20 | AG18: 21 | AH18: 22 | AI18: 23 | AJ18: 24 | AK18: 25 | AL18: 26 | AM18: 27 | AN18: 28 | AO18: 29 | AP18: 30
C19: 3.6. Economic Impact Analysis Results | G19: 1 | I19: 2020 | J19: 1 | K19: =SUM(L19:AP19) -> 0
G20: 2 | I20: 2020 | J20: 1 | K20: 0
C21: 4. Model Instructions | G21: 3 | I21: 2020 | J21: 1 | K21: =SUM(L21:AP21) -> 0
G22: 4 | I22: 2020 | J22: 1 | K22: 0
G23: 5 | I23: 2020 | J23: 1 | K23: 0
G24: 6 | I24: 2020 | J24: 1 | K24: 0
G25: 7 | I25: 2020 | J25: 1 | K25: 0
G26: 8 | I26: 2020 | J26: 1 | K26: 0
G27: 9 | I27: 2020 | J27: 1 | K27: 0
G28: 10 | I28: 2020 | J28: 1 | K28: 0
G29: 11 | I29: 2020 | J29: 1 | K29: 0
G30: 12 | I30: 2020 | J30: 1 | K30: 0
G31: 13 | I31: 2020 | J31: 1 | K31: 0
G32: 14 | I32: 2020 | J32: 1 | K32: 0
G33: 15 | I33: 2020 | J33: 1 | K33: 0
H34: Include any adjustment to apply to total costs | I34: 2020 | J34: 15 | K34: 0
K35: =SUM(K19:K34) -> 0 | L35: =SUM(L19:L34) -> 0 | M35: =SUM(M19:M34) -> 0 | N35: 0 | O35: 0 | P35: 0 | Q35: 0 | R35: 0 | S35: 0 | T35: 0 | U35: 0 | V35: 0 | W35: 0 | X35: 0 | Y35: 0 | Z35: 0 | AA35: 0 | AB35: 0 | AC35: 0 | AD35: 0 | AE35: 0 | AF35: 0 | AG35: 0 | AH35: 0 | AI35: 0 | AJ35: 0 | AK35: 0 | AL35: 0 | AM35: 0 | AN35: 0 | AO35: 0 | AP35: 0
G39: 3. Travel Characteristics and Forecasts
H40: Overall
H41: Road type | I41: Urban Unrestricted
M42: Growth Rates
H43: ="First Year Baseline (" &$I$10 &")" -> First Year Baseline (2015) | I43: Automobile | J43: Truck | K43: Transit | M43: Auto | N43: Truck | O43: Transit
H44: Average annual daily vehicle-miles traveled (VMT per day) | M44: =IFERROR((I48/I44)^(1/($I$11-$I$10))-1,0) -> 0 | N44: 0 | O44: 0
H45: Average annual daily vehicle-hours traveled (VHT per day) | M45: 0 | N45: 0 | O45: 0
H47: ="Future Year Baseline (" &$I$11 &")" -> Future Year Baseline (2030) | I47: Automobile | J47: Truck | K47: Transit
H48: Average annual daily vehicle-miles traveled (VMT per day)
H49: Average annual daily vehicle-hours traveled (VHT per day)
H51: ="Stop VMT and VHT growth after the Future Year (" &$I$11 &")" -> Stop VMT and VHT growth after the Future Year (2030) | I51: Yes
H53: ="Crash Data in First Year (" &$I$10 &")" -> Crash Data in First Year (2015) | I53: Fatal | J53: Injury | K53: PDO
H54: Average number of annual crashes (crashes per year)
H55: Annual percent change in crash rate (percent per year)

Sheet 3.2. BCAPeneRate (hidden)
G1: 3.2. Determining CV-equipped vehicle fleet penetration rate
B2: Navigation | G2: =openingScreenTitle -> V2I Benefits Estimation Tool (VBET)
C3: Back
C4: Opening Screen | G4: 1. Default Fleet Penetration Rates
C5: 1. Investigate Potential Impacts | H5: Year of Implementation | J5: 1 | K5: 2 | L5: 3 | M5: 4 | N5: 5 | O5: 6 | P5: 7 | Q5: 8 | R5: 9 | S5: 10 | T5: 11 | U5: 12 | V5: 13 | W5: 14 | X5: 15 | Y5: 16 | Z5: 17 | AA5: 18 | AB5: 19 | AC5: 20 | AD5: 21 | AE5: 22 | AF5: 23 | AG5: 24 | AH5: 25 | AI5: 26 | AJ5: 27 | AK5: 28 | AL5: 29 | AM5: 30 | AN5: 31 | AO5: 32 | AP5: 33 | AQ5: 34 | AR5: 35 | AS5: 36 | AT5: 37 | AU5: 38 | AV5: 39 | AW5: 40 | AX5: 41 | AY5: 42 | AZ5: 43 | BA5: 44 | BB5: 45 | BC5: 46 | BD5: 47 | BE5: 48 | BF5: 49 | BG5: 50 | BH5: 51 | BI5: 52 | BJ5: 53 | BK5: 54 | BL5: 55 | BM5: 56 | BN5: 57 | BO5: 58 | BP5: 59 | BQ5: 60 | BR5: 61
C6: 2. Identify Economic Tools | H6: Calendar Year | J6: 2020 | K6: 2021 | L6: 2022 | M6: 2023 | N6: 2024 | O6: 2025 | P6: 2026 | Q6: 2027 | R6: 2028 | S6: 2029 | T6: 2030 | U6: 2031 | V6: 2032 | W6: 2033 | X6: 2034 | Y6: 2035 | Z6: 2036 | AA6: 2037 | AB6: 2038 | AC6: 2039 | AD6: 2040 | AE6: 2041 | AF6: 2042 | AG6: 2043 | AH6: 2044 | AI6: 2045 | AJ6: 2046 | AK6: 2047 | AL6: 2048 | AM6: 2049 | AN6: 2050 | AO6: 2051 | AP6: 2052 | AQ6: 2053 | AR6: 2054 | AS6: 2055 | AT6: 2056 | AU6: 2057 | AV6: 2058 | AW6: 2059 | AX6: 2060 | AY6: 2061 | AZ6: 2062 | BA6: 2063 | BB6: 2064 | BC6: 2065 | BD6: 2066 | BE6: 2067 | BF6: 2068 | BG6: 2069 | BH6: 2070 | BI6: 2071 | BJ6: 2072 | BK6: 2073 | BL6: 2074 | BM6: 2075 | BN6: 2076 | BO6: 2077 | BP6: 2078 | BQ6: 2079 | BR6: 2080
C7: 3. Conduct Economic Analysis | H7: DSRC^2 | J7: 0.0006 | K7: 0.0051 | L7: 0.0246 | M7: 0.0569 | N7: 0.1101 | O7: 0.1745 | P7: 0.246 | Q7: 0.2992 | R7: 0.3545 | S7: 0.4109 | T7: 0.4677 | U7: 0.5236 | V7: 0.578 | W7: 0.6297 | X7: 0.6786 | Y7: 0.7238 | Z7: 0.7651 | AA7: 0.8019 | AB7: 0.8342 | AC7: 0.8616 | AD7: 0.8847 | AE7: 0.9042 | AF7: 0.9201 | AG7: 0.9334 | AH7: 0.9447 | AI7: 0.9537 | AJ7: 0.9614 | AK7: 0.9685 | AL7: 0.9748 | AM7: 0.9806 | AN7: 0.9851 | AO7: 0.989 | AP7: 0.9919 | AQ7: 0.9942 | AR7: 0.9963 | AS7: 0.9978 | AT7: 0.9991 | AU7: 0.9997 | AV7: 1 | AW7: 1 | AX7: 1 | AY7: =AX7 -> 1 | AZ7: =AY7 -> 1 | BA7: 1 | BB7: 1 | BC7: 1 | BD7: 1 | BE7: 1 | BF7: 1 | BG7: 1 | BH7: 1 | BI7: 1 | BJ7: 1 | BK7: 1 | BL7: 1 | BM7: 1 | BN7: 1 | BO7: 1 | BP7: 1 | BQ7: 1 | BR7: 1
C8: Benefit-Cost Analysis (BCA) | H8: DSRC | J8: =SQRT(J$7) -> 0.02449489743 | K8: =SQRT(K$7) -> 0.07141428429 | L8: 0.1568438714 | M8: 0.2385372088 | N8: 0.3318132005 | O8: 0.4177319715 | P8: 0.4959838707 | Q8: 0.5469917732 | R8: 0.5953990259 | S8: 0.6410148204 | T8: 0.6838859554 | U8: 0.7236021006 | V8: 0.7602631123 | W8: 0.7935363886 | X8: 0.8237718131 | Y8: 0.8507643622 | Z8: 0.8746999486 | AA8: 0.8954886934 | AB8: 0.9133454987 | AC8: 0.9282241109 | AD8: 0.9405849244 | AE8: 0.9508943159 | AF8: 0.9592184318 | AG8: 0.9661262857 | AH8: 0.9719567892 | AI8: 0.9765756499 | AJ8: 0.9805100713 | AK8: 0.9841239759 | AL8: 0.9873196038 | AM8: 0.9902524931 | AN8: 0.9925220401 | AO8: 0.9944847912 | AP8: 0.9959417654 | AQ8: 0.9970957828 | AR8: 0.9981482856 | AS8: 0.9988993943 | AT8: 0.9995498987 | AU8: 0.9998499887 | AV8: 1 | AW8: 1 | AX8: 1 | AY8: 1 | AZ8: 1 | BA8: 1 | BB8: 1 | BC8: 1 | BD8: 1 | BE8: 1 | BF8: 1 | BG8: 1 | BH8: 1 | BI8: 1 | BJ8: 1 | BK8: 1 | BL8: 1 | BM8: 1 | BN8: 1 | BO8: 1 | BP8: 1 | BQ8: 1 | BR8: 1
C9: 3.1. Determining V2I application(s) impacts in steady state | H9: Cellular | J9: =SQRT(J$7) -> 0.02449489743 | K9: 0.07141428429 | L9: 0.1568438714 | M9: 0.2385372088 | N9: 0.3318132005 | O9: 0.4177319715 | P9: 0.4959838707 | Q9: 0.5469917732 | R9: 0.5953990259 | S9: 0.6410148204 | T9: 0.6838859554 | U9: 0.7236021006 | V9: 0.7602631123 | W9: 0.7935363886 | X9: 0.8237718131 | Y9: 0.8507643622 | Z9: 0.8746999486 | AA9: 0.8954886934 | AB9: 0.9133454987 | AC9: 0.9282241109 | AD9: 0.9405849244 | AE9: 0.9508943159 | AF9: 0.9592184318 | AG9: 0.9661262857 | AH9: 0.9719567892 | AI9: 0.9765756499 | AJ9: 0.9805100713 | AK9: 0.9841239759 | AL9: 0.9873196038 | AM9: 0.9902524931 | AN9: 0.9925220401 | AO9: 0.9944847912 | AP9: 0.9959417654 | AQ9: 0.9970957828 | AR9: 0.9981482856 | AS9: 0.9988993943 | AT9: 0.9995498987 | AU9: 0.9998499887 | AV9: 1 | AW9: 1 | AX9: 1 | AY9: 1 | AZ9: 1 | BA9: 1 | BB9: 1 | BC9: 1 | BD9: 1 | BE9: 1 | BF9: 1 | BG9: 1 | BH9: 1 | BI9: 1 | BJ9: 1 | BK9: 1 | BL9: 1 | BM9: 1 | BN9: 1 | BO9: 1 | BP9: 1 | BQ9: 1 | BR9: 1
H10: 1 | J10: 1 | K10: 1 | L10: 1 | M10: 1 | N10: 1 | O10: 1 | P10: 1 | Q10: 1 | R10: 1 | S10: 1 | T10: 1 | U10: 1 | V10: 1 | W10: 1 | X10: 1 | Y10: 1 | Z10: 1 | AA10: 1 | AB10: 1 | AC10: 1 | AD10: 1 | AE10: 1 | AF10: 1 | AG10: 1 | AH10: 1 | AI10: 1 | AJ10: 1 | AK10: 1 | AL10: 1 | AM10: 1 | AN10: 1 | AO10: 1 | AP10: 1 | AQ10: 1 | AR10: 1 | AS10: 1 | AT10: 1 | AU10: 1 | AV10: 1 | AW10: 1 | AX10: 1 | AY10: 1 | AZ10: 1 | BA10: 1 | BB10: 1 | BC10: 1 | BD10: 1 | BE10: 1 | BF10: 1 | BG10: 1 | BH10: 1 | BI10: 1 | BJ10: 1 | BK10: 1 | BL10: 1 | BM10: 1 | BN10: 1 | BO10: 1 | BP10: 1 | BQ10: 1 | BR10: 1
B11: u | C11: 3.2. Determining CV-equipped vehicle fleet penetration rate
G12: 2. Modified Fleet Penetration Rates
C13: 3.3. Determining the efficacy adjustment factor | I13: Recommended
F14: 1 | G14: =IF('3.1. BCAInputs'!H19<>"",'3.1. BCAInputs'!H19,"") ->  | H14: Use Recommended | I14: =IFERROR(VLOOKUP(G14,ImpactValuesLookup!$J$5:$K$145,2,FALSE),"") ->  | J14: 0 | K14: =IF(OR($H14=ListsLookup!$H$89,J14="",O14=""),"",J14+(O14-J14)*(K$6-J$6)/(O$6-J$6)) ->  | L14: =IF(OR($H14=ListsLookup!$H$89,J14="",O14=""),"",J14+(O14-J14)*(L$6-J$6)/(O$6-J$6)) ->  | M14: =IF(OR($H14=ListsLookup!$H$89,J14="",O14=""),"",J14+(O14-J14)*(M$6-J$6)/(O$6-J$6)) ->  | N14: =IF(OR($H14=ListsLookup!$H$89,J14="",O14=""),"",J14+(O14-J14)*(N$6-J$6)/(O$6-J$6)) ->  | O14: 0.03 | P14: =IF(OR($H14=ListsLookup!$H$89,O14="",T14=""),"",O14+(T14-O14)*(P$6-O$6)/(T$6-O$6)) ->  | Q14: =IF(OR($H14=ListsLookup!$H$89,O14="",T14=""),"",O14+(T14-O14)*(Q$6-O$6)/(T$6-O$6)) ->  | R14: =IF(OR($H14=ListsLookup!$H$89,O14="",T14=""),"",O14+(T14-O14)*(R$6-O$6)/(T$6-O$6)) ->  | S14: =IF(OR($H14=ListsLookup!$H$89,O14="",T14=""),"",O14+(T14-O14)*(S$6-O$6)/(T$6-O$6)) ->  | T14: 0.15 | U14: =IF(OR($H14=ListsLookup!$H$89,T14="",Y14=""),"",T14+(Y14-T14)*(U$6-T$6)/(Y$6-T$6)) ->  | V14: =IF(OR($H14=ListsLookup!$H$89,T14="",Y14=""),"",T14+(Y14-T14)*(V$6-T$6)/(Y$6-T$6)) ->  | W14: =IF(OR($H14=ListsLookup!$H$89,T14="",Y14=""),"",T14+(Y14-T14)*(W$6-T$6)/(Y$6-T$6)) ->  | X14: =IF(OR($H14=ListsLookup!$H$89,T14="",Y14=""),"",T14+(Y14-T14)*(X$6-T$6)/(Y$6-T$6)) ->  | Y14: 0.3 | Z14: =IF(OR($H14=ListsLookup!$H$89,Y14="",AD14=""),"",Y14+(AD14-Y14)*(Z$6-Y$6)/(AD$6-Y$6)) ->  | AA14: =IF(OR($H14=ListsLookup!$H$89,Y14="",AD14=""),"",Y14+(AD14-Y14)*(AA$6-Y$6)/(AD$6-Y$6)) ->  | AB14: =IF(OR($H14=ListsLookup!$H$89,Y14="",AD14=""),"",Y14+(AD14-Y14)*(AB$6-Y$6)/(AD$6-Y$6)) ->  | AC14: =IF(OR($H14=ListsLookup!$H$89,Y14="",AD14=""),"",Y14+(AD14-Y14)*(AC$6-Y$6)/(AD$6-Y$6)) ->  | AD14: 0.5 | AE14: =IF(OR($H14=ListsLookup!$H$89,AD14="",AI14=""),"",AD14+(AI14-AD14)*(AE$6-AD$6)/(AI$6-AD$6)) ->  | AF14: =IF(OR($H14=ListsLookup!$H$89,AD14="",AI14=""),"",AD14+(AI14-AD14)*(AF$6-AD$6)/(AI$6-AD$6)) ->  | AG14: =IF(OR($H14=ListsLookup!$H$89,AD14="",AI14=""),"",AD14+(AI14-AD14)*(AG$6-AD$6)/(AI$6-AD$6)) ->  | AH14: =IF(OR($H14=ListsLookup!$H$89,AD14="",AI14=""),"",AD14+(AI14-AD14)*(AH$6-AD$6)/(AI$6-AD$6)) ->  | AI14: 0.8 | AJ14: =IF(OR($H14=ListsLookup!$H$89,AI14="",AN14=""),"",AI14+(AN14-AI14)*(AJ$6-AI$6)/(AN$6-AI$6)) ->  | AK14: =IF(OR($H14=ListsLookup!$H$89,AI14="",AN14=""),"",AI14+(AN14-AI14)*(AK$6-AI$6)/(AN$6-AI$6)) ->  | AL14: =IF(OR($H14=ListsLookup!$H$89,AI14="",AN14=""),"",AI14+(AN14-AI14)*(AL$6-AI$6)/(AN$6-AI$6)) ->  | AM14: =IF(OR($H14=ListsLookup!$H$89,AI14="",AN14=""),"",AI14+(AN14-AI14)*(AM$6-AI$6)/(AN$6-AI$6)) ->  | AN14: 0.95 | AO14: =IF(OR($H14=ListsLookup!$H$89,AN14="",AS14=""),"",AN14+(AS14-AN14)*(AO$6-AN$6)/(AS$6-AN$6)) ->  | AP14: =IF(OR($H14=ListsLookup!$H$89,AN14="",AS14=""),"",AN14+(AS14-AN14)*(AP$6-AN$6)/(AS$6-AN$6)) ->  | AQ14: =IF(OR($H14=ListsLookup!$H$89,AN14="",AS14=""),"",AN14+(AS14-AN14)*(AQ$6-AN$6)/(AS$6-AN$6)) ->  | AR14: =IF(OR($H14=ListsLookup!$H$89,AN14="",AS14=""),"",AN14+(AS14-AN14)*(AR$6-AN$6)/(AS$6-AN$6)) ->  | AS14: 0.99 | AT14: =IF(OR($H14=ListsLookup!$H$89,AS14="",AX14=""),"",AS14+(AX14-AS14)*(AT$6-AS$6)/(AX$6-AS$6)) ->  | AU14: =IF(OR($H14=ListsLookup!$H$89,AS14="",AX14=""),"",AS14+(AX14-AS14)*(AU$6-AS$6)/(AX$6-AS$6)) ->  | AV14: =IF(OR($H14=ListsLookup!$H$89,AS14="",AX14=""),"",AS14+(AX14-AS14)*(AV$6-AS$6)/(AX$6-AS$6)) ->  | AW14: =IF(OR($H14=ListsLookup!$H$89,AS14="",AX14=""),"",AS14+(AX14-AS14)*(AW$6-AS$6)/(AX$6-AS$6)) ->  | AX14: 1 | AY14: =AX14 -> 1 | AZ14: 1 | BA14: 1 | BB14: 1 | BC14: 1 | BD14: 1 | BE14: 1 | BF14: 1 | BG14: 1 | BH14: 1 | BI14: 1 | BJ14: 1 | BK14: 1 | BL14: 1 | BM14: 1 | BN14: 1 | BO14: 1 | BP14: 1 | BQ14: 1 | BR14: 1
C15: 3.4. BCA Results | F15: 2 | G15: =IF('3.1. BCAInputs'!H20<>"",'3.1. BCAInputs'!H20,"") ->  | H15: Use Recommended | I15: =IFERROR(VLOOKUP(G15,ImpactValuesLookup!$J$5:$K$145,2,FALSE),"") ->  | K15: =IF(OR($H15=ListsLookup!$H$89,J15="",O15=""),"",J15+(O15-J15)*(K$6-J$6)/(O$6-J$6)) ->  | L15: =IF(OR($H15=ListsLookup!$H$89,J15="",O15=""),"",J15+(O15-J15)*(L$6-J$6)/(O$6-J$6)) ->  | M15: =IF(OR($H15=ListsLookup!$H$89,J15="",O15=""),"",J15+(O15-J15)*(M$6-J$6)/(O$6-J$6)) ->  | N15: =IF(OR($H15=ListsLookup!$H$89,J15="",O15=""),"",J15+(O15-J15)*(N$6-J$6)/(O$6-J$6)) ->  | P15: =IF(OR($H15=ListsLookup!$H$89,O15="",T15=""),"",O15+(T15-O15)*(P$6-O$6)/(T$6-O$6)) ->  | Q15: =IF(OR($H15=ListsLookup!$H$89,O15="",T15=""),"",O15+(T15-O15)*(Q$6-O$6)/(T$6-O$6)) ->  | R15: =IF(OR($H15=ListsLookup!$H$89,O15="",T15=""),"",O15+(T15-O15)*(R$6-O$6)/(T$6-O$6)) ->  | S15: =IF(OR($H15=ListsLookup!$H$89,O15="",T15=""),"",O15+(T15-O15)*(S$6-O$6)/(T$6-O$6)) ->  | U15: =IF(OR($H15=ListsLookup!$H$89,T15="",Y15=""),"",T15+(Y15-T15)*(U$6-T$6)/(Y$6-T$6)) ->  | V15: =IF(OR($H15=ListsLookup!$H$89,T15="",Y15=""),"",T15+(Y15-T15)*(V$6-T$6)/(Y$6-T$6)) ->  | W15: =IF(OR($H15=ListsLookup!$H$89,T15="",Y15=""),"",T15+(Y15-T15)*(W$6-T$6)/(Y$6-T$6)) ->  | X15: =IF(OR($H15=ListsLookup!$H$89,T15="",Y15=""),"",T15+(Y15-T15)*(X$6-T$6)/(Y$6-T$6)) ->  | Z15: =IF(OR($H15=ListsLookup!$H$89,Y15="",AD15=""),"",Y15+(AD15-Y15)*(Z$6-Y$6)/(AD$6-Y$6)) ->  | AA15: =IF(OR($H15=ListsLookup!$H$89,Y15="",AD15=""),"",Y15+(AD15-Y15)*(AA$6-Y$6)/(AD$6-Y$6)) ->  | AB15: =IF(OR($H15=ListsLookup!$H$89,Y15="",AD15=""),"",Y15+(AD15-Y15)*(AB$6-Y$6)/(AD$6-Y$6)) ->  | AC15: =IF(OR($H15=ListsLookup!$H$89,Y15="",AD15=""),"",Y15+(AD15-Y15)*(AC$6-Y$6)/(AD$6-Y$6)) ->  | AE15: =IF(OR($H15=ListsLookup!$H$89,AD15="",AI15=""),"",AD15+(AI15-AD15)*(AE$6-AD$6)/(AI$6-AD$6)) ->  | AF15: =IF(OR($H15=ListsLookup!$H$89,AD15="",AI15=""),"",AD15+(AI15-AD15)*(AF$6-AD$6)/(AI$6-AD$6)) ->  | AG15: =IF(OR($H15=ListsLookup!$H$89,AD15="",AI15=""),"",AD15+(AI15-AD15)*(AG$6-AD$6)/(AI$6-AD$6)) ->  | AH15: =IF(OR($H15=ListsLookup!$H$89,AD15="",AI15=""),"",AD15+(AI15-AD15)*(AH$6-AD$6)/(AI$6-AD$6)) ->  | AJ15: =IF(OR($H15=ListsLookup!$H$89,AI15="",AN15=""),"",AI15+(AN15-AI15)*(AJ$6-AI$6)/(AN$6-AI$6)) ->  | AK15: =IF(OR($H15=ListsLookup!$H$89,AI15="",AN15=""),"",AI15+(AN15-AI15)*(AK$6-AI$6)/(AN$6-AI$6)) ->  | AL15: =IF(OR($H15=ListsLookup!$H$89,AI15="",AN15=""),"",AI15+(AN15-AI15)*(AL$6-AI$6)/(AN$6-AI$6)) ->  | AM15: =IF(OR($H15=ListsLookup!$H$89,AI15="",AN15=""),"",AI15+(AN15-AI15)*(AM$6-AI$6)/(AN$6-AI$6)) ->  | AO15: =IF(OR($H15=ListsLookup!$H$89,AN15="",AS15=""),"",AN15+(AS15-AN15)*(AO$6-AN$6)/(AS$6-AN$6)) ->  | AP15: =IF(OR($H15=ListsLookup!$H$89,AN15="",AS15=""),"",AN15+(AS15-AN15)*(AP$6-AN$6)/(AS$6-AN$6)) ->  | AQ15: =IF(OR($H15=ListsLookup!$H$89,AN15="",AS15=""),"",AN15+(AS15-AN15)*(AQ$6-AN$6)/(AS$6-AN$6)) ->  | AR15: =IF(OR($H15=ListsLookup!$H$89,AN15="",AS15=""),"",AN15+(AS15-AN15)*(AR$6-AN$6)/(AS$6-AN$6)) ->  | AT15: =IF(OR($H15=ListsLookup!$H$89,AS15="",AX15=""),"",AS15+(AX15-AS15)*(AT$6-AS$6)/(AX$6-AS$6)) ->  | AU15: =IF(OR($H15=ListsLookup!$H$89,AS15="",AX15=""),"",AS15+(AX15-AS15)*(AU$6-AS$6)/(AX$6-AS$6)) ->  | AV15: =IF(OR($H15=ListsLookup!$H$89,AS15="",AX15=""),"",AS15+(AX15-AS15)*(AV$6-AS$6)/(AX$6-AS$6)) ->  | AW15: =IF(OR($H15=ListsLookup!$H$89,AS15="",AX15=""),"",AS15+(AX15-AS15)*(AW$6-AS$6)/(AX$6-AS$6)) ->  | AY15: =AX15 -> 0 | AZ15: 0 | BA15: 0 | BB15: 0 | BC15: 0 | BD15: 0 | BE15: 0 | BF15: 0 | BG15: 0 | BH15: 0 | BI15: 0 | BJ15: 0 | BK15: 0 | BL15: 0 | BM15: 0 | BN15: 0 | BO15: 0 | BP15: 0 | BQ15: 0 | BR15: 0
C16: Economic Impact Analysis (EIA) | F16: 3 | G16: =IF('3.1. BCAInputs'!H21<>"",'3.1. BCAInputs'!H21,"") ->  | H16: Use Recommended | I16: =IFERROR(VLOOKUP(G16,ImpactValuesLookup!$J$5:$K$145,2,FALSE),"") ->  | K16: =IF(OR($H16=ListsLookup!$H$89,J16="",O16=""),"",J16+(O16-J16)*(K$6-J$6)/(O$6-J$6)) ->  | L16: =IF(OR($H16=ListsLookup!$H$89,J16="",O16=""),"",J16+(O16-J16)*(L$6-J$6)/(O$6-J$6)) ->  | M16: =IF(OR($H16=ListsLookup!$H$89,J16="",O16=""),"",J16+(O16-J16)*(M$6-J$6)/(O$6-J$6)) ->  | N16: =IF(OR($H16=ListsLookup!$H$89,J16="",O16=""),"",J16+(O16-J16)*(N$6-J$6)/(O$6-J$6)) ->  | P16: =IF(OR($H16=ListsLookup!$H$89,O16="",T16=""),"",O16+(T16-O16)*(P$6-O$6)/(T$6-O$6)) ->  | Q16: =IF(OR($H16=ListsLookup!$H$89,O16="",T16=""),"",O16+(T16-O16)*(Q$6-O$6)/(T$6-O$6)) ->  | R16: =IF(OR($H16=ListsLookup!$H$89,O16="",T16=""),"",O16+(T16-O16)*(R$6-O$6)/(T$6-O$6)) ->  | S16: =IF(OR($H16=ListsLookup!$H$89,O16="",T16=""),"",O16+(T16-O16)*(S$6-O$6)/(T$6-O$6)) ->  | U16: =IF(OR($H16=ListsLookup!$H$89,T16="",Y16=""),"",T16+(Y16-T16)*(U$6-T$6)/(Y$6-T$6)) ->  | V16: =IF(OR($H16=ListsLookup!$H$89,T16="",Y16=""),"",T16+(Y16-T16)*(V$6-T$6)/(Y$6-T$6)) ->  | W16: =IF(OR($H16=ListsLookup!$H$89,T16="",Y16=""),"",T16+(Y16-T16)*(W$6-T$6)/(Y$6-T$6)) ->  | X16: =IF(OR($H16=ListsLookup!$H$89,T16="",Y16=""),"",T16+(Y16-T16)*(X$6-T$6)/(Y$6-T$6)) ->  | Z16: =IF(OR($H16=ListsLookup!$H$89,Y16="",AD16=""),"",Y16+(AD16-Y16)*(Z$6-Y$6)/(AD$6-Y$6)) ->  | AA16: =IF(OR($H16=ListsLookup!$H$89,Y16="",AD16=""),"",Y16+(AD16-Y16)*(AA$6-Y$6)/(AD$6-Y$6)) ->  | AB16: =IF(OR($H16=ListsLookup!$H$89,Y16="",AD16=""),"",Y16+(AD16-Y16)*(AB$6-Y$6)/(AD$6-Y$6)) ->  | AC16: =IF(OR($H16=ListsLookup!$H$89,Y16="",AD16=""),"",Y16+(AD16-Y16)*(AC$6-Y$6)/(AD$6-Y$6)) ->  | AE16: =IF(OR($H16=ListsLookup!$H$89,AD16="",AI16=""),"",AD16+(AI16-AD16)*(AE$6-AD$6)/(AI$6-AD$6)) ->  | AF16: =IF(OR($H16=ListsLookup!$H$89,AD16="",AI16=""),"",AD16+(AI16-AD16)*(AF$6-AD$6)/(AI$6-AD$6)) ->  | AG16: =IF(OR($H16=ListsLookup!$H$89,AD16="",AI16=""),"",AD16+(AI16-AD16)*(AG$6-AD$6)/(AI$6-AD$6)) ->  | AH16: =IF(OR($H16=ListsLookup!$H$89,AD16="",AI16=""),"",AD16+(AI16-AD16)*(AH$6-AD$6)/(AI$6-AD$6)) ->  | AJ16: =IF(OR($H16=ListsLookup!$H$89,AI16="",AN16=""),"",AI16+(AN16-AI16)*(AJ$6-AI$6)/(AN$6-AI$6)) ->  | AK16: =IF(OR($H16=ListsLookup!$H$89,AI16="",AN16=""),"",AI16+(AN16-AI16)*(AK$6-AI$6)/(AN$6-AI$6)) ->  | AL16: =IF(OR($H16=ListsLookup!$H$89,AI16="",AN16=""),"",AI16+(AN16-AI16)*(AL$6-AI$6)/(AN$6-AI$6)) ->  | AM16: =IF(OR($H16=ListsLookup!$H$89,AI16="",AN16=""),"",AI16+(AN16-AI16)*(AM$6-AI$6)/(AN$6-AI$6)) ->  | AO16: =IF(OR($H16=ListsLookup!$H$89,AN16="",AS16=""),"",AN16+(AS16-AN16)*(AO$6-AN$6)/(AS$6-AN$6)) ->  | AP16: =IF(OR($H16=ListsLookup!$H$89,AN16="",AS16=""),"",AN16+(AS16-AN16)*(AP$6-AN$6)/(AS$6-AN$6)) ->  | AQ16: =IF(OR($H16=ListsLookup!$H$89,AN16="",AS16=""),"",AN16+(AS16-AN16)*(AQ$6-AN$6)/(AS$6-AN$6)) ->  | AR16: =IF(OR($H16=ListsLookup!$H$89,AN16="",AS16=""),"",AN16+(AS16-AN16)*(AR$6-AN$6)/(AS$6-AN$6)) ->  | AT16: =IF(OR($H16=ListsLookup!$H$89,AS16="",AX16=""),"",AS16+(AX16-AS16)*(AT$6-AS$6)/(AX$6-AS$6)) ->  | AU16: =IF(OR($H16=ListsLookup!$H$89,AS16="",AX16=""),"",AS16+(AX16-AS16)*(AU$6-AS$6)/(AX$6-AS$6)) ->  | AV16: =IF(OR($H16=ListsLookup!$H$89,AS16="",AX16=""),"",AS16+(AX16-AS16)*(AV$6-AS$6)/(AX$6-AS$6)) ->  | AW16: =IF(OR($H16=ListsLookup!$H$89,AS16="",AX16=""),"",AS16+(AX16-AS16)*(AW$6-AS$6)/(AX$6-AS$6)) ->  | AY16: =AX16 -> 0 | AZ16: 0 | BA16: 0 | BB16: 0 | BC16: 0 | BD16: 0 | BE16: 0 | BF16: 0 | BG16: 0 | BH16: 0 | BI16: 0 | BJ16: 0 | BK16: 0 | BL16: 0 | BM16: 0 | BN16: 0 | BO16: 0 | BP16: 0 | BQ16: 0 | BR16: 0
C17: 3.5. Economic Impact Analysis Assumptions | F17: 4 | G17: =IF('3.1. BCAInputs'!H22<>"",'3.1. BCAInputs'!H22,"") ->  | H17: Use Recommended | I17: =IFERROR(VLOOKUP(G17,ImpactValuesLookup!$J$5:$K$145,2,FALSE),"") ->  | K17: =IF(OR($H17=ListsLookup!$H$89,J17="",O17=""),"",J17+(O17-J17)*(K$6-J$6)/(O$6-J$6)) ->  | L17: =IF(OR($H17=ListsLookup!$H$89,J17="",O17=""),"",J17+(O17-J17)*(L$6-J$6)/(O$6-J$6)) ->  | M17: =IF(OR($H17=ListsLookup!$H$89,J17="",O17=""),"",J17+(O17-J17)*(M$6-J$6)/(O$6-J$6)) ->  | N17: =IF(OR($H17=ListsLookup!$H$89,J17="",O17=""),"",J17+(O17-J17)*(N$6-J$6)/(O$6-J$6)) ->  | P17: =IF(OR($H17=ListsLookup!$H$89,O17="",T17=""),"",O17+(T17-O17)*(P$6-O$6)/(T$6-O$6)) ->  | Q17: =IF(OR($H17=ListsLookup!$H$89,O17="",T17=""),"",O17+(T17-O17)*(Q$6-O$6)/(T$6-O$6)) ->  | R17: =IF(OR($H17=ListsLookup!$H$89,O17="",T17=""),"",O17+(T17-O17)*(R$6-O$6)/(T$6-O$6)) ->  | S17: =IF(OR($H17=ListsLookup!$H$89,O17="",T17=""),"",O17+(T17-O17)*(S$6-O$6)/(T$6-O$6)) ->  | U17: =IF(OR($H17=ListsLookup!$H$89,T17="",Y17=""),"",T17+(Y17-T17)*(U$6-T$6)/(Y$6-T$6)) ->  | V17: =IF(OR($H17=ListsLookup!$H$89,T17="",Y17=""),"",T17+(Y17-T17)*(V$6-T$6)/(Y$6-T$6)) ->  | W17: =IF(OR($H17=ListsLookup!$H$89,T17="",Y17=""),"",T17+(Y17-T17)*(W$6-T$6)/(Y$6-T$6)) ->  | X17: =IF(OR($H17=ListsLookup!$H$89,T17="",Y17=""),"",T17+(Y17-T17)*(X$6-T$6)/(Y$6-T$6)) ->  | Z17: =IF(OR($H17=ListsLookup!$H$89,Y17="",AD17=""),"",Y17+(AD17-Y17)*(Z$6-Y$6)/(AD$6-Y$6)) ->  | AA17: =IF(OR($H17=ListsLookup!$H$89,Y17="",AD17=""),"",Y17+(AD17-Y17)*(AA$6-Y$6)/(AD$6-Y$6)) ->  | AB17: =IF(OR($H17=ListsLookup!$H$89,Y17="",AD17=""),"",Y17+(AD17-Y17)*(AB$6-Y$6)/(AD$6-Y$6)) ->  | AC17: =IF(OR($H17=ListsLookup!$H$89,Y17="",AD17=""),"",Y17+(AD17-Y17)*(AC$6-Y$6)/(AD$6-Y$6)) ->  | AE17: =IF(OR($H17=ListsLookup!$H$89,AD17="",AI17=""),"",AD17+(AI17-AD17)*(AE$6-AD$6)/(AI$6-AD$6)) ->  | AF17: =IF(OR($H17=ListsLookup!$H$89,AD17="",AI17=""),"",AD17+(AI17-AD17)*(AF$6-AD$6)/(AI$6-AD$6)) ->  | AG17: =IF(OR($H17=ListsLookup!$H$89,AD17="",AI17=""),"",AD17+(AI17-AD17)*(AG$6-AD$6)/(AI$6-AD$6)) ->  | AH17: =IF(OR($H17=ListsLookup!$H$89,AD17="",AI17=""),"",AD17+(AI17-AD17)*(AH$6-AD$6)/(AI$6-AD$6)) ->  | AJ17: =IF(OR($H17=ListsLookup!$H$89,AI17="",AN17=""),"",AI17+(AN17-AI17)*(AJ$6-AI$6)/(AN$6-AI$6)) ->  | AK17: =IF(OR($H17=ListsLookup!$H$89,AI17="",AN17=""),"",AI17+(AN17-AI17)*(AK$6-AI$6)/(AN$6-AI$6)) ->  | AL17: =IF(OR($H17=ListsLookup!$H$89,AI17="",AN17=""),"",AI17+(AN17-AI17)*(AL$6-AI$6)/(AN$6-AI$6)) ->  | AM17: =IF(OR($H17=ListsLookup!$H$89,AI17="",AN17=""),"",AI17+(AN17-AI17)*(AM$6-AI$6)/(AN$6-AI$6)) ->  | AO17: =IF(OR($H17=ListsLookup!$H$89,AN17="",AS17=""),"",AN17+(AS17-AN17)*(AO$6-AN$6)/(AS$6-AN$6)) ->  | AP17: =IF(OR($H17=ListsLookup!$H$89,AN17="",AS17=""),"",AN17+(AS17-AN17)*(AP$6-AN$6)/(AS$6-AN$6)) ->  | AQ17: =IF(OR($H17=ListsLookup!$H$89,AN17="",AS17=""),"",AN17+(AS17-AN17)*(AQ$6-AN$6)/(AS$6-AN$6)) ->  | AR17: =IF(OR($H17=ListsLookup!$H$89,AN17="",AS17=""),"",AN17+(AS17-AN17)*(AR$6-AN$6)/(AS$6-AN$6)) ->  | AT17: =IF(OR($H17=ListsLookup!$H$89,AS17="",AX17=""),"",AS17+(AX17-AS17)*(AT$6-AS$6)/(AX$6-AS$6)) ->  | AU17: =IF(OR($H17=ListsLookup!$H$89,AS17="",AX17=""),"",AS17+(AX17-AS17)*(AU$6-AS$6)/(AX$6-AS$6)) ->  | AV17: =IF(OR($H17=ListsLookup!$H$89,AS17="",AX17=""),"",AS17+(AX17-AS17)*(AV$6-AS$6)/(AX$6-AS$6)) ->  | AW17: =IF(OR($H17=ListsLookup!$H$89,AS17="",AX17=""),"",AS17+(AX17-AS17)*(AW$6-AS$6)/(AX$6-AS$6)) ->  | AY17: =AX17 -> 0 | AZ17: 0 | BA17: 0 | BB17: 0 | BC17: 0 | BD17: 0 | BE17: 0 | BF17: 0 | BG17: 0 | BH17: 0 | BI17: 0 | BJ17: 0 | BK17: 0 | BL17: 0 | BM17: 0 | BN17: 0 | BO17: 0 | BP17: 0 | BQ17: 0 | BR17: 0
F18: 5 | G18: =IF('3.1. BCAInputs'!H23<>"",'3.1. BCAInputs'!H23,"") ->  | H18: Use Recommended | I18: =IFERROR(VLOOKUP(G18,ImpactValuesLookup!$J$5:$K$145,2,FALSE),"") ->  | K18: =IF(OR($H18=ListsLookup!$H$89,J18="",O18=""),"",J18+(O18-J18)*(K$6-J$6)/(O$6-J$6)) ->  | L18: =IF(OR($H18=ListsLookup!$H$89,J18="",O18=""),"",J18+(O18-J18)*(L$6-J$6)/(O$6-J$6)) ->  | M18: =IF(OR($H18=ListsLookup!$H$89,J18="",O18=""),"",J18+(O18-J18)*(M$6-J$6)/(O$6-J$6)) ->  | N18: =IF(OR($H18=ListsLookup!$H$89,J18="",O18=""),"",J18+(O18-J18)*(N$6-J$6)/(O$6-J$6)) ->  | P18: =IF(OR($H18=ListsLookup!$H$89,O18="",T18=""),"",O18+(T18-O18)*(P$6-O$6)/(T$6-O$6)) ->  | Q18: =IF(OR($H18=ListsLookup!$H$89,O18="",T18=""),"",O18+(T18-O18)*(Q$6-O$6)/(T$6-O$6)) ->  | R18: =IF(OR($H18=ListsLookup!$H$89,O18="",T18=""),"",O18+(T18-O18)*(R$6-O$6)/(T$6-O$6)) ->  | S18: =IF(OR($H18=ListsLookup!$H$89,O18="",T18=""),"",O18+(T18-O18)*(S$6-O$6)/(T$6-O$6)) ->  | U18: =IF(OR($H18=ListsLookup!$H$89,T18="",Y18=""),"",T18+(Y18-T18)*(U$6-T$6)/(Y$6-T$6)) ->  | V18: =IF(OR($H18=ListsLookup!$H$89,T18="",Y18=""),"",T18+(Y18-T18)*(V$6-T$6)/(Y$6-T$6)) ->  | W18: =IF(OR($H18=ListsLookup!$H$89,T18="",Y18=""),"",T18+(Y18-T18)*(W$6-T$6)/(Y$6-T$6)) ->  | X18: =IF(OR($H18=ListsLookup!$H$89,T18="",Y18=""),"",T18+(Y18-T18)*(X$6-T$6)/(Y$6-T$6)) ->  | Z18: =IF(OR($H18=ListsLookup!$H$89,Y18="",AD18=""),"",Y18+(AD18-Y18)*(Z$6-Y$6)/(AD$6-Y$6)) ->  | AA18: =IF(OR($H18=ListsLookup!$H$89,Y18="",AD18=""),"",Y18+(AD18-Y18)*(AA$6-Y$6)/(AD$6-Y$6)) ->  | AB18: =IF(OR($H18=ListsLookup!$H$89,Y18="",AD18=""),"",Y18+(AD18-Y18)*(AB$6-Y$6)/(AD$6-Y$6)) ->  | AC18: =IF(OR($H18=ListsLookup!$H$89,Y18="",AD18=""),"",Y18+(AD18-Y18)*(AC$6-Y$6)/(AD$6-Y$6)) ->  | AE18: =IF(OR($H18=ListsLookup!$H$89,AD18="",AI18=""),"",AD18+(AI18-AD18)*(AE$6-AD$6)/(AI$6-AD$6)) ->  | AF18: =IF(OR($H18=ListsLookup!$H$89,AD18="",AI18=""),"",AD18+(AI18-AD18)*(AF$6-AD$6)/(AI$6-AD$6)) ->  | AG18: =IF(OR($H18=ListsLookup!$H$89,AD18="",AI18=""),"",AD18+(AI18-AD18)*(AG$6-AD$6)/(AI$6-AD$6)) ->  | AH18: =IF(OR($H18=ListsLookup!$H$89,AD18="",AI18=""),"",AD18+(AI18-AD18)*(AH$6-AD$6)/(AI$6-AD$6)) ->  | AJ18: =IF(OR($H18=ListsLookup!$H$89,AI18="",AN18=""),"",AI18+(AN18-AI18)*(AJ$6-AI$6)/(AN$6-AI$6)) ->  | AK18: =IF(OR($H18=ListsLookup!$H$89,AI18="",AN18=""),"",AI18+(AN18-AI18)*(AK$6-AI$6)/(AN$6-AI$6)) ->  | AL18: =IF(OR($H18=ListsLookup!$H$89,AI18="",AN18=""),"",AI18+(AN18-AI18)*(AL$6-AI$6)/(AN$6-AI$6)) ->  | AM18: =IF(OR($H18=ListsLookup!$H$89,AI18="",AN18=""),"",AI18+(AN18-AI18)*(AM$6-AI$6)/(AN$6-AI$6)) ->  | AO18: =IF(OR($H18=ListsLookup!$H$89,AN18="",AS18=""),"",AN18+(AS18-AN18)*(AO$6-AN$6)/(AS$6-AN$6)) ->  | AP18: =IF(OR($H18=ListsLookup!$H$89,AN18="",AS18=""),"",AN18+(AS18-AN18)*(AP$6-AN$6)/(AS$6-AN$6)) ->  | AQ18: =IF(OR($H18=ListsLookup!$H$89,AN18="",AS18=""),"",AN18+(AS18-AN18)*(AQ$6-AN$6)/(AS$6-AN$6)) ->  | AR18: =IF(OR($H18=ListsLookup!$H$89,AN18="",AS18=""),"",AN18+(AS18-AN18)*(AR$6-AN$6)/(AS$6-AN$6)) ->  | AT18: =IF(OR($H18=ListsLookup!$H$89,AS18="",AX18=""),"",AS18+(AX18-AS18)*(AT$6-AS$6)/(AX$6-AS$6)) ->  | AU18: =IF(OR($H18=ListsLookup!$H$89,AS18="",AX18=""),"",AS18+(AX18-AS18)*(AU$6-AS$6)/(AX$6-AS$6)) ->  | AV18: =IF(OR($H18=ListsLookup!$H$89,AS18="",AX18=""),"",AS18+(AX18-AS18)*(AV$6-AS$6)/(AX$6-AS$6)) ->  | AW18: =IF(OR($H18=ListsLookup!$H$89,AS18="",AX18=""),"",AS18+(AX18-AS18)*(AW$6-AS$6)/(AX$6-AS$6)) ->  | AY18: =AX18 -> 0 | AZ18: 0 | BA18: 0 | BB18: 0 | BC18: 0 | BD18: 0 | BE18: 0 | BF18: 0 | BG18: 0 | BH18: 0 | BI18: 0 | BJ18: 0 | BK18: 0 | BL18: 0 | BM18: 0 | BN18: 0 | BO18: 0 | BP18: 0 | BQ18: 0 | BR18: 0
C19: 3.6. Economic Impact Analysis Results | F19: 6 | G19: =IF('3.1. BCAInputs'!H24<>"",'3.1. BCAInputs'!H24,"") ->  | H19: Use Recommended | I19: =IFERROR(VLOOKUP(G19,ImpactValuesLookup!$J$5:$K$145,2,FALSE),"") ->  | K19: =IF(OR($H19=ListsLookup!$H$89,J19="",O19=""),"",J19+(O19-J19)*(K$6-J$6)/(O$6-J$6)) ->  | L19: =IF(OR($H19=ListsLookup!$H$89,J19="",O19=""),"",J19+(O19-J19)*(L$6-J$6)/(O$6-J$6)) ->  | M19: =IF(OR($H19=ListsLookup!$H$89,J19="",O19=""),"",J19+(O19-J19)*(M$6-J$6)/(O$6-J$6)) ->  | N19: =IF(OR($H19=ListsLookup!$H$89,J19="",O19=""),"",J19+(O19-J19)*(N$6-J$6)/(O$6-J$6)) ->  | P19: =IF(OR($H19=ListsLookup!$H$89,O19="",T19=""),"",O19+(T19-O19)*(P$6-O$6)/(T$6-O$6)) ->  | Q19: =IF(OR($H19=ListsLookup!$H$89,O19="",T19=""),"",O19+(T19-O19)*(Q$6-O$6)/(T$6-O$6)) ->  | R19: =IF(OR($H19=ListsLookup!$H$89,O19="",T19=""),"",O19+(T19-O19)*(R$6-O$6)/(T$6-O$6)) ->  | S19: =IF(OR($H19=ListsLookup!$H$89,O19="",T19=""),"",O19+(T19-O19)*(S$6-O$6)/(T$6-O$6)) ->  | U19: =IF(OR($H19=ListsLookup!$H$89,T19="",Y19=""),"",T19+(Y19-T19)*(U$6-T$6)/(Y$6-T$6)) ->  | V19: =IF(OR($H19=ListsLookup!$H$89,T19="",Y19=""),"",T19+(Y19-T19)*(V$6-T$6)/(Y$6-T$6)) ->  | W19: =IF(OR($H19=ListsLookup!$H$89,T19="",Y19=""),"",T19+(Y19-T19)*(W$6-T$6)/(Y$6-T$6)) ->  | X19: =IF(OR($H19=ListsLookup!$H$89,T19="",Y19=""),"",T19+(Y19-T19)*(X$6-T$6)/(Y$6-T$6)) ->  | Z19: =IF(OR($H19=ListsLookup!$H$89,Y19="",AD19=""),"",Y19+(AD19-Y19)*(Z$6-Y$6)/(AD$6-Y$6)) ->  | AA19: =IF(OR($H19=ListsLookup!$H$89,Y19="",AD19=""),"",Y19+(AD19-Y19)*(AA$6-Y$6)/(AD$6-Y$6)) ->  | AB19: =IF(OR($H19=ListsLookup!$H$89,Y19="",AD19=""),"",Y19+(AD19-Y19)*(AB$6-Y$6)/(AD$6-Y$6)) ->  | AC19: =IF(OR($H19=ListsLookup!$H$89,Y19="",AD19=""),"",Y19+(AD19-Y19)*(AC$6-Y$6)/(AD$6-Y$6)) ->  | AE19: =IF(OR($H19=ListsLookup!$H$89,AD19="",AI19=""),"",AD19+(AI19-AD19)*(AE$6-AD$6)/(AI$6-AD$6)) ->  | AF19: =IF(OR($H19=ListsLookup!$H$89,AD19="",AI19=""),"",AD19+(AI19-AD19)*(AF$6-AD$6)/(AI$6-AD$6)) ->  | AG19: =IF(OR($H19=ListsLookup!$H$89,AD19="",AI19=""),"",AD19+(AI19-AD19)*(AG$6-AD$6)/(AI$6-AD$6)) ->  | AH19: =IF(OR($H19=ListsLookup!$H$89,AD19="",AI19=""),"",AD19+(AI19-AD19)*(AH$6-AD$6)/(AI$6-AD$6)) ->  | AJ19: =IF(OR($H19=ListsLookup!$H$89,AI19="",AN19=""),"",AI19+(AN19-AI19)*(AJ$6-AI$6)/(AN$6-AI$6)) ->  | AK19: =IF(OR($H19=ListsLookup!$H$89,AI19="",AN19=""),"",AI19+(AN19-AI19)*(AK$6-AI$6)/(AN$6-AI$6)) ->  | AL19: =IF(OR($H19=ListsLookup!$H$89,AI19="",AN19=""),"",AI19+(AN19-AI19)*(AL$6-AI$6)/(AN$6-AI$6)) ->  | AM19: =IF(OR($H19=ListsLookup!$H$89,AI19="",AN19=""),"",AI19+(AN19-AI19)*(AM$6-AI$6)/(AN$6-AI$6)) ->  | AO19: =IF(OR($H19=ListsLookup!$H$89,AN19="",AS19=""),"",AN19+(AS19-AN19)*(AO$6-AN$6)/(AS$6-AN$6)) ->  | AP19: =IF(OR($H19=ListsLookup!$H$89,AN19="",AS19=""),"",AN19+(AS19-AN19)*(AP$6-AN$6)/(AS$6-AN$6)) ->  | AQ19: =IF(OR($H19=ListsLookup!$H$89,AN19="",AS19=""),"",AN19+(AS19-AN19)*(AQ$6-AN$6)/(AS$6-AN$6)) ->  | AR19: =IF(OR($H19=ListsLookup!$H$89,AN19="",AS19=""),"",AN19+(AS19-AN19)*(AR$6-AN$6)/(AS$6-AN$6)) ->  | AT19: =IF(OR($H19=ListsLookup!$H$89,AS19="",AX19=""),"",AS19+(AX19-AS19)*(AT$6-AS$6)/(AX$6-AS$6)) ->  | AU19: =IF(OR($H19=ListsLookup!$H$89,AS19="",AX19=""),"",AS19+(AX19-AS19)*(AU$6-AS$6)/(AX$6-AS$6)) ->  | AV19: =IF(OR($H19=ListsLookup!$H$89,AS19="",AX19=""),"",AS19+(AX19-AS19)*(AV$6-AS$6)/(AX$6-AS$6)) ->  | AW19: =IF(OR($H19=ListsLookup!$H$89,AS19="",AX19=""),"",AS19+(AX19-AS19)*(AW$6-AS$6)/(AX$6-AS$6)) ->  | AY19: =AX19 -> 0 | AZ19: 0 | BA19: 0 | BB19: 0 | BC19: 0 | BD19: 0 | BE19: 0 | BF19: 0 | BG19: 0 | BH19: 0 | BI19: 0 | BJ19: 0 | BK19: 0 | BL19: 0 | BM19: 0 | BN19: 0 | BO19: 0 | BP19: 0 | BQ19: 0 | BR19: 0
F20: 7 | G20: =IF('3.1. BCAInputs'!H25<>"",'3.1. BCAInputs'!H25,"") ->  | H20: Use Recommended | I20: =IFERROR(VLOOKUP(G20,ImpactValuesLookup!$J$5:$K$145,2,FALSE),"") ->  | K20: =IF(OR($H20=ListsLookup!$H$89,J20="",O20=""),"",J20+(O20-J20)*(K$6-J$6)/(O$6-J$6)) ->  | L20: =IF(OR($H20=ListsLookup!$H$89,J20="",O20=""),"",J20+(O20-J20)*(L$6-J$6)/(O$6-J$6)) ->  | M20: =IF(OR($H20=ListsLookup!$H$89,J20="",O20=""),"",J20+(O20-J20)*(M$6-J$6)/(O$6-J$6)) ->  | N20: =IF(OR($H20=ListsLookup!$H$89,J20="",O20=""),"",J20+(O20-J20)*(N$6-J$6)/(O$6-J$6)) ->  | P20: =IF(OR($H20=ListsLookup!$H$89,O20="",T20=""),"",O20+(T20-O20)*(P$6-O$6)/(T$6-O$6)) ->  | Q20: =IF(OR($H20=ListsLookup!$H$89,O20="",T20=""),"",O20+(T20-O20)*(Q$6-O$6)/(T$6-O$6)) ->  | R20: =IF(OR($H20=ListsLookup!$H$89,O20="",T20=""),"",O20+(T20-O20)*(R$6-O$6)/(T$6-O$6)) ->  | S20: =IF(OR($H20=ListsLookup!$H$89,O20="",T20=""),"",O20+(T20-O20)*(S$6-O$6)/(T$6-O$6)) ->  | U20: =IF(OR($H20=ListsLookup!$H$89,T20="",Y20=""),"",T20+(Y20-T20)*(U$6-T$6)/(Y$6-T$6)) ->  | V20: =IF(OR($H20=ListsLookup!$H$89,T20="",Y20=""),"",T20+(Y20-T20)*(V$6-T$6)/(Y$6-T$6)) ->  | W20: =IF(OR($H20=ListsLookup!$H$89,T20="",Y20=""),"",T20+(Y20-T20)*(W$6-T$6)/(Y$6-T$6)) ->  | X20: =IF(OR($H20=ListsLookup!$H$89,T20="",Y20=""),"",T20+(Y20-T20)*(X$6-T$6)/(Y$6-T$6)) ->  | Z20: =IF(OR($H20=ListsLookup!$H$89,Y20="",AD20=""),"",Y20+(AD20-Y20)*(Z$6-Y$6)/(AD$6-Y$6)) ->  | AA20: =IF(OR($H20=ListsLookup!$H$89,Y20="",AD20=""),"",Y20+(AD20-Y20)*(AA$6-Y$6)/(AD$6-Y$6)) ->  | AB20: =IF(OR($H20=ListsLookup!$H$89,Y20="",AD20=""),"",Y20+(AD20-Y20)*(AB$6-Y$6)/(AD$6-Y$6)) ->  | AC20: =IF(OR($H20=ListsLookup!$H$89,Y20="",AD20=""),"",Y20+(AD20-Y20)*(AC$6-Y$6)/(AD$6-Y$6)) ->  | AE20: =IF(OR($H20=ListsLookup!$H$89,AD20="",AI20=""),"",AD20+(AI20-AD20)*(AE$6-AD$6)/(AI$6-AD$6)) ->  | AF20: =IF(OR($H20=ListsLookup!$H$89,AD20="",AI20=""),"",AD20+(AI20-AD20)*(AF$6-AD$6)/(AI$6-AD$6)) ->  | AG20: =IF(OR($H20=ListsLookup!$H$89,AD20="",AI20=""),"",AD20+(AI20-AD20)*(AG$6-AD$6)/(AI$6-AD$6)) ->  | AH20: =IF(OR($H20=ListsLookup!$H$89,AD20="",AI20=""),"",AD20+(AI20-AD20)*(AH$6-AD$6)/(AI$6-AD$6)) ->  | AJ20: =IF(OR($H20=ListsLookup!$H$89,AI20="",AN20=""),"",AI20+(AN20-AI20)*(AJ$6-AI$6)/(AN$6-AI$6)) ->  | AK20: =IF(OR($H20=ListsLookup!$H$89,AI20="",AN20=""),"",AI20+(AN20-AI20)*(AK$6-AI$6)/(AN$6-AI$6)) ->  | AL20: =IF(OR($H20=ListsLookup!$H$89,AI20="",AN20=""),"",AI20+(AN20-AI20)*(AL$6-AI$6)/(AN$6-AI$6)) ->  | AM20: =IF(OR($H20=ListsLookup!$H$89,AI20="",AN20=""),"",AI20+(AN20-AI20)*(AM$6-AI$6)/(AN$6-AI$6)) ->  | AO20: =IF(OR($H20=ListsLookup!$H$89,AN20="",AS20=""),"",AN20+(AS20-AN20)*(AO$6-AN$6)/(AS$6-AN$6)) ->  | AP20: =IF(OR($H20=ListsLookup!$H$89,AN20="",AS20=""),"",AN20+(AS20-AN20)*(AP$6-AN$6)/(AS$6-AN$6)) ->  | AQ20: =IF(OR($H20=ListsLookup!$H$89,AN20="",AS20=""),"",AN20+(AS20-AN20)*(AQ$6-AN$6)/(AS$6-AN$6)) ->  | AR20: =IF(OR($H20=ListsLookup!$H$89,AN20="",AS20=""),"",AN20+(AS20-AN20)*(AR$6-AN$6)/(AS$6-AN$6)) ->  | AT20: =IF(OR($H20=ListsLookup!$H$89,AS20="",AX20=""),"",AS20+(AX20-AS20)*(AT$6-AS$6)/(AX$6-AS$6)) ->  | AU20: =IF(OR($H20=ListsLookup!$H$89,AS20="",AX20=""),"",AS20+(AX20-AS20)*(AU$6-AS$6)/(AX$6-AS$6)) ->  | AV20: =IF(OR($H20=ListsLookup!$H$89,AS20="",AX20=""),"",AS20+(AX20-AS20)*(AV$6-AS$6)/(AX$6-AS$6)) ->  | AW20: =IF(OR($H20=ListsLookup!$H$89,AS20="",AX20=""),"",AS20+(AX20-AS20)*(AW$6-AS$6)/(AX$6-AS$6)) ->  | AY20: =AX20 -> 0 | AZ20: 0 | BA20: 0 | BB20: 0 | BC20: 0 | BD20: 0 | BE20: 0 | BF20: 0 | BG20: 0 | BH20: 0 | BI20: 0 | BJ20: 0 | BK20: 0 | BL20: 0 | BM20: 0 | BN20: 0 | BO20: 0 | BP20: 0 | BQ20: 0 | BR20: 0
C21: 4. Model Instructions | F21: 8 | G21: =IF('3.1. BCAInputs'!H26<>"",'3.1. BCAInputs'!H26,"") ->  | H21: Use Recommended | I21: =IFERROR(VLOOKUP(G21,ImpactValuesLookup!$J$5:$K$145,2,FALSE),"") ->  | K21: =IF(OR($H21=ListsLookup!$H$89,J21="",O21=""),"",J21+(O21-J21)*(K$6-J$6)/(O$6-J$6)) ->  | L21: =IF(OR($H21=ListsLookup!$H$89,J21="",O21=""),"",J21+(O21-J21)*(L$6-J$6)/(O$6-J$6)) ->  | M21: =IF(OR($H21=ListsLookup!$H$89,J21="",O21=""),"",J21+(O21-J21)*(M$6-J$6)/(O$6-J$6)) ->  | N21: =IF(OR($H21=ListsLookup!$H$89,J21="",O21=""),"",J21+(O21-J21)*(N$6-J$6)/(O$6-J$6)) ->  | P21: =IF(OR($H21=ListsLookup!$H$89,O21="",T21=""),"",O21+(T21-O21)*(P$6-O$6)/(T$6-O$6)) ->  | Q21: =IF(OR($H21=ListsLookup!$H$89,O21="",T21=""),"",O21+(T21-O21)*(Q$6-O$6)/(T$6-O$6)) ->  | R21: =IF(OR($H21=ListsLookup!$H$89,O21="",T21=""),"",O21+(T21-O21)*(R$6-O$6)/(T$6-O$6)) ->  | S21: =IF(OR($H21=ListsLookup!$H$89,O21="",T21=""),"",O21+(T21-O21)*(S$6-O$6)/(T$6-O$6)) ->  | U21: =IF(OR($H21=ListsLookup!$H$89,T21="",Y21=""),"",T21+(Y21-T21)*(U$6-T$6)/(Y$6-T$6)) ->  | V21: =IF(OR($H21=ListsLookup!$H$89,T21="",Y21=""),"",T21+(Y21-T21)*(V$6-T$6)/(Y$6-T$6)) ->  | W21: =IF(OR($H21=ListsLookup!$H$89,T21="",Y21=""),"",T21+(Y21-T21)*(W$6-T$6)/(Y$6-T$6)) ->  | X21: =IF(OR($H21=ListsLookup!$H$89,T21="",Y21=""),"",T21+(Y21-T21)*(X$6-T$6)/(Y$6-T$6)) ->  | Z21: =IF(OR($H21=ListsLookup!$H$89,Y21="",AD21=""),"",Y21+(AD21-Y21)*(Z$6-Y$6)/(AD$6-Y$6)) ->  | AA21: =IF(OR($H21=ListsLookup!$H$89,Y21="",AD21=""),"",Y21+(AD21-Y21)*(AA$6-Y$6)/(AD$6-Y$6)) ->  | AB21: =IF(OR($H21=ListsLookup!$H$89,Y21="",AD21=""),"",Y21+(AD21-Y21)*(AB$6-Y$6)/(AD$6-Y$6)) ->  | AC21: =IF(OR($H21=ListsLookup!$H$89,Y21="",AD21=""),"",Y21+(AD21-Y21)*(AC$6-Y$6)/(AD$6-Y$6)) ->  | AE21: =IF(OR($H21=ListsLookup!$H$89,AD21="",AI21=""),"",AD21+(AI21-AD21)*(AE$6-AD$6)/(AI$6-AD$6)) ->  | AF21: =IF(OR($H21=ListsLookup!$H$89,AD21="",AI21=""),"",AD21+(AI21-AD21)*(AF$6-AD$6)/(AI$6-AD$6)) ->  | AG21: =IF(OR($H21=ListsLookup!$H$89,AD21="",AI21=""),"",AD21+(AI21-AD21)*(AG$6-AD$6)/(AI$6-AD$6)) ->  | AH21: =IF(OR($H21=ListsLookup!$H$89,AD21="",AI21=""),"",AD21+(AI21-AD21)*(AH$6-AD$6)/(AI$6-AD$6)) ->  | AJ21: =IF(OR($H21=ListsLookup!$H$89,AI21="",AN21=""),"",AI21+(AN21-AI21)*(AJ$6-AI$6)/(AN$6-AI$6)) ->  | AK21: =IF(OR($H21=ListsLookup!$H$89,AI21="",AN21=""),"",AI21+(AN21-AI21)*(AK$6-AI$6)/(AN$6-AI$6)) ->  | AL21: =IF(OR($H21=ListsLookup!$H$89,AI21="",AN21=""),"",AI21+(AN21-AI21)*(AL$6-AI$6)/(AN$6-AI$6)) ->  | AM21: =IF(OR($H21=ListsLookup!$H$89,AI21="",AN21=""),"",AI21+(AN21-AI21)*(AM$6-AI$6)/(AN$6-AI$6)) ->  | AO21: =IF(OR($H21=ListsLookup!$H$89,AN21="",AS21=""),"",AN21+(AS21-AN21)*(AO$6-AN$6)/(AS$6-AN$6)) ->  | AP21: =IF(OR($H21=ListsLookup!$H$89,AN21="",AS21=""),"",AN21+(AS21-AN21)*(AP$6-AN$6)/(AS$6-AN$6)) ->  | AQ21: =IF(OR($H21=ListsLookup!$H$89,AN21="",AS21=""),"",AN21+(AS21-AN21)*(AQ$6-AN$6)/(AS$6-AN$6)) ->  | AR21: =IF(OR($H21=ListsLookup!$H$89,AN21="",AS21=""),"",AN21+(AS21-AN21)*(AR$6-AN$6)/(AS$6-AN$6)) ->  | AT21: =IF(OR($H21=ListsLookup!$H$89,AS21="",AX21=""),"",AS21+(AX21-AS21)*(AT$6-AS$6)/(AX$6-AS$6)) ->  | AU21: =IF(OR($H21=ListsLookup!$H$89,AS21="",AX21=""),"",AS21+(AX21-AS21)*(AU$6-AS$6)/(AX$6-AS$6)) ->  | AV21: =IF(OR($H21=ListsLookup!$H$89,AS21="",AX21=""),"",AS21+(AX21-AS21)*(AV$6-AS$6)/(AX$6-AS$6)) ->  | AW21: =IF(OR($H21=ListsLookup!$H$89,AS21="",AX21=""),"",AS21+(AX21-AS21)*(AW$6-AS$6)/(AX$6-AS$6)) ->  | AY21: =AX21 -> 0 | AZ21: 0 | BA21: 0 | BB21: 0 | BC21: 0 | BD21: 0 | BE21: 0 | BF21: 0 | BG21: 0 | BH21: 0 | BI21: 0 | BJ21: 0 | BK21: 0 | BL21: 0 | BM21: 0 | BN21: 0 | BO21: 0 | BP21: 0 | BQ21: 0 | BR21: 0
F22: 9 | G22: =IF('3.1. BCAInputs'!H27<>"",'3.1. BCAInputs'!H27,"") ->  | H22: Use Recommended | I22: =IFERROR(VLOOKUP(G22,ImpactValuesLookup!$J$5:$K$145,2,FALSE),"") ->  | K22: =IF(OR($H22=ListsLookup!$H$89,J22="",O22=""),"",J22+(O22-J22)*(K$6-J$6)/(O$6-J$6)) ->  | L22: =IF(OR($H22=ListsLookup!$H$89,J22="",O22=""),"",J22+(O22-J22)*(L$6-J$6)/(O$6-J$6)) ->  | M22: =IF(OR($H22=ListsLookup!$H$89,J22="",O22=""),"",J22+(O22-J22)*(M$6-J$6)/(O$6-J$6)) ->  | N22: =IF(OR($H22=ListsLookup!$H$89,J22="",O22=""),"",J22+(O22-J22)*(N$6-J$6)/(O$6-J$6)) ->  | P22: =IF(OR($H22=ListsLookup!$H$89,O22="",T22=""),"",O22+(T22-O22)*(P$6-O$6)/(T$6-O$6)) ->  | Q22: =IF(OR($H22=ListsLookup!$H$89,O22="",T22=""),"",O22+(T22-O22)*(Q$6-O$6)/(T$6-O$6)) ->  | R22: =IF(OR($H22=ListsLookup!$H$89,O22="",T22=""),"",O22+(T22-O22)*(R$6-O$6)/(T$6-O$6)) ->  | S22: =IF(OR($H22=ListsLookup!$H$89,O22="",T22=""),"",O22+(T22-O22)*(S$6-O$6)/(T$6-O$6)) ->  | U22: =IF(OR($H22=ListsLookup!$H$89,T22="",Y22=""),"",T22+(Y22-T22)*(U$6-T$6)/(Y$6-T$6)) ->  | V22: =IF(OR($H22=ListsLookup!$H$89,T22="",Y22=""),"",T22+(Y22-T22)*(V$6-T$6)/(Y$6-T$6)) ->  | W22: =IF(OR($H22=ListsLookup!$H$89,T22="",Y22=""),"",T22+(Y22-T22)*(W$6-T$6)/(Y$6-T$6)) ->  | X22: =IF(OR($H22=ListsLookup!$H$89,T22="",Y22=""),"",T22+(Y22-T22)*(X$6-T$6)/(Y$6-T$6)) ->  | Z22: =IF(OR($H22=ListsLookup!$H$89,Y22="",AD22=""),"",Y22+(AD22-Y22)*(Z$6-Y$6)/(AD$6-Y$6)) ->  | AA22: =IF(OR($H22=ListsLookup!$H$89,Y22="",AD22=""),"",Y22+(AD22-Y22)*(AA$6-Y$6)/(AD$6-Y$6)) ->  | AB22: =IF(OR($H22=ListsLookup!$H$89,Y22="",AD22=""),"",Y22+(AD22-Y22)*(AB$6-Y$6)/(AD$6-Y$6)) ->  | AC22: =IF(OR($H22=ListsLookup!$H$89,Y22="",AD22=""),"",Y22+(AD22-Y22)*(AC$6-Y$6)/(AD$6-Y$6)) ->  | AE22: =IF(OR($H22=ListsLookup!$H$89,AD22="",AI22=""),"",AD22+(AI22-AD22)*(AE$6-AD$6)/(AI$6-AD$6)) ->  | AF22: =IF(OR($H22=ListsLookup!$H$89,AD22="",AI22=""),"",AD22+(AI22-AD22)*(AF$6-AD$6)/(AI$6-AD$6)) ->  | AG22: =IF(OR($H22=ListsLookup!$H$89,AD22="",AI22=""),"",AD22+(AI22-AD22)*(AG$6-AD$6)/(AI$6-AD$6)) ->  | AH22: =IF(OR($H22=ListsLookup!$H$89,AD22="",AI22=""),"",AD22+(AI22-AD22)*(AH$6-AD$6)/(AI$6-AD$6)) ->  | AJ22: =IF(OR($H22=ListsLookup!$H$89,AI22="",AN22=""),"",AI22+(AN22-AI22)*(AJ$6-AI$6)/(AN$6-AI$6)) ->  | AK22: =IF(OR($H22=ListsLookup!$H$89,AI22="",AN22=""),"",AI22+(AN22-AI22)*(AK$6-AI$6)/(AN$6-AI$6)) ->  | AL22: =IF(OR($H22=ListsLookup!$H$89,AI22="",AN22=""),"",AI22+(AN22-AI22)*(AL$6-AI$6)/(AN$6-AI$6)) ->  | AM22: =IF(OR($H22=ListsLookup!$H$89,AI22="",AN22=""),"",AI22+(AN22-AI22)*(AM$6-AI$6)/(AN$6-AI$6)) ->  | AO22: =IF(OR($H22=ListsLookup!$H$89,AN22="",AS22=""),"",AN22+(AS22-AN22)*(AO$6-AN$6)/(AS$6-AN$6)) ->  | AP22: =IF(OR($H22=ListsLookup!$H$89,AN22="",AS22=""),"",AN22+(AS22-AN22)*(AP$6-AN$6)/(AS$6-AN$6)) ->  | AQ22: =IF(OR($H22=ListsLookup!$H$89,AN22="",AS22=""),"",AN22+(AS22-AN22)*(AQ$6-AN$6)/(AS$6-AN$6)) ->  | AR22: =IF(OR($H22=ListsLookup!$H$89,AN22="",AS22=""),"",AN22+(AS22-AN22)*(AR$6-AN$6)/(AS$6-AN$6)) ->  | AT22: =IF(OR($H22=ListsLookup!$H$89,AS22="",AX22=""),"",AS22+(AX22-AS22)*(AT$6-AS$6)/(AX$6-AS$6)) ->  | AU22: =IF(OR($H22=ListsLookup!$H$89,AS22="",AX22=""),"",AS22+(AX22-AS22)*(AU$6-AS$6)/(AX$6-AS$6)) ->  | AV22: =IF(OR($H22=ListsLookup!$H$89,AS22="",AX22=""),"",AS22+(AX22-AS22)*(AV$6-AS$6)/(AX$6-AS$6)) ->  | AW22: =IF(OR($H22=ListsLookup!$H$89,AS22="",AX22=""),"",AS22+(AX22-AS22)*(AW$6-AS$6)/(AX$6-AS$6)) ->  | AY22: =AX22 -> 0 | AZ22: 0 | BA22: 0 | BB22: 0 | BC22: 0 | BD22: 0 | BE22: 0 | BF22: 0 | BG22: 0 | BH22: 0 | BI22: 0 | BJ22: 0 | BK22: 0 | BL22: 0 | BM22: 0 | BN22: 0 | BO22: 0 | BP22: 0 | BQ22: 0 | BR22: 0
F23: 10 | G23: =IF('3.1. BCAInputs'!H28<>"",'3.1. BCAInputs'!H28,"") ->  | H23: Use Recommended | I23: =IFERROR(VLOOKUP(G23,ImpactValuesLookup!$J$5:$K$145,2,FALSE),"") ->  | K23: =IF(OR($H23=ListsLookup!$H$89,J23="",O23=""),"",J23+(O23-J23)*(K$6-J$6)/(O$6-J$6)) ->  | L23: =IF(OR($H23=ListsLookup!$H$89,J23="",O23=""),"",J23+(O23-J23)*(L$6-J$6)/(O$6-J$6)) ->  | M23: =IF(OR($H23=ListsLookup!$H$89,J23="",O23=""),"",J23+(O23-J23)*(M$6-J$6)/(O$6-J$6)) ->  | N23: =IF(OR($H23=ListsLookup!$H$89,J23="",O23=""),"",J23+(O23-J23)*(N$6-J$6)/(O$6-J$6)) ->  | P23: =IF(OR($H23=ListsLookup!$H$89,O23="",T23=""),"",O23+(T23-O23)*(P$6-O$6)/(T$6-O$6)) ->  | Q23: =IF(OR($H23=ListsLookup!$H$89,O23="",T23=""),"",O23+(T23-O23)*(Q$6-O$6)/(T$6-O$6)) ->  | R23: =IF(OR($H23=ListsLookup!$H$89,O23="",T23=""),"",O23+(T23-O23)*(R$6-O$6)/(T$6-O$6)) ->  | S23: =IF(OR($H23=ListsLookup!$H$89,O23="",T23=""),"",O23+(T23-O23)*(S$6-O$6)/(T$6-O$6)) ->  | U23: =IF(OR($H23=ListsLookup!$H$89,T23="",Y23=""),"",T23+(Y23-T23)*(U$6-T$6)/(Y$6-T$6)) ->  | V23: =IF(OR($H23=ListsLookup!$H$89,T23="",Y23=""),"",T23+(Y23-T23)*(V$6-T$6)/(Y$6-T$6)) ->  | W23: =IF(OR($H23=ListsLookup!$H$89,T23="",Y23=""),"",T23+(Y23-T23)*(W$6-T$6)/(Y$6-T$6)) ->  | X23: =IF(OR($H23=ListsLookup!$H$89,T23="",Y23=""),"",T23+(Y23-T23)*(X$6-T$6)/(Y$6-T$6)) ->  | Z23: =IF(OR($H23=ListsLookup!$H$89,Y23="",AD23=""),"",Y23+(AD23-Y23)*(Z$6-Y$6)/(AD$6-Y$6)) ->  | AA23: =IF(OR($H23=ListsLookup!$H$89,Y23="",AD23=""),"",Y23+(AD23-Y23)*(AA$6-Y$6)/(AD$6-Y$6)) ->  | AB23: =IF(OR($H23=ListsLookup!$H$89,Y23="",AD23=""),"",Y23+(AD23-Y23)*(AB$6-Y$6)/(AD$6-Y$6)) ->  | AC23: =IF(OR($H23=ListsLookup!$H$89,Y23="",AD23=""),"",Y23+(AD23-Y23)*(AC$6-Y$6)/(AD$6-Y$6)) ->  | AE23: =IF(OR($H23=ListsLookup!$H$89,AD23="",AI23=""),"",AD23+(AI23-AD23)*(AE$6-AD$6)/(AI$6-AD$6)) ->  | AF23: =IF(OR($H23=ListsLookup!$H$89,AD23="",AI23=""),"",AD23+(AI23-AD23)*(AF$6-AD$6)/(AI$6-AD$6)) ->  | AG23: =IF(OR($H23=ListsLookup!$H$89,AD23="",AI23=""),"",AD23+(AI23-AD23)*(AG$6-AD$6)/(AI$6-AD$6)) ->  | AH23: =IF(OR($H23=ListsLookup!$H$89,AD23="",AI23=""),"",AD23+(AI23-AD23)*(AH$6-AD$6)/(AI$6-AD$6)) ->  | AJ23: =IF(OR($H23=ListsLookup!$H$89,AI23="",AN23=""),"",AI23+(AN23-AI23)*(AJ$6-AI$6)/(AN$6-AI$6)) ->  | AK23: =IF(OR($H23=ListsLookup!$H$89,AI23="",AN23=""),"",AI23+(AN23-AI23)*(AK$6-AI$6)/(AN$6-AI$6)) ->  | AL23: =IF(OR($H23=ListsLookup!$H$89,AI23="",AN23=""),"",AI23+(AN23-AI23)*(AL$6-AI$6)/(AN$6-AI$6)) ->  | AM23: =IF(OR($H23=ListsLookup!$H$89,AI23="",AN23=""),"",AI23+(AN23-AI23)*(AM$6-AI$6)/(AN$6-AI$6)) ->  | AO23: =IF(OR($H23=ListsLookup!$H$89,AN23="",AS23=""),"",AN23+(AS23-AN23)*(AO$6-AN$6)/(AS$6-AN$6)) ->  | AP23: =IF(OR($H23=ListsLookup!$H$89,AN23="",AS23=""),"",AN23+(AS23-AN23)*(AP$6-AN$6)/(AS$6-AN$6)) ->  | AQ23: =IF(OR($H23=ListsLookup!$H$89,AN23="",AS23=""),"",AN23+(AS23-AN23)*(AQ$6-AN$6)/(AS$6-AN$6)) ->  | AR23: =IF(OR($H23=ListsLookup!$H$89,AN23="",AS23=""),"",AN23+(AS23-AN23)*(AR$6-AN$6)/(AS$6-AN$6)) ->  | AT23: =IF(OR($H23=ListsLookup!$H$89,AS23="",AX23=""),"",AS23+(AX23-AS23)*(AT$6-AS$6)/(AX$6-AS$6)) ->  | AU23: =IF(OR($H23=ListsLookup!$H$89,AS23="",AX23=""),"",AS23+(AX23-AS23)*(AU$6-AS$6)/(AX$6-AS$6)) ->  | AV23: =IF(OR($H23=ListsLookup!$H$89,AS23="",AX23=""),"",AS23+(AX23-AS23)*(AV$6-AS$6)/(AX$6-AS$6)) ->  | AW23: =IF(OR($H23=ListsLookup!$H$89,AS23="",AX23=""),"",AS23+(AX23-AS23)*(AW$6-AS$6)/(AX$6-AS$6)) ->  | AY23: =AX23 -> 0 | AZ23: 0 | BA23: 0 | BB23: 0 | BC23: 0 | BD23: 0 | BE23: 0 | BF23: 0 | BG23: 0 | BH23: 0 | BI23: 0 | BJ23: 0 | BK23: 0 | BL23: 0 | BM23: 0 | BN23: 0 | BO23: 0 | BP23: 0 | BQ23: 0 | BR23: 0
F24: 11 | G24: =IF('3.1. BCAInputs'!H29<>"",'3.1. BCAInputs'!H29,"") ->  | H24: Use Recommended | I24: =IFERROR(VLOOKUP(G24,ImpactValuesLookup!$J$5:$K$145,2,FALSE),"") ->  | K24: =IF(OR($H24=ListsLookup!$H$89,J24="",O24=""),"",J24+(O24-J24)*(K$6-J$6)/(O$6-J$6)) ->  | L24: =IF(OR($H24=ListsLookup!$H$89,J24="",O24=""),"",J24+(O24-J24)*(L$6-J$6)/(O$6-J$6)) ->  | M24: =IF(OR($H24=ListsLookup!$H$89,J24="",O24=""),"",J24+(O24-J24)*(M$6-J$6)/(O$6-J$6)) ->  | N24: =IF(OR($H24=ListsLookup!$H$89,J24="",O24=""),"",J24+(O24-J24)*(N$6-J$6)/(O$6-J$6)) ->  | P24: =IF(OR($H24=ListsLookup!$H$89,O24="",T24=""),"",O24+(T24-O24)*(P$6-O$6)/(T$6-O$6)) ->  | Q24: =IF(OR($H24=ListsLookup!$H$89,O24="",T24=""),"",O24+(T24-O24)*(Q$6-O$6)/(T$6-O$6)) ->  | R24: =IF(OR($H24=ListsLookup!$H$89,O24="",T24=""),"",O24+(T24-O24)*(R$6-O$6)/(T$6-O$6)) ->  | S24: =IF(OR($H24=ListsLookup!$H$89,O24="",T24=""),"",O24+(T24-O24)*(S$6-O$6)/(T$6-O$6)) ->  | U24: =IF(OR($H24=ListsLookup!$H$89,T24="",Y24=""),"",T24+(Y24-T24)*(U$6-T$6)/(Y$6-T$6)) ->  | V24: =IF(OR($H24=ListsLookup!$H$89,T24="",Y24=""),"",T24+(Y24-T24)*(V$6-T$6)/(Y$6-T$6)) ->  | W24: =IF(OR($H24=ListsLookup!$H$89,T24="",Y24=""),"",T24+(Y24-T24)*(W$6-T$6)/(Y$6-T$6)) ->  | X24: =IF(OR($H24=ListsLookup!$H$89,T24="",Y24=""),"",T24+(Y24-T24)*(X$6-T$6)/(Y$6-T$6)) ->  | Z24: =IF(OR($H24=ListsLookup!$H$89,Y24="",AD24=""),"",Y24+(AD24-Y24)*(Z$6-Y$6)/(AD$6-Y$6)) ->  | AA24: =IF(OR($H24=ListsLookup!$H$89,Y24="",AD24=""),"",Y24+(AD24-Y24)*(AA$6-Y$6)/(AD$6-Y$6)) ->  | AB24: =IF(OR($H24=ListsLookup!$H$89,Y24="",AD24=""),"",Y24+(AD24-Y24)*(AB$6-Y$6)/(AD$6-Y$6)) ->  | AC24: =IF(OR($H24=ListsLookup!$H$89,Y24="",AD24=""),"",Y24+(AD24-Y24)*(AC$6-Y$6)/(AD$6-Y$6)) ->  | AE24: =IF(OR($H24=ListsLookup!$H$89,AD24="",AI24=""),"",AD24+(AI24-AD24)*(AE$6-AD$6)/(AI$6-AD$6)) ->  | AF24: =IF(OR($H24=ListsLookup!$H$89,AD24="",AI24=""),"",AD24+(AI24-AD24)*(AF$6-AD$6)/(AI$6-AD$6)) ->  | AG24: =IF(OR($H24=ListsLookup!$H$89,AD24="",AI24=""),"",AD24+(AI24-AD24)*(AG$6-AD$6)/(AI$6-AD$6)) ->  | AH24: =IF(OR($H24=ListsLookup!$H$89,AD24="",AI24=""),"",AD24+(AI24-AD24)*(AH$6-AD$6)/(AI$6-AD$6)) ->  | AJ24: =IF(OR($H24=ListsLookup!$H$89,AI24="",AN24=""),"",AI24+(AN24-AI24)*(AJ$6-AI$6)/(AN$6-AI$6)) ->  | AK24: =IF(OR($H24=ListsLookup!$H$89,AI24="",AN24=""),"",AI24+(AN24-AI24)*(AK$6-AI$6)/(AN$6-AI$6)) ->  | AL24: =IF(OR($H24=ListsLookup!$H$89,AI24="",AN24=""),"",AI24+(AN24-AI24)*(AL$6-AI$6)/(AN$6-AI$6)) ->  | AM24: =IF(OR($H24=ListsLookup!$H$89,AI24="",AN24=""),"",AI24+(AN24-AI24)*(AM$6-AI$6)/(AN$6-AI$6)) ->  | AO24: =IF(OR($H24=ListsLookup!$H$89,AN24="",AS24=""),"",AN24+(AS24-AN24)*(AO$6-AN$6)/(AS$6-AN$6)) ->  | AP24: =IF(OR($H24=ListsLookup!$H$89,AN24="",AS24=""),"",AN24+(AS24-AN24)*(AP$6-AN$6)/(AS$6-AN$6)) ->  | AQ24: =IF(OR($H24=ListsLookup!$H$89,AN24="",AS24=""),"",AN24+(AS24-AN24)*(AQ$6-AN$6)/(AS$6-AN$6)) ->  | AR24: =IF(OR($H24=ListsLookup!$H$89,AN24="",AS24=""),"",AN24+(AS24-AN24)*(AR$6-AN$6)/(AS$6-AN$6)) ->  | AT24: =IF(OR($H24=ListsLookup!$H$89,AS24="",AX24=""),"",AS24+(AX24-AS24)*(AT$6-AS$6)/(AX$6-AS$6)) ->  | AU24: =IF(OR($H24=ListsLookup!$H$89,AS24="",AX24=""),"",AS24+(AX24-AS24)*(AU$6-AS$6)/(AX$6-AS$6)) ->  | AV24: =IF(OR($H24=ListsLookup!$H$89,AS24="",AX24=""),"",AS24+(AX24-AS24)*(AV$6-AS$6)/(AX$6-AS$6)) ->  | AW24: =IF(OR($H24=ListsLookup!$H$89,AS24="",AX24=""),"",AS24+(AX24-AS24)*(AW$6-AS$6)/(AX$6-AS$6)) ->  | AY24: =AX24 -> 0 | AZ24: 0 | BA24: 0 | BB24: 0 | BC24: 0 | BD24: 0 | BE24: 0 | BF24: 0 | BG24: 0 | BH24: 0 | BI24: 0 | BJ24: 0 | BK24: 0 | BL24: 0 | BM24: 0 | BN24: 0 | BO24: 0 | BP24: 0 | BQ24: 0 | BR24: 0
F25: 12 | G25: =IF('3.1. BCAInputs'!H30<>"",'3.1. BCAInputs'!H30,"") ->  | H25: Use Recommended | I25: =IFERROR(VLOOKUP(G25,ImpactValuesLookup!$J$5:$K$145,2,FALSE),"") ->  | K25: =IF(OR($H25=ListsLookup!$H$89,J25="",O25=""),"",J25+(O25-J25)*(K$6-J$6)/(O$6-J$6)) ->  | L25: =IF(OR($H25=ListsLookup!$H$89,J25="",O25=""),"",J25+(O25-J25)*(L$6-J$6)/(O$6-J$6)) ->  | M25: =IF(OR($H25=ListsLookup!$H$89,J25="",O25=""),"",J25+(O25-J25)*(M$6-J$6)/(O$6-J$6)) ->  | N25: =IF(OR($H25=ListsLookup!$H$89,J25="",O25=""),"",J25+(O25-J25)*(N$6-J$6)/(O$6-J$6)) ->  | P25: =IF(OR($H25=ListsLookup!$H$89,O25="",T25=""),"",O25+(T25-O25)*(P$6-O$6)/(T$6-O$6)) ->  | Q25: =IF(OR($H25=ListsLookup!$H$89,O25="",T25=""),"",O25+(T25-O25)*(Q$6-O$6)/(T$6-O$6)) ->  | R25: =IF(OR($H25=ListsLookup!$H$89,O25="",T25=""),"",O25+(T25-O25)*(R$6-O$6)/(T$6-O$6)) ->  | S25: =IF(OR($H25=ListsLookup!$H$89,O25="",T25=""),"",O25+(T25-O25)*(S$6-O$6)/(T$6-O$6)) ->  | U25: =IF(OR($H25=ListsLookup!$H$89,T25="",Y25=""),"",T25+(Y25-T25)*(U$6-T$6)/(Y$6-T$6)) ->  | V25: =IF(OR($H25=ListsLookup!$H$89,T25="",Y25=""),"",T25+(Y25-T25)*(V$6-T$6)/(Y$6-T$6)) ->  | W25: =IF(OR($H25=ListsLookup!$H$89,T25="",Y25=""),"",T25+(Y25-T25)*(W$6-T$6)/(Y$6-T$6)) ->  | X25: =IF(OR($H25=ListsLookup!$H$89,T25="",Y25=""),"",T25+(Y25-T25)*(X$6-T$6)/(Y$6-T$6)) ->  | Z25: =IF(OR($H25=ListsLookup!$H$89,Y25="",AD25=""),"",Y25+(AD25-Y25)*(Z$6-Y$6)/(AD$6-Y$6)) ->  | AA25: =IF(OR($H25=ListsLookup!$H$89,Y25="",AD25=""),"",Y25+(AD25-Y25)*(AA$6-Y$6)/(AD$6-Y$6)) ->  | AB25: =IF(OR($H25=ListsLookup!$H$89,Y25="",AD25=""),"",Y25+(AD25-Y25)*(AB$6-Y$6)/(AD$6-Y$6)) ->  | AC25: =IF(OR($H25=ListsLookup!$H$89,Y25="",AD25=""),"",Y25+(AD25-Y25)*(AC$6-Y$6)/(AD$6-Y$6)) ->  | AE25: =IF(OR($H25=ListsLookup!$H$89,AD25="",AI25=""),"",AD25+(AI25-AD25)*(AE$6-AD$6)/(AI$6-AD$6)) ->  | AF25: =IF(OR($H25=ListsLookup!$H$89,AD25="",AI25=""),"",AD25+(AI25-AD25)*(AF$6-AD$6)/(AI$6-AD$6)) ->  | AG25: =IF(OR($H25=ListsLookup!$H$89,AD25="",AI25=""),"",AD25+(AI25-AD25)*(AG$6-AD$6)/(AI$6-AD$6)) ->  | AH25: =IF(OR($H25=ListsLookup!$H$89,AD25="",AI25=""),"",AD25+(AI25-AD25)*(AH$6-AD$6)/(AI$6-AD$6)) ->  | AJ25: =IF(OR($H25=ListsLookup!$H$89,AI25="",AN25=""),"",AI25+(AN25-AI25)*(AJ$6-AI$6)/(AN$6-AI$6)) ->  | AK25: =IF(OR($H25=ListsLookup!$H$89,AI25="",AN25=""),"",AI25+(AN25-AI25)*(AK$6-AI$6)/(AN$6-AI$6)) ->  | AL25: =IF(OR($H25=ListsLookup!$H$89,AI25="",AN25=""),"",AI25+(AN25-AI25)*(AL$6-AI$6)/(AN$6-AI$6)) ->  | AM25: =IF(OR($H25=ListsLookup!$H$89,AI25="",AN25=""),"",AI25+(AN25-AI25)*(AM$6-AI$6)/(AN$6-AI$6)) ->  | AO25: =IF(OR($H25=ListsLookup!$H$89,AN25="",AS25=""),"",AN25+(AS25-AN25)*(AO$6-AN$6)/(AS$6-AN$6)) ->  | AP25: =IF(OR($H25=ListsLookup!$H$89,AN25="",AS25=""),"",AN25+(AS25-AN25)*(AP$6-AN$6)/(AS$6-AN$6)) ->  | AQ25: =IF(OR($H25=ListsLookup!$H$89,AN25="",AS25=""),"",AN25+(AS25-AN25)*(AQ$6-AN$6)/(AS$6-AN$6)) ->  | AR25: =IF(OR($H25=ListsLookup!$H$89,AN25="",AS25=""),"",AN25+(AS25-AN25)*(AR$6-AN$6)/(AS$6-AN$6)) ->  | AT25: =IF(OR($H25=ListsLookup!$H$89,AS25="",AX25=""),"",AS25+(AX25-AS25)*(AT$6-AS$6)/(AX$6-AS$6)) ->  | AU25: =IF(OR($H25=ListsLookup!$H$89,AS25="",AX25=""),"",AS25+(AX25-AS25)*(AU$6-AS$6)/(AX$6-AS$6)) ->  | AV25: =IF(OR($H25=ListsLookup!$H$89,AS25="",AX25=""),"",AS25+(AX25-AS25)*(AV$6-AS$6)/(AX$6-AS$6)) ->  | AW25: =IF(OR($H25=ListsLookup!$H$89,AS25="",AX25=""),"",AS25+(AX25-AS25)*(AW$6-AS$6)/(AX$6-AS$6)) ->  | AY25: =AX25 -> 0 | AZ25: 0 | BA25: 0 | BB25: 0 | BC25: 0 | BD25: 0 | BE25: 0 | BF25: 0 | BG25: 0 | BH25: 0 | BI25: 0 | BJ25: 0 | BK25: 0 | BL25: 0 | BM25: 0 | BN25: 0 | BO25: 0 | BP25: 0 | BQ25: 0 | BR25: 0
F26: 13 | G26: =IF('3.1. BCAInputs'!H31<>"",'3.1. BCAInputs'!H31,"") ->  | H26: Use Recommended | I26: =IFERROR(VLOOKUP(G26,ImpactValuesLookup!$J$5:$K$145,2,FALSE),"") ->  | K26: =IF(OR($H26=ListsLookup!$H$89,J26="",O26=""),"",J26+(O26-J26)*(K$6-J$6)/(O$6-J$6)) ->  | L26: =IF(OR($H26=ListsLookup!$H$89,J26="",O26=""),"",J26+(O26-J26)*(L$6-J$6)/(O$6-J$6)) ->  | M26: =IF(OR($H26=ListsLookup!$H$89,J26="",O26=""),"",J26+(O26-J26)*(M$6-J$6)/(O$6-J$6)) ->  | N26: =IF(OR($H26=ListsLookup!$H$89,J26="",O26=""),"",J26+(O26-J26)*(N$6-J$6)/(O$6-J$6)) ->  | P26: =IF(OR($H26=ListsLookup!$H$89,O26="",T26=""),"",O26+(T26-O26)*(P$6-O$6)/(T$6-O$6)) ->  | Q26: =IF(OR($H26=ListsLookup!$H$89,O26="",T26=""),"",O26+(T26-O26)*(Q$6-O$6)/(T$6-O$6)) ->  | R26: =IF(OR($H26=ListsLookup!$H$89,O26="",T26=""),"",O26+(T26-O26)*(R$6-O$6)/(T$6-O$6)) ->  | S26: =IF(OR($H26=ListsLookup!$H$89,O26="",T26=""),"",O26+(T26-O26)*(S$6-O$6)/(T$6-O$6)) ->  | U26: =IF(OR($H26=ListsLookup!$H$89,T26="",Y26=""),"",T26+(Y26-T26)*(U$6-T$6)/(Y$6-T$6)) ->  | V26: =IF(OR($H26=ListsLookup!$H$89,T26="",Y26=""),"",T26+(Y26-T26)*(V$6-T$6)/(Y$6-T$6)) ->  | W26: =IF(OR($H26=ListsLookup!$H$89,T26="",Y26=""),"",T26+(Y26-T26)*(W$6-T$6)/(Y$6-T$6)) ->  | X26: =IF(OR($H26=ListsLookup!$H$89,T26="",Y26=""),"",T26+(Y26-T26)*(X$6-T$6)/(Y$6-T$6)) ->  | Z26: =IF(OR($H26=ListsLookup!$H$89,Y26="",AD26=""),"",Y26+(AD26-Y26)*(Z$6-Y$6)/(AD$6-Y$6)) ->  | AA26: =IF(OR($H26=ListsLookup!$H$89,Y26="",AD26=""),"",Y26+(AD26-Y26)*(AA$6-Y$6)/(AD$6-Y$6)) ->  | AB26: =IF(OR($H26=ListsLookup!$H$89,Y26="",AD26=""),"",Y26+(AD26-Y26)*(AB$6-Y$6)/(AD$6-Y$6)) ->  | AC26: =IF(OR($H26=ListsLookup!$H$89,Y26="",AD26=""),"",Y26+(AD26-Y26)*(AC$6-Y$6)/(AD$6-Y$6)) ->  | AE26: =IF(OR($H26=ListsLookup!$H$89,AD26="",AI26=""),"",AD26+(AI26-AD26)*(AE$6-AD$6)/(AI$6-AD$6)) ->  | AF26: =IF(OR($H26=ListsLookup!$H$89,AD26="",AI26=""),"",AD26+(AI26-AD26)*(AF$6-AD$6)/(AI$6-AD$6)) ->  | AG26: =IF(OR($H26=ListsLookup!$H$89,AD26="",AI26=""),"",AD26+(AI26-AD26)*(AG$6-AD$6)/(AI$6-AD$6)) ->  | AH26: =IF(OR($H26=ListsLookup!$H$89,AD26="",AI26=""),"",AD26+(AI26-AD26)*(AH$6-AD$6)/(AI$6-AD$6)) ->  | AJ26: =IF(OR($H26=ListsLookup!$H$89,AI26="",AN26=""),"",AI26+(AN26-AI26)*(AJ$6-AI$6)/(AN$6-AI$6)) ->  | AK26: =IF(OR($H26=ListsLookup!$H$89,AI26="",AN26=""),"",AI26+(AN26-AI26)*(AK$6-AI$6)/(AN$6-AI$6)) ->  | AL26: =IF(OR($H26=ListsLookup!$H$89,AI26="",AN26=""),"",AI26+(AN26-AI26)*(AL$6-AI$6)/(AN$6-AI$6)) ->  | AM26: =IF(OR($H26=ListsLookup!$H$89,AI26="",AN26=""),"",AI26+(AN26-AI26)*(AM$6-AI$6)/(AN$6-AI$6)) ->  | AO26: =IF(OR($H26=ListsLookup!$H$89,AN26="",AS26=""),"",AN26+(AS26-AN26)*(AO$6-AN$6)/(AS$6-AN$6)) ->  | AP26: =IF(OR($H26=ListsLookup!$H$89,AN26="",AS26=""),"",AN26+(AS26-AN26)*(AP$6-AN$6)/(AS$6-AN$6)) ->  | AQ26: =IF(OR($H26=ListsLookup!$H$89,AN26="",AS26=""),"",AN26+(AS26-AN26)*(AQ$6-AN$6)/(AS$6-AN$6)) ->  | AR26: =IF(OR($H26=ListsLookup!$H$89,AN26="",AS26=""),"",AN26+(AS26-AN26)*(AR$6-AN$6)/(AS$6-AN$6)) ->  | AT26: =IF(OR($H26=ListsLookup!$H$89,AS26="",AX26=""),"",AS26+(AX26-AS26)*(AT$6-AS$6)/(AX$6-AS$6)) ->  | AU26: =IF(OR($H26=ListsLookup!$H$89,AS26="",AX26=""),"",AS26+(AX26-AS26)*(AU$6-AS$6)/(AX$6-AS$6)) ->  | AV26: =IF(OR($H26=ListsLookup!$H$89,AS26="",AX26=""),"",AS26+(AX26-AS26)*(AV$6-AS$6)/(AX$6-AS$6)) ->  | AW26: =IF(OR($H26=ListsLookup!$H$89,AS26="",AX26=""),"",AS26+(AX26-AS26)*(AW$6-AS$6)/(AX$6-AS$6)) ->  | AY26: =AX26 -> 0 | AZ26: 0 | BA26: 0 | BB26: 0 | BC26: 0 | BD26: 0 | BE26: 0 | BF26: 0 | BG26: 0 | BH26: 0 | BI26: 0 | BJ26: 0 | BK26: 0 | BL26: 0 | BM26: 0 | BN26: 0 | BO26: 0 | BP26: 0 | BQ26: 0 | BR26: 0
F27: 14 | G27: =IF('3.1. BCAInputs'!H32<>"",'3.1. BCAInputs'!H32,"") ->  | H27: Use Recommended | I27: =IFERROR(VLOOKUP(G27,ImpactValuesLookup!$J$5:$K$145,2,FALSE),"") ->  | K27: =IF(OR($H27=ListsLookup!$H$89,J27="",O27=""),"",J27+(O27-J27)*(K$6-J$6)/(O$6-J$6)) ->  | L27: =IF(OR($H27=ListsLookup!$H$89,J27="",O27=""),"",J27+(O27-J27)*(L$6-J$6)/(O$6-J$6)) ->  | M27: =IF(OR($H27=ListsLookup!$H$89,J27="",O27=""),"",J27+(O27-J27)*(M$6-J$6)/(O$6-J$6)) ->  | N27: =IF(OR($H27=ListsLookup!$H$89,J27="",O27=""),"",J27+(O27-J27)*(N$6-J$6)/(O$6-J$6)) ->  | P27: =IF(OR($H27=ListsLookup!$H$89,O27="",T27=""),"",O27+(T27-O27)*(P$6-O$6)/(T$6-O$6)) ->  | Q27: =IF(OR($H27=ListsLookup!$H$89,O27="",T27=""),"",O27+(T27-O27)*(Q$6-O$6)/(T$6-O$6)) ->  | R27: =IF(OR($H27=ListsLookup!$H$89,O27="",T27=""),"",O27+(T27-O27)*(R$6-O$6)/(T$6-O$6)) ->  | S27: =IF(OR($H27=ListsLookup!$H$89,O27="",T27=""),"",O27+(T27-O27)*(S$6-O$6)/(T$6-O$6)) ->  | U27: =IF(OR($H27=ListsLookup!$H$89,T27="",Y27=""),"",T27+(Y27-T27)*(U$6-T$6)/(Y$6-T$6)) ->  | V27: =IF(OR($H27=ListsLookup!$H$89,T27="",Y27=""),"",T27+(Y27-T27)*(V$6-T$6)/(Y$6-T$6)) ->  | W27: =IF(OR($H27=ListsLookup!$H$89,T27="",Y27=""),"",T27+(Y27-T27)*(W$6-T$6)/(Y$6-T$6)) ->  | X27: =IF(OR($H27=ListsLookup!$H$89,T27="",Y27=""),"",T27+(Y27-T27)*(X$6-T$6)/(Y$6-T$6)) ->  | Z27: =IF(OR($H27=ListsLookup!$H$89,Y27="",AD27=""),"",Y27+(AD27-Y27)*(Z$6-Y$6)/(AD$6-Y$6)) ->  | AA27: =IF(OR($H27=ListsLookup!$H$89,Y27="",AD27=""),"",Y27+(AD27-Y27)*(AA$6-Y$6)/(AD$6-Y$6)) ->  | AB27: =IF(OR($H27=ListsLookup!$H$89,Y27="",AD27=""),"",Y27+(AD27-Y27)*(AB$6-Y$6)/(AD$6-Y$6)) ->  | AC27: =IF(OR($H27=ListsLookup!$H$89,Y27="",AD27=""),"",Y27+(AD27-Y27)*(AC$6-Y$6)/(AD$6-Y$6)) ->  | AE27: =IF(OR($H27=ListsLookup!$H$89,AD27="",AI27=""),"",AD27+(AI27-AD27)*(AE$6-AD$6)/(AI$6-AD$6)) ->  | AF27: =IF(OR($H27=ListsLookup!$H$89,AD27="",AI27=""),"",AD27+(AI27-AD27)*(AF$6-AD$6)/(AI$6-AD$6)) ->  | AG27: =IF(OR($H27=ListsLookup!$H$89,AD27="",AI27=""),"",AD27+(AI27-AD27)*(AG$6-AD$6)/(AI$6-AD$6)) ->  | AH27: =IF(OR($H27=ListsLookup!$H$89,AD27="",AI27=""),"",AD27+(AI27-AD27)*(AH$6-AD$6)/(AI$6-AD$6)) ->  | AJ27: =IF(OR($H27=ListsLookup!$H$89,AI27="",AN27=""),"",AI27+(AN27-AI27)*(AJ$6-AI$6)/(AN$6-AI$6)) ->  | AK27: =IF(OR($H27=ListsLookup!$H$89,AI27="",AN27=""),"",AI27+(AN27-AI27)*(AK$6-AI$6)/(AN$6-AI$6)) ->  | AL27: =IF(OR($H27=ListsLookup!$H$89,AI27="",AN27=""),"",AI27+(AN27-AI27)*(AL$6-AI$6)/(AN$6-AI$6)) ->  | AM27: =IF(OR($H27=ListsLookup!$H$89,AI27="",AN27=""),"",AI27+(AN27-AI27)*(AM$6-AI$6)/(AN$6-AI$6)) ->  | AO27: =IF(OR($H27=ListsLookup!$H$89,AN27="",AS27=""),"",AN27+(AS27-AN27)*(AO$6-AN$6)/(AS$6-AN$6)) ->  | AP27: =IF(OR($H27=ListsLookup!$H$89,AN27="",AS27=""),"",AN27+(AS27-AN27)*(AP$6-AN$6)/(AS$6-AN$6)) ->  | AQ27: =IF(OR($H27=ListsLookup!$H$89,AN27="",AS27=""),"",AN27+(AS27-AN27)*(AQ$6-AN$6)/(AS$6-AN$6)) ->  | AR27: =IF(OR($H27=ListsLookup!$H$89,AN27="",AS27=""),"",AN27+(AS27-AN27)*(AR$6-AN$6)/(AS$6-AN$6)) ->  | AT27: =IF(OR($H27=ListsLookup!$H$89,AS27="",AX27=""),"",AS27+(AX27-AS27)*(AT$6-AS$6)/(AX$6-AS$6)) ->  | AU27: =IF(OR($H27=ListsLookup!$H$89,AS27="",AX27=""),"",AS27+(AX27-AS27)*(AU$6-AS$6)/(AX$6-AS$6)) ->  | AV27: =IF(OR($H27=ListsLookup!$H$89,AS27="",AX27=""),"",AS27+(AX27-AS27)*(AV$6-AS$6)/(AX$6-AS$6)) ->  | AW27: =IF(OR($H27=ListsLookup!$H$89,AS27="",AX27=""),"",AS27+(AX27-AS27)*(AW$6-AS$6)/(AX$6-AS$6)) ->  | AY27: =AX27 -> 0 | AZ27: 0 | BA27: 0 | BB27: 0 | BC27: 0 | BD27: 0 | BE27: 0 | BF27: 0 | BG27: 0 | BH27: 0 | BI27: 0 | BJ27: 0 | BK27: 0 | BL27: 0 | BM27: 0 | BN27: 0 | BO27: 0 | BP27: 0 | BQ27: 0 | BR27: 0
F28: 15 | G28: =IF('3.1. BCAInputs'!H33<>"",'3.1. BCAInputs'!H33,"") ->  | H28: Use Recommended | I28: =IFERROR(VLOOKUP(G28,ImpactValuesLookup!$J$5:$K$145,2,FALSE),"") ->  | K28: =IF(OR($H28=ListsLookup!$H$89,J28="",O28=""),"",J28+(O28-J28)*(K$6-J$6)/(O$6-J$6)) ->  | L28: =IF(OR($H28=ListsLookup!$H$89,J28="",O28=""),"",J28+(O28-J28)*(L$6-J$6)/(O$6-J$6)) ->  | M28: =IF(OR($H28=ListsLookup!$H$89,J28="",O28=""),"",J28+(O28-J28)*(M$6-J$6)/(O$6-J$6)) ->  | N28: =IF(OR($H28=ListsLookup!$H$89,J28="",O28=""),"",J28+(O28-J28)*(N$6-J$6)/(O$6-J$6)) ->  | P28: =IF(OR($H28=ListsLookup!$H$89,O28="",T28=""),"",O28+(T28-O28)*(P$6-O$6)/(T$6-O$6)) ->  | Q28: =IF(OR($H28=ListsLookup!$H$89,O28="",T28=""),"",O28+(T28-O28)*(Q$6-O$6)/(T$6-O$6)) ->  | R28: =IF(OR($H28=ListsLookup!$H$89,O28="",T28=""),"",O28+(T28-O28)*(R$6-O$6)/(T$6-O$6)) ->  | S28: =IF(OR($H28=ListsLookup!$H$89,O28="",T28=""),"",O28+(T28-O28)*(S$6-O$6)/(T$6-O$6)) ->  | U28: =IF(OR($H28=ListsLookup!$H$89,T28="",Y28=""),"",T28+(Y28-T28)*(U$6-T$6)/(Y$6-T$6)) ->  | V28: =IF(OR($H28=ListsLookup!$H$89,T28="",Y28=""),"",T28+(Y28-T28)*(V$6-T$6)/(Y$6-T$6)) ->  | W28: =IF(OR($H28=ListsLookup!$H$89,T28="",Y28=""),"",T28+(Y28-T28)*(W$6-T$6)/(Y$6-T$6)) ->  | X28: =IF(OR($H28=ListsLookup!$H$89,T28="",Y28=""),"",T28+(Y28-T28)*(X$6-T$6)/(Y$6-T$6)) ->  | Z28: =IF(OR($H28=ListsLookup!$H$89,Y28="",AD28=""),"",Y28+(AD28-Y28)*(Z$6-Y$6)/(AD$6-Y$6)) ->  | AA28: =IF(OR($H28=ListsLookup!$H$89,Y28="",AD28=""),"",Y28+(AD28-Y28)*(AA$6-Y$6)/(AD$6-Y$6)) ->  | AB28: =IF(OR($H28=ListsLookup!$H$89,Y28="",AD28=""),"",Y28+(AD28-Y28)*(AB$6-Y$6)/(AD$6-Y$6)) ->  | AC28: =IF(OR($H28=ListsLookup!$H$89,Y28="",AD28=""),"",Y28+(AD28-Y28)*(AC$6-Y$6)/(AD$6-Y$6)) ->  | AE28: =IF(OR($H28=ListsLookup!$H$89,AD28="",AI28=""),"",AD28+(AI28-AD28)*(AE$6-AD$6)/(AI$6-AD$6)) ->  | AF28: =IF(OR($H28=ListsLookup!$H$89,AD28="",AI28=""),"",AD28+(AI28-AD28)*(AF$6-AD$6)/(AI$6-AD$6)) ->  | AG28: =IF(OR($H28=ListsLookup!$H$89,AD28="",AI28=""),"",AD28+(AI28-AD28)*(AG$6-AD$6)/(AI$6-AD$6)) ->  | AH28: =IF(OR($H28=ListsLookup!$H$89,AD28="",AI28=""),"",AD28+(AI28-AD28)*(AH$6-AD$6)/(AI$6-AD$6)) ->  | AJ28: =IF(OR($H28=ListsLookup!$H$89,AI28="",AN28=""),"",AI28+(AN28-AI28)*(AJ$6-AI$6)/(AN$6-AI$6)) ->  | AK28: =IF(OR($H28=ListsLookup!$H$89,AI28="",AN28=""),"",AI28+(AN28-AI28)*(AK$6-AI$6)/(AN$6-AI$6)) ->  | AL28: =IF(OR($H28=ListsLookup!$H$89,AI28="",AN28=""),"",AI28+(AN28-AI28)*(AL$6-AI$6)/(AN$6-AI$6)) ->  | AM28: =IF(OR($H28=ListsLookup!$H$89,AI28="",AN28=""),"",AI28+(AN28-AI28)*(AM$6-AI$6)/(AN$6-AI$6)) ->  | AO28: =IF(OR($H28=ListsLookup!$H$89,AN28="",AS28=""),"",AN28+(AS28-AN28)*(AO$6-AN$6)/(AS$6-AN$6)) ->  | AP28: =IF(OR($H28=ListsLookup!$H$89,AN28="",AS28=""),"",AN28+(AS28-AN28)*(AP$6-AN$6)/(AS$6-AN$6)) ->  | AQ28: =IF(OR($H28=ListsLookup!$H$89,AN28="",AS28=""),"",AN28+(AS28-AN28)*(AQ$6-AN$6)/(AS$6-AN$6)) ->  | AR28: =IF(OR($H28=ListsLookup!$H$89,AN28="",AS28=""),"",AN28+(AS28-AN28)*(AR$6-AN$6)/(AS$6-AN$6)) ->  | AT28: =IF(OR($H28=ListsLookup!$H$89,AS28="",AX28=""),"",AS28+(AX28-AS28)*(AT$6-AS$6)/(AX$6-AS$6)) ->  | AU28: =IF(OR($H28=ListsLookup!$H$89,AS28="",AX28=""),"",AS28+(AX28-AS28)*(AU$6-AS$6)/(AX$6-AS$6)) ->  | AV28: =IF(OR($H28=ListsLookup!$H$89,AS28="",AX28=""),"",AS28+(AX28-AS28)*(AV$6-AS$6)/(AX$6-AS$6)) ->  | AW28: =IF(OR($H28=ListsLookup!$H$89,AS28="",AX28=""),"",AS28+(AX28-AS28)*(AW$6-AS$6)/(AX$6-AS$6)) ->  | AY28: =AX28 -> 0 | AZ28: 0 | BA28: 0 | BB28: 0 | BC28: 0 | BD28: 0 | BE28: 0 | BF28: 0 | BG28: 0 | BH28: 0 | BI28: 0 | BJ28: 0 | BK28: 0 | BL28: 0 | BM28: 0 | BN28: 0 | BO28: 0 | BP28: 0 | BQ28: 0 | BR28: 0
J30: Selected Options
I31: Year | J31: =J6 -> 2020 | K31: 2021 | L31: 2022 | M31: 2023 | N31: 2024 | O31: 2025 | P31: 2026 | Q31: 2027 | R31: 2028 | S31: 2029 | T31: 2030 | U31: 2031 | V31: 2032 | W31: 2033 | X31: 2034 | Y31: 2035 | Z31: 2036 | AA31: 2037 | AB31: 2038 | AC31: 2039 | AD31: 2040 | AE31: 2041 | AF31: 2042 | AG31: 2043 | AH31: 2044 | AI31: 2045 | AJ31: 2046 | AK31: 2047 | AL31: 2048 | AM31: 2049 | AN31: 2050 | AO31: 2051 | AP31: 2052 | AQ31: 2053 | AR31: 2054 | AS31: 2055 | AT31: 2056 | AU31: 2057 | AV31: 2058 | AW31: 2059 | AX31: 2060
H32: Curve Used
F33: 1 | G33: =IF(G14<>"",G14,"") ->  | H33: =IF(G33<>"",IF(H14=ListsLookup!$H$90,ListsLookup!$H$90,'3.2. BCAPeneRate'!I14),"") ->  | J33: =IF($G33<>"",IF($H33<>ListsLookup!$H$90,INDEX(J$7:J$11,MATCH($H33,$H$7:$H$11,0)),J14),"") ->  | K33: =IF($G33<>"",IF($H33<>ListsLookup!$H$90,INDEX(K$7:K$11,MATCH($H33,$H$7:$H$11,0)),K14),"") ->  | L33: =IF($G33<>"",IF($H33<>ListsLookup!$H$90,INDEX(L$7:L$11,MATCH($H33,$H$7:$H$11,0)),L14),"") ->  | M33: =IF($G33<>"",IF($H33<>ListsLookup!$H$90,INDEX(M$7:M$11,MATCH($H33,$H$7:$H$11,0)),M14),"") ->  | N33: =IF($G33<>"",IF($H33<>ListsLookup!$H$90,INDEX(N$7:N$11,MATCH($H33,$H$7:$H$11,0)),N14),"") ->  | O33: =IF($G33<>"",IF($H33<>ListsLookup!$H$90,INDEX(O$7:O$11,MATCH($H33,$H$7:$H$11,0)),O14),"") ->  | P33: =IF($G33<>"",IF($H33<>ListsLookup!$H$90,INDEX(P$7:P$11,MATCH($H33,$H$7:$H$11,0)),P14),"") ->  | Q33: =IF($G33<>"",IF($H33<>ListsLookup!$H$90,INDEX(Q$7:Q$11,MATCH($H33,$H$7:$H$11,0)),Q14),"") ->  | R33: =IF($G33<>"",IF($H33<>ListsLookup!$H$90,INDEX(R$7:R$11,MATCH($H33,$H$7:$H$11,0)),R14),"") ->  | S33: =IF($G33<>"",IF($H33<>ListsLookup!$H$90,INDEX(S$7:S$11,MATCH($H33,$H$7:$H$11,0)),S14),"") ->  | T33: =IF($G33<>"",IF($H33<>ListsLookup!$H$90,INDEX(T$7:T$11,MATCH($H33,$H$7:$H$11,0)),T14),"") ->  | U33: =IF($G33<>"",IF($H33<>ListsLookup!$H$90,INDEX(U$7:U$11,MATCH($H33,$H$7:$H$11,0)),U14),"") ->  | V33: =IF($G33<>"",IF($H33<>ListsLookup!$H$90,INDEX(V$7:V$11,MATCH($H33,$H$7:$H$11,0)),V14),"") ->  | W33: =IF($G33<>"",IF($H33<>ListsLookup!$H$90,INDEX(W$7:W$11,MATCH($H33,$H$7:$H$11,0)),W14),"") ->  | X33: =IF($G33<>"",IF($H33<>ListsLookup!$H$90,INDEX(X$7:X$11,MATCH($H33,$H$7:$H$11,0)),X14),"") ->  | Y33: =IF($G33<>"",IF($H33<>ListsLookup!$H$90,INDEX(Y$7:Y$11,MATCH($H33,$H$7:$H$11,0)),Y14),"") ->  | Z33: =IF($G33<>"",IF($H33<>ListsLookup!$H$90,INDEX(Z$7:Z$11,MATCH($H33,$H$7:$H$11,0)),Z14),"") ->  | AA33: =IF($G33<>"",IF($H33<>ListsLookup!$H$90,INDEX(AA$7:AA$11,MATCH($H33,$H$7:$H$11,0)),AA14),"") ->  | AB33: =IF($G33<>"",IF($H33<>ListsLookup!$H$90,INDEX(AB$7:AB$11,MATCH($H33,$H$7:$H$11,0)),AB14),"") ->  | AC33: =IF($G33<>"",IF($H33<>ListsLookup!$H$90,INDEX(AC$7:AC$11,MATCH($H33,$H$7:$H$11,0)),AC14),"") ->  | AD33: =IF($G33<>"",IF($H33<>ListsLookup!$H$90,INDEX(AD$7:AD$11,MATCH($H33,$H$7:$H$11,0)),AD14),"") ->  | AE33: =IF($G33<>"",IF($H33<>ListsLookup!$H$90,INDEX(AE$7:AE$11,MATCH($H33,$H$7:$H$11,0)),AE14),"") ->  | AF33: =IF($G33<>"",IF($H33<>ListsLookup!$H$90,INDEX(AF$7:AF$11,MATCH($H33,$H$7:$H$11,0)),AF14),"") ->  | AG33: =IF($G33<>"",IF($H33<>ListsLookup!$H$90,INDEX(AG$7:AG$11,MATCH($H33,$H$7:$H$11,0)),AG14),"") ->  | AH33: =IF($G33<>"",IF($H33<>ListsLookup!$H$90,INDEX(AH$7:AH$11,MATCH($H33,$H$7:$H$11,0)),AH14),"") ->  | AI33: =IF($G33<>"",IF($H33<>ListsLookup!$H$90,INDEX(AI$7:AI$11,MATCH($H33,$H$7:$H$11,0)),AI14),"") ->  | AJ33: =IF($G33<>"",IF($H33<>ListsLookup!$H$90,INDEX(AJ$7:AJ$11,MATCH($H33,$H$7:$H$11,0)),AJ14),"") ->  | AK33: =IF($G33<>"",IF($H33<>ListsLookup!$H$90,INDEX(AK$7:AK$11,MATCH($H33,$H$7:$H$11,0)),AK14),"") ->  | AL33: =IF($G33<>"",IF($H33<>ListsLookup!$H$90,INDEX(AL$7:AL$11,MATCH($H33,$H$7:$H$11,0)),AL14),"") ->  | AM33: =IF($G33<>"",IF($H33<>ListsLookup!$H$90,INDEX(AM$7:AM$11,MATCH($H33,$H$7:$H$11,0)),AM14),"") ->  | AN33: =IF($G33<>"",IF($H33<>ListsLookup!$H$90,INDEX(AN$7:AN$11,MATCH($H33,$H$7:$H$11,0)),AN14),"") ->  | AO33: =IF($G33<>"",IF($H33<>ListsLookup!$H$90,INDEX(AO$7:AO$11,MATCH($H33,$H$7:$H$11,0)),AO14),"") ->  | AP33: =IF($G33<>"",IF($H33<>ListsLookup!$H$90,INDEX(AP$7:AP$11,MATCH($H33,$H$7:$H$11,0)),AP14),"") ->  | AQ33: =IF($G33<>"",IF($H33<>ListsLookup!$H$90,INDEX(AQ$7:AQ$11,MATCH($H33,$H$7:$H$11,0)),AQ14),"") ->  | AR33: =IF($G33<>"",IF($H33<>ListsLookup!$H$90,INDEX(AR$7:AR$11,MATCH($H33,$H$7:$H$11,0)),AR14),"") ->  | AS33: =IF($G33<>"",IF($H33<>ListsLookup!$H$90,INDEX(AS$7:AS$11,MATCH($H33,$H$7:$H$11,0)),AS14),"") ->  | AT33: =IF($G33<>"",IF($H33<>ListsLookup!$H$90,INDEX(AT$7:AT$11,MATCH($H33,$H$7:$H$11,0)),AT14),"") ->  | AU33: =IF($G33<>"",IF($H33<>ListsLookup!$H$90,INDEX(AU$7:AU$11,MATCH($H33,$H$7:$H$11,0)),AU14),"") ->  | AV33: =IF($G33<>"",IF($H33<>ListsLookup!$H$90,INDEX(AV$7:AV$11,MATCH($H33,$H$7:$H$11,0)),AV14),"") ->  | AW33: =IF($G33<>"",IF($H33<>ListsLookup!$H$90,INDEX(AW$7:AW$11,MATCH($H33,$H$7:$H$11,0)),AW14),"") ->  | AX33: =IF($G33<>"",IF($H33<>ListsLookup!$H$90,INDEX(AX$7:AX$11,MATCH($H33,$H$7:$H$11,0)),AX14),"") -> 
F34: 2 | G34: =IF(G15<>"",G15,"") ->  | H34: =IF(G34<>"",IF(H15=ListsLookup!$H$90,ListsLookup!$H$90,'3.2. BCAPeneRate'!I15),"") ->  | J34: =IF($G34<>"",IF($H34<>ListsLookup!$H$90,INDEX(J$7:J$11,MATCH($H34,$H$7:$H$11,0)),J15),"") ->  | K34: =IF($G34<>"",IF($H34<>ListsLookup!$H$90,INDEX(K$7:K$11,MATCH($H34,$H$7:$H$11,0)),K15),"") ->  | L34: =IF($G34<>"",IF($H34<>ListsLookup!$H$90,INDEX(L$7:L$11,MATCH($H34,$H$7:$H$11,0)),L15),"") ->  | M34: =IF($G34<>"",IF($H34<>ListsLookup!$H$90,INDEX(M$7:M$11,MATCH($H34,$H$7:$H$11,0)),M15),"") ->  | N34: =IF($G34<>"",IF($H34<>ListsLookup!$H$90,INDEX(N$7:N$11,MATCH($H34,$H$7:$H$11,0)),N15),"") ->  | O34: =IF($G34<>"",IF($H34<>ListsLookup!$H$90,INDEX(O$7:O$11,MATCH($H34,$H$7:$H$11,0)),O15),"") ->  | P34: =IF($G34<>"",IF($H34<>ListsLookup!$H$90,INDEX(P$7:P$11,MATCH($H34,$H$7:$H$11,0)),P15),"") ->  | Q34: =IF($G34<>"",IF($H34<>ListsLookup!$H$90,INDEX(Q$7:Q$11,MATCH($H34,$H$7:$H$11,0)),Q15),"") ->  | R34: =IF($G34<>"",IF($H34<>ListsLookup!$H$90,INDEX(R$7:R$11,MATCH($H34,$H$7:$H$11,0)),R15),"") ->  | S34: =IF($G34<>"",IF($H34<>ListsLookup!$H$90,INDEX(S$7:S$11,MATCH($H34,$H$7:$H$11,0)),S15),"") ->  | T34: =IF($G34<>"",IF($H34<>ListsLookup!$H$90,INDEX(T$7:T$11,MATCH($H34,$H$7:$H$11,0)),T15),"") ->  | U34: =IF($G34<>"",IF($H34<>ListsLookup!$H$90,INDEX(U$7:U$11,MATCH($H34,$H$7:$H$11,0)),U15),"") ->  | V34: =IF($G34<>"",IF($H34<>ListsLookup!$H$90,INDEX(V$7:V$11,MATCH($H34,$H$7:$H$11,0)),V15),"") ->  | W34: =IF($G34<>"",IF($H34<>ListsLookup!$H$90,INDEX(W$7:W$11,MATCH($H34,$H$7:$H$11,0)),W15),"") ->  | X34: =IF($G34<>"",IF($H34<>ListsLookup!$H$90,INDEX(X$7:X$11,MATCH($H34,$H$7:$H$11,0)),X15),"") ->  | Y34: =IF($G34<>"",IF($H34<>ListsLookup!$H$90,INDEX(Y$7:Y$11,MATCH($H34,$H$7:$H$11,0)),Y15),"") ->  | Z34: =IF($G34<>"",IF($H34<>ListsLookup!$H$90,INDEX(Z$7:Z$11,MATCH($H34,$H$7:$H$11,0)),Z15),"") ->  | AA34: =IF($G34<>"",IF($H34<>ListsLookup!$H$90,INDEX(AA$7:AA$11,MATCH($H34,$H$7:$H$11,0)),AA15),"") ->  | AB34: =IF($G34<>"",IF($H34<>ListsLookup!$H$90,INDEX(AB$7:AB$11,MATCH($H34,$H$7:$H$11,0)),AB15),"") ->  | AC34: =IF($G34<>"",IF($H34<>ListsLookup!$H$90,INDEX(AC$7:AC$11,MATCH($H34,$H$7:$H$11,0)),AC15),"") ->  | AD34: =IF($G34<>"",IF($H34<>ListsLookup!$H$90,INDEX(AD$7:AD$11,MATCH($H34,$H$7:$H$11,0)),AD15),"") ->  | AE34: =IF($G34<>"",IF($H34<>ListsLookup!$H$90,INDEX(AE$7:AE$11,MATCH($H34,$H$7:$H$11,0)),AE15),"") ->  | AF34: =IF($G34<>"",IF($H34<>ListsLookup!$H$90,INDEX(AF$7:AF$11,MATCH($H34,$H$7:$H$11,0)),AF15),"") ->  | AG34: =IF($G34<>"",IF($H34<>ListsLookup!$H$90,INDEX(AG$7:AG$11,MATCH($H34,$H$7:$H$11,0)),AG15),"") ->  | AH34: =IF($G34<>"",IF($H34<>ListsLookup!$H$90,INDEX(AH$7:AH$11,MATCH($H34,$H$7:$H$11,0)),AH15),"") ->  | AI34: =IF($G34<>"",IF($H34<>ListsLookup!$H$90,INDEX(AI$7:AI$11,MATCH($H34,$H$7:$H$11,0)),AI15),"") ->  | AJ34: =IF($G34<>"",IF($H34<>ListsLookup!$H$90,INDEX(AJ$7:AJ$11,MATCH($H34,$H$7:$H$11,0)),AJ15),"") ->  | AK34: =IF($G34<>"",IF($H34<>ListsLookup!$H$90,INDEX(AK$7:AK$11,MATCH($H34,$H$7:$H$11,0)),AK15),"") ->  | AL34: =IF($G34<>"",IF($H34<>ListsLookup!$H$90,INDEX(AL$7:AL$11,MATCH($H34,$H$7:$H$11,0)),AL15),"") ->  | AM34: =IF($G34<>"",IF($H34<>ListsLookup!$H$90,INDEX(AM$7:AM$11,MATCH($H34,$H$7:$H$11,0)),AM15),"") ->  | AN34: =IF($G34<>"",IF($H34<>ListsLookup!$H$90,INDEX(AN$7:AN$11,MATCH($H34,$H$7:$H$11,0)),AN15),"") ->  | AO34: =IF($G34<>"",IF($H34<>ListsLookup!$H$90,INDEX(AO$7:AO$11,MATCH($H34,$H$7:$H$11,0)),AO15),"") ->  | AP34: =IF($G34<>"",IF($H34<>ListsLookup!$H$90,INDEX(AP$7:AP$11,MATCH($H34,$H$7:$H$11,0)),AP15),"") ->  | AQ34: =IF($G34<>"",IF($H34<>ListsLookup!$H$90,INDEX(AQ$7:AQ$11,MATCH($H34,$H$7:$H$11,0)),AQ15),"") ->  | AR34: =IF($G34<>"",IF($H34<>ListsLookup!$H$90,INDEX(AR$7:AR$11,MATCH($H34,$H$7:$H$11,0)),AR15),"") ->  | AS34: =IF($G34<>"",IF($H34<>ListsLookup!$H$90,INDEX(AS$7:AS$11,MATCH($H34,$H$7:$H$11,0)),AS15),"") ->  | AT34: =IF($G34<>"",IF($H34<>ListsLookup!$H$90,INDEX(AT$7:AT$11,MATCH($H34,$H$7:$H$11,0)),AT15),"") ->  | AU34: =IF($G34<>"",IF($H34<>ListsLookup!$H$90,INDEX(AU$7:AU$11,MATCH($H34,$H$7:$H$11,0)),AU15),"") ->  | AV34: =IF($G34<>"",IF($H34<>ListsLookup!$H$90,INDEX(AV$7:AV$11,MATCH($H34,$H$7:$H$11,0)),AV15),"") ->  | AW34: =IF($G34<>"",IF($H34<>ListsLookup!$H$90,INDEX(AW$7:AW$11,MATCH($H34,$H$7:$H$11,0)),AW15),"") ->  | AX34: =IF($G34<>"",IF($H34<>ListsLookup!$H$90,INDEX(AX$7:AX$11,MATCH($H34,$H$7:$H$11,0)),AX15),"") -> 
F35: 3 | H35: =IF(G35<>"",IF(H16=ListsLookup!$H$90,ListsLookup!$H$90,'3.2. BCAPeneRate'!I16),"") ->  | J35: =IF($G35<>"",IF($H35<>ListsLookup!$H$90,INDEX(J$7:J$11,MATCH($H35,$H$7:$H$11,0)),J16),"") ->  | K35: =IF($G35<>"",IF($H35<>ListsLookup!$H$90,INDEX(K$7:K$11,MATCH($H35,$H$7:$H$11,0)),K16),"") ->  | L35: =IF($G35<>"",IF($H35<>ListsLookup!$H$90,INDEX(L$7:L$11,MATCH($H35,$H$7:$H$11,0)),L16),"") ->  | M35: =IF($G35<>"",IF($H35<>ListsLookup!$H$90,INDEX(M$7:M$11,MATCH($H35,$H$7:$H$11,0)),M16),"") ->  | N35: =IF($G35<>"",IF($H35<>ListsLookup!$H$90,INDEX(N$7:N$11,MATCH($H35,$H$7:$H$11,0)),N16),"") ->  | O35: =IF($G35<>"",IF($H35<>ListsLookup!$H$90,INDEX(O$7:O$11,MATCH($H35,$H$7:$H$11,0)),O16),"") ->  | P35: =IF($G35<>"",IF($H35<>ListsLookup!$H$90,INDEX(P$7:P$11,MATCH($H35,$H$7:$H$11,0)),P16),"") ->  | Q35: =IF($G35<>"",IF($H35<>ListsLookup!$H$90,INDEX(Q$7:Q$11,MATCH($H35,$H$7:$H$11,0)),Q16),"") ->  | R35: =IF($G35<>"",IF($H35<>ListsLookup!$H$90,INDEX(R$7:R$11,MATCH($H35,$H$7:$H$11,0)),R16),"") ->  | S35: =IF($G35<>"",IF($H35<>ListsLookup!$H$90,INDEX(S$7:S$11,MATCH($H35,$H$7:$H$11,0)),S16),"") ->  | T35: =IF($G35<>"",IF($H35<>ListsLookup!$H$90,INDEX(T$7:T$11,MATCH($H35,$H$7:$H$11,0)),T16),"") ->  | U35: =IF($G35<>"",IF($H35<>ListsLookup!$H$90,INDEX(U$7:U$11,MATCH($H35,$H$7:$H$11,0)),U16),"") ->  | V35: =IF($G35<>"",IF($H35<>ListsLookup!$H$90,INDEX(V$7:V$11,MATCH($H35,$H$7:$H$11,0)),V16),"") ->  | W35: =IF($G35<>"",IF($H35<>ListsLookup!$H$90,INDEX(W$7:W$11,MATCH($H35,$H$7:$H$11,0)),W16),"") ->  | X35: =IF($G35<>"",IF($H35<>ListsLookup!$H$90,INDEX(X$7:X$11,MATCH($H35,$H$7:$H$11,0)),X16),"") ->  | Y35: =IF($G35<>"",IF($H35<>ListsLookup!$H$90,INDEX(Y$7:Y$11,MATCH($H35,$H$7:$H$11,0)),Y16),"") ->  | Z35: =IF($G35<>"",IF($H35<>ListsLookup!$H$90,INDEX(Z$7:Z$11,MATCH($H35,$H$7:$H$11,0)),Z16),"") ->  | AA35: =IF($G35<>"",IF($H35<>ListsLookup!$H$90,INDEX(AA$7:AA$11,MATCH($H35,$H$7:$H$11,0)),AA16),"") ->  | AB35: =IF($G35<>"",IF($H35<>ListsLookup!$H$90,INDEX(AB$7:AB$11,MATCH($H35,$H$7:$H$11,0)),AB16),"") ->  | AC35: =IF($G35<>"",IF($H35<>ListsLookup!$H$90,INDEX(AC$7:AC$11,MATCH($H35,$H$7:$H$11,0)),AC16),"") ->  | AD35: =IF($G35<>"",IF($H35<>ListsLookup!$H$90,INDEX(AD$7:AD$11,MATCH($H35,$H$7:$H$11,0)),AD16),"") ->  | AE35: =IF($G35<>"",IF($H35<>ListsLookup!$H$90,INDEX(AE$7:AE$11,MATCH($H35,$H$7:$H$11,0)),AE16),"") ->  | AF35: =IF($G35<>"",IF($H35<>ListsLookup!$H$90,INDEX(AF$7:AF$11,MATCH($H35,$H$7:$H$11,0)),AF16),"") ->  | AG35: =IF($G35<>"",IF($H35<>ListsLookup!$H$90,INDEX(AG$7:AG$11,MATCH($H35,$H$7:$H$11,0)),AG16),"") ->  | AH35: =IF($G35<>"",IF($H35<>ListsLookup!$H$90,INDEX(AH$7:AH$11,MATCH($H35,$H$7:$H$11,0)),AH16),"") ->  | AI35: =IF($G35<>"",IF($H35<>ListsLookup!$H$90,INDEX(AI$7:AI$11,MATCH($H35,$H$7:$H$11,0)),AI16),"") ->  | AJ35: =IF($G35<>"",IF($H35<>ListsLookup!$H$90,INDEX(AJ$7:AJ$11,MATCH($H35,$H$7:$H$11,0)),AJ16),"") ->  | AK35: =IF($G35<>"",IF($H35<>ListsLookup!$H$90,INDEX(AK$7:AK$11,MATCH($H35,$H$7:$H$11,0)),AK16),"") ->  | AL35: =IF($G35<>"",IF($H35<>ListsLookup!$H$90,INDEX(AL$7:AL$11,MATCH($H35,$H$7:$H$11,0)),AL16),"") ->  | AM35: =IF($G35<>"",IF($H35<>ListsLookup!$H$90,INDEX(AM$7:AM$11,MATCH($H35,$H$7:$H$11,0)),AM16),"") ->  | AN35: =IF($G35<>"",IF($H35<>ListsLookup!$H$90,INDEX(AN$7:AN$11,MATCH($H35,$H$7:$H$11,0)),AN16),"") ->  | AO35: =IF($G35<>"",IF($H35<>ListsLookup!$H$90,INDEX(AO$7:AO$11,MATCH($H35,$H$7:$H$11,0)),AO16),"") ->  | AP35: =IF($G35<>"",IF($H35<>ListsLookup!$H$90,INDEX(AP$7:AP$11,MATCH($H35,$H$7:$H$11,0)),AP16),"") ->  | AQ35: =IF($G35<>"",IF($H35<>ListsLookup!$H$90,INDEX(AQ$7:AQ$11,MATCH($H35,$H$7:$H$11,0)),AQ16),"") ->  | AR35: =IF($G35<>"",IF($H35<>ListsLookup!$H$90,INDEX(AR$7:AR$11,MATCH($H35,$H$7:$H$11,0)),AR16),"") ->  | AS35: =IF($G35<>"",IF($H35<>ListsLookup!$H$90,INDEX(AS$7:AS$11,MATCH($H35,$H$7:$H$11,0)),AS16),"") ->  | AT35: =IF($G35<>"",IF($H35<>ListsLookup!$H$90,INDEX(AT$7:AT$11,MATCH($H35,$H$7:$H$11,0)),AT16),"") ->  | AU35: =IF($G35<>"",IF($H35<>ListsLookup!$H$90,INDEX(AU$7:AU$11,MATCH($H35,$H$7:$H$11,0)),AU16),"") ->  | AV35: =IF($G35<>"",IF($H35<>ListsLookup!$H$90,INDEX(AV$7:AV$11,MATCH($H35,$H$7:$H$11,0)),AV16),"") ->  | AW35: =IF($G35<>"",IF($H35<>ListsLookup!$H$90,INDEX(AW$7:AW$11,MATCH($H35,$H$7:$H$11,0)),AW16),"") ->  | AX35: =IF($G35<>"",IF($H35<>ListsLookup!$H$90,INDEX(AX$7:AX$11,MATCH($H35,$H$7:$H$11,0)),AX16),"") -> 
F36: 4 | H36: =IF(G36<>"",IF(H17=ListsLookup!$H$90,ListsLookup!$H$90,'3.2. BCAPeneRate'!I17),"") ->  | J36: =IF($G36<>"",IF($H36<>ListsLookup!$H$90,INDEX(J$7:J$11,MATCH($H36,$H$7:$H$11,0)),J17),"") ->  | K36: =IF($G36<>"",IF($H36<>ListsLookup!$H$90,INDEX(K$7:K$11,MATCH($H36,$H$7:$H$11,0)),K17),"") ->  | L36: =IF($G36<>"",IF($H36<>ListsLookup!$H$90,INDEX(L$7:L$11,MATCH($H36,$H$7:$H$11,0)),L17),"") ->  | M36: =IF($G36<>"",IF($H36<>ListsLookup!$H$90,INDEX(M$7:M$11,MATCH($H36,$H$7:$H$11,0)),M17),"") ->  | N36: =IF($G36<>"",IF($H36<>ListsLookup!$H$90,INDEX(N$7:N$11,MATCH($H36,$H$7:$H$11,0)),N17),"") ->  | O36: =IF($G36<>"",IF($H36<>ListsLookup!$H$90,INDEX(O$7:O$11,MATCH($H36,$H$7:$H$11,0)),O17),"") ->  | P36: =IF($G36<>"",IF($H36<>ListsLookup!$H$90,INDEX(P$7:P$11,MATCH($H36,$H$7:$H$11,0)),P17),"") ->  | Q36: =IF($G36<>"",IF($H36<>ListsLookup!$H$90,INDEX(Q$7:Q$11,MATCH($H36,$H$7:$H$11,0)),Q17),"") ->  | R36: =IF($G36<>"",IF($H36<>ListsLookup!$H$90,INDEX(R$7:R$11,MATCH($H36,$H$7:$H$11,0)),R17),"") ->  | S36: =IF($G36<>"",IF($H36<>ListsLookup!$H$90,INDEX(S$7:S$11,MATCH($H36,$H$7:$H$11,0)),S17),"") ->  | T36: =IF($G36<>"",IF($H36<>ListsLookup!$H$90,INDEX(T$7:T$11,MATCH($H36,$H$7:$H$11,0)),T17),"") ->  | U36: =IF($G36<>"",IF($H36<>ListsLookup!$H$90,INDEX(U$7:U$11,MATCH($H36,$H$7:$H$11,0)),U17),"") ->  | V36: =IF($G36<>"",IF($H36<>ListsLookup!$H$90,INDEX(V$7:V$11,MATCH($H36,$H$7:$H$11,0)),V17),"") ->  | W36: =IF($G36<>"",IF($H36<>ListsLookup!$H$90,INDEX(W$7:W$11,MATCH($H36,$H$7:$H$11,0)),W17),"") ->  | X36: =IF($G36<>"",IF($H36<>ListsLookup!$H$90,INDEX(X$7:X$11,MATCH($H36,$H$7:$H$11,0)),X17),"") ->  | Y36: =IF($G36<>"",IF($H36<>ListsLookup!$H$90,INDEX(Y$7:Y$11,MATCH($H36,$H$7:$H$11,0)),Y17),"") ->  | Z36: =IF($G36<>"",IF($H36<>ListsLookup!$H$90,INDEX(Z$7:Z$11,MATCH($H36,$H$7:$H$11,0)),Z17),"") ->  | AA36: =IF($G36<>"",IF($H36<>ListsLookup!$H$90,INDEX(AA$7:AA$11,MATCH($H36,$H$7:$H$11,0)),AA17),"") ->  | AB36: =IF($G36<>"",IF($H36<>ListsLookup!$H$90,INDEX(AB$7:AB$11,MATCH($H36,$H$7:$H$11,0)),AB17),"") ->  | AC36: =IF($G36<>"",IF($H36<>ListsLookup!$H$90,INDEX(AC$7:AC$11,MATCH($H36,$H$7:$H$11,0)),AC17),"") ->  | AD36: =IF($G36<>"",IF($H36<>ListsLookup!$H$90,INDEX(AD$7:AD$11,MATCH($H36,$H$7:$H$11,0)),AD17),"") ->  | AE36: =IF($G36<>"",IF($H36<>ListsLookup!$H$90,INDEX(AE$7:AE$11,MATCH($H36,$H$7:$H$11,0)),AE17),"") ->  | AF36: =IF($G36<>"",IF($H36<>ListsLookup!$H$90,INDEX(AF$7:AF$11,MATCH($H36,$H$7:$H$11,0)),AF17),"") ->  | AG36: =IF($G36<>"",IF($H36<>ListsLookup!$H$90,INDEX(AG$7:AG$11,MATCH($H36,$H$7:$H$11,0)),AG17),"") ->  | AH36: =IF($G36<>"",IF($H36<>ListsLookup!$H$90,INDEX(AH$7:AH$11,MATCH($H36,$H$7:$H$11,0)),AH17),"") ->  | AI36: =IF($G36<>"",IF($H36<>ListsLookup!$H$90,INDEX(AI$7:AI$11,MATCH($H36,$H$7:$H$11,0)),AI17),"") ->  | AJ36: =IF($G36<>"",IF($H36<>ListsLookup!$H$90,INDEX(AJ$7:AJ$11,MATCH($H36,$H$7:$H$11,0)),AJ17),"") ->  | AK36: =IF($G36<>"",IF($H36<>ListsLookup!$H$90,INDEX(AK$7:AK$11,MATCH($H36,$H$7:$H$11,0)),AK17),"") ->  | AL36: =IF($G36<>"",IF($H36<>ListsLookup!$H$90,INDEX(AL$7:AL$11,MATCH($H36,$H$7:$H$11,0)),AL17),"") ->  | AM36: =IF($G36<>"",IF($H36<>ListsLookup!$H$90,INDEX(AM$7:AM$11,MATCH($H36,$H$7:$H$11,0)),AM17),"") ->  | AN36: =IF($G36<>"",IF($H36<>ListsLookup!$H$90,INDEX(AN$7:AN$11,MATCH($H36,$H$7:$H$11,0)),AN17),"") ->  | AO36: =IF($G36<>"",IF($H36<>ListsLookup!$H$90,INDEX(AO$7:AO$11,MATCH($H36,$H$7:$H$11,0)),AO17),"") ->  | AP36: =IF($G36<>"",IF($H36<>ListsLookup!$H$90,INDEX(AP$7:AP$11,MATCH($H36,$H$7:$H$11,0)),AP17),"") ->  | AQ36: =IF($G36<>"",IF($H36<>ListsLookup!$H$90,INDEX(AQ$7:AQ$11,MATCH($H36,$H$7:$H$11,0)),AQ17),"") ->  | AR36: =IF($G36<>"",IF($H36<>ListsLookup!$H$90,INDEX(AR$7:AR$11,MATCH($H36,$H$7:$H$11,0)),AR17),"") ->  | AS36: =IF($G36<>"",IF($H36<>ListsLookup!$H$90,INDEX(AS$7:AS$11,MATCH($H36,$H$7:$H$11,0)),AS17),"") ->  | AT36: =IF($G36<>"",IF($H36<>ListsLookup!$H$90,INDEX(AT$7:AT$11,MATCH($H36,$H$7:$H$11,0)),AT17),"") ->  | AU36: =IF($G36<>"",IF($H36<>ListsLookup!$H$90,INDEX(AU$7:AU$11,MATCH($H36,$H$7:$H$11,0)),AU17),"") ->  | AV36: =IF($G36<>"",IF($H36<>ListsLookup!$H$90,INDEX(AV$7:AV$11,MATCH($H36,$H$7:$H$11,0)),AV17),"") ->  | AW36: =IF($G36<>"",IF($H36<>ListsLookup!$H$90,INDEX(AW$7:AW$11,MATCH($H36,$H$7:$H$11,0)),AW17),"") ->  | AX36: =IF($G36<>"",IF($H36<>ListsLookup!$H$90,INDEX(AX$7:AX$11,MATCH($H36,$H$7:$H$11,0)),AX17),"") -> 
F37: 5 | H37: =IF(G37<>"",IF(H18=ListsLookup!$H$90,ListsLookup!$H$90,'3.2. BCAPeneRate'!I18),"") ->  | J37: =IF($G37<>"",IF($H37<>ListsLookup!$H$90,INDEX(J$7:J$11,MATCH($H37,$H$7:$H$11,0)),J18),"") ->  | K37: =IF($G37<>"",IF($H37<>ListsLookup!$H$90,INDEX(K$7:K$11,MATCH($H37,$H$7:$H$11,0)),K18),"") ->  | L37: =IF($G37<>"",IF($H37<>ListsLookup!$H$90,INDEX(L$7:L$11,MATCH($H37,$H$7:$H$11,0)),L18),"") ->  | M37: =IF($G37<>"",IF($H37<>ListsLookup!$H$90,INDEX(M$7:M$11,MATCH($H37,$H$7:$H$11,0)),M18),"") ->  | N37: =IF($G37<>"",IF($H37<>ListsLookup!$H$90,INDEX(N$7:N$11,MATCH($H37,$H$7:$H$11,0)),N18),"") ->  | O37: =IF($G37<>"",IF($H37<>ListsLookup!$H$90,INDEX(O$7:O$11,MATCH($H37,$H$7:$H$11,0)),O18),"") ->  | P37: =IF($G37<>"",IF($H37<>ListsLookup!$H$90,INDEX(P$7:P$11,MATCH($H37,$H$7:$H$11,0)),P18),"") ->  | Q37: =IF($G37<>"",IF($H37<>ListsLookup!$H$90,INDEX(Q$7:Q$11,MATCH($H37,$H$7:$H$11,0)),Q18),"") ->  | R37: =IF($G37<>"",IF($H37<>ListsLookup!$H$90,INDEX(R$7:R$11,MATCH($H37,$H$7:$H$11,0)),R18),"") ->  | S37: =IF($G37<>"",IF($H37<>ListsLookup!$H$90,INDEX(S$7:S$11,MATCH($H37,$H$7:$H$11,0)),S18),"") ->  | T37: =IF($G37<>"",IF($H37<>ListsLookup!$H$90,INDEX(T$7:T$11,MATCH($H37,$H$7:$H$11,0)),T18),"") ->  | U37: =IF($G37<>"",IF($H37<>ListsLookup!$H$90,INDEX(U$7:U$11,MATCH($H37,$H$7:$H$11,0)),U18),"") ->  | V37: =IF($G37<>"",IF($H37<>ListsLookup!$H$90,INDEX(V$7:V$11,MATCH($H37,$H$7:$H$11,0)),V18),"") ->  | W37: =IF($G37<>"",IF($H37<>ListsLookup!$H$90,INDEX(W$7:W$11,MATCH($H37,$H$7:$H$11,0)),W18),"") ->  | X37: =IF($G37<>"",IF($H37<>ListsLookup!$H$90,INDEX(X$7:X$11,MATCH($H37,$H$7:$H$11,0)),X18),"") ->  | Y37: =IF($G37<>"",IF($H37<>ListsLookup!$H$90,INDEX(Y$7:Y$11,MATCH($H37,$H$7:$H$11,0)),Y18),"") ->  | Z37: =IF($G37<>"",IF($H37<>ListsLookup!$H$90,INDEX(Z$7:Z$11,MATCH($H37,$H$7:$H$11,0)),Z18),"") ->  | AA37: =IF($G37<>"",IF($H37<>ListsLookup!$H$90,INDEX(AA$7:AA$11,MATCH($H37,$H$7:$H$11,0)),AA18),"") ->  | AB37: =IF($G37<>"",IF($H37<>ListsLookup!$H$90,INDEX(AB$7:AB$11,MATCH($H37,$H$7:$H$11,0)),AB18),"") ->  | AC37: =IF($G37<>"",IF($H37<>ListsLookup!$H$90,INDEX(AC$7:AC$11,MATCH($H37,$H$7:$H$11,0)),AC18),"") ->  | AD37: =IF($G37<>"",IF($H37<>ListsLookup!$H$90,INDEX(AD$7:AD$11,MATCH($H37,$H$7:$H$11,0)),AD18),"") ->  | AE37: =IF($G37<>"",IF($H37<>ListsLookup!$H$90,INDEX(AE$7:AE$11,MATCH($H37,$H$7:$H$11,0)),AE18),"") ->  | AF37: =IF($G37<>"",IF($H37<>ListsLookup!$H$90,INDEX(AF$7:AF$11,MATCH($H37,$H$7:$H$11,0)),AF18),"") ->  | AG37: =IF($G37<>"",IF($H37<>ListsLookup!$H$90,INDEX(AG$7:AG$11,MATCH($H37,$H$7:$H$11,0)),AG18),"") ->  | AH37: =IF($G37<>"",IF($H37<>ListsLookup!$H$90,INDEX(AH$7:AH$11,MATCH($H37,$H$7:$H$11,0)),AH18),"") ->  | AI37: =IF($G37<>"",IF($H37<>ListsLookup!$H$90,INDEX(AI$7:AI$11,MATCH($H37,$H$7:$H$11,0)),AI18),"") ->  | AJ37: =IF($G37<>"",IF($H37<>ListsLookup!$H$90,INDEX(AJ$7:AJ$11,MATCH($H37,$H$7:$H$11,0)),AJ18),"") ->  | AK37: =IF($G37<>"",IF($H37<>ListsLookup!$H$90,INDEX(AK$7:AK$11,MATCH($H37,$H$7:$H$11,0)),AK18),"") ->  | AL37: =IF($G37<>"",IF($H37<>ListsLookup!$H$90,INDEX(AL$7:AL$11,MATCH($H37,$H$7:$H$11,0)),AL18),"") ->  | AM37: =IF($G37<>"",IF($H37<>ListsLookup!$H$90,INDEX(AM$7:AM$11,MATCH($H37,$H$7:$H$11,0)),AM18),"") ->  | AN37: =IF($G37<>"",IF($H37<>ListsLookup!$H$90,INDEX(AN$7:AN$11,MATCH($H37,$H$7:$H$11,0)),AN18),"") ->  | AO37: =IF($G37<>"",IF($H37<>ListsLookup!$H$90,INDEX(AO$7:AO$11,MATCH($H37,$H$7:$H$11,0)),AO18),"") ->  | AP37: =IF($G37<>"",IF($H37<>ListsLookup!$H$90,INDEX(AP$7:AP$11,MATCH($H37,$H$7:$H$11,0)),AP18),"") ->  | AQ37: =IF($G37<>"",IF($H37<>ListsLookup!$H$90,INDEX(AQ$7:AQ$11,MATCH($H37,$H$7:$H$11,0)),AQ18),"") ->  | AR37: =IF($G37<>"",IF($H37<>ListsLookup!$H$90,INDEX(AR$7:AR$11,MATCH($H37,$H$7:$H$11,0)),AR18),"") ->  | AS37: =IF($G37<>"",IF($H37<>ListsLookup!$H$90,INDEX(AS$7:AS$11,MATCH($H37,$H$7:$H$11,0)),AS18),"") ->  | AT37: =IF($G37<>"",IF($H37<>ListsLookup!$H$90,INDEX(AT$7:AT$11,MATCH($H37,$H$7:$H$11,0)),AT18),"") ->  | AU37: =IF($G37<>"",IF($H37<>ListsLookup!$H$90,INDEX(AU$7:AU$11,MATCH($H37,$H$7:$H$11,0)),AU18),"") ->  | AV37: =IF($G37<>"",IF($H37<>ListsLookup!$H$90,INDEX(AV$7:AV$11,MATCH($H37,$H$7:$H$11,0)),AV18),"") ->  | AW37: =IF($G37<>"",IF($H37<>ListsLookup!$H$90,INDEX(AW$7:AW$11,MATCH($H37,$H$7:$H$11,0)),AW18),"") ->  | AX37: =IF($G37<>"",IF($H37<>ListsLookup!$H$90,INDEX(AX$7:AX$11,MATCH($H37,$H$7:$H$11,0)),AX18),"") -> 
F38: 6 | H38: =IF(G38<>"",IF(H19=ListsLookup!$H$90,ListsLookup!$H$90,'3.2. BCAPeneRate'!I19),"") ->  | J38: =IF($G38<>"",IF($H38<>ListsLookup!$H$90,INDEX(J$7:J$11,MATCH($H38,$H$7:$H$11,0)),J19),"") ->  | K38: =IF($G38<>"",IF($H38<>ListsLookup!$H$90,INDEX(K$7:K$11,MATCH($H38,$H$7:$H$11,0)),K19),"") ->  | L38: =IF($G38<>"",IF($H38<>ListsLookup!$H$90,INDEX(L$7:L$11,MATCH($H38,$H$7:$H$11,0)),L19),"") ->  | M38: =IF($G38<>"",IF($H38<>ListsLookup!$H$90,INDEX(M$7:M$11,MATCH($H38,$H$7:$H$11,0)),M19),"") ->  | N38: =IF($G38<>"",IF($H38<>ListsLookup!$H$90,INDEX(N$7:N$11,MATCH($H38,$H$7:$H$11,0)),N19),"") ->  | O38: =IF($G38<>"",IF($H38<>ListsLookup!$H$90,INDEX(O$7:O$11,MATCH($H38,$H$7:$H$11,0)),O19),"") ->  | P38: =IF($G38<>"",IF($H38<>ListsLookup!$H$90,INDEX(P$7:P$11,MATCH($H38,$H$7:$H$11,0)),P19),"") ->  | Q38: =IF($G38<>"",IF($H38<>ListsLookup!$H$90,INDEX(Q$7:Q$11,MATCH($H38,$H$7:$H$11,0)),Q19),"") ->  | R38: =IF($G38<>"",IF($H38<>ListsLookup!$H$90,INDEX(R$7:R$11,MATCH($H38,$H$7:$H$11,0)),R19),"") ->  | S38: =IF($G38<>"",IF($H38<>ListsLookup!$H$90,INDEX(S$7:S$11,MATCH($H38,$H$7:$H$11,0)),S19),"") ->  | T38: =IF($G38<>"",IF($H38<>ListsLookup!$H$90,INDEX(T$7:T$11,MATCH($H38,$H$7:$H$11,0)),T19),"") ->  | U38: =IF($G38<>"",IF($H38<>ListsLookup!$H$90,INDEX(U$7:U$11,MATCH($H38,$H$7:$H$11,0)),U19),"") ->  | V38: =IF($G38<>"",IF($H38<>ListsLookup!$H$90,INDEX(V$7:V$11,MATCH($H38,$H$7:$H$11,0)),V19),"") ->  | W38: =IF($G38<>"",IF($H38<>ListsLookup!$H$90,INDEX(W$7:W$11,MATCH($H38,$H$7:$H$11,0)),W19),"") ->  | X38: =IF($G38<>"",IF($H38<>ListsLookup!$H$90,INDEX(X$7:X$11,MATCH($H38,$H$7:$H$11,0)),X19),"") ->  | Y38: =IF($G38<>"",IF($H38<>ListsLookup!$H$90,INDEX(Y$7:Y$11,MATCH($H38,$H$7:$H$11,0)),Y19),"") ->  | Z38: =IF($G38<>"",IF($H38<>ListsLookup!$H$90,INDEX(Z$7:Z$11,MATCH($H38,$H$7:$H$11,0)),Z19),"") ->  | AA38: =IF($G38<>"",IF($H38<>ListsLookup!$H$90,INDEX(AA$7:AA$11,MATCH($H38,$H$7:$H$11,0)),AA19),"") ->  | AB38: =IF($G38<>"",IF($H38<>ListsLookup!$H$90,INDEX(AB$7:AB$11,MATCH($H38,$H$7:$H$11,0)),AB19),"") ->  | AC38: =IF($G38<>"",IF($H38<>ListsLookup!$H$90,INDEX(AC$7:AC$11,MATCH($H38,$H$7:$H$11,0)),AC19),"") ->  | AD38: =IF($G38<>"",IF($H38<>ListsLookup!$H$90,INDEX(AD$7:AD$11,MATCH($H38,$H$7:$H$11,0)),AD19),"") ->  | AE38: =IF($G38<>"",IF($H38<>ListsLookup!$H$90,INDEX(AE$7:AE$11,MATCH($H38,$H$7:$H$11,0)),AE19),"") ->  | AF38: =IF($G38<>"",IF($H38<>ListsLookup!$H$90,INDEX(AF$7:AF$11,MATCH($H38,$H$7:$H$11,0)),AF19),"") ->  | AG38: =IF($G38<>"",IF($H38<>ListsLookup!$H$90,INDEX(AG$7:AG$11,MATCH($H38,$H$7:$H$11,0)),AG19),"") ->  | AH38: =IF($G38<>"",IF($H38<>ListsLookup!$H$90,INDEX(AH$7:AH$11,MATCH($H38,$H$7:$H$11,0)),AH19),"") ->  | AI38: =IF($G38<>"",IF($H38<>ListsLookup!$H$90,INDEX(AI$7:AI$11,MATCH($H38,$H$7:$H$11,0)),AI19),"") ->  | AJ38: =IF($G38<>"",IF($H38<>ListsLookup!$H$90,INDEX(AJ$7:AJ$11,MATCH($H38,$H$7:$H$11,0)),AJ19),"") ->  | AK38: =IF($G38<>"",IF($H38<>ListsLookup!$H$90,INDEX(AK$7:AK$11,MATCH($H38,$H$7:$H$11,0)),AK19),"") ->  | AL38: =IF($G38<>"",IF($H38<>ListsLookup!$H$90,INDEX(AL$7:AL$11,MATCH($H38,$H$7:$H$11,0)),AL19),"") ->  | AM38: =IF($G38<>"",IF($H38<>ListsLookup!$H$90,INDEX(AM$7:AM$11,MATCH($H38,$H$7:$H$11,0)),AM19),"") ->  | AN38: =IF($G38<>"",IF($H38<>ListsLookup!$H$90,INDEX(AN$7:AN$11,MATCH($H38,$H$7:$H$11,0)),AN19),"") ->  | AO38: =IF($G38<>"",IF($H38<>ListsLookup!$H$90,INDEX(AO$7:AO$11,MATCH($H38,$H$7:$H$11,0)),AO19),"") ->  | AP38: =IF($G38<>"",IF($H38<>ListsLookup!$H$90,INDEX(AP$7:AP$11,MATCH($H38,$H$7:$H$11,0)),AP19),"") ->  | AQ38: =IF($G38<>"",IF($H38<>ListsLookup!$H$90,INDEX(AQ$7:AQ$11,MATCH($H38,$H$7:$H$11,0)),AQ19),"") ->  | AR38: =IF($G38<>"",IF($H38<>ListsLookup!$H$90,INDEX(AR$7:AR$11,MATCH($H38,$H$7:$H$11,0)),AR19),"") ->  | AS38: =IF($G38<>"",IF($H38<>ListsLookup!$H$90,INDEX(AS$7:AS$11,MATCH($H38,$H$7:$H$11,0)),AS19),"") ->  | AT38: =IF($G38<>"",IF($H38<>ListsLookup!$H$90,INDEX(AT$7:AT$11,MATCH($H38,$H$7:$H$11,0)),AT19),"") ->  | AU38: =IF($G38<>"",IF($H38<>ListsLookup!$H$90,INDEX(AU$7:AU$11,MATCH($H38,$H$7:$H$11,0)),AU19),"") ->  | AV38: =IF($G38<>"",IF($H38<>ListsLookup!$H$90,INDEX(AV$7:AV$11,MATCH($H38,$H$7:$H$11,0)),AV19),"") ->  | AW38: =IF($G38<>"",IF($H38<>ListsLookup!$H$90,INDEX(AW$7:AW$11,MATCH($H38,$H$7:$H$11,0)),AW19),"") ->  | AX38: =IF($G38<>"",IF($H38<>ListsLookup!$H$90,INDEX(AX$7:AX$11,MATCH($H38,$H$7:$H$11,0)),AX19),"") -> 
F39: 7 | H39: =IF(G39<>"",IF(H20=ListsLookup!$H$90,ListsLookup!$H$90,'3.2. BCAPeneRate'!I20),"") ->  | J39: =IF($G39<>"",IF($H39<>ListsLookup!$H$90,INDEX(J$7:J$11,MATCH($H39,$H$7:$H$11,0)),J20),"") ->  | K39: =IF($G39<>"",IF($H39<>ListsLookup!$H$90,INDEX(K$7:K$11,MATCH($H39,$H$7:$H$11,0)),K20),"") ->  | L39: =IF($G39<>"",IF($H39<>ListsLookup!$H$90,INDEX(L$7:L$11,MATCH($H39,$H$7:$H$11,0)),L20),"") ->  | M39: =IF($G39<>"",IF($H39<>ListsLookup!$H$90,INDEX(M$7:M$11,MATCH($H39,$H$7:$H$11,0)),M20),"") ->  | N39: =IF($G39<>"",IF($H39<>ListsLookup!$H$90,INDEX(N$7:N$11,MATCH($H39,$H$7:$H$11,0)),N20),"") ->  | O39: =IF($G39<>"",IF($H39<>ListsLookup!$H$90,INDEX(O$7:O$11,MATCH($H39,$H$7:$H$11,0)),O20),"") ->  | P39: =IF($G39<>"",IF($H39<>ListsLookup!$H$90,INDEX(P$7:P$11,MATCH($H39,$H$7:$H$11,0)),P20),"") ->  | Q39: =IF($G39<>"",IF($H39<>ListsLookup!$H$90,INDEX(Q$7:Q$11,MATCH($H39,$H$7:$H$11,0)),Q20),"") ->  | R39: =IF($G39<>"",IF($H39<>ListsLookup!$H$90,INDEX(R$7:R$11,MATCH($H39,$H$7:$H$11,0)),R20),"") ->  | S39: =IF($G39<>"",IF($H39<>ListsLookup!$H$90,INDEX(S$7:S$11,MATCH($H39,$H$7:$H$11,0)),S20),"") ->  | T39: =IF($G39<>"",IF($H39<>ListsLookup!$H$90,INDEX(T$7:T$11,MATCH($H39,$H$7:$H$11,0)),T20),"") ->  | U39: =IF($G39<>"",IF($H39<>ListsLookup!$H$90,INDEX(U$7:U$11,MATCH($H39,$H$7:$H$11,0)),U20),"") ->  | V39: =IF($G39<>"",IF($H39<>ListsLookup!$H$90,INDEX(V$7:V$11,MATCH($H39,$H$7:$H$11,0)),V20),"") ->  | W39: =IF($G39<>"",IF($H39<>ListsLookup!$H$90,INDEX(W$7:W$11,MATCH($H39,$H$7:$H$11,0)),W20),"") ->  | X39: =IF($G39<>"",IF($H39<>ListsLookup!$H$90,INDEX(X$7:X$11,MATCH($H39,$H$7:$H$11,0)),X20),"") ->  | Y39: =IF($G39<>"",IF($H39<>ListsLookup!$H$90,INDEX(Y$7:Y$11,MATCH($H39,$H$7:$H$11,0)),Y20),"") ->  | Z39: =IF($G39<>"",IF($H39<>ListsLookup!$H$90,INDEX(Z$7:Z$11,MATCH($H39,$H$7:$H$11,0)),Z20),"") ->  | AA39: =IF($G39<>"",IF($H39<>ListsLookup!$H$90,INDEX(AA$7:AA$11,MATCH($H39,$H$7:$H$11,0)),AA20),"") ->  | AB39: =IF($G39<>"",IF($H39<>ListsLookup!$H$90,INDEX(AB$7:AB$11,MATCH($H39,$H$7:$H$11,0)),AB20),"") ->  | AC39: =IF($G39<>"",IF($H39<>ListsLookup!$H$90,INDEX(AC$7:AC$11,MATCH($H39,$H$7:$H$11,0)),AC20),"") ->  | AD39: =IF($G39<>"",IF($H39<>ListsLookup!$H$90,INDEX(AD$7:AD$11,MATCH($H39,$H$7:$H$11,0)),AD20),"") ->  | AE39: =IF($G39<>"",IF($H39<>ListsLookup!$H$90,INDEX(AE$7:AE$11,MATCH($H39,$H$7:$H$11,0)),AE20),"") ->  | AF39: =IF($G39<>"",IF($H39<>ListsLookup!$H$90,INDEX(AF$7:AF$11,MATCH($H39,$H$7:$H$11,0)),AF20),"") ->  | AG39: =IF($G39<>"",IF($H39<>ListsLookup!$H$90,INDEX(AG$7:AG$11,MATCH($H39,$H$7:$H$11,0)),AG20),"") ->  | AH39: =IF($G39<>"",IF($H39<>ListsLookup!$H$90,INDEX(AH$7:AH$11,MATCH($H39,$H$7:$H$11,0)),AH20),"") ->  | AI39: =IF($G39<>"",IF($H39<>ListsLookup!$H$90,INDEX(AI$7:AI$11,MATCH($H39,$H$7:$H$11,0)),AI20),"") ->  | AJ39: =IF($G39<>"",IF($H39<>ListsLookup!$H$90,INDEX(AJ$7:AJ$11,MATCH($H39,$H$7:$H$11,0)),AJ20),"") ->  | AK39: =IF($G39<>"",IF($H39<>ListsLookup!$H$90,INDEX(AK$7:AK$11,MATCH($H39,$H$7:$H$11,0)),AK20),"") ->  | AL39: =IF($G39<>"",IF($H39<>ListsLookup!$H$90,INDEX(AL$7:AL$11,MATCH($H39,$H$7:$H$11,0)),AL20),"") ->  | AM39: =IF($G39<>"",IF($H39<>ListsLookup!$H$90,INDEX(AM$7:AM$11,MATCH($H39,$H$7:$H$11,0)),AM20),"") ->  | AN39: =IF($G39<>"",IF($H39<>ListsLookup!$H$90,INDEX(AN$7:AN$11,MATCH($H39,$H$7:$H$11,0)),AN20),"") ->  | AO39: =IF($G39<>"",IF($H39<>ListsLookup!$H$90,INDEX(AO$7:AO$11,MATCH($H39,$H$7:$H$11,0)),AO20),"") ->  | AP39: =IF($G39<>"",IF($H39<>ListsLookup!$H$90,INDEX(AP$7:AP$11,MATCH($H39,$H$7:$H$11,0)),AP20),"") ->  | AQ39: =IF($G39<>"",IF($H39<>ListsLookup!$H$90,INDEX(AQ$7:AQ$11,MATCH($H39,$H$7:$H$11,0)),AQ20),"") ->  | AR39: =IF($G39<>"",IF($H39<>ListsLookup!$H$90,INDEX(AR$7:AR$11,MATCH($H39,$H$7:$H$11,0)),AR20),"") ->  | AS39: =IF($G39<>"",IF($H39<>ListsLookup!$H$90,INDEX(AS$7:AS$11,MATCH($H39,$H$7:$H$11,0)),AS20),"") ->  | AT39: =IF($G39<>"",IF($H39<>ListsLookup!$H$90,INDEX(AT$7:AT$11,MATCH($H39,$H$7:$H$11,0)),AT20),"") ->  | AU39: =IF($G39<>"",IF($H39<>ListsLookup!$H$90,INDEX(AU$7:AU$11,MATCH($H39,$H$7:$H$11,0)),AU20),"") ->  | AV39: =IF($G39<>"",IF($H39<>ListsLookup!$H$90,INDEX(AV$7:AV$11,MATCH($H39,$H$7:$H$11,0)),AV20),"") ->  | AW39: =IF($G39<>"",IF($H39<>ListsLookup!$H$90,INDEX(AW$7:AW$11,MATCH($H39,$H$7:$H$11,0)),AW20),"") ->  | AX39: =IF($G39<>"",IF($H39<>ListsLookup!$H$90,INDEX(AX$7:AX$11,MATCH($H39,$H$7:$H$11,0)),AX20),"") -> 
F40: 8 | H40: =IF(G40<>"",IF(H21=ListsLookup!$H$90,ListsLookup!$H$90,'3.2. BCAPeneRate'!I21),"") ->  | J40: =IF($G40<>"",IF($H40<>ListsLookup!$H$90,INDEX(J$7:J$11,MATCH($H40,$H$7:$H$11,0)),J21),"") ->  | K40: =IF($G40<>"",IF($H40<>ListsLookup!$H$90,INDEX(K$7:K$11,MATCH($H40,$H$7:$H$11,0)),K21),"") ->  | L40: =IF($G40<>"",IF($H40<>ListsLookup!$H$90,INDEX(L$7:L$11,MATCH($H40,$H$7:$H$11,0)),L21),"") ->  | M40: =IF($G40<>"",IF($H40<>ListsLookup!$H$90,INDEX(M$7:M$11,MATCH($H40,$H$7:$H$11,0)),M21),"") ->  | N40: =IF($G40<>"",IF($H40<>ListsLookup!$H$90,INDEX(N$7:N$11,MATCH($H40,$H$7:$H$11,0)),N21),"") ->  | O40: =IF($G40<>"",IF($H40<>ListsLookup!$H$90,INDEX(O$7:O$11,MATCH($H40,$H$7:$H$11,0)),O21),"") ->  | P40: =IF($G40<>"",IF($H40<>ListsLookup!$H$90,INDEX(P$7:P$11,MATCH($H40,$H$7:$H$11,0)),P21),"") ->  | Q40: =IF($G40<>"",IF($H40<>ListsLookup!$H$90,INDEX(Q$7:Q$11,MATCH($H40,$H$7:$H$11,0)),Q21),"") ->  | R40: =IF($G40<>"",IF($H40<>ListsLookup!$H$90,INDEX(R$7:R$11,MATCH($H40,$H$7:$H$11,0)),R21),"") ->  | S40: =IF($G40<>"",IF($H40<>ListsLookup!$H$90,INDEX(S$7:S$11,MATCH($H40,$H$7:$H$11,0)),S21),"") ->  | T40: =IF($G40<>"",IF($H40<>ListsLookup!$H$90,INDEX(T$7:T$11,MATCH($H40,$H$7:$H$11,0)),T21),"") ->  | U40: =IF($G40<>"",IF($H40<>ListsLookup!$H$90,INDEX(U$7:U$11,MATCH($H40,$H$7:$H$11,0)),U21),"") ->  | V40: =IF($G40<>"",IF($H40<>ListsLookup!$H$90,INDEX(V$7:V$11,MATCH($H40,$H$7:$H$11,0)),V21),"") ->  | W40: =IF($G40<>"",IF($H40<>ListsLookup!$H$90,INDEX(W$7:W$11,MATCH($H40,$H$7:$H$11,0)),W21),"") ->  | X40: =IF($G40<>"",IF($H40<>ListsLookup!$H$90,INDEX(X$7:X$11,MATCH($H40,$H$7:$H$11,0)),X21),"") ->  | Y40: =IF($G40<>"",IF($H40<>ListsLookup!$H$90,INDEX(Y$7:Y$11,MATCH($H40,$H$7:$H$11,0)),Y21),"") ->  | Z40: =IF($G40<>"",IF($H40<>ListsLookup!$H$90,INDEX(Z$7:Z$11,MATCH($H40,$H$7:$H$11,0)),Z21),"") ->  | AA40: =IF($G40<>"",IF($H40<>ListsLookup!$H$90,INDEX(AA$7:AA$11,MATCH($H40,$H$7:$H$11,0)),AA21),"") ->  | AB40: =IF($G40<>"",IF($H40<>ListsLookup!$H$90,INDEX(AB$7:AB$11,MATCH($H40,$H$7:$H$11,0)),AB21),"") ->  | AC40: =IF($G40<>"",IF($H40<>ListsLookup!$H$90,INDEX(AC$7:AC$11,MATCH($H40,$H$7:$H$11,0)),AC21),"") ->  | AD40: =IF($G40<>"",IF($H40<>ListsLookup!$H$90,INDEX(AD$7:AD$11,MATCH($H40,$H$7:$H$11,0)),AD21),"") ->  | AE40: =IF($G40<>"",IF($H40<>ListsLookup!$H$90,INDEX(AE$7:AE$11,MATCH($H40,$H$7:$H$11,0)),AE21),"") ->  | AF40: =IF($G40<>"",IF($H40<>ListsLookup!$H$90,INDEX(AF$7:AF$11,MATCH($H40,$H$7:$H$11,0)),AF21),"") ->  | AG40: =IF($G40<>"",IF($H40<>ListsLookup!$H$90,INDEX(AG$7:AG$11,MATCH($H40,$H$7:$H$11,0)),AG21),"") ->  | AH40: =IF($G40<>"",IF($H40<>ListsLookup!$H$90,INDEX(AH$7:AH$11,MATCH($H40,$H$7:$H$11,0)),AH21),"") ->  | AI40: =IF($G40<>"",IF($H40<>ListsLookup!$H$90,INDEX(AI$7:AI$11,MATCH($H40,$H$7:$H$11,0)),AI21),"") ->  | AJ40: =IF($G40<>"",IF($H40<>ListsLookup!$H$90,INDEX(AJ$7:AJ$11,MATCH($H40,$H$7:$H$11,0)),AJ21),"") ->  | AK40: =IF($G40<>"",IF($H40<>ListsLookup!$H$90,INDEX(AK$7:AK$11,MATCH($H40,$H$7:$H$11,0)),AK21),"") ->  | AL40: =IF($G40<>"",IF($H40<>ListsLookup!$H$90,INDEX(AL$7:AL$11,MATCH($H40,$H$7:$H$11,0)),AL21),"") ->  | AM40: =IF($G40<>"",IF($H40<>ListsLookup!$H$90,INDEX(AM$7:AM$11,MATCH($H40,$H$7:$H$11,0)),AM21),"") ->  | AN40: =IF($G40<>"",IF($H40<>ListsLookup!$H$90,INDEX(AN$7:AN$11,MATCH($H40,$H$7:$H$11,0)),AN21),"") ->  | AO40: =IF($G40<>"",IF($H40<>ListsLookup!$H$90,INDEX(AO$7:AO$11,MATCH($H40,$H$7:$H$11,0)),AO21),"") ->  | AP40: =IF($G40<>"",IF($H40<>ListsLookup!$H$90,INDEX(AP$7:AP$11,MATCH($H40,$H$7:$H$11,0)),AP21),"") ->  | AQ40: =IF($G40<>"",IF($H40<>ListsLookup!$H$90,INDEX(AQ$7:AQ$11,MATCH($H40,$H$7:$H$11,0)),AQ21),"") ->  | AR40: =IF($G40<>"",IF($H40<>ListsLookup!$H$90,INDEX(AR$7:AR$11,MATCH($H40,$H$7:$H$11,0)),AR21),"") ->  | AS40: =IF($G40<>"",IF($H40<>ListsLookup!$H$90,INDEX(AS$7:AS$11,MATCH($H40,$H$7:$H$11,0)),AS21),"") ->  | AT40: =IF($G40<>"",IF($H40<>ListsLookup!$H$90,INDEX(AT$7:AT$11,MATCH($H40,$H$7:$H$11,0)),AT21),"") ->  | AU40: =IF($G40<>"",IF($H40<>ListsLookup!$H$90,INDEX(AU$7:AU$11,MATCH($H40,$H$7:$H$11,0)),AU21),"") ->  | AV40: =IF($G40<>"",IF($H40<>ListsLookup!$H$90,INDEX(AV$7:AV$11,MATCH($H40,$H$7:$H$11,0)),AV21),"") ->  | AW40: =IF($G40<>"",IF($H40<>ListsLookup!$H$90,INDEX(AW$7:AW$11,MATCH($H40,$H$7:$H$11,0)),AW21),"") ->  | AX40: =IF($G40<>"",IF($H40<>ListsLookup!$H$90,INDEX(AX$7:AX$11,MATCH($H40,$H$7:$H$11,0)),AX21),"") -> 
F41: 9 | H41: =IF(G41<>"",IF(H22=ListsLookup!$H$90,ListsLookup!$H$90,'3.2. BCAPeneRate'!I22),"") ->  | J41: =IF($G41<>"",IF($H41<>ListsLookup!$H$90,INDEX(J$7:J$11,MATCH($H41,$H$7:$H$11,0)),J22),"") ->  | K41: =IF($G41<>"",IF($H41<>ListsLookup!$H$90,INDEX(K$7:K$11,MATCH($H41,$H$7:$H$11,0)),K22),"") ->  | L41: =IF($G41<>"",IF($H41<>ListsLookup!$H$90,INDEX(L$7:L$11,MATCH($H41,$H$7:$H$11,0)),L22),"") ->  | M41: =IF($G41<>"",IF($H41<>ListsLookup!$H$90,INDEX(M$7:M$11,MATCH($H41,$H$7:$H$11,0)),M22),"") ->  | N41: =IF($G41<>"",IF($H41<>ListsLookup!$H$90,INDEX(N$7:N$11,MATCH($H41,$H$7:$H$11,0)),N22),"") ->  | O41: =IF($G41<>"",IF($H41<>ListsLookup!$H$90,INDEX(O$7:O$11,MATCH($H41,$H$7:$H$11,0)),O22),"") ->  | P41: =IF($G41<>"",IF($H41<>ListsLookup!$H$90,INDEX(P$7:P$11,MATCH($H41,$H$7:$H$11,0)),P22),"") ->  | Q41: =IF($G41<>"",IF($H41<>ListsLookup!$H$90,INDEX(Q$7:Q$11,MATCH($H41,$H$7:$H$11,0)),Q22),"") ->  | R41: =IF($G41<>"",IF($H41<>ListsLookup!$H$90,INDEX(R$7:R$11,MATCH($H41,$H$7:$H$11,0)),R22),"") ->  | S41: =IF($G41<>"",IF($H41<>ListsLookup!$H$90,INDEX(S$7:S$11,MATCH($H41,$H$7:$H$11,0)),S22),"") ->  | T41: =IF($G41<>"",IF($H41<>ListsLookup!$H$90,INDEX(T$7:T$11,MATCH($H41,$H$7:$H$11,0)),T22),"") ->  | U41: =IF($G41<>"",IF($H41<>ListsLookup!$H$90,INDEX(U$7:U$11,MATCH($H41,$H$7:$H$11,0)),U22),"") ->  | V41: =IF($G41<>"",IF($H41<>ListsLookup!$H$90,INDEX(V$7:V$11,MATCH($H41,$H$7:$H$11,0)),V22),"") ->  | W41: =IF($G41<>"",IF($H41<>ListsLookup!$H$90,INDEX(W$7:W$11,MATCH($H41,$H$7:$H$11,0)),W22),"") ->  | X41: =IF($G41<>"",IF($H41<>ListsLookup!$H$90,INDEX(X$7:X$11,MATCH($H41,$H$7:$H$11,0)),X22),"") ->  | Y41: =IF($G41<>"",IF($H41<>ListsLookup!$H$90,INDEX(Y$7:Y$11,MATCH($H41,$H$7:$H$11,0)),Y22),"") ->  | Z41: =IF($G41<>"",IF($H41<>ListsLookup!$H$90,INDEX(Z$7:Z$11,MATCH($H41,$H$7:$H$11,0)),Z22),"") ->  | AA41: =IF($G41<>"",IF($H41<>ListsLookup!$H$90,INDEX(AA$7:AA$11,MATCH($H41,$H$7:$H$11,0)),AA22),"") ->  | AB41: =IF($G41<>"",IF($H41<>ListsLookup!$H$90,INDEX(AB$7:AB$11,MATCH($H41,$H$7:$H$11,0)),AB22),"") ->  | AC41: =IF($G41<>"",IF($H41<>ListsLookup!$H$90,INDEX(AC$7:AC$11,MATCH($H41,$H$7:$H$11,0)),AC22),"") ->  | AD41: =IF($G41<>"",IF($H41<>ListsLookup!$H$90,INDEX(AD$7:AD$11,MATCH($H41,$H$7:$H$11,0)),AD22),"") ->  | AE41: =IF($G41<>"",IF($H41<>ListsLookup!$H$90,INDEX(AE$7:AE$11,MATCH($H41,$H$7:$H$11,0)),AE22),"") ->  | AF41: =IF($G41<>"",IF($H41<>ListsLookup!$H$90,INDEX(AF$7:AF$11,MATCH($H41,$H$7:$H$11,0)),AF22),"") ->  | AG41: =IF($G41<>"",IF($H41<>ListsLookup!$H$90,INDEX(AG$7:AG$11,MATCH($H41,$H$7:$H$11,0)),AG22),"") ->  | AH41: =IF($G41<>"",IF($H41<>ListsLookup!$H$90,INDEX(AH$7:AH$11,MATCH($H41,$H$7:$H$11,0)),AH22),"") ->  | AI41: =IF($G41<>"",IF($H41<>ListsLookup!$H$90,INDEX(AI$7:AI$11,MATCH($H41,$H$7:$H$11,0)),AI22),"") ->  | AJ41: =IF($G41<>"",IF($H41<>ListsLookup!$H$90,INDEX(AJ$7:AJ$11,MATCH($H41,$H$7:$H$11,0)),AJ22),"") ->  | AK41: =IF($G41<>"",IF($H41<>ListsLookup!$H$90,INDEX(AK$7:AK$11,MATCH($H41,$H$7:$H$11,0)),AK22),"") ->  | AL41: =IF($G41<>"",IF($H41<>ListsLookup!$H$90,INDEX(AL$7:AL$11,MATCH($H41,$H$7:$H$11,0)),AL22),"") ->  | AM41: =IF($G41<>"",IF($H41<>ListsLookup!$H$90,INDEX(AM$7:AM$11,MATCH($H41,$H$7:$H$11,0)),AM22),"") ->  | AN41: =IF($G41<>"",IF($H41<>ListsLookup!$H$90,INDEX(AN$7:AN$11,MATCH($H41,$H$7:$H$11,0)),AN22),"") ->  | AO41: =IF($G41<>"",IF($H41<>ListsLookup!$H$90,INDEX(AO$7:AO$11,MATCH($H41,$H$7:$H$11,0)),AO22),"") ->  | AP41: =IF($G41<>"",IF($H41<>ListsLookup!$H$90,INDEX(AP$7:AP$11,MATCH($H41,$H$7:$H$11,0)),AP22),"") ->  | AQ41: =IF($G41<>"",IF($H41<>ListsLookup!$H$90,INDEX(AQ$7:AQ$11,MATCH($H41,$H$7:$H$11,0)),AQ22),"") ->  | AR41: =IF($G41<>"",IF($H41<>ListsLookup!$H$90,INDEX(AR$7:AR$11,MATCH($H41,$H$7:$H$11,0)),AR22),"") ->  | AS41: =IF($G41<>"",IF($H41<>ListsLookup!$H$90,INDEX(AS$7:AS$11,MATCH($H41,$H$7:$H$11,0)),AS22),"") ->  | AT41: =IF($G41<>"",IF($H41<>ListsLookup!$H$90,INDEX(AT$7:AT$11,MATCH($H41,$H$7:$H$11,0)),AT22),"") ->  | AU41: =IF($G41<>"",IF($H41<>ListsLookup!$H$90,INDEX(AU$7:AU$11,MATCH($H41,$H$7:$H$11,0)),AU22),"") ->  | AV41: =IF($G41<>"",IF($H41<>ListsLookup!$H$90,INDEX(AV$7:AV$11,MATCH($H41,$H$7:$H$11,0)),AV22),"") ->  | AW41: =IF($G41<>"",IF($H41<>ListsLookup!$H$90,INDEX(AW$7:AW$11,MATCH($H41,$H$7:$H$11,0)),AW22),"") ->  | AX41: =IF($G41<>"",IF($H41<>ListsLookup!$H$90,INDEX(AX$7:AX$11,MATCH($H41,$H$7:$H$11,0)),AX22),"") -> 
F42: 10 | H42: =IF(G42<>"",IF(H23=ListsLookup!$H$90,ListsLookup!$H$90,'3.2. BCAPeneRate'!I23),"") ->  | J42: =IF($G42<>"",IF($H42<>ListsLookup!$H$90,INDEX(J$7:J$11,MATCH($H42,$H$7:$H$11,0)),J23),"") ->  | K42: =IF($G42<>"",IF($H42<>ListsLookup!$H$90,INDEX(K$7:K$11,MATCH($H42,$H$7:$H$11,0)),K23),"") ->  | L42: =IF($G42<>"",IF($H42<>ListsLookup!$H$90,INDEX(L$7:L$11,MATCH($H42,$H$7:$H$11,0)),L23),"") ->  | M42: =IF($G42<>"",IF($H42<>ListsLookup!$H$90,INDEX(M$7:M$11,MATCH($H42,$H$7:$H$11,0)),M23),"") ->  | N42: =IF($G42<>"",IF($H42<>ListsLookup!$H$90,INDEX(N$7:N$11,MATCH($H42,$H$7:$H$11,0)),N23),"") ->  | O42: =IF($G42<>"",IF($H42<>ListsLookup!$H$90,INDEX(O$7:O$11,MATCH($H42,$H$7:$H$11,0)),O23),"") ->  | P42: =IF($G42<>"",IF($H42<>ListsLookup!$H$90,INDEX(P$7:P$11,MATCH($H42,$H$7:$H$11,0)),P23),"") ->  | Q42: =IF($G42<>"",IF($H42<>ListsLookup!$H$90,INDEX(Q$7:Q$11,MATCH($H42,$H$7:$H$11,0)),Q23),"") ->  | R42: =IF($G42<>"",IF($H42<>ListsLookup!$H$90,INDEX(R$7:R$11,MATCH($H42,$H$7:$H$11,0)),R23),"") ->  | S42: =IF($G42<>"",IF($H42<>ListsLookup!$H$90,INDEX(S$7:S$11,MATCH($H42,$H$7:$H$11,0)),S23),"") ->  | T42: =IF($G42<>"",IF($H42<>ListsLookup!$H$90,INDEX(T$7:T$11,MATCH($H42,$H$7:$H$11,0)),T23),"") ->  | U42: =IF($G42<>"",IF($H42<>ListsLookup!$H$90,INDEX(U$7:U$11,MATCH($H42,$H$7:$H$11,0)),U23),"") ->  | V42: =IF($G42<>"",IF($H42<>ListsLookup!$H$90,INDEX(V$7:V$11,MATCH($H42,$H$7:$H$11,0)),V23),"") ->  | W42: =IF($G42<>"",IF($H42<>ListsLookup!$H$90,INDEX(W$7:W$11,MATCH($H42,$H$7:$H$11,0)),W23),"") ->  | X42: =IF($G42<>"",IF($H42<>ListsLookup!$H$90,INDEX(X$7:X$11,MATCH($H42,$H$7:$H$11,0)),X23),"") ->  | Y42: =IF($G42<>"",IF($H42<>ListsLookup!$H$90,INDEX(Y$7:Y$11,MATCH($H42,$H$7:$H$11,0)),Y23),"") ->  | Z42: =IF($G42<>"",IF($H42<>ListsLookup!$H$90,INDEX(Z$7:Z$11,MATCH($H42,$H$7:$H$11,0)),Z23),"") ->  | AA42: =IF($G42<>"",IF($H42<>ListsLookup!$H$90,INDEX(AA$7:AA$11,MATCH($H42,$H$7:$H$11,0)),AA23),"") ->  | AB42: =IF($G42<>"",IF($H42<>ListsLookup!$H$90,INDEX(AB$7:AB$11,MATCH($H42,$H$7:$H$11,0)),AB23),"") ->  | AC42: =IF($G42<>"",IF($H42<>ListsLookup!$H$90,INDEX(AC$7:AC$11,MATCH($H42,$H$7:$H$11,0)),AC23),"") ->  | AD42: =IF($G42<>"",IF($H42<>ListsLookup!$H$90,INDEX(AD$7:AD$11,MATCH($H42,$H$7:$H$11,0)),AD23),"") ->  | AE42: =IF($G42<>"",IF($H42<>ListsLookup!$H$90,INDEX(AE$7:AE$11,MATCH($H42,$H$7:$H$11,0)),AE23),"") ->  | AF42: =IF($G42<>"",IF($H42<>ListsLookup!$H$90,INDEX(AF$7:AF$11,MATCH($H42,$H$7:$H$11,0)),AF23),"") ->  | AG42: =IF($G42<>"",IF($H42<>ListsLookup!$H$90,INDEX(AG$7:AG$11,MATCH($H42,$H$7:$H$11,0)),AG23),"") ->  | AH42: =IF($G42<>"",IF($H42<>ListsLookup!$H$90,INDEX(AH$7:AH$11,MATCH($H42,$H$7:$H$11,0)),AH23),"") ->  | AI42: =IF($G42<>"",IF($H42<>ListsLookup!$H$90,INDEX(AI$7:AI$11,MATCH($H42,$H$7:$H$11,0)),AI23),"") ->  | AJ42: =IF($G42<>"",IF($H42<>ListsLookup!$H$90,INDEX(AJ$7:AJ$11,MATCH($H42,$H$7:$H$11,0)),AJ23),"") ->  | AK42: =IF($G42<>"",IF($H42<>ListsLookup!$H$90,INDEX(AK$7:AK$11,MATCH($H42,$H$7:$H$11,0)),AK23),"") ->  | AL42: =IF($G42<>"",IF($H42<>ListsLookup!$H$90,INDEX(AL$7:AL$11,MATCH($H42,$H$7:$H$11,0)),AL23),"") ->  | AM42: =IF($G42<>"",IF($H42<>ListsLookup!$H$90,INDEX(AM$7:AM$11,MATCH($H42,$H$7:$H$11,0)),AM23),"") ->  | AN42: =IF($G42<>"",IF($H42<>ListsLookup!$H$90,INDEX(AN$7:AN$11,MATCH($H42,$H$7:$H$11,0)),AN23),"") ->  | AO42: =IF($G42<>"",IF($H42<>ListsLookup!$H$90,INDEX(AO$7:AO$11,MATCH($H42,$H$7:$H$11,0)),AO23),"") ->  | AP42: =IF($G42<>"",IF($H42<>ListsLookup!$H$90,INDEX(AP$7:AP$11,MATCH($H42,$H$7:$H$11,0)),AP23),"") ->  | AQ42: =IF($G42<>"",IF($H42<>ListsLookup!$H$90,INDEX(AQ$7:AQ$11,MATCH($H42,$H$7:$H$11,0)),AQ23),"") ->  | AR42: =IF($G42<>"",IF($H42<>ListsLookup!$H$90,INDEX(AR$7:AR$11,MATCH($H42,$H$7:$H$11,0)),AR23),"") ->  | AS42: =IF($G42<>"",IF($H42<>ListsLookup!$H$90,INDEX(AS$7:AS$11,MATCH($H42,$H$7:$H$11,0)),AS23),"") ->  | AT42: =IF($G42<>"",IF($H42<>ListsLookup!$H$90,INDEX(AT$7:AT$11,MATCH($H42,$H$7:$H$11,0)),AT23),"") ->  | AU42: =IF($G42<>"",IF($H42<>ListsLookup!$H$90,INDEX(AU$7:AU$11,MATCH($H42,$H$7:$H$11,0)),AU23),"") ->  | AV42: =IF($G42<>"",IF($H42<>ListsLookup!$H$90,INDEX(AV$7:AV$11,MATCH($H42,$H$7:$H$11,0)),AV23),"") ->  | AW42: =IF($G42<>"",IF($H42<>ListsLookup!$H$90,INDEX(AW$7:AW$11,MATCH($H42,$H$7:$H$11,0)),AW23),"") ->  | AX42: =IF($G42<>"",IF($H42<>ListsLookup!$H$90,INDEX(AX$7:AX$11,MATCH($H42,$H$7:$H$11,0)),AX23),"") -> 
F43: 11 | H43: =IF(G43<>"",IF(H24=ListsLookup!$H$90,ListsLookup!$H$90,'3.2. BCAPeneRate'!I24),"") ->  | J43: =IF($G43<>"",IF($H43<>ListsLookup!$H$90,INDEX(J$7:J$11,MATCH($H43,$H$7:$H$11,0)),J24),"") ->  | K43: =IF($G43<>"",IF($H43<>ListsLookup!$H$90,INDEX(K$7:K$11,MATCH($H43,$H$7:$H$11,0)),K24),"") ->  | L43: =IF($G43<>"",IF($H43<>ListsLookup!$H$90,INDEX(L$7:L$11,MATCH($H43,$H$7:$H$11,0)),L24),"") ->  | M43: =IF($G43<>"",IF($H43<>ListsLookup!$H$90,INDEX(M$7:M$11,MATCH($H43,$H$7:$H$11,0)),M24),"") ->  | N43: =IF($G43<>"",IF($H43<>ListsLookup!$H$90,INDEX(N$7:N$11,MATCH($H43,$H$7:$H$11,0)),N24),"") ->  | O43: =IF($G43<>"",IF($H43<>ListsLookup!$H$90,INDEX(O$7:O$11,MATCH($H43,$H$7:$H$11,0)),O24),"") ->  | P43: =IF($G43<>"",IF($H43<>ListsLookup!$H$90,INDEX(P$7:P$11,MATCH($H43,$H$7:$H$11,0)),P24),"") ->  | Q43: =IF($G43<>"",IF($H43<>ListsLookup!$H$90,INDEX(Q$7:Q$11,MATCH($H43,$H$7:$H$11,0)),Q24),"") ->  | R43: =IF($G43<>"",IF($H43<>ListsLookup!$H$90,INDEX(R$7:R$11,MATCH($H43,$H$7:$H$11,0)),R24),"") ->  | S43: =IF($G43<>"",IF($H43<>ListsLookup!$H$90,INDEX(S$7:S$11,MATCH($H43,$H$7:$H$11,0)),S24),"") ->  | T43: =IF($G43<>"",IF($H43<>ListsLookup!$H$90,INDEX(T$7:T$11,MATCH($H43,$H$7:$H$11,0)),T24),"") ->  | U43: =IF($G43<>"",IF($H43<>ListsLookup!$H$90,INDEX(U$7:U$11,MATCH($H43,$H$7:$H$11,0)),U24),"") ->  | V43: =IF($G43<>"",IF($H43<>ListsLookup!$H$90,INDEX(V$7:V$11,MATCH($H43,$H$7:$H$11,0)),V24),"") ->  | W43: =IF($G43<>"",IF($H43<>ListsLookup!$H$90,INDEX(W$7:W$11,MATCH($H43,$H$7:$H$11,0)),W24),"") ->  | X43: =IF($G43<>"",IF($H43<>ListsLookup!$H$90,INDEX(X$7:X$11,MATCH($H43,$H$7:$H$11,0)),X24),"") ->  | Y43: =IF($G43<>"",IF($H43<>ListsLookup!$H$90,INDEX(Y$7:Y$11,MATCH($H43,$H$7:$H$11,0)),Y24),"") ->  | Z43: =IF($G43<>"",IF($H43<>ListsLookup!$H$90,INDEX(Z$7:Z$11,MATCH($H43,$H$7:$H$11,0)),Z24),"") ->  | AA43: =IF($G43<>"",IF($H43<>ListsLookup!$H$90,INDEX(AA$7:AA$11,MATCH($H43,$H$7:$H$11,0)),AA24),"") ->  | AB43: =IF($G43<>"",IF($H43<>ListsLookup!$H$90,INDEX(AB$7:AB$11,MATCH($H43,$H$7:$H$11,0)),AB24),"") ->  | AC43: =IF($G43<>"",IF($H43<>ListsLookup!$H$90,INDEX(AC$7:AC$11,MATCH($H43,$H$7:$H$11,0)),AC24),"") ->  | AD43: =IF($G43<>"",IF($H43<>ListsLookup!$H$90,INDEX(AD$7:AD$11,MATCH($H43,$H$7:$H$11,0)),AD24),"") ->  | AE43: =IF($G43<>"",IF($H43<>ListsLookup!$H$90,INDEX(AE$7:AE$11,MATCH($H43,$H$7:$H$11,0)),AE24),"") ->  | AF43: =IF($G43<>"",IF($H43<>ListsLookup!$H$90,INDEX(AF$7:AF$11,MATCH($H43,$H$7:$H$11,0)),AF24),"") ->  | AG43: =IF($G43<>"",IF($H43<>ListsLookup!$H$90,INDEX(AG$7:AG$11,MATCH($H43,$H$7:$H$11,0)),AG24),"") ->  | AH43: =IF($G43<>"",IF($H43<>ListsLookup!$H$90,INDEX(AH$7:AH$11,MATCH($H43,$H$7:$H$11,0)),AH24),"") ->  | AI43: =IF($G43<>"",IF($H43<>ListsLookup!$H$90,INDEX(AI$7:AI$11,MATCH($H43,$H$7:$H$11,0)),AI24),"") ->  | AJ43: =IF($G43<>"",IF($H43<>ListsLookup!$H$90,INDEX(AJ$7:AJ$11,MATCH($H43,$H$7:$H$11,0)),AJ24),"") ->  | AK43: =IF($G43<>"",IF($H43<>ListsLookup!$H$90,INDEX(AK$7:AK$11,MATCH($H43,$H$7:$H$11,0)),AK24),"") ->  | AL43: =IF($G43<>"",IF($H43<>ListsLookup!$H$90,INDEX(AL$7:AL$11,MATCH($H43,$H$7:$H$11,0)),AL24),"") ->  | AM43: =IF($G43<>"",IF($H43<>ListsLookup!$H$90,INDEX(AM$7:AM$11,MATCH($H43,$H$7:$H$11,0)),AM24),"") ->  | AN43: =IF($G43<>"",IF($H43<>ListsLookup!$H$90,INDEX(AN$7:AN$11,MATCH($H43,$H$7:$H$11,0)),AN24),"") ->  | AO43: =IF($G43<>"",IF($H43<>ListsLookup!$H$90,INDEX(AO$7:AO$11,MATCH($H43,$H$7:$H$11,0)),AO24),"") ->  | AP43: =IF($G43<>"",IF($H43<>ListsLookup!$H$90,INDEX(AP$7:AP$11,MATCH($H43,$H$7:$H$11,0)),AP24),"") ->  | AQ43: =IF($G43<>"",IF($H43<>ListsLookup!$H$90,INDEX(AQ$7:AQ$11,MATCH($H43,$H$7:$H$11,0)),AQ24),"") ->  | AR43: =IF($G43<>"",IF($H43<>ListsLookup!$H$90,INDEX(AR$7:AR$11,MATCH($H43,$H$7:$H$11,0)),AR24),"") ->  | AS43: =IF($G43<>"",IF($H43<>ListsLookup!$H$90,INDEX(AS$7:AS$11,MATCH($H43,$H$7:$H$11,0)),AS24),"") ->  | AT43: =IF($G43<>"",IF($H43<>ListsLookup!$H$90,INDEX(AT$7:AT$11,MATCH($H43,$H$7:$H$11,0)),AT24),"") ->  | AU43: =IF($G43<>"",IF($H43<>ListsLookup!$H$90,INDEX(AU$7:AU$11,MATCH($H43,$H$7:$H$11,0)),AU24),"") ->  | AV43: =IF($G43<>"",IF($H43<>ListsLookup!$H$90,INDEX(AV$7:AV$11,MATCH($H43,$H$7:$H$11,0)),AV24),"") ->  | AW43: =IF($G43<>"",IF($H43<>ListsLookup!$H$90,INDEX(AW$7:AW$11,MATCH($H43,$H$7:$H$11,0)),AW24),"") ->  | AX43: =IF($G43<>"",IF($H43<>ListsLookup!$H$90,INDEX(AX$7:AX$11,MATCH($H43,$H$7:$H$11,0)),AX24),"") -> 
F44: 12 | H44: =IF(G44<>"",IF(H25=ListsLookup!$H$90,ListsLookup!$H$90,'3.2. BCAPeneRate'!I25),"") ->  | J44: =IF($G44<>"",IF($H44<>ListsLookup!$H$90,INDEX(J$7:J$11,MATCH($H44,$H$7:$H$11,0)),J25),"") ->  | K44: =IF($G44<>"",IF($H44<>ListsLookup!$H$90,INDEX(K$7:K$11,MATCH($H44,$H$7:$H$11,0)),K25),"") ->  | L44: =IF($G44<>"",IF($H44<>ListsLookup!$H$90,INDEX(L$7:L$11,MATCH($H44,$H$7:$H$11,0)),L25),"") ->  | M44: =IF($G44<>"",IF($H44<>ListsLookup!$H$90,INDEX(M$7:M$11,MATCH($H44,$H$7:$H$11,0)),M25),"") ->  | N44: =IF($G44<>"",IF($H44<>ListsLookup!$H$90,INDEX(N$7:N$11,MATCH($H44,$H$7:$H$11,0)),N25),"") ->  | O44: =IF($G44<>"",IF($H44<>ListsLookup!$H$90,INDEX(O$7:O$11,MATCH($H44,$H$7:$H$11,0)),O25),"") ->  | P44: =IF($G44<>"",IF($H44<>ListsLookup!$H$90,INDEX(P$7:P$11,MATCH($H44,$H$7:$H$11,0)),P25),"") ->  | Q44: =IF($G44<>"",IF($H44<>ListsLookup!$H$90,INDEX(Q$7:Q$11,MATCH($H44,$H$7:$H$11,0)),Q25),"") ->  | R44: =IF($G44<>"",IF($H44<>ListsLookup!$H$90,INDEX(R$7:R$11,MATCH($H44,$H$7:$H$11,0)),R25),"") ->  | S44: =IF($G44<>"",IF($H44<>ListsLookup!$H$90,INDEX(S$7:S$11,MATCH($H44,$H$7:$H$11,0)),S25),"") ->  | T44: =IF($G44<>"",IF($H44<>ListsLookup!$H$90,INDEX(T$7:T$11,MATCH($H44,$H$7:$H$11,0)),T25),"") ->  | U44: =IF($G44<>"",IF($H44<>ListsLookup!$H$90,INDEX(U$7:U$11,MATCH($H44,$H$7:$H$11,0)),U25),"") ->  | V44: =IF($G44<>"",IF($H44<>ListsLookup!$H$90,INDEX(V$7:V$11,MATCH($H44,$H$7:$H$11,0)),V25),"") ->  | W44: =IF($G44<>"",IF($H44<>ListsLookup!$H$90,INDEX(W$7:W$11,MATCH($H44,$H$7:$H$11,0)),W25),"") ->  | X44: =IF($G44<>"",IF($H44<>ListsLookup!$H$90,INDEX(X$7:X$11,MATCH($H44,$H$7:$H$11,0)),X25),"") ->  | Y44: =IF($G44<>"",IF($H44<>ListsLookup!$H$90,INDEX(Y$7:Y$11,MATCH($H44,$H$7:$H$11,0)),Y25),"") ->  | Z44: =IF($G44<>"",IF($H44<>ListsLookup!$H$90,INDEX(Z$7:Z$11,MATCH($H44,$H$7:$H$11,0)),Z25),"") ->  | AA44: =IF($G44<>"",IF($H44<>ListsLookup!$H$90,INDEX(AA$7:AA$11,MATCH($H44,$H$7:$H$11,0)),AA25),"") ->  | AB44: =IF($G44<>"",IF($H44<>ListsLookup!$H$90,INDEX(AB$7:AB$11,MATCH($H44,$H$7:$H$11,0)),AB25),"") ->  | AC44: =IF($G44<>"",IF($H44<>ListsLookup!$H$90,INDEX(AC$7:AC$11,MATCH($H44,$H$7:$H$11,0)),AC25),"") ->  | AD44: =IF($G44<>"",IF($H44<>ListsLookup!$H$90,INDEX(AD$7:AD$11,MATCH($H44,$H$7:$H$11,0)),AD25),"") ->  | AE44: =IF($G44<>"",IF($H44<>ListsLookup!$H$90,INDEX(AE$7:AE$11,MATCH($H44,$H$7:$H$11,0)),AE25),"") ->  | AF44: =IF($G44<>"",IF($H44<>ListsLookup!$H$90,INDEX(AF$7:AF$11,MATCH($H44,$H$7:$H$11,0)),AF25),"") ->  | AG44: =IF($G44<>"",IF($H44<>ListsLookup!$H$90,INDEX(AG$7:AG$11,MATCH($H44,$H$7:$H$11,0)),AG25),"") ->  | AH44: =IF($G44<>"",IF($H44<>ListsLookup!$H$90,INDEX(AH$7:AH$11,MATCH($H44,$H$7:$H$11,0)),AH25),"") ->  | AI44: =IF($G44<>"",IF($H44<>ListsLookup!$H$90,INDEX(AI$7:AI$11,MATCH($H44,$H$7:$H$11,0)),AI25),"") ->  | AJ44: =IF($G44<>"",IF($H44<>ListsLookup!$H$90,INDEX(AJ$7:AJ$11,MATCH($H44,$H$7:$H$11,0)),AJ25),"") ->  | AK44: =IF($G44<>"",IF($H44<>ListsLookup!$H$90,INDEX(AK$7:AK$11,MATCH($H44,$H$7:$H$11,0)),AK25),"") ->  | AL44: =IF($G44<>"",IF($H44<>ListsLookup!$H$90,INDEX(AL$7:AL$11,MATCH($H44,$H$7:$H$11,0)),AL25),"") ->  | AM44: =IF($G44<>"",IF($H44<>ListsLookup!$H$90,INDEX(AM$7:AM$11,MATCH($H44,$H$7:$H$11,0)),AM25),"") ->  | AN44: =IF($G44<>"",IF($H44<>ListsLookup!$H$90,INDEX(AN$7:AN$11,MATCH($H44,$H$7:$H$11,0)),AN25),"") ->  | AO44: =IF($G44<>"",IF($H44<>ListsLookup!$H$90,INDEX(AO$7:AO$11,MATCH($H44,$H$7:$H$11,0)),AO25),"") ->  | AP44: =IF($G44<>"",IF($H44<>ListsLookup!$H$90,INDEX(AP$7:AP$11,MATCH($H44,$H$7:$H$11,0)),AP25),"") ->  | AQ44: =IF($G44<>"",IF($H44<>ListsLookup!$H$90,INDEX(AQ$7:AQ$11,MATCH($H44,$H$7:$H$11,0)),AQ25),"") ->  | AR44: =IF($G44<>"",IF($H44<>ListsLookup!$H$90,INDEX(AR$7:AR$11,MATCH($H44,$H$7:$H$11,0)),AR25),"") ->  | AS44: =IF($G44<>"",IF($H44<>ListsLookup!$H$90,INDEX(AS$7:AS$11,MATCH($H44,$H$7:$H$11,0)),AS25),"") ->  | AT44: =IF($G44<>"",IF($H44<>ListsLookup!$H$90,INDEX(AT$7:AT$11,MATCH($H44,$H$7:$H$11,0)),AT25),"") ->  | AU44: =IF($G44<>"",IF($H44<>ListsLookup!$H$90,INDEX(AU$7:AU$11,MATCH($H44,$H$7:$H$11,0)),AU25),"") ->  | AV44: =IF($G44<>"",IF($H44<>ListsLookup!$H$90,INDEX(AV$7:AV$11,MATCH($H44,$H$7:$H$11,0)),AV25),"") ->  | AW44: =IF($G44<>"",IF($H44<>ListsLookup!$H$90,INDEX(AW$7:AW$11,MATCH($H44,$H$7:$H$11,0)),AW25),"") ->  | AX44: =IF($G44<>"",IF($H44<>ListsLookup!$H$90,INDEX(AX$7:AX$11,MATCH($H44,$H$7:$H$11,0)),AX25),"") -> 
F45: 13 | H45: =IF(G45<>"",IF(H26=ListsLookup!$H$90,ListsLookup!$H$90,'3.2. BCAPeneRate'!I26),"") ->  | J45: =IF($G45<>"",IF($H45<>ListsLookup!$H$90,INDEX(J$7:J$11,MATCH($H45,$H$7:$H$11,0)),J26),"") ->  | K45: =IF($G45<>"",IF($H45<>ListsLookup!$H$90,INDEX(K$7:K$11,MATCH($H45,$H$7:$H$11,0)),K26),"") ->  | L45: =IF($G45<>"",IF($H45<>ListsLookup!$H$90,INDEX(L$7:L$11,MATCH($H45,$H$7:$H$11,0)),L26),"") ->  | M45: =IF($G45<>"",IF($H45<>ListsLookup!$H$90,INDEX(M$7:M$11,MATCH($H45,$H$7:$H$11,0)),M26),"") ->  | N45: =IF($G45<>"",IF($H45<>ListsLookup!$H$90,INDEX(N$7:N$11,MATCH($H45,$H$7:$H$11,0)),N26),"") ->  | O45: =IF($G45<>"",IF($H45<>ListsLookup!$H$90,INDEX(O$7:O$11,MATCH($H45,$H$7:$H$11,0)),O26),"") ->  | P45: =IF($G45<>"",IF($H45<>ListsLookup!$H$90,INDEX(P$7:P$11,MATCH($H45,$H$7:$H$11,0)),P26),"") ->  | Q45: =IF($G45<>"",IF($H45<>ListsLookup!$H$90,INDEX(Q$7:Q$11,MATCH($H45,$H$7:$H$11,0)),Q26),"") ->  | R45: =IF($G45<>"",IF($H45<>ListsLookup!$H$90,INDEX(R$7:R$11,MATCH($H45,$H$7:$H$11,0)),R26),"") ->  | S45: =IF($G45<>"",IF($H45<>ListsLookup!$H$90,INDEX(S$7:S$11,MATCH($H45,$H$7:$H$11,0)),S26),"") ->  | T45: =IF($G45<>"",IF($H45<>ListsLookup!$H$90,INDEX(T$7:T$11,MATCH($H45,$H$7:$H$11,0)),T26),"") ->  | U45: =IF($G45<>"",IF($H45<>ListsLookup!$H$90,INDEX(U$7:U$11,MATCH($H45,$H$7:$H$11,0)),U26),"") ->  | V45: =IF($G45<>"",IF($H45<>ListsLookup!$H$90,INDEX(V$7:V$11,MATCH($H45,$H$7:$H$11,0)),V26),"") ->  | W45: =IF($G45<>"",IF($H45<>ListsLookup!$H$90,INDEX(W$7:W$11,MATCH($H45,$H$7:$H$11,0)),W26),"") ->  | X45: =IF($G45<>"",IF($H45<>ListsLookup!$H$90,INDEX(X$7:X$11,MATCH($H45,$H$7:$H$11,0)),X26),"") ->  | Y45: =IF($G45<>"",IF($H45<>ListsLookup!$H$90,INDEX(Y$7:Y$11,MATCH($H45,$H$7:$H$11,0)),Y26),"") ->  | Z45: =IF($G45<>"",IF($H45<>ListsLookup!$H$90,INDEX(Z$7:Z$11,MATCH($H45,$H$7:$H$11,0)),Z26),"") ->  | AA45: =IF($G45<>"",IF($H45<>ListsLookup!$H$90,INDEX(AA$7:AA$11,MATCH($H45,$H$7:$H$11,0)),AA26),"") ->  | AB45: =IF($G45<>"",IF($H45<>ListsLookup!$H$90,INDEX(AB$7:AB$11,MATCH($H45,$H$7:$H$11,0)),AB26),"") ->  | AC45: =IF($G45<>"",IF($H45<>ListsLookup!$H$90,INDEX(AC$7:AC$11,MATCH($H45,$H$7:$H$11,0)),AC26),"") ->  | AD45: =IF($G45<>"",IF($H45<>ListsLookup!$H$90,INDEX(AD$7:AD$11,MATCH($H45,$H$7:$H$11,0)),AD26),"") ->  | AE45: =IF($G45<>"",IF($H45<>ListsLookup!$H$90,INDEX(AE$7:AE$11,MATCH($H45,$H$7:$H$11,0)),AE26),"") ->  | AF45: =IF($G45<>"",IF($H45<>ListsLookup!$H$90,INDEX(AF$7:AF$11,MATCH($H45,$H$7:$H$11,0)),AF26),"") ->  | AG45: =IF($G45<>"",IF($H45<>ListsLookup!$H$90,INDEX(AG$7:AG$11,MATCH($H45,$H$7:$H$11,0)),AG26),"") ->  | AH45: =IF($G45<>"",IF($H45<>ListsLookup!$H$90,INDEX(AH$7:AH$11,MATCH($H45,$H$7:$H$11,0)),AH26),"") ->  | AI45: =IF($G45<>"",IF($H45<>ListsLookup!$H$90,INDEX(AI$7:AI$11,MATCH($H45,$H$7:$H$11,0)),AI26),"") ->  | AJ45: =IF($G45<>"",IF($H45<>ListsLookup!$H$90,INDEX(AJ$7:AJ$11,MATCH($H45,$H$7:$H$11,0)),AJ26),"") ->  | AK45: =IF($G45<>"",IF($H45<>ListsLookup!$H$90,INDEX(AK$7:AK$11,MATCH($H45,$H$7:$H$11,0)),AK26),"") ->  | AL45: =IF($G45<>"",IF($H45<>ListsLookup!$H$90,INDEX(AL$7:AL$11,MATCH($H45,$H$7:$H$11,0)),AL26),"") ->  | AM45: =IF($G45<>"",IF($H45<>ListsLookup!$H$90,INDEX(AM$7:AM$11,MATCH($H45,$H$7:$H$11,0)),AM26),"") ->  | AN45: =IF($G45<>"",IF($H45<>ListsLookup!$H$90,INDEX(AN$7:AN$11,MATCH($H45,$H$7:$H$11,0)),AN26),"") ->  | AO45: =IF($G45<>"",IF($H45<>ListsLookup!$H$90,INDEX(AO$7:AO$11,MATCH($H45,$H$7:$H$11,0)),AO26),"") ->  | AP45: =IF($G45<>"",IF($H45<>ListsLookup!$H$90,INDEX(AP$7:AP$11,MATCH($H45,$H$7:$H$11,0)),AP26),"") ->  | AQ45: =IF($G45<>"",IF($H45<>ListsLookup!$H$90,INDEX(AQ$7:AQ$11,MATCH($H45,$H$7:$H$11,0)),AQ26),"") ->  | AR45: =IF($G45<>"",IF($H45<>ListsLookup!$H$90,INDEX(AR$7:AR$11,MATCH($H45,$H$7:$H$11,0)),AR26),"") ->  | AS45: =IF($G45<>"",IF($H45<>ListsLookup!$H$90,INDEX(AS$7:AS$11,MATCH($H45,$H$7:$H$11,0)),AS26),"") ->  | AT45: =IF($G45<>"",IF($H45<>ListsLookup!$H$90,INDEX(AT$7:AT$11,MATCH($H45,$H$7:$H$11,0)),AT26),"") ->  | AU45: =IF($G45<>"",IF($H45<>ListsLookup!$H$90,INDEX(AU$7:AU$11,MATCH($H45,$H$7:$H$11,0)),AU26),"") ->  | AV45: =IF($G45<>"",IF($H45<>ListsLookup!$H$90,INDEX(AV$7:AV$11,MATCH($H45,$H$7:$H$11,0)),AV26),"") ->  | AW45: =IF($G45<>"",IF($H45<>ListsLookup!$H$90,INDEX(AW$7:AW$11,MATCH($H45,$H$7:$H$11,0)),AW26),"") ->  | AX45: =IF($G45<>"",IF($H45<>ListsLookup!$H$90,INDEX(AX$7:AX$11,MATCH($H45,$H$7:$H$11,0)),AX26),"") -> 
F46: 14 | H46: =IF(G46<>"",IF(H27=ListsLookup!$H$90,ListsLookup!$H$90,'3.2. BCAPeneRate'!I27),"") ->  | J46: =IF($G46<>"",IF($H46<>ListsLookup!$H$90,INDEX(J$7:J$11,MATCH($H46,$H$7:$H$11,0)),J27),"") ->  | K46: =IF($G46<>"",IF($H46<>ListsLookup!$H$90,INDEX(K$7:K$11,MATCH($H46,$H$7:$H$11,0)),K27),"") ->  | L46: =IF($G46<>"",IF($H46<>ListsLookup!$H$90,INDEX(L$7:L$11,MATCH($H46,$H$7:$H$11,0)),L27),"") ->  | M46: =IF($G46<>"",IF($H46<>ListsLookup!$H$90,INDEX(M$7:M$11,MATCH($H46,$H$7:$H$11,0)),M27),"") ->  | N46: =IF($G46<>"",IF($H46<>ListsLookup!$H$90,INDEX(N$7:N$11,MATCH($H46,$H$7:$H$11,0)),N27),"") ->  | O46: =IF($G46<>"",IF($H46<>ListsLookup!$H$90,INDEX(O$7:O$11,MATCH($H46,$H$7:$H$11,0)),O27),"") ->  | P46: =IF($G46<>"",IF($H46<>ListsLookup!$H$90,INDEX(P$7:P$11,MATCH($H46,$H$7:$H$11,0)),P27),"") ->  | Q46: =IF($G46<>"",IF($H46<>ListsLookup!$H$90,INDEX(Q$7:Q$11,MATCH($H46,$H$7:$H$11,0)),Q27),"") ->  | R46: =IF($G46<>"",IF($H46<>ListsLookup!$H$90,INDEX(R$7:R$11,MATCH($H46,$H$7:$H$11,0)),R27),"") ->  | S46: =IF($G46<>"",IF($H46<>ListsLookup!$H$90,INDEX(S$7:S$11,MATCH($H46,$H$7:$H$11,0)),S27),"") ->  | T46: =IF($G46<>"",IF($H46<>ListsLookup!$H$90,INDEX(T$7:T$11,MATCH($H46,$H$7:$H$11,0)),T27),"") ->  | U46: =IF($G46<>"",IF($H46<>ListsLookup!$H$90,INDEX(U$7:U$11,MATCH($H46,$H$7:$H$11,0)),U27),"") ->  | V46: =IF($G46<>"",IF($H46<>ListsLookup!$H$90,INDEX(V$7:V$11,MATCH($H46,$H$7:$H$11,0)),V27),"") ->  | W46: =IF($G46<>"",IF($H46<>ListsLookup!$H$90,INDEX(W$7:W$11,MATCH($H46,$H$7:$H$11,0)),W27),"") ->  | X46: =IF($G46<>"",IF($H46<>ListsLookup!$H$90,INDEX(X$7:X$11,MATCH($H46,$H$7:$H$11,0)),X27),"") ->  | Y46: =IF($G46<>"",IF($H46<>ListsLookup!$H$90,INDEX(Y$7:Y$11,MATCH($H46,$H$7:$H$11,0)),Y27),"") ->  | Z46: =IF($G46<>"",IF($H46<>ListsLookup!$H$90,INDEX(Z$7:Z$11,MATCH($H46,$H$7:$H$11,0)),Z27),"") ->  | AA46: =IF($G46<>"",IF($H46<>ListsLookup!$H$90,INDEX(AA$7:AA$11,MATCH($H46,$H$7:$H$11,0)),AA27),"") ->  | AB46: =IF($G46<>"",IF($H46<>ListsLookup!$H$90,INDEX(AB$7:AB$11,MATCH($H46,$H$7:$H$11,0)),AB27),"") ->  | AC46: =IF($G46<>"",IF($H46<>ListsLookup!$H$90,INDEX(AC$7:AC$11,MATCH($H46,$H$7:$H$11,0)),AC27),"") ->  | AD46: =IF($G46<>"",IF($H46<>ListsLookup!$H$90,INDEX(AD$7:AD$11,MATCH($H46,$H$7:$H$11,0)),AD27),"") ->  | AE46: =IF($G46<>"",IF($H46<>ListsLookup!$H$90,INDEX(AE$7:AE$11,MATCH($H46,$H$7:$H$11,0)),AE27),"") ->  | AF46: =IF($G46<>"",IF($H46<>ListsLookup!$H$90,INDEX(AF$7:AF$11,MATCH($H46,$H$7:$H$11,0)),AF27),"") ->  | AG46: =IF($G46<>"",IF($H46<>ListsLookup!$H$90,INDEX(AG$7:AG$11,MATCH($H46,$H$7:$H$11,0)),AG27),"") ->  | AH46: =IF($G46<>"",IF($H46<>ListsLookup!$H$90,INDEX(AH$7:AH$11,MATCH($H46,$H$7:$H$11,0)),AH27),"") ->  | AI46: =IF($G46<>"",IF($H46<>ListsLookup!$H$90,INDEX(AI$7:AI$11,MATCH($H46,$H$7:$H$11,0)),AI27),"") ->  | AJ46: =IF($G46<>"",IF($H46<>ListsLookup!$H$90,INDEX(AJ$7:AJ$11,MATCH($H46,$H$7:$H$11,0)),AJ27),"") ->  | AK46: =IF($G46<>"",IF($H46<>ListsLookup!$H$90,INDEX(AK$7:AK$11,MATCH($H46,$H$7:$H$11,0)),AK27),"") ->  | AL46: =IF($G46<>"",IF($H46<>ListsLookup!$H$90,INDEX(AL$7:AL$11,MATCH($H46,$H$7:$H$11,0)),AL27),"") ->  | AM46: =IF($G46<>"",IF($H46<>ListsLookup!$H$90,INDEX(AM$7:AM$11,MATCH($H46,$H$7:$H$11,0)),AM27),"") ->  | AN46: =IF($G46<>"",IF($H46<>ListsLookup!$H$90,INDEX(AN$7:AN$11,MATCH($H46,$H$7:$H$11,0)),AN27),"") ->  | AO46: =IF($G46<>"",IF($H46<>ListsLookup!$H$90,INDEX(AO$7:AO$11,MATCH($H46,$H$7:$H$11,0)),AO27),"") ->  | AP46: =IF($G46<>"",IF($H46<>ListsLookup!$H$90,INDEX(AP$7:AP$11,MATCH($H46,$H$7:$H$11,0)),AP27),"") ->  | AQ46: =IF($G46<>"",IF($H46<>ListsLookup!$H$90,INDEX(AQ$7:AQ$11,MATCH($H46,$H$7:$H$11,0)),AQ27),"") ->  | AR46: =IF($G46<>"",IF($H46<>ListsLookup!$H$90,INDEX(AR$7:AR$11,MATCH($H46,$H$7:$H$11,0)),AR27),"") ->  | AS46: =IF($G46<>"",IF($H46<>ListsLookup!$H$90,INDEX(AS$7:AS$11,MATCH($H46,$H$7:$H$11,0)),AS27),"") ->  | AT46: =IF($G46<>"",IF($H46<>ListsLookup!$H$90,INDEX(AT$7:AT$11,MATCH($H46,$H$7:$H$11,0)),AT27),"") ->  | AU46: =IF($G46<>"",IF($H46<>ListsLookup!$H$90,INDEX(AU$7:AU$11,MATCH($H46,$H$7:$H$11,0)),AU27),"") ->  | AV46: =IF($G46<>"",IF($H46<>ListsLookup!$H$90,INDEX(AV$7:AV$11,MATCH($H46,$H$7:$H$11,0)),AV27),"") ->  | AW46: =IF($G46<>"",IF($H46<>ListsLookup!$H$90,INDEX(AW$7:AW$11,MATCH($H46,$H$7:$H$11,0)),AW27),"") ->  | AX46: =IF($G46<>"",IF($H46<>ListsLookup!$H$90,INDEX(AX$7:AX$11,MATCH($H46,$H$7:$H$11,0)),AX27),"") -> 
F47: 15 | H47: =IF(G47<>"",IF(H28=ListsLookup!$H$90,ListsLookup!$H$90,'3.2. BCAPeneRate'!I28),"") ->  | J47: =IF($G47<>"",IF($H47<>ListsLookup!$H$90,INDEX(J$7:J$11,MATCH($H47,$H$7:$H$11,0)),J28),"") ->  | K47: =IF($G47<>"",IF($H47<>ListsLookup!$H$90,INDEX(K$7:K$11,MATCH($H47,$H$7:$H$11,0)),K28),"") ->  | L47: =IF($G47<>"",IF($H47<>ListsLookup!$H$90,INDEX(L$7:L$11,MATCH($H47,$H$7:$H$11,0)),L28),"") ->  | M47: =IF($G47<>"",IF($H47<>ListsLookup!$H$90,INDEX(M$7:M$11,MATCH($H47,$H$7:$H$11,0)),M28),"") ->  | N47: =IF($G47<>"",IF($H47<>ListsLookup!$H$90,INDEX(N$7:N$11,MATCH($H47,$H$7:$H$11,0)),N28),"") ->  | O47: =IF($G47<>"",IF($H47<>ListsLookup!$H$90,INDEX(O$7:O$11,MATCH($H47,$H$7:$H$11,0)),O28),"") ->  | P47: =IF($G47<>"",IF($H47<>ListsLookup!$H$90,INDEX(P$7:P$11,MATCH($H47,$H$7:$H$11,0)),P28),"") ->  | Q47: =IF($G47<>"",IF($H47<>ListsLookup!$H$90,INDEX(Q$7:Q$11,MATCH($H47,$H$7:$H$11,0)),Q28),"") ->  | R47: =IF($G47<>"",IF($H47<>ListsLookup!$H$90,INDEX(R$7:R$11,MATCH($H47,$H$7:$H$11,0)),R28),"") ->  | S47: =IF($G47<>"",IF($H47<>ListsLookup!$H$90,INDEX(S$7:S$11,MATCH($H47,$H$7:$H$11,0)),S28),"") ->  | T47: =IF($G47<>"",IF($H47<>ListsLookup!$H$90,INDEX(T$7:T$11,MATCH($H47,$H$7:$H$11,0)),T28),"") ->  | U47: =IF($G47<>"",IF($H47<>ListsLookup!$H$90,INDEX(U$7:U$11,MATCH($H47,$H$7:$H$11,0)),U28),"") ->  | V47: =IF($G47<>"",IF($H47<>ListsLookup!$H$90,INDEX(V$7:V$11,MATCH($H47,$H$7:$H$11,0)),V28),"") ->  | W47: =IF($G47<>"",IF($H47<>ListsLookup!$H$90,INDEX(W$7:W$11,MATCH($H47,$H$7:$H$11,0)),W28),"") ->  | X47: =IF($G47<>"",IF($H47<>ListsLookup!$H$90,INDEX(X$7:X$11,MATCH($H47,$H$7:$H$11,0)),X28),"") ->  | Y47: =IF($G47<>"",IF($H47<>ListsLookup!$H$90,INDEX(Y$7:Y$11,MATCH($H47,$H$7:$H$11,0)),Y28),"") ->  | Z47: =IF($G47<>"",IF($H47<>ListsLookup!$H$90,INDEX(Z$7:Z$11,MATCH($H47,$H$7:$H$11,0)),Z28),"") ->  | AA47: =IF($G47<>"",IF($H47<>ListsLookup!$H$90,INDEX(AA$7:AA$11,MATCH($H47,$H$7:$H$11,0)),AA28),"") ->  | AB47: =IF($G47<>"",IF($H47<>ListsLookup!$H$90,INDEX(AB$7:AB$11,MATCH($H47,$H$7:$H$11,0)),AB28),"") ->  | AC47: =IF($G47<>"",IF($H47<>ListsLookup!$H$90,INDEX(AC$7:AC$11,MATCH($H47,$H$7:$H$11,0)),AC28),"") ->  | AD47: =IF($G47<>"",IF($H47<>ListsLookup!$H$90,INDEX(AD$7:AD$11,MATCH($H47,$H$7:$H$11,0)),AD28),"") ->  | AE47: =IF($G47<>"",IF($H47<>ListsLookup!$H$90,INDEX(AE$7:AE$11,MATCH($H47,$H$7:$H$11,0)),AE28),"") ->  | AF47: =IF($G47<>"",IF($H47<>ListsLookup!$H$90,INDEX(AF$7:AF$11,MATCH($H47,$H$7:$H$11,0)),AF28),"") ->  | AG47: =IF($G47<>"",IF($H47<>ListsLookup!$H$90,INDEX(AG$7:AG$11,MATCH($H47,$H$7:$H$11,0)),AG28),"") ->  | AH47: =IF($G47<>"",IF($H47<>ListsLookup!$H$90,INDEX(AH$7:AH$11,MATCH($H47,$H$7:$H$11,0)),AH28),"") ->  | AI47: =IF($G47<>"",IF($H47<>ListsLookup!$H$90,INDEX(AI$7:AI$11,MATCH($H47,$H$7:$H$11,0)),AI28),"") ->  | AJ47: =IF($G47<>"",IF($H47<>ListsLookup!$H$90,INDEX(AJ$7:AJ$11,MATCH($H47,$H$7:$H$11,0)),AJ28),"") ->  | AK47: =IF($G47<>"",IF($H47<>ListsLookup!$H$90,INDEX(AK$7:AK$11,MATCH($H47,$H$7:$H$11,0)),AK28),"") ->  | AL47: =IF($G47<>"",IF($H47<>ListsLookup!$H$90,INDEX(AL$7:AL$11,MATCH($H47,$H$7:$H$11,0)),AL28),"") ->  | AM47: =IF($G47<>"",IF($H47<>ListsLookup!$H$90,INDEX(AM$7:AM$11,MATCH($H47,$H$7:$H$11,0)),AM28),"") ->  | AN47: =IF($G47<>"",IF($H47<>ListsLookup!$H$90,INDEX(AN$7:AN$11,MATCH($H47,$H$7:$H$11,0)),AN28),"") ->  | AO47: =IF($G47<>"",IF($H47<>ListsLookup!$H$90,INDEX(AO$7:AO$11,MATCH($H47,$H$7:$H$11,0)),AO28),"") ->  | AP47: =IF($G47<>"",IF($H47<>ListsLookup!$H$90,INDEX(AP$7:AP$11,MATCH($H47,$H$7:$H$11,0)),AP28),"") ->  | AQ47: =IF($G47<>"",IF($H47<>ListsLookup!$H$90,INDEX(AQ$7:AQ$11,MATCH($H47,$H$7:$H$11,0)),AQ28),"") ->  | AR47: =IF($G47<>"",IF($H47<>ListsLookup!$H$90,INDEX(AR$7:AR$11,MATCH($H47,$H$7:$H$11,0)),AR28),"") ->  | AS47: =IF($G47<>"",IF($H47<>ListsLookup!$H$90,INDEX(AS$7:AS$11,MATCH($H47,$H$7:$H$11,0)),AS28),"") ->  | AT47: =IF($G47<>"",IF($H47<>ListsLookup!$H$90,INDEX(AT$7:AT$11,MATCH($H47,$H$7:$H$11,0)),AT28),"") ->  | AU47: =IF($G47<>"",IF($H47<>ListsLookup!$H$90,INDEX(AU$7:AU$11,MATCH($H47,$H$7:$H$11,0)),AU28),"") ->  | AV47: =IF($G47<>"",IF($H47<>ListsLookup!$H$90,INDEX(AV$7:AV$11,MATCH($H47,$H$7:$H$11,0)),AV28),"") ->  | AW47: =IF($G47<>"",IF($H47<>ListsLookup!$H$90,INDEX(AW$7:AW$11,MATCH($H47,$H$7:$H$11,0)),AW28),"") ->  | AX47: =IF($G47<>"",IF($H47<>ListsLookup!$H$90,INDEX(AX$7:AX$11,MATCH($H47,$H$7:$H$11,0)),AX28),"") -> 

Sheet 3.3. BCAEfficacy (hidden)
G1: 3.3. Determining the efficacy adjustment factor
B2: Navigation | G2: =openingScreenTitle -> V2I Benefits Estimation Tool (VBET)
C3: Back
C4: Opening Screen
C5: 1. Investigate Potential Impacts
C6: 2. Identify Economic Tools
C7: 3. Conduct Economic Analysis
C8: Benefit-Cost Analysis (BCA) | G8: 1. Application Efficacy | H8: =ImpactValuesLookup!AA4 -> Efficacy at 0% Penetration | I8: =ImpactValuesLookup!AB4 -> Take-off Penetration | J8: =ImpactValuesLookup!AC4 -> Saturation Penetration | K8: =ImpactValuesLookup!AD4 -> Efficacy at 100% Penetration
C9: 3.1. Determining V2I application(s) impacts in steady state
L10: 0 | M10: 0.05 | N10: 0.1 | O10: 0.15 | P10: 0.2 | Q10: 0.25 | R10: 0.3 | S10: 0.35 | T10: 0.4 | U10: 0.45 | V10: 0.5 | W10: 0.55 | X10: 0.6 | Y10: 0.65 | Z10: 0.7 | AA10: 0.75 | AB10: 0.8 | AC10: 0.85 | AD10: 0.9 | AE10: 0.95 | AF10: 1
C11: 3.2. Determining CV-equipped vehicle fleet penetration rate | F11: 1 | G11: =IF('3.1. BCAInputs'!H19<>"",'3.1. BCAInputs'!H19,"") ->  | H11: =IFERROR(VLOOKUP($G11,ImpactValuesLookup!$J$5:$AD$145,ImpactValuesLookup!AA$3-ImpactValuesLookup!$J$3+1,FALSE),"") ->  | I11: =IFERROR(VLOOKUP($G11,ImpactValuesLookup!$J$5:$AD$145,ImpactValuesLookup!AB$3-ImpactValuesLookup!$J$3+1,FALSE),"") ->  | J11: =IFERROR(VLOOKUP($G11,ImpactValuesLookup!$J$5:$AD$145,ImpactValuesLookup!AC$3-ImpactValuesLookup!$J$3+1,FALSE),"") ->  | K11: =IFERROR(VLOOKUP($G11,ImpactValuesLookup!$J$5:$AD$145,ImpactValuesLookup!AD$3-ImpactValuesLookup!$J$3+1,FALSE),"") ->  | L11: =IFERROR(IF(AND(L$10>=$I11,L$10<=$J11),$H11+(L$10-$I11)/($J11-$I11)*($K11-$H11),IF(L$10<$I11,$H11,$K11)),0) ->  | M11: =IF(AND(M$10>=$I11,M$10<=$J11),$H11+(M$10-$I11)/($J11-$I11)*($K11-$H11),IF(M$10<$I11,$H11,$K11)) ->  | N11: =IF(AND(N$10>=$I11,N$10<=$J11),$H11+(N$10-$I11)/($J11-$I11)*($K11-$H11),IF(N$10<$I11,$H11,$K11)) ->  | AD11: =IF(AND(AD$10>=$I11,AD$10<=$J11),$H11+(AD$10-$I11)/($J11-$I11)*($K11-$H11),IF(AD$10<$I11,$H11,$K11)) -> 
F12: 2 | G12: =IF('3.1. BCAInputs'!H20<>"",'3.1. BCAInputs'!H20,"") ->  | H12: =IFERROR(VLOOKUP($G12,ImpactValuesLookup!$J$5:$AD$145,ImpactValuesLookup!AA$3-ImpactValuesLookup!$J$3+1,FALSE),"") ->  | I12: =IFERROR(VLOOKUP($G12,ImpactValuesLookup!$J$5:$AD$145,ImpactValuesLookup!AB$3-ImpactValuesLookup!$J$3+1,FALSE),"") ->  | J12: =IFERROR(VLOOKUP($G12,ImpactValuesLookup!$J$5:$AD$145,ImpactValuesLookup!AC$3-ImpactValuesLookup!$J$3+1,FALSE),"") ->  | K12: =IFERROR(VLOOKUP($G12,ImpactValuesLookup!$J$5:$AD$145,ImpactValuesLookup!AD$3-ImpactValuesLookup!$J$3+1,FALSE),"") ->  | L12: =IFERROR(IF(AND(L$10>=$I12,L$10<=$J12),$H12+(L$10-$I12)/($J12-$I12)*($K12-$H12),IF(L$10<$I12,$H12,$K12)),0) ->  | M12: =IF(AND(M$10>=$I12,M$10<=$J12),$H12+(M$10-$I12)/($J12-$I12)*($K12-$H12),IF(M$10<$I12,$H12,$K12)) -> 
B13: u | C13: 3.3. Determining the efficacy adjustment factor | F13: 3 | G13: =IF('3.1. BCAInputs'!H21<>"",'3.1. BCAInputs'!H21,"") ->  | H13: =IFERROR(VLOOKUP($G13,ImpactValuesLookup!$J$5:$AD$145,ImpactValuesLookup!AA$3-ImpactValuesLookup!$J$3+1,FALSE),"") ->  | I13: =IFERROR(VLOOKUP($G13,ImpactValuesLookup!$J$5:$AD$145,ImpactValuesLookup!AB$3-ImpactValuesLookup!$J$3+1,FALSE),"") ->  | J13: =IFERROR(VLOOKUP($G13,ImpactValuesLookup!$J$5:$AD$145,ImpactValuesLookup!AC$3-ImpactValuesLookup!$J$3+1,FALSE),"") ->  | K13: =IFERROR(VLOOKUP($G13,ImpactValuesLookup!$J$5:$AD$145,ImpactValuesLookup!AD$3-ImpactValuesLookup!$J$3+1,FALSE),"") -> 
F14: 4 | G14: =IF('3.1. BCAInputs'!H22<>"",'3.1. BCAInputs'!H22,"") ->  | H14: =IFERROR(VLOOKUP($G14,ImpactValuesLookup!$J$5:$AD$145,ImpactValuesLookup!AA$3-ImpactValuesLookup!$J$3+1,FALSE),"") ->  | I14: =IFERROR(VLOOKUP($G14,ImpactValuesLookup!$J$5:$AD$145,ImpactValuesLookup!AB$3-ImpactValuesLookup!$J$3+1,FALSE),"") ->  | J14: =IFERROR(VLOOKUP($G14,ImpactValuesLookup!$J$5:$AD$145,ImpactValuesLookup!AC$3-ImpactValuesLookup!$J$3+1,FALSE),"") ->  | K14: =IFERROR(VLOOKUP($G14,ImpactValuesLookup!$J$5:$AD$145,ImpactValuesLookup!AD$3-ImpactValuesLookup!$J$3+1,FALSE),"") -> 
C15: 3.4. BCA Results | F15: 5 | G15: =IF('3.1. BCAInputs'!H23<>"",'3.1. BCAInputs'!H23,"") ->  | H15: =IFERROR(VLOOKUP($G15,ImpactValuesLookup!$J$5:$AD$145,ImpactValuesLookup!AA$3-ImpactValuesLookup!$J$3+1,FALSE),"") ->  | I15: =IFERROR(VLOOKUP($G15,ImpactValuesLookup!$J$5:$AD$145,ImpactValuesLookup!AB$3-ImpactValuesLookup!$J$3+1,FALSE),"") ->  | J15: =IFERROR(VLOOKUP($G15,ImpactValuesLookup!$J$5:$AD$145,ImpactValuesLookup!AC$3-ImpactValuesLookup!$J$3+1,FALSE),"") ->  | K15: =IFERROR(VLOOKUP($G15,ImpactValuesLookup!$J$5:$AD$145,ImpactValuesLookup!AD$3-ImpactValuesLookup!$J$3+1,FALSE),"") ->  | AC15: =IF(AND(AC$10>=$I15,AC$10<=$J15),$H15+(AC$10-$I15)/($J15-$I15)*($K15-$H15),IF(AC$10<$I15,$H15,$K15)) -> 
C16: Economic Impact Analysis (EIA) | F16: 6 | G16: =IF('3.1. BCAInputs'!H24<>"",'3.1. BCAInputs'!H24,"") ->  | H16: =IFERROR(VLOOKUP($G16,ImpactValuesLookup!$J$5:$AD$145,ImpactValuesLookup!AA$3-ImpactValuesLookup!$J$3+1,FALSE),"") ->  | I16: =IFERROR(VLOOKUP($G16,ImpactValuesLookup!$J$5:$AD$145,ImpactValuesLookup!AB$3-ImpactValuesLookup!$J$3+1,FALSE),"") ->  | J16: =IFERROR(VLOOKUP($G16,ImpactValuesLookup!$J$5:$AD$145,ImpactValuesLookup!AC$3-ImpactValuesLookup!$J$3+1,FALSE),"") ->  | K16: =IFERROR(VLOOKUP($G16,ImpactValuesLookup!$J$5:$AD$145,ImpactValuesLookup!AD$3-ImpactValuesLookup!$J$3+1,FALSE),"") -> 
C17: 3.5. Economic Impact Analysis Assumptions | F17: 7 | G17: =IF('3.1. BCAInputs'!H25<>"",'3.1. BCAInputs'!H25,"") ->  | H17: =IFERROR(VLOOKUP($G17,ImpactValuesLookup!$J$5:$AD$145,ImpactValuesLookup!AA$3-ImpactValuesLookup!$J$3+1,FALSE),"") ->  | I17: =IFERROR(VLOOKUP($G17,ImpactValuesLookup!$J$5:$AD$145,ImpactValuesLookup!AB$3-ImpactValuesLookup!$J$3+1,FALSE),"") ->  | J17: =IFERROR(VLOOKUP($G17,ImpactValuesLookup!$J$5:$AD$145,ImpactValuesLookup!AC$3-ImpactValuesLookup!$J$3+1,FALSE),"") ->  | K17: =IFERROR(VLOOKUP($G17,ImpactValuesLookup!$J$5:$AD$145,ImpactValuesLookup!AD$3-ImpactValuesLookup!$J$3+1,FALSE),"") -> 
F18: 8 | G18: =IF('3.1. BCAInputs'!H26<>"",'3.1. BCAInputs'!H26,"") ->  | H18: =IFERROR(VLOOKUP($G18,ImpactValuesLookup!$J$5:$AD$145,ImpactValuesLookup!AA$3-ImpactValuesLookup!$J$3+1,FALSE),"") ->  | I18: =IFERROR(VLOOKUP($G18,ImpactValuesLookup!$J$5:$AD$145,ImpactValuesLookup!AB$3-ImpactValuesLookup!$J$3+1,FALSE),"") ->  | J18: =IFERROR(VLOOKUP($G18,ImpactValuesLookup!$J$5:$AD$145,ImpactValuesLookup!AC$3-ImpactValuesLookup!$J$3+1,FALSE),"") ->  | K18: =IFERROR(VLOOKUP($G18,ImpactValuesLookup!$J$5:$AD$145,ImpactValuesLookup!AD$3-ImpactValuesLookup!$J$3+1,FALSE),"") -> 
C19: 3.6. Economic Impact Analysis Results | F19: 9 | G19: =IF('3.1. BCAInputs'!H27<>"",'3.1. BCAInputs'!H27,"") ->  | H19: =IFERROR(VLOOKUP($G19,ImpactValuesLookup!$J$5:$AD$145,ImpactValuesLookup!AA$3-ImpactValuesLookup!$J$3+1,FALSE),"") ->  | I19: =IFERROR(VLOOKUP($G19,ImpactValuesLookup!$J$5:$AD$145,ImpactValuesLookup!AB$3-ImpactValuesLookup!$J$3+1,FALSE),"") ->  | J19: =IFERROR(VLOOKUP($G19,ImpactValuesLookup!$J$5:$AD$145,ImpactValuesLookup!AC$3-ImpactValuesLookup!$J$3+1,FALSE),"") ->  | K19: =IFERROR(VLOOKUP($G19,ImpactValuesLookup!$J$5:$AD$145,ImpactValuesLookup!AD$3-ImpactValuesLookup!$J$3+1,FALSE),"") -> 
F20: 10 | G20: =IF('3.1. BCAInputs'!H28<>"",'3.1. BCAInputs'!H28,"") ->  | H20: =IFERROR(VLOOKUP($G20,ImpactValuesLookup!$J$5:$AD$145,ImpactValuesLookup!AA$3-ImpactValuesLookup!$J$3+1,FALSE),"") ->  | I20: =IFERROR(VLOOKUP($G20,ImpactValuesLookup!$J$5:$AD$145,ImpactValuesLookup!AB$3-ImpactValuesLookup!$J$3+1,FALSE),"") ->  | J20: =IFERROR(VLOOKUP($G20,ImpactValuesLookup!$J$5:$AD$145,ImpactValuesLookup!AC$3-ImpactValuesLookup!$J$3+1,FALSE),"") ->  | K20: =IFERROR(VLOOKUP($G20,ImpactValuesLookup!$J$5:$AD$145,ImpactValuesLookup!AD$3-ImpactValuesLookup!$J$3+1,FALSE),"") -> 
C21: 4. Model Instructions | F21: 11 | G21: =IF('3.1. BCAInputs'!H29<>"",'3.1. BCAInputs'!H29,"") ->  | H21: =IFERROR(VLOOKUP($G21,ImpactValuesLookup!$J$5:$AD$145,ImpactValuesLookup!AA$3-ImpactValuesLookup!$J$3+1,FALSE),"") ->  | I21: =IFERROR(VLOOKUP($G21,ImpactValuesLookup!$J$5:$AD$145,ImpactValuesLookup!AB$3-ImpactValuesLookup!$J$3+1,FALSE),"") ->  | J21: =IFERROR(VLOOKUP($G21,ImpactValuesLookup!$J$5:$AD$145,ImpactValuesLookup!AC$3-ImpactValuesLookup!$J$3+1,FALSE),"") ->  | K21: =IFERROR(VLOOKUP($G21,ImpactValuesLookup!$J$5:$AD$145,ImpactValuesLookup!AD$3-ImpactValuesLookup!$J$3+1,FALSE),"") -> 
F22: 12 | G22: =IF('3.1. BCAInputs'!H30<>"",'3.1. BCAInputs'!H30,"") ->  | H22: =IFERROR(VLOOKUP($G22,ImpactValuesLookup!$J$5:$AD$145,ImpactValuesLookup!AA$3-ImpactValuesLookup!$J$3+1,FALSE),"") ->  | I22: =IFERROR(VLOOKUP($G22,ImpactValuesLookup!$J$5:$AD$145,ImpactValuesLookup!AB$3-ImpactValuesLookup!$J$3+1,FALSE),"") ->  | J22: =IFERROR(VLOOKUP($G22,ImpactValuesLookup!$J$5:$AD$145,ImpactValuesLookup!AC$3-ImpactValuesLookup!$J$3+1,FALSE),"") ->  | K22: =IFERROR(VLOOKUP($G22,ImpactValuesLookup!$J$5:$AD$145,ImpactValuesLookup!AD$3-ImpactValuesLookup!$J$3+1,FALSE),"") -> 
F23: 13 | G23: =IF('3.1. BCAInputs'!H31<>"",'3.1. BCAInputs'!H31,"") ->  | H23: =IFERROR(VLOOKUP($G23,ImpactValuesLookup!$J$5:$AD$145,ImpactValuesLookup!AA$3-ImpactValuesLookup!$J$3+1,FALSE),"") ->  | I23: =IFERROR(VLOOKUP($G23,ImpactValuesLookup!$J$5:$AD$145,ImpactValuesLookup!AB$3-ImpactValuesLookup!$J$3+1,FALSE),"") ->  | J23: =IFERROR(VLOOKUP($G23,ImpactValuesLookup!$J$5:$AD$145,ImpactValuesLookup!AC$3-ImpactValuesLookup!$J$3+1,FALSE),"") ->  | K23: =IFERROR(VLOOKUP($G23,ImpactValuesLookup!$J$5:$AD$145,ImpactValuesLookup!AD$3-ImpactValuesLookup!$J$3+1,FALSE),"") -> 
F24: 14 | G24: =IF('3.1. BCAInputs'!H32<>"",'3.1. BCAInputs'!H32,"") ->  | H24: =IFERROR(VLOOKUP($G24,ImpactValuesLookup!$J$5:$AD$145,ImpactValuesLookup!AA$3-ImpactValuesLookup!$J$3+1,FALSE),"") ->  | I24: =IFERROR(VLOOKUP($G24,ImpactValuesLookup!$J$5:$AD$145,ImpactValuesLookup!AB$3-ImpactValuesLookup!$J$3+1,FALSE),"") ->  | J24: =IFERROR(VLOOKUP($G24,ImpactValuesLookup!$J$5:$AD$145,ImpactValuesLookup!AC$3-ImpactValuesLookup!$J$3+1,FALSE),"") ->  | K24: =IFERROR(VLOOKUP($G24,ImpactValuesLookup!$J$5:$AD$145,ImpactValuesLookup!AD$3-ImpactValuesLookup!$J$3+1,FALSE),"") -> 
F25: 15 | G25: =IF('3.1. BCAInputs'!H33<>"",'3.1. BCAInputs'!H33,"") ->  | H25: =IFERROR(VLOOKUP($G25,ImpactValuesLookup!$J$5:$AD$145,ImpactValuesLookup!AA$3-ImpactValuesLookup!$J$3+1,FALSE),"") ->  | I25: =IFERROR(VLOOKUP($G25,ImpactValuesLookup!$J$5:$AD$145,ImpactValuesLookup!AB$3-ImpactValuesLookup!$J$3+1,FALSE),"") ->  | J25: =IFERROR(VLOOKUP($G25,ImpactValuesLookup!$J$5:$AD$145,ImpactValuesLookup!AC$3-ImpactValuesLookup!$J$3+1,FALSE),"") ->  | K25: =IFERROR(VLOOKUP($G25,ImpactValuesLookup!$J$5:$AD$145,ImpactValuesLookup!AD$3-ImpactValuesLookup!$J$3+1,FALSE),"") -> 

Sheet BCACalc (hidden)
G1: BCA Calculation
G2: =openingScreenTitle -> V2I Benefits Estimation Tool (VBET)
C3: Back | H3: Year | J3: ='3.1. BCAInputs'!$I$7 -> 2015 | K3: =J3+1 -> 2016 | L3: =K3+1 -> 2017 | M3: =L3+1 -> 2018 | N3: =M3+1 -> 2019 | O3: =N3+1 -> 2020 | P3: =O3+1 -> 2021 | Q3: 2022 | R3: 2023 | S3: 2024 | T3: 2025 | U3: 2026 | V3: 2027 | W3: 2028 | X3: 2029 | Y3: 2030 | Z3: 2031 | AA3: 2032 | AB3: 2033 | AC3: 2034 | AD3: 2035 | AE3: 2036 | AF3: 2037 | AG3: 2038 | AH3: 2039 | AI3: =AH3+1 -> 2040 | AJ3: 2041 | AK3: 2042 | AL3: 2043 | AM3: 2044 | AN3: 2045 | AO3: 2046 | AP3: 2047 | AQ3: 2048 | AR3: 2049 | AS3: 2050 | AT3: 2051 | AU3: 2052 | AV3: 2053 | AW3: 2054 | AX3: 2055 | AY3: 2056 | AZ3: 2057 | BA3: 2058 | BB3: 2059 | BC3: 2060 | BD3: 2061 | BE3: 2062 | BF3: 2063 | BG3: 2064 | BH3: 2065 | BI3: 2066 | BJ3: 2067 | BK3: 2068 | BL3: 2069 | BM3: 2070 | BN3: 2071 | BO3: 2072 | BP3: 2073 | BQ3: 2074 | BR3: 2075 | BS3: 2076 | BT3: 2077 | BU3: 2078 | BV3: 2079 | BW3: 2080
H4: Analysis Year | J4: =IF(AND(J$3>='3.1. BCAInputs'!$I$7,J$3<'3.1. BCAInputs'!$I$7+'3.1. BCAInputs'!$I$8),1,0) -> 1 | K4: =IF(AND(K$3>='3.1. BCAInputs'!$I$7,K$3<'3.1. BCAInputs'!$I$7+'3.1. BCAInputs'!$I$8),1,0) -> 1 | L4: =IF(AND(L$3>='3.1. BCAInputs'!$I$7,L$3<'3.1. BCAInputs'!$I$7+'3.1. BCAInputs'!$I$8),1,0) -> 1 | M4: =IF(AND(M$3>='3.1. BCAInputs'!$I$7,M$3<'3.1. BCAInputs'!$I$7+'3.1. BCAInputs'!$I$8),1,0) -> 1 | N4: =IF(AND(N$3>='3.1. BCAInputs'!$I$7,N$3<'3.1. BCAInputs'!$I$7+'3.1. BCAInputs'!$I$8),1,0) -> 1 | O4: =IF(AND(O$3>='3.1. BCAInputs'!$I$7,O$3<'3.1. BCAInputs'!$I$7+'3.1. BCAInputs'!$I$8),1,0) -> 1 | P4: =IF(AND(P$3>='3.1. BCAInputs'!$I$7,P$3<'3.1. BCAInputs'!$I$7+'3.1. BCAInputs'!$I$8),1,0) -> 1 | Q4: =IF(AND(Q$3>='3.1. BCAInputs'!$I$7,Q$3<'3.1. BCAInputs'!$I$7+'3.1. BCAInputs'!$I$8),1,0) -> 1 | R4: =IF(AND(R$3>='3.1. BCAInputs'!$I$7,R$3<'3.1. BCAInputs'!$I$7+'3.1. BCAInputs'!$I$8),1,0) -> 1 | S4: =IF(AND(S$3>='3.1. BCAInputs'!$I$7,S$3<'3.1. BCAInputs'!$I$7+'3.1. BCAInputs'!$I$8),1,0) -> 1 | T4: =IF(AND(T$3>='3.1. BCAInputs'!$I$7,T$3<'3.1. BCAInputs'!$I$7+'3.1. BCAInputs'!$I$8),1,0) -> 1 | U4: =IF(AND(U$3>='3.1. BCAInputs'!$I$7,U$3<'3.1. BCAInputs'!$I$7+'3.1. BCAInputs'!$I$8),1,0) -> 1 | V4: =IF(AND(V$3>='3.1. BCAInputs'!$I$7,V$3<'3.1. BCAInputs'!$I$7+'3.1. BCAInputs'!$I$8),1,0) -> 1 | W4: =IF(AND(W$3>='3.1. BCAInputs'!$I$7,W$3<'3.1. BCAInputs'!$I$7+'3.1. BCAInputs'!$I$8),1,0) -> 1 | X4: =IF(AND(X$3>='3.1. BCAInputs'!$I$7,X$3<'3.1. BCAInputs'!$I$7+'3.1. BCAInputs'!$I$8),1,0) -> 1 | Y4: =IF(AND(Y$3>='3.1. BCAInputs'!$I$7,Y$3<'3.1. BCAInputs'!$I$7+'3.1. BCAInputs'!$I$8),1,0) -> 1 | Z4: =IF(AND(Z$3>='3.1. BCAInputs'!$I$7,Z$3<'3.1. BCAInputs'!$I$7+'3.1. BCAInputs'!$I$8),1,0) -> 1 | AA4: =IF(AND(AA$3>='3.1. BCAInputs'!$I$7,AA$3<'3.1. BCAInputs'!$I$7+'3.1. BCAInputs'!$I$8),1,0) -> 1 | AB4: =IF(AND(AB$3>='3.1. BCAInputs'!$I$7,AB$3<'3.1. BCAInputs'!$I$7+'3.1. BCAInputs'!$I$8),1,0) -> 1 | AC4: =IF(AND(AC$3>='3.1. BCAInputs'!$I$7,AC$3<'3.1. BCAInputs'!$I$7+'3.1. BCAInputs'!$I$8),1,0) -> 1 | AD4: =IF(AND(AD$3>='3.1. BCAInputs'!$I$7,AD$3<'3.1. BCAInputs'!$I$7+'3.1. BCAInputs'!$I$8),1,0) -> 1 | AE4: =IF(AND(AE$3>='3.1. BCAInputs'!$I$7,AE$3<'3.1. BCAInputs'!$I$7+'3.1. BCAInputs'!$I$8),1,0) -> 1 | AF4: =IF(AND(AF$3>='3.1. BCAInputs'!$I$7,AF$3<'3.1. BCAInputs'!$I$7+'3.1. BCAInputs'!$I$8),1,0) -> 1 | AG4: =IF(AND(AG$3>='3.1. BCAInputs'!$I$7,AG$3<'3.1. BCAInputs'!$I$7+'3.1. BCAInputs'!$I$8),1,0) -> 1 | AH4: =IF(AND(AH$3>='3.1. BCAInputs'!$I$7,AH$3<'3.1. BCAInputs'!$I$7+'3.1. BCAInputs'!$I$8),1,0) -> 1 | AI4: =IF(AND(AI$3>='3.1. BCAInputs'!$I$7,AI$3<'3.1. BCAInputs'!$I$7+'3.1. BCAInputs'!$I$8),1,0) -> 1 | AJ4: =IF(AND(AJ$3>='3.1. BCAInputs'!$I$7,AJ$3<'3.1. BCAInputs'!$I$7+'3.1. BCAInputs'!$I$8),1,0) -> 1 | AK4: =IF(AND(AK$3>='3.1. BCAInputs'!$I$7,AK$3<'3.1. BCAInputs'!$I$7+'3.1. BCAInputs'!$I$8),1,0) -> 1 | AL4: =IF(AND(AL$3>='3.1. BCAInputs'!$I$7,AL$3<'3.1. BCAInputs'!$I$7+'3.1. BCAInputs'!$I$8),1,0) -> 1 | AM4: =IF(AND(AM$3>='3.1. BCAInputs'!$I$7,AM$3<'3.1. BCAInputs'!$I$7+'3.1. BCAInputs'!$I$8),1,0) -> 1 | AN4: =IF(AND(AN$3>='3.1. BCAInputs'!$I$7,AN$3<'3.1. BCAInputs'!$I$7+'3.1. BCAInputs'!$I$8),1,0) -> 0 | AO4: =IF(AND(AO$3>='3.1. BCAInputs'!$I$7,AO$3<'3.1. BCAInputs'!$I$7+'3.1. BCAInputs'!$I$8),1,0) -> 0 | AP4: =IF(AND(AP$3>='3.1. BCAInputs'!$I$7,AP$3<'3.1. BCAInputs'!$I$7+'3.1. BCAInputs'!$I$8),1,0) -> 0 | AQ4: =IF(AND(AQ$3>='3.1. BCAInputs'!$I$7,AQ$3<'3.1. BCAInputs'!$I$7+'3.1. BCAInputs'!$I$8),1,0) -> 0 | AR4: =IF(AND(AR$3>='3.1. BCAInputs'!$I$7,AR$3<'3.1. BCAInputs'!$I$7+'3.1. BCAInputs'!$I$8),1,0) -> 0 | AS4: =IF(AND(AS$3>='3.1. BCAInputs'!$I$7,AS$3<'3.1. BCAInputs'!$I$7+'3.1. BCAInputs'!$I$8),1,0) -> 0 | AT4: =IF(AND(AT$3>='3.1. BCAInputs'!$I$7,AT$3<'3.1. BCAInputs'!$I$7+'3.1. BCAInputs'!$I$8),1,0) -> 0 | AU4: =IF(AND(AU$3>='3.1. BCAInputs'!$I$7,AU$3<'3.1. BCAInputs'!$I$7+'3.1. BCAInputs'!$I$8),1,0) -> 0 | AV4: =IF(AND(AV$3>='3.1. BCAInputs'!$I$7,AV$3<'3.1. BCAInputs'!$I$7+'3.1. BCAInputs'!$I$8),1,0) -> 0 | AW4: =IF(AND(AW$3>='3.1. BCAInputs'!$I$7,AW$3<'3.1. BCAInputs'!$I$7+'3.1. BCAInputs'!$I$8),1,0) -> 0 | AX4: =IF(AND(AX$3>='3.1. BCAInputs'!$I$7,AX$3<'3.1. BCAInputs'!$I$7+'3.1. BCAInputs'!$I$8),1,0) -> 0 | AY4: =IF(AND(AY$3>='3.1. BCAInputs'!$I$7,AY$3<'3.1. BCAInputs'!$I$7+'3.1. BCAInputs'!$I$8),1,0) -> 0 | AZ4: =IF(AND(AZ$3>='3.1. BCAInputs'!$I$7,AZ$3<'3.1. BCAInputs'!$I$7+'3.1. BCAInputs'!$I$8),1,0) -> 0 | BA4: =IF(AND(BA$3>='3.1. BCAInputs'!$I$7,BA$3<'3.1. BCAInputs'!$I$7+'3.1. BCAInputs'!$I$8),1,0) -> 0 | BB4: =IF(AND(BB$3>='3.1. BCAInputs'!$I$7,BB$3<'3.1. BCAInputs'!$I$7+'3.1. BCAInputs'!$I$8),1,0) -> 0 | BC4: =IF(AND(BC$3>='3.1. BCAInputs'!$I$7,BC$3<'3.1. BCAInputs'!$I$7+'3.1. BCAInputs'!$I$8),1,0) -> 0 | BD4: =IF(AND(BD$3>='3.1. BCAInputs'!$I$7,BD$3<'3.1. BCAInputs'!$I$7+'3.1. BCAInputs'!$I$8),1,0) -> 0 | BE4: =IF(AND(BE$3>='3.1. BCAInputs'!$I$7,BE$3<'3.1. BCAInputs'!$I$7+'3.1. BCAInputs'!$I$8),1,0) -> 0 | BF4: =IF(AND(BF$3>='3.1. BCAInputs'!$I$7,BF$3<'3.1. BCAInputs'!$I$7+'3.1. BCAInputs'!$I$8),1,0) -> 0 | BG4: =IF(AND(BG$3>='3.1. BCAInputs'!$I$7,BG$3<'3.1. BCAInputs'!$I$7+'3.1. BCAInputs'!$I$8),1,0) -> 0 | BH4: =IF(AND(BH$3>='3.1. BCAInputs'!$I$7,BH$3<'3.1. BCAInputs'!$I$7+'3.1. BCAInputs'!$I$8),1,0) -> 0 | BI4: =IF(AND(BI$3>='3.1. BCAInputs'!$I$7,BI$3<'3.1. BCAInputs'!$I$7+'3.1. BCAInputs'!$I$8),1,0) -> 0 | BJ4: =IF(AND(BJ$3>='3.1. BCAInputs'!$I$7,BJ$3<'3.1. BCAInputs'!$I$7+'3.1. BCAInputs'!$I$8),1,0) -> 0 | BK4: =IF(AND(BK$3>='3.1. BCAInputs'!$I$7,BK$3<'3.1. BCAInputs'!$I$7+'3.1. BCAInputs'!$I$8),1,0) -> 0 | BL4: =IF(AND(BL$3>='3.1. BCAInputs'!$I$7,BL$3<'3.1. BCAInputs'!$I$7+'3.1. BCAInputs'!$I$8),1,0) -> 0 | BM4: =IF(AND(BM$3>='3.1. BCAInputs'!$I$7,BM$3<'3.1. BCAInputs'!$I$7+'3.1. BCAInputs'!$I$8),1,0) -> 0 | BN4: =IF(AND(BN$3>='3.1. BCAInputs'!$I$7,BN$3<'3.1. BCAInputs'!$I$7+'3.1. BCAInputs'!$I$8),1,0) -> 0 | BO4: =IF(AND(BO$3>='3.1. BCAInputs'!$I$7,BO$3<'3.1. BCAInputs'!$I$7+'3.1. BCAInputs'!$I$8),1,0) -> 0 | BP4: =IF(AND(BP$3>='3.1. BCAInputs'!$I$7,BP$3<'3.1. BCAInputs'!$I$7+'3.1. BCAInputs'!$I$8),1,0) -> 0 | BQ4: =IF(AND(BQ$3>='3.1. BCAInputs'!$I$7,BQ$3<'3.1. BCAInputs'!$I$7+'3.1. BCAInputs'!$I$8),1,0) -> 0 | BR4: =IF(AND(BR$3>='3.1. BCAInputs'!$I$7,BR$3<'3.1. BCAInputs'!$I$7+'3.1. BCAInputs'!$I$8),1,0) -> 0 | BS4: =IF(AND(BS$3>='3.1. BCAInputs'!$I$7,BS$3<'3.1. BCAInputs'!$I$7+'3.1. BCAInputs'!$I$8),1,0) -> 0 | BT4: =IF(AND(BT$3>='3.1. BCAInputs'!$I$7,BT$3<'3.1. BCAInputs'!$I$7+'3.1. BCAInputs'!$I$8),1,0) -> 0 | BU4: =IF(AND(BU$3>='3.1. BCAInputs'!$I$7,BU$3<'3.1. BCAInputs'!$I$7+'3.1. BCAInputs'!$I$8),1,0) -> 0 | BV4: =IF(AND(BV$3>='3.1. BCAInputs'!$I$7,BV$3<'3.1. BCAInputs'!$I$7+'3.1. BCAInputs'!$I$8),1,0) -> 0 | BW4: =IF(AND(BW$3>='3.1. BCAInputs'!$I$7,BW$3<'3.1. BCAInputs'!$I$7+'3.1. BCAInputs'!$I$8),1,0) -> 0
H5: Discount Rate / Factor (for CO2 only) | I5: ='5. BCAParameters'!$N$28 -> 0.03 | J5: =(1+$I$5)^($J$3-J3) -> 1 | K5: =(1+$I$5)^($J$3-K3) -> 0.9708737864 | L5: 0.9425959091 | M5: 0.9151416594 | N5: 0.8884870479 | O5: 0.8626087844 | P5: 0.8374842567 | Q5: 0.8130915113 | R5: 0.7894092343 | S5: 0.7664167323 | T5: 0.7440939149 | U5: 0.7224212766 | V5: 0.7013798802 | W5: 0.68095134 | X5: 0.6611178058 | Y5: 0.6418619474 | Z5: 0.6231669392 | AA5: 0.6050164458 | AB5: 0.5873946076 | AC5: 0.5702860268 | AD5: 0.5536757542 | AE5: 0.5375492759 | AF5: 0.5218925009 | AG5: 0.5066917484 | AH5: 0.4919337363 | AI5: 0.4776055693 | AJ5: 0.4636947274 | AK5: 0.4501890558 | AL5: 0.4370767532 | AM5: 0.4243463623 | AN5: 0.4119867595 | AO5: 0.3999871452 | AP5: 0.3883370341 | AQ5: 0.3770262467 | AR5: 0.3660448997 | AS5: 0.3553833978 | AT5: 0.3450324251 | AU5: 0.3349829369 | AV5: 0.3252261524 | AW5: 0.315753546 | AX5: 0.3065568408 | AY5: 0.2976280008 | AZ5: 0.288959224 | BA5: 0.280542936 | BB5: 0.2723717825 | BC5: 0.2644386238 | BD5: 0.2567365279 | BE5: 0.249258765 | BF5: 0.2419988009 | BG5: 0.2349502922 | BH5: 0.2281070798 | BI5: 0.2214631843 | BJ5: 0.2150128003 | BK5: 0.2087502915 | BL5: 0.2026701859 | BM5: 0.1967671708 | BN5: 0.1910360882 | BO5: 0.1854719303 | BP5: 0.1800698352 | BQ5: 0.1748250827 | BR5: 0.16973309 | BS5: 0.1647894078 | BT5: 0.1599897163 | BU5: 0.1553298216 | BV5: 0.1508056521 | BW5: =(1+$I$5)^($J$3-BW3) -> 0.1464132544
H6: Discount Rate / Factor | I6: ='3.1. BCAInputs'!$I$9 -> 0.07 | J6: =(1+$I$6)^($J$3-J3) -> 1 | K6: =(1+$I$6)^($J$3-K3) -> 0.9345794393 | L6: 0.8734387283 | M6: 0.8162978769 | N6: 0.762895212 | O6: 0.7129861795 | P6: 0.6663422238 | Q6: 0.6227497419 | R6: 0.5820091046 | S6: 0.5439337426 | T6: 0.5083492921 | U6: 0.4750927964 | V6: 0.4440119592 | W6: 0.4149644479 | X6: 0.387817241 | Y6: 0.3624460196 | Z6: 0.3387345978 | AA6: 0.3165743905 | AB6: 0.2958639163 | AC6: 0.276508333 | AD6: 0.2584190028 | AE6: 0.2415130867 | AF6: 0.2257131652 | AG6: 0.2109468833 | AH6: 0.1971466199 | AI6: 0.1842491775 | AJ6: 0.172195493 | AK6: 0.1609303673 | AL6: 0.1504022124 | AM6: 0.1405628154 | AN6: 0.1313671172 | AO6: 0.1227730067 | AP6: 0.1147411277 | AQ6: 0.1072346988 | AR6: 0.1002193447 | AS6: 0.09366293897 | AT6: 0.08753545698 | AU6: 0.0818088383 | AV6: 0.07645685822 | AW6: 0.07145500769 | AX6: 0.06678038102 | AY6: 0.06241157104 | AZ6: 0.05832857107 | BA6: 0.05451268324 | BB6: 0.05094643294 | BC6: 0.04761348872 | BD6: 0.04449858759 | BE6: 0.04158746504 | BF6: 0.03886678976 | BG6: 0.03632410258 | BH6: 0.03394775942 | BI6: 0.03172687796 | BJ6: 0.02965128781 | BK6: 0.02771148394 | BL6: 0.02589858312 | BM6: 0.02420428329 | BN6: 0.0226208255 | BO6: 0.02114095841 | BP6: 0.01975790506 | BQ6: 0.01846533183 | BR6: 0.01725731947 | BS6: 0.01612833595 | BT6: 0.01507321117 | BU6: 0.01408711324 | BV6: 0.0131655264 | BW6: =(1+$I$6)^($J$3-BW3) -> 0.01230423028
H9: Total Cost
G10: ='3.1. BCAInputs'!G19 -> 1 | H10: =IF('3.1. BCAInputs'!H19<>"",'3.1. BCAInputs'!H19,"(blank)") -> (blank) | I10: =SUM(J10:BW10) -> 0 | J10: =IF($H10="(blank)",0,IFERROR(IF(AND(J$3-('3.1. BCAInputs'!$I19+'3.1. BCAInputs'!$J19-1)<1,J$3-('3.1. BCAInputs'!$I19+'3.1. BCAInputs'!$J19)>=-'3.1. BCAInputs'!$J19),INDEX('3.1. BCAInputs'!$L19:$AP19,1,MATCH(0,'3.1. BCAInputs'!$L$18:$AP$18,0))/'3.1. BCAInputs'!$J19,INDEX('3.1. BCAInputs'!$L19:$AP19,1,MATCH(J$3-('3.1. BCAInputs'!$I19+'3.1. BCAInputs'!$J19-1),'3.1. BCAInputs'!$L$18:$AP$18,0))),0)*J$4) -> 0 | K10: =IF($H10="(blank)",0,IFERROR(IF(AND(K$3-('3.1. BCAInputs'!$I19+'3.1. BCAInputs'!$J19-1)<1,K$3-('3.1. BCAInputs'!$I19+'3.1. BCAInputs'!$J19)>=-'3.1. BCAInputs'!$J19),INDEX('3.1. BCAInputs'!$L19:$AP19,1,MATCH(0,'3.1. BCAInputs'!$L$18:$AP$18,0))/'3.1. BCAInputs'!$J19,INDEX('3.1. BCAInputs'!$L19:$AP19,1,MATCH(K$3-('3.1. BCAInputs'!$I19+'3.1. BCAInputs'!$J19-1),'3.1. BCAInputs'!$L$18:$AP$18,0))),0)*K$4) -> 0 | L10: =IF($H10="(blank)",0,IFERROR(IF(AND(L$3-('3.1. BCAInputs'!$I19+'3.1. BCAInputs'!$J19-1)<1,L$3-('3.1. BCAInputs'!$I19+'3.1. BCAInputs'!$J19)>=-'3.1. BCAInputs'!$J19),INDEX('3.1. BCAInputs'!$L19:$AP19,1,MATCH(0,'3.1. BCAInputs'!$L$18:$AP$18,0))/'3.1. BCAInputs'!$J19,INDEX('3.1. BCAInputs'!$L19:$AP19,1,MATCH(L$3-('3.1. BCAInputs'!$I19+'3.1. BCAInputs'!$J19-1),'3.1. BCAInputs'!$L$18:$AP$18,0))),0)*L$4) -> 0 | M10: =IF($H10="(blank)",0,IFERROR(IF(AND(M$3-('3.1. BCAInputs'!$I19+'3.1. BCAInputs'!$J19-1)<1,M$3-('3.1. BCAInputs'!$I19+'3.1. BCAInputs'!$J19)>=-'3.1. BCAInputs'!$J19),INDEX('3.1. BCAInputs'!$L19:$AP19,1,MATCH(0,'3.1. BCAInputs'!$L$18:$AP$18,0))/'3.1. BCAInputs'!$J19,INDEX('3.1. BCAInputs'!$L19:$AP19,1,MATCH(M$3-('3.1. BCAInputs'!$I19+'3.1. BCAInputs'!$J19-1),'3.1. BCAInputs'!$L$18:$AP$18,0))),0)*M$4) -> 0 | N10: =IF($H10="(blank)",0,IFERROR(IF(AND(N$3-('3.1. BCAInputs'!$I19+'3.1. BCAInputs'!$J19-1)<1,N$3-('3.1. BCAInputs'!$I19+'3.1. BCAInputs'!$J19)>=-'3.1. BCAInputs'!$J19),INDEX('3.1. BCAInputs'!$L19:$AP19,1,MATCH(0,'3.1. BCAInputs'!$L$18:$AP$18,0))/'3.1. BCAInputs'!$J19,INDEX('3.1. BCAInputs'!$L19:$AP19,1,MATCH(N$3-('3.1. BCAInputs'!$I19+'3.1. BCAInputs'!$J19-1),'3.1. BCAInputs'!$L$18:$AP$18,0))),0)*N$4) -> 0 | O10: =IF($H10="(blank)",0,IFERROR(IF(AND(O$3-('3.1. BCAInputs'!$I19+'3.1. BCAInputs'!$J19-1)<1,O$3-('3.1. BCAInputs'!$I19+'3.1. BCAInputs'!$J19)>=-'3.1. BCAInputs'!$J19),INDEX('3.1. BCAInputs'!$L19:$AP19,1,MATCH(0,'3.1. BCAInputs'!$L$18:$AP$18,0))/'3.1. BCAInputs'!$J19,INDEX('3.1. BCAInputs'!$L19:$AP19,1,MATCH(O$3-('3.1. BCAInputs'!$I19+'3.1. BCAInputs'!$J19-1),'3.1. BCAInputs'!$L$18:$AP$18,0))),0)*O$4) -> 0 | P10: =IF($H10="(blank)",0,IFERROR(IF(AND(P$3-('3.1. BCAInputs'!$I19+'3.1. BCAInputs'!$J19-1)<1,P$3-('3.1. BCAInputs'!$I19+'3.1. BCAInputs'!$J19)>=-'3.1. BCAInputs'!$J19),INDEX('3.1. BCAInputs'!$L19:$AP19,1,MATCH(0,'3.1. BCAInputs'!$L$18:$AP$18,0))/'3.1. BCAInputs'!$J19,INDEX('3.1. BCAInputs'!$L19:$AP19,1,MATCH(P$3-('3.1. BCAInputs'!$I19+'3.1. BCAInputs'!$J19-1),'3.1. BCAInputs'!$L$18:$AP$18,0))),0)*P$4) -> 0 | Q10: =IF($H10="(blank)",0,IFERROR(IF(AND(Q$3-('3.1. BCAInputs'!$I19+'3.1. BCAInputs'!$J19-1)<1,Q$3-('3.1. BCAInputs'!$I19+'3.1. BCAInputs'!$J19)>=-'3.1. BCAInputs'!$J19),INDEX('3.1. BCAInputs'!$L19:$AP19,1,MATCH(0,'3.1. BCAInputs'!$L$18:$AP$18,0))/'3.1. BCAInputs'!$J19,INDEX('3.1. BCAInputs'!$L19:$AP19,1,MATCH(Q$3-('3.1. BCAInputs'!$I19+'3.1. BCAInputs'!$J19-1),'3.1. BCAInputs'!$L$18:$AP$18,0))),0)*Q$4) -> 0 | R10: =IF($H10="(blank)",0,IFERROR(IF(AND(R$3-('3.1. BCAInputs'!$I19+'3.1. BCAInputs'!$J19-1)<1,R$3-('3.1. BCAInputs'!$I19+'3.1. BCAInputs'!$J19)>=-'3.1. BCAInputs'!$J19),INDEX('3.1. BCAInputs'!$L19:$AP19,1,MATCH(0,'3.1. BCAInputs'!$L$18:$AP$18,0))/'3.1. BCAInputs'!$J19,INDEX('3.1. BCAInputs'!$L19:$AP19,1,MATCH(R$3-('3.1. BCAInputs'!$I19+'3.1. BCAInputs'!$J19-1),'3.1. BCAInputs'!$L$18:$AP$18,0))),0)*R$4) -> 0 | S10: =IF($H10="(blank)",0,IFERROR(IF(AND(S$3-('3.1. BCAInputs'!$I19+'3.1. BCAInputs'!$J19-1)<1,S$3-('3.1. BCAInputs'!$I19+'3.1. BCAInputs'!$J19)>=-'3.1. BCAInputs'!$J19),INDEX('3.1. BCAInputs'!$L19:$AP19,1,MATCH(0,'3.1. BCAInputs'!$L$18:$AP$18,0))/'3.1. BCAInputs'!$J19,INDEX('3.1. BCAInputs'!$L19:$AP19,1,MATCH(S$3-('3.1. BCAInputs'!$I19+'3.1. BCAInputs'!$J19-1),'3.1. BCAInputs'!$L$18:$AP$18,0))),0)*S$4) -> 0 | T10: =IF($H10="(blank)",0,IFERROR(IF(AND(T$3-('3.1. BCAInputs'!$I19+'3.1. BCAInputs'!$J19-1)<1,T$3-('3.1. BCAInputs'!$I19+'3.1. BCAInputs'!$J19)>=-'3.1. BCAInputs'!$J19),INDEX('3.1. BCAInputs'!$L19:$AP19,1,MATCH(0,'3.1. BCAInputs'!$L$18:$AP$18,0))/'3.1. BCAInputs'!$J19,INDEX('3.1. BCAInputs'!$L19:$AP19,1,MATCH(T$3-('3.1. BCAInputs'!$I19+'3.1. BCAInputs'!$J19-1),'3.1. BCAInputs'!$L$18:$AP$18,0))),0)*T$4) -> 0 | U10: =IF($H10="(blank)",0,IFERROR(IF(AND(U$3-('3.1. BCAInputs'!$I19+'3.1. BCAInputs'!$J19-1)<1,U$3-('3.1. BCAInputs'!$I19+'3.1. BCAInputs'!$J19)>=-'3.1. BCAInputs'!$J19),INDEX('3.1. BCAInputs'!$L19:$AP19,1,MATCH(0,'3.1. BCAInputs'!$L$18:$AP$18,0))/'3.1. BCAInputs'!$J19,INDEX('3.1. BCAInputs'!$L19:$AP19,1,MATCH(U$3-('3.1. BCAInputs'!$I19+'3.1. BCAInputs'!$J19-1),'3.1. BCAInputs'!$L$18:$AP$18,0))),0)*U$4) -> 0 | V10: =IF($H10="(blank)",0,IFERROR(IF(AND(V$3-('3.1. BCAInputs'!$I19+'3.1. BCAInputs'!$J19-1)<1,V$3-('3.1. BCAInputs'!$I19+'3.1. BCAInputs'!$J19)>=-'3.1. BCAInputs'!$J19),INDEX('3.1. BCAInputs'!$L19:$AP19,1,MATCH(0,'3.1. BCAInputs'!$L$18:$AP$18,0))/'3.1. BCAInputs'!$J19,INDEX('3.1. BCAInputs'!$L19:$AP19,1,MATCH(V$3-('3.1. BCAInputs'!$I19+'3.1. BCAInputs'!$J19-1),'3.1. BCAInputs'!$L$18:$AP$18,0))),0)*V$4) -> 0 | W10: =IF($H10="(blank)",0,IFERROR(IF(AND(W$3-('3.1. BCAInputs'!$I19+'3.1. BCAInputs'!$J19-1)<1,W$3-('3.1. BCAInputs'!$I19+'3.1. BCAInputs'!$J19)>=-'3.1. BCAInputs'!$J19),INDEX('3.1. BCAInputs'!$L19:$AP19,1,MATCH(0,'3.1. BCAInputs'!$L$18:$AP$18,0))/'3.1. BCAInputs'!$J19,INDEX('3.1. BCAInputs'!$L19:$AP19,1,MATCH(W$3-('3.1. BCAInputs'!$I19+'3.1. BCAInputs'!$J19-1),'3.1. BCAInputs'!$L$18:$AP$18,0))),0)*W$4) -> 0 | X10: =IF($H10="(blank)",0,IFERROR(IF(AND(X$3-('3.1. BCAInputs'!$I19+'3.1. BCAInputs'!$J19-1)<1,X$3-('3.1. BCAInputs'!$I19+'3.1. BCAInputs'!$J19)>=-'3.1. BCAInputs'!$J19),INDEX('3.1. BCAInputs'!$L19:$AP19,1,MATCH(0,'3.1. BCAInputs'!$L$18:$AP$18,0))/'3.1. BCAInputs'!$J19,INDEX('3.1. BCAInputs'!$L19:$AP19,1,MATCH(X$3-('3.1. BCAInputs'!$I19+'3.1. BCAInputs'!$J19-1),'3.1. BCAInputs'!$L$18:$AP$18,0))),0)*X$4) -> 0 | Y10: =IF($H10="(blank)",0,IFERROR(IF(AND(Y$3-('3.1. BCAInputs'!$I19+'3.1. BCAInputs'!$J19-1)<1,Y$3-('3.1. BCAInputs'!$I19+'3.1. BCAInputs'!$J19)>=-'3.1. BCAInputs'!$J19),INDEX('3.1. BCAInputs'!$L19:$AP19,1,MATCH(0,'3.1. BCAInputs'!$L$18:$AP$18,0))/'3.1. BCAInputs'!$J19,INDEX('3.1. BCAInputs'!$L19:$AP19,1,MATCH(Y$3-('3.1. BCAInputs'!$I19+'3.1. BCAInputs'!$J19-1),'3.1. BCAInputs'!$L$18:$AP$18,0))),0)*Y$4) -> 0 | Z10: =IF($H10="(blank)",0,IFERROR(IF(AND(Z$3-('3.1. BCAInputs'!$I19+'3.1. BCAInputs'!$J19-1)<1,Z$3-('3.1. BCAInputs'!$I19+'3.1. BCAInputs'!$J19)>=-'3.1. BCAInputs'!$J19),INDEX('3.1. BCAInputs'!$L19:$AP19,1,MATCH(0,'3.1. BCAInputs'!$L$18:$AP$18,0))/'3.1. BCAInputs'!$J19,INDEX('3.1. BCAInputs'!$L19:$AP19,1,MATCH(Z$3-('3.1. BCAInputs'!$I19+'3.1. BCAInputs'!$J19-1),'3.1. BCAInputs'!$L$18:$AP$18,0))),0)*Z$4) -> 0 | AA10: =IF($H10="(blank)",0,IFERROR(IF(AND(AA$3-('3.1. BCAInputs'!$I19+'3.1. BCAInputs'!$J19-1)<1,AA$3-('3.1. BCAInputs'!$I19+'3.1. BCAInputs'!$J19)>=-'3.1. BCAInputs'!$J19),INDEX('3.1. BCAInputs'!$L19:$AP19,1,MATCH(0,'3.1. BCAInputs'!$L$18:$AP$18,0))/'3.1. BCAInputs'!$J19,INDEX('3.1. BCAInputs'!$L19:$AP19,1,MATCH(AA$3-('3.1. BCAInputs'!$I19+'3.1. BCAInputs'!$J19-1),'3.1. BCAInputs'!$L$18:$AP$18,0))),0)*AA$4) -> 0 | AB10: =IF($H10="(blank)",0,IFERROR(IF(AND(AB$3-('3.1. BCAInputs'!$I19+'3.1. BCAInputs'!$J19-1)<1,AB$3-('3.1. BCAInputs'!$I19+'3.1. BCAInputs'!$J19)>=-'3.1. BCAInputs'!$J19),INDEX('3.1. BCAInputs'!$L19:$AP19,1,MATCH(0,'3.1. BCAInputs'!$L$18:$AP$18,0))/'3.1. BCAInputs'!$J19,INDEX('3.1. BCAInputs'!$L19:$AP19,1,MATCH(AB$3-('3.1. BCAInputs'!$I19+'3.1. BCAInputs'!$J19-1),'3.1. BCAInputs'!$L$18:$AP$18,0))),0)*AB$4) -> 0 | AC10: =IF($H10="(blank)",0,IFERROR(IF(AND(AC$3-('3.1. BCAInputs'!$I19+'3.1. BCAInputs'!$J19-1)<1,AC$3-('3.1. BCAInputs'!$I19+'3.1. BCAInputs'!$J19)>=-'3.1. BCAInputs'!$J19),INDEX('3.1. BCAInputs'!$L19:$AP19,1,MATCH(0,'3.1. BCAInputs'!$L$18:$AP$18,0))/'3.1. BCAInputs'!$J19,INDEX('3.1. BCAInputs'!$L19:$AP19,1,MATCH(AC$3-('3.1. BCAInputs'!$I19+'3.1. BCAInputs'!$J19-1),'3.1. BCAInputs'!$L$18:$AP$18,0))),0)*AC$4) -> 0 | AD10: =IF($H10="(blank)",0,IFERROR(IF(AND(AD$3-('3.1. BCAInputs'!$I19+'3.1. BCAInputs'!$J19-1)<1,AD$3-('3.1. BCAInputs'!$I19+'3.1. BCAInputs'!$J19)>=-'3.1. BCAInputs'!$J19),INDEX('3.1. BCAInputs'!$L19:$AP19,1,MATCH(0,'3.1. BCAInputs'!$L$18:$AP$18,0))/'3.1. BCAInputs'!$J19,INDEX('3.1. BCAInputs'!$L19:$AP19,1,MATCH(AD$3-('3.1. BCAInputs'!$I19+'3.1. BCAInputs'!$J19-1),'3.1. BCAInputs'!$L$18:$AP$18,0))),0)*AD$4) -> 0 | AE10: =IF($H10="(blank)",0,IFERROR(IF(AND(AE$3-('3.1. BCAInputs'!$I19+'3.1. BCAInputs'!$J19-1)<1,AE$3-('3.1. BCAInputs'!$I19+'3.1. BCAInputs'!$J19)>=-'3.1. BCAInputs'!$J19),INDEX('3.1. BCAInputs'!$L19:$AP19,1,MATCH(0,'3.1. BCAInputs'!$L$18:$AP$18,0))/'3.1. BCAInputs'!$J19,INDEX('3.1. BCAInputs'!$L19:$AP19,1,MATCH(AE$3-('3.1. BCAInputs'!$I19+'3.1. BCAInputs'!$J19-1),'3.1. BCAInputs'!$L$18:$AP$18,0))),0)*AE$4) -> 0 | AF10: =IF($H10="(blank)",0,IFERROR(IF(AND(AF$3-('3.1. BCAInputs'!$I19+'3.1. BCAInputs'!$J19-1)<1,AF$3-('3.1. BCAInputs'!$I19+'3.1. BCAInputs'!$J19)>=-'3.1. BCAInputs'!$J19),INDEX('3.1. BCAInputs'!$L19:$AP19,1,MATCH(0,'3.1. BCAInputs'!$L$18:$AP$18,0))/'3.1. BCAInputs'!$J19,INDEX('3.1. BCAInputs'!$L19:$AP19,1,MATCH(AF$3-('3.1. BCAInputs'!$I19+'3.1. BCAInputs'!$J19-1),'3.1. BCAInputs'!$L$18:$AP$18,0))),0)*AF$4) -> 0 | AG10: =IF($H10="(blank)",0,IFERROR(IF(AND(AG$3-('3.1. BCAInputs'!$I19+'3.1. BCAInputs'!$J19-1)<1,AG$3-('3.1. BCAInputs'!$I19+'3.1. BCAInputs'!$J19)>=-'3.1. BCAInputs'!$J19),INDEX('3.1. BCAInputs'!$L19:$AP19,1,MATCH(0,'3.1. BCAInputs'!$L$18:$AP$18,0))/'3.1. BCAInputs'!$J19,INDEX('3.1. BCAInputs'!$L19:$AP19,1,MATCH(AG$3-('3.1. BCAInputs'!$I19+'3.1. BCAInputs'!$J19-1),'3.1. BCAInputs'!$L$18:$AP$18,0))),0)*AG$4) -> 0 | AH10: =IF($H10="(blank)",0,IFERROR(IF(AND(AH$3-('3.1. BCAInputs'!$I19+'3.1. BCAInputs'!$J19-1)<1,AH$3-('3.1. BCAInputs'!$I19+'3.1. BCAInputs'!$J19)>=-'3.1. BCAInputs'!$J19),INDEX('3.1. BCAInputs'!$L19:$AP19,1,MATCH(0,'3.1. BCAInputs'!$L$18:$AP$18,0))/'3.1. BCAInputs'!$J19,INDEX('3.1. BCAInputs'!$L19:$AP19,1,MATCH(AH$3-('3.1. BCAInputs'!$I19+'3.1. BCAInputs'!$J19-1),'3.1. BCAInputs'!$L$18:$AP$18,0))),0)*AH$4) -> 0 | AI10: =IF($H10="(blank)",0,IFERROR(IF(AND(AI$3-('3.1. BCAInputs'!$I19+'3.1. BCAInputs'!$J19-1)<1,AI$3-('3.1. BCAInputs'!$I19+'3.1. BCAInputs'!$J19)>=-'3.1. BCAInputs'!$J19),INDEX('3.1. BCAInputs'!$L19:$AP19,1,MATCH(0,'3.1. BCAInputs'!$L$18:$AP$18,0))/'3.1. BCAInputs'!$J19,INDEX('3.1. BCAInputs'!$L19:$AP19,1,MATCH(AI$3-('3.1. BCAInputs'!$I19+'3.1. BCAInputs'!$J19-1),'3.1. BCAInputs'!$L$18:$AP$18,0))),0)*AI$4) -> 0 | AJ10: =IF($H10="(blank)",0,IFERROR(IF(AND(AJ$3-('3.1. BCAInputs'!$I19+'3.1. BCAInputs'!$J19-1)<1,AJ$3-('3.1. BCAInputs'!$I19+'3.1. BCAInputs'!$J19)>=-'3.1. BCAInputs'!$J19),INDEX('3.1. BCAInputs'!$L19:$AP19,1,MATCH(0,'3.1. BCAInputs'!$L$18:$AP$18,0))/'3.1. BCAInputs'!$J19,INDEX('3.1. BCAInputs'!$L19:$AP19,1,MATCH(AJ$3-('3.1. BCAInputs'!$I19+'3.1. BCAInputs'!$J19-1),'3.1. BCAInputs'!$L$18:$AP$18,0))),0)*AJ$4) -> 0 | AK10: =IF($H10="(blank)",0,IFERROR(IF(AND(AK$3-('3.1. BCAInputs'!$I19+'3.1. BCAInputs'!$J19-1)<1,AK$3-('3.1. BCAInputs'!$I19+'3.1. BCAInputs'!$J19)>=-'3.1. BCAInputs'!$J19),INDEX('3.1. BCAInputs'!$L19:$AP19,1,MATCH(0,'3.1. BCAInputs'!$L$18:$AP$18,0))/'3.1. BCAInputs'!$J19,INDEX('3.1. BCAInputs'!$L19:$AP19,1,MATCH(AK$3-('3.1. BCAInputs'!$I19+'3.1. BCAInputs'!$J19-1),'3.1. BCAInputs'!$L$18:$AP$18,0))),0)*AK$4) -> 0 | AL10: =IF($H10="(blank)",0,IFERROR(IF(AND(AL$3-('3.1. BCAInputs'!$I19+'3.1. BCAInputs'!$J19-1)<1,AL$3-('3.1. BCAInputs'!$I19+'3.1. BCAInputs'!$J19)>=-'3.1. BCAInputs'!$J19),INDEX('3.1. BCAInputs'!$L19:$AP19,1,MATCH(0,'3.1. BCAInputs'!$L$18:$AP$18,0))/'3.1. BCAInputs'!$J19,INDEX('3.1. BCAInputs'!$L19:$AP19,1,MATCH(AL$3-('3.1. BCAInputs'!$I19+'3.1. BCAInputs'!$J19-1),'3.1. BCAInputs'!$L$18:$AP$18,0))),0)*AL$4) -> 0 | AM10: =IF($H10="(blank)",0,IFERROR(IF(AND(AM$3-('3.1. BCAInputs'!$I19+'3.1. BCAInputs'!$J19-1)<1,AM$3-('3.1. BCAInputs'!$I19+'3.1. BCAInputs'!$J19)>=-'3.1. BCAInputs'!$J19),INDEX('3.1. BCAInputs'!$L19:$AP19,1,MATCH(0,'3.1. BCAInputs'!$L$18:$AP$18,0))/'3.1. BCAInputs'!$J19,INDEX('3.1. BCAInputs'!$L19:$AP19,1,MATCH(AM$3-('3.1. BCAInputs'!$I19+'3.1. BCAInputs'!$J19-1),'3.1. BCAInputs'!$L$18:$AP$18,0))),0)*AM$4) -> 0 | AN10: =IF($H10="(blank)",0,IFERROR(IF(AND(AN$3-('3.1. BCAInputs'!$I19+'3.1. BCAInputs'!$J19-1)<1,AN$3-('3.1. BCAInputs'!$I19+'3.1. BCAInputs'!$J19)>=-'3.1. BCAInputs'!$J19),INDEX('3.1. BCAInputs'!$L19:$AP19,1,MATCH(0,'3.1. BCAInputs'!$L$18:$AP$18,0))/'3.1. BCAInputs'!$J19,INDEX('3.1. BCAInputs'!$L19:$AP19,1,MATCH(AN$3-('3.1. BCAInputs'!$I19+'3.1. BCAInputs'!$J19-1),'3.1. BCAInputs'!$L$18:$AP$18,0))),0)*AN$4) -> 0 | AO10: =IF($H10="(blank)",0,IFERROR(IF(AND(AO$3-('3.1. BCAInputs'!$I19+'3.1. BCAInputs'!$J19-1)<1,AO$3-('3.1. BCAInputs'!$I19+'3.1. BCAInputs'!$J19)>=-'3.1. BCAInputs'!$J19),INDEX('3.1. BCAInputs'!$L19:$AP19,1,MATCH(0,'3.1. BCAInputs'!$L$18:$AP$18,0))/'3.1. BCAInputs'!$J19,INDEX('3.1. BCAInputs'!$L19:$AP19,1,MATCH(AO$3-('3.1. BCAInputs'!$I19+'3.1. BCAInputs'!$J19-1),'3.1. BCAInputs'!$L$18:$AP$18,0))),0)*AO$4) -> 0 | AP10: =IF($H10="(blank)",0,IFERROR(IF(AND(AP$3-('3.1. BCAInputs'!$I19+'3.1. BCAInputs'!$J19-1)<1,AP$3-('3.1. BCAInputs'!$I19+'3.1. BCAInputs'!$J19)>=-'3.1. BCAInputs'!$J19),INDEX('3.1. BCAInputs'!$L19:$AP19,1,MATCH(0,'3.1. BCAInputs'!$L$18:$AP$18,0))/'3.1. BCAInputs'!$J19,INDEX('3.1. BCAInputs'!$L19:$AP19,1,MATCH(AP$3-('3.1. BCAInputs'!$I19+'3.1. BCAInputs'!$J19-1),'3.1. BCAInputs'!$L$18:$AP$18,0))),0)*AP$4) -> 0 | AQ10: =IF($H10="(blank)",0,IFERROR(IF(AND(AQ$3-('3.1. BCAInputs'!$I19+'3.1. BCAInputs'!$J19-1)<1,AQ$3-('3.1. BCAInputs'!$I19+'3.1. BCAInputs'!$J19)>=-'3.1. BCAInputs'!$J19),INDEX('3.1. BCAInputs'!$L19:$AP19,1,MATCH(0,'3.1. BCAInputs'!$L$18:$AP$18,0))/'3.1. BCAInputs'!$J19,INDEX('3.1. BCAInputs'!$L19:$AP19,1,MATCH(AQ$3-('3.1. BCAInputs'!$I19+'3.1. BCAInputs'!$J19-1),'3.1. BCAInputs'!$L$18:$AP$18,0))),0)*AQ$4) -> 0 | AR10: =IF($H10="(blank)",0,IFERROR(IF(AND(AR$3-('3.1. BCAInputs'!$I19+'3.1. BCAInputs'!$J19-1)<1,AR$3-('3.1. BCAInputs'!$I19+'3.1. BCAInputs'!$J19)>=-'3.1. BCAInputs'!$J19),INDEX('3.1. BCAInputs'!$L19:$AP19,1,MATCH(0,'3.1. BCAInputs'!$L$18:$AP$18,0))/'3.1. BCAInputs'!$J19,INDEX('3.1. BCAInputs'!$L19:$AP19,1,MATCH(AR$3-('3.1. BCAInputs'!$I19+'3.1. BCAInputs'!$J19-1),'3.1. BCAInputs'!$L$18:$AP$18,0))),0)*AR$4) -> 0 | AS10: =IF($H10="(blank)",0,IFERROR(IF(AND(AS$3-('3.1. BCAInputs'!$I19+'3.1. BCAInputs'!$J19-1)<1,AS$3-('3.1. BCAInputs'!$I19+'3.1. BCAInputs'!$J19)>=-'3.1. BCAInputs'!$J19),INDEX('3.1. BCAInputs'!$L19:$AP19,1,MATCH(0,'3.1. BCAInputs'!$L$18:$AP$18,0))/'3.1. BCAInputs'!$J19,INDEX('3.1. BCAInputs'!$L19:$AP19,1,MATCH(AS$3-('3.1. BCAInputs'!$I19+'3.1. BCAInputs'!$J19-1),'3.1. BCAInputs'!$L$18:$AP$18,0))),0)*AS$4) -> 0 | AT10: =IF($H10="(blank)",0,IFERROR(IF(AND(AT$3-('3.1. BCAInputs'!$I19+'3.1. BCAInputs'!$J19-1)<1,AT$3-('3.1. BCAInputs'!$I19+'3.1. BCAInputs'!$J19)>=-'3.1. BCAInputs'!$J19),INDEX('3.1. BCAInputs'!$L19:$AP19,1,MATCH(0,'3.1. BCAInputs'!$L$18:$AP$18,0))/'3.1. BCAInputs'!$J19,INDEX('3.1. BCAInputs'!$L19:$AP19,1,MATCH(AT$3-('3.1. BCAInputs'!$I19+'3.1. BCAInputs'!$J19-1),'3.1. BCAInputs'!$L$18:$AP$18,0))),0)*AT$4) -> 0 | AU10: =IF($H10="(blank)",0,IFERROR(IF(AND(AU$3-('3.1. BCAInputs'!$I19+'3.1. BCAInputs'!$J19-1)<1,AU$3-('3.1. BCAInputs'!$I19+'3.1. BCAInputs'!$J19)>=-'3.1. BCAInputs'!$J19),INDEX('3.1. BCAInputs'!$L19:$AP19,1,MATCH(0,'3.1. BCAInputs'!$L$18:$AP$18,0))/'3.1. BCAInputs'!$J19,INDEX('3.1. BCAInputs'!$L19:$AP19,1,MATCH(AU$3-('3.1. BCAInputs'!$I19+'3.1. BCAInputs'!$J19-1),'3.1. BCAInputs'!$L$18:$AP$18,0))),0)*AU$4) -> 0 | AV10: =IF($H10="(blank)",0,IFERROR(IF(AND(AV$3-('3.1. BCAInputs'!$I19+'3.1. BCAInputs'!$J19-1)<1,AV$3-('3.1. BCAInputs'!$I19+'3.1. BCAInputs'!$J19)>=-'3.1. BCAInputs'!$J19),INDEX('3.1. BCAInputs'!$L19:$AP19,1,MATCH(0,'3.1. BCAInputs'!$L$18:$AP$18,0))/'3.1. BCAInputs'!$J19,INDEX('3.1. BCAInputs'!$L19:$AP19,1,MATCH(AV$3-('3.1. BCAInputs'!$I19+'3.1. BCAInputs'!$J19-1),'3.1. BCAInputs'!$L$18:$AP$18,0))),0)*AV$4) -> 0 | AW10: =IF($H10="(blank)",0,IFERROR(IF(AND(AW$3-('3.1. BCAInputs'!$I19+'3.1. BCAInputs'!$J19-1)<1,AW$3-('3.1. BCAInputs'!$I19+'3.1. BCAInputs'!$J19)>=-'3.1. BCAInputs'!$J19),INDEX('3.1. BCAInputs'!$L19:$AP19,1,MATCH(0,'3.1. BCAInputs'!$L$18:$AP$18,0))/'3.1. BCAInputs'!$J19,INDEX('3.1. BCAInputs'!$L19:$AP19,1,MATCH(AW$3-('3.1. BCAInputs'!$I19+'3.1. BCAInputs'!$J19-1),'3.1. BCAInputs'!$L$18:$AP$18,0))),0)*AW$4) -> 0 | AX10: =IF($H10="(blank)",0,IFERROR(IF(AND(AX$3-('3.1. BCAInputs'!$I19+'3.1. BCAInputs'!$J19-1)<1,AX$3-('3.1. BCAInputs'!$I19+'3.1. BCAInputs'!$J19)>=-'3.1. BCAInputs'!$J19),INDEX('3.1. BCAInputs'!$L19:$AP19,1,MATCH(0,'3.1. BCAInputs'!$L$18:$AP$18,0))/'3.1. BCAInputs'!$J19,INDEX('3.1. BCAInputs'!$L19:$AP19,1,MATCH(AX$3-('3.1. BCAInputs'!$I19+'3.1. BCAInputs'!$J19-1),'3.1. BCAInputs'!$L$18:$AP$18,0))),0)*AX$4) -> 0 | AY10: =IF($H10="(blank)",0,IFERROR(IF(AND(AY$3-('3.1. BCAInputs'!$I19+'3.1. BCAInputs'!$J19-1)<1,AY$3-('3.1. BCAInputs'!$I19+'3.1. BCAInputs'!$J19)>=-'3.1. BCAInputs'!$J19),INDEX('3.1. BCAInputs'!$L19:$AP19,1,MATCH(0,'3.1. BCAInputs'!$L$18:$AP$18,0))/'3.1. BCAInputs'!$J19,INDEX('3.1. BCAInputs'!$L19:$AP19,1,MATCH(AY$3-('3.1. BCAInputs'!$I19+'3.1. BCAInputs'!$J19-1),'3.1. BCAInputs'!$L$18:$AP$18,0))),0)*AY$4) -> 0 | AZ10: =IF($H10="(blank)",0,IFERROR(IF(AND(AZ$3-('3.1. BCAInputs'!$I19+'3.1. BCAInputs'!$J19-1)<1,AZ$3-('3.1. BCAInputs'!$I19+'3.1. BCAInputs'!$J19)>=-'3.1. BCAInputs'!$J19),INDEX('3.1. BCAInputs'!$L19:$AP19,1,MATCH(0,'3.1. BCAInputs'!$L$18:$AP$18,0))/'3.1. BCAInputs'!$J19,INDEX('3.1. BCAInputs'!$L19:$AP19,1,MATCH(AZ$3-('3.1. BCAInputs'!$I19+'3.1. BCAInputs'!$J19-1),'3.1. BCAInputs'!$L$18:$AP$18,0))),0)*AZ$4) -> 0 | BA10: =IF($H10="(blank)",0,IFERROR(IF(AND(BA$3-('3.1. BCAInputs'!$I19+'3.1. BCAInputs'!$J19-1)<1,BA$3-('3.1. BCAInputs'!$I19+'3.1. BCAInputs'!$J19)>=-'3.1. BCAInputs'!$J19),INDEX('3.1. BCAInputs'!$L19:$AP19,1,MATCH(0,'3.1. BCAInputs'!$L$18:$AP$18,0))/'3.1. BCAInputs'!$J19,INDEX('3.1. BCAInputs'!$L19:$AP19,1,MATCH(BA$3-('3.1. BCAInputs'!$I19+'3.1. BCAInputs'!$J19-1),'3.1. BCAInputs'!$L$18:$AP$18,0))),0)*BA$4) -> 0 | BB10: =IF($H10="(blank)",0,IFERROR(IF(AND(BB$3-('3.1. BCAInputs'!$I19+'3.1. BCAInputs'!$J19-1)<1,BB$3-('3.1. BCAInputs'!$I19+'3.1. BCAInputs'!$J19)>=-'3.1. BCAInputs'!$J19),INDEX('3.1. BCAInputs'!$L19:$AP19,1,MATCH(0,'3.1. BCAInputs'!$L$18:$AP$18,0))/'3.1. BCAInputs'!$J19,INDEX('3.1. BCAInputs'!$L19:$AP19,1,MATCH(BB$3-('3.1. BCAInputs'!$I19+'3.1. BCAInputs'!$J19-1),'3.1. BCAInputs'!$L$18:$AP$18,0))),0)*BB$4) -> 0 | BC10: =IF($H10="(blank)",0,IFERROR(IF(AND(BC$3-('3.1. BCAInputs'!$I19+'3.1. BCAInputs'!$J19-1)<1,BC$3-('3.1. BCAInputs'!$I19+'3.1. BCAInputs'!$J19)>=-'3.1. BCAInputs'!$J19),INDEX('3.1. BCAInputs'!$L19:$AP19,1,MATCH(0,'3.1. BCAInputs'!$L$18:$AP$18,0))/'3.1. BCAInputs'!$J19,INDEX('3.1. BCAInputs'!$L19:$AP19,1,MATCH(BC$3-('3.1. BCAInputs'!$I19+'3.1. BCAInputs'!$J19-1),'3.1. BCAInputs'!$L$18:$AP$18,0))),0)*BC$4) -> 0 | BD10: =IF($H10="(blank)",0,IFERROR(IF(AND(BD$3-('3.1. BCAInputs'!$I19+'3.1. BCAInputs'!$J19-1)<1,BD$3-('3.1. BCAInputs'!$I19+'3.1. BCAInputs'!$J19)>=-'3.1. BCAInputs'!$J19),INDEX('3.1. BCAInputs'!$L19:$AP19,1,MATCH(0,'3.1. BCAInputs'!$L$18:$AP$18,0))/'3.1. BCAInputs'!$J19,INDEX('3.1. BCAInputs'!$L19:$AP19,1,MATCH(BD$3-('3.1. BCAInputs'!$I19+'3.1. BCAInputs'!$J19-1),'3.1. BCAInputs'!$L$18:$AP$18,0))),0)*BD$4) -> 0 | BE10: =IF($H10="(blank)",0,IFERROR(IF(AND(BE$3-('3.1. BCAInputs'!$I19+'3.1. BCAInputs'!$J19-1)<1,BE$3-('3.1. BCAInputs'!$I19+'3.1. BCAInputs'!$J19)>=-'3.1. BCAInputs'!$J19),INDEX('3.1. BCAInputs'!$L19:$AP19,1,MATCH(0,'3.1. BCAInputs'!$L$18:$AP$18,0))/'3.1. BCAInputs'!$J19,INDEX('3.1. BCAInputs'!$L19:$AP19,1,MATCH(BE$3-('3.1. BCAInputs'!$I19+'3.1. BCAInputs'!$J19-1),'3.1. BCAInputs'!$L$18:$AP$18,0))),0)*BE$4) -> 0 | BF10: =IF($H10="(blank)",0,IFERROR(IF(AND(BF$3-('3.1. BCAInputs'!$I19+'3.1. BCAInputs'!$J19-1)<1,BF$3-('3.1. BCAInputs'!$I19+'3.1. BCAInputs'!$J19)>=-'3.1. BCAInputs'!$J19),INDEX('3.1. BCAInputs'!$L19:$AP19,1,MATCH(0,'3.1. BCAInputs'!$L$18:$AP$18,0))/'3.1. BCAInputs'!$J19,INDEX('3.1. BCAInputs'!$L19:$AP19,1,MATCH(BF$3-('3.1. BCAInputs'!$I19+'3.1. BCAInputs'!$J19-1),'3.1. BCAInputs'!$L$18:$AP$18,0))),0)*BF$4) -> 0 | BG10: =IF($H10="(blank)",0,IFERROR(IF(AND(BG$3-('3.1. BCAInputs'!$I19+'3.1. BCAInputs'!$J19-1)<1,BG$3-('3.1. BCAInputs'!$I19+'3.1. BCAInputs'!$J19)>=-'3.1. BCAInputs'!$J19),INDEX('3.1. BCAInputs'!$L19:$AP19,1,MATCH(0,'3.1. BCAInputs'!$L$18:$AP$18,0))/'3.1. BCAInputs'!$J19,INDEX('3.1. BCAInputs'!$L19:$AP19,1,MATCH(BG$3-('3.1. BCAInputs'!$I19+'3.1. BCAInputs'!$J19-1),'3.1. BCAInputs'!$L$18:$AP$18,0))),0)*BG$4) -> 0 | BH10: =IF($H10="(blank)",0,IFERROR(IF(AND(BH$3-('3.1. BCAInputs'!$I19+'3.1. BCAInputs'!$J19-1)<1,BH$3-('3.1. BCAInputs'!$I19+'3.1. BCAInputs'!$J19)>=-'3.1. BCAInputs'!$J19),INDEX('3.1. BCAInputs'!$L19:$AP19,1,MATCH(0,'3.1. BCAInputs'!$L$18:$AP$18,0))/'3.1. BCAInputs'!$J19,INDEX('3.1. BCAInputs'!$L19:$AP19,1,MATCH(BH$3-('3.1. BCAInputs'!$I19+'3.1. BCAInputs'!$J19-1),'3.1. BCAInputs'!$L$18:$AP$18,0))),0)*BH$4) -> 0 | BI10: =IF($H10="(blank)",0,IFERROR(IF(AND(BI$3-('3.1. BCAInputs'!$I19+'3.1. BCAInputs'!$J19-1)<1,BI$3-('3.1. BCAInputs'!$I19+'3.1. BCAInputs'!$J19)>=-'3.1. BCAInputs'!$J19),INDEX('3.1. BCAInputs'!$L19:$AP19,1,MATCH(0,'3.1. BCAInputs'!$L$18:$AP$18,0))/'3.1. BCAInputs'!$J19,INDEX('3.1. BCAInputs'!$L19:$AP19,1,MATCH(BI$3-('3.1. BCAInputs'!$I19+'3.1. BCAInputs'!$J19-1),'3.1. BCAInputs'!$L$18:$AP$18,0))),0)*BI$4) -> 0 | BJ10: =IF($H10="(blank)",0,IFERROR(IF(AND(BJ$3-('3.1. BCAInputs'!$I19+'3.1. BCAInputs'!$J19-1)<1,BJ$3-('3.1. BCAInputs'!$I19+'3.1. BCAInputs'!$J19)>=-'3.1. BCAInputs'!$J19),INDEX('3.1. BCAInputs'!$L19:$AP19,1,MATCH(0,'3.1. BCAInputs'!$L$18:$AP$18,0))/'3.1. BCAInputs'!$J19,INDEX('3.1. BCAInputs'!$L19:$AP19,1,MATCH(BJ$3-('3.1. BCAInputs'!$I19+'3.1. BCAInputs'!$J19-1),'3.1. BCAInputs'!$L$18:$AP$18,0))),0)*BJ$4) -> 0 | BK10: =IF($H10="(blank)",0,IFERROR(IF(AND(BK$3-('3.1. BCAInputs'!$I19+'3.1. BCAInputs'!$J19-1)<1,BK$3-('3.1. BCAInputs'!$I19+'3.1. BCAInputs'!$J19)>=-'3.1. BCAInputs'!$J19),INDEX('3.1. BCAInputs'!$L19:$AP19,1,MATCH(0,'3.1. BCAInputs'!$L$18:$AP$18,0))/'3.1. BCAInputs'!$J19,INDEX('3.1. BCAInputs'!$L19:$AP19,1,MATCH(BK$3-('3.1. BCAInputs'!$I19+'3.1. BCAInputs'!$J19-1),'3.1. BCAInputs'!$L$18:$AP$18,0))),0)*BK$4) -> 0 | BL10: =IF($H10="(blank)",0,IFERROR(IF(AND(BL$3-('3.1. BCAInputs'!$I19+'3.1. BCAInputs'!$J19-1)<1,BL$3-('3.1. BCAInputs'!$I19+'3.1. BCAInputs'!$J19)>=-'3.1. BCAInputs'!$J19),INDEX('3.1. BCAInputs'!$L19:$AP19,1,MATCH(0,'3.1. BCAInputs'!$L$18:$AP$18,0))/'3.1. BCAInputs'!$J19,INDEX('3.1. BCAInputs'!$L19:$AP19,1,MATCH(BL$3-('3.1. BCAInputs'!$I19+'3.1. BCAInputs'!$J19-1),'3.1. BCAInputs'!$L$18:$AP$18,0))),0)*BL$4) -> 0 | BM10: =IF($H10="(blank)",0,IFERROR(IF(AND(BM$3-('3.1. BCAInputs'!$I19+'3.1. BCAInputs'!$J19-1)<1,BM$3-('3.1. BCAInputs'!$I19+'3.1. BCAInputs'!$J19)>=-'3.1. BCAInputs'!$J19),INDEX('3.1. BCAInputs'!$L19:$AP19,1,MATCH(0,'3.1. BCAInputs'!$L$18:$AP$18,0))/'3.1. BCAInputs'!$J19,INDEX('3.1. BCAInputs'!$L19:$AP19,1,MATCH(BM$3-('3.1. BCAInputs'!$I19+'3.1. BCAInputs'!$J19-1),'3.1. BCAInputs'!$L$18:$AP$18,0))),0)*BM$4) -> 0 | BN10: =IF($H10="(blank)",0,IFERROR(IF(AND(BN$3-('3.1. BCAInputs'!$I19+'3.1. BCAInputs'!$J19-1)<1,BN$3-('3.1. BCAInputs'!$I19+'3.1. BCAInputs'!$J19)>=-'3.1. BCAInputs'!$J19),INDEX('3.1. BCAInputs'!$L19:$AP19,1,MATCH(0,'3.1. BCAInputs'!$L$18:$AP$18,0))/'3.1. BCAInputs'!$J19,INDEX('3.1. BCAInputs'!$L19:$AP19,1,MATCH(BN$3-('3.1. BCAInputs'!$I19+'3.1. BCAInputs'!$J19-1),'3.1. BCAInputs'!$L$18:$AP$18,0))),0)*BN$4) -> 0 | BO10: =IF($H10="(blank)",0,IFERROR(IF(AND(BO$3-('3.1. BCAInputs'!$I19+'3.1. BCAInputs'!$J19-1)<1,BO$3-('3.1. BCAInputs'!$I19+'3.1. BCAInputs'!$J19)>=-'3.1. BCAInputs'!$J19),INDEX('3.1. BCAInputs'!$L19:$AP19,1,MATCH(0,'3.1. BCAInputs'!$L$18:$AP$18,0))/'3.1. BCAInputs'!$J19,INDEX('3.1. BCAInputs'!$L19:$AP19,1,MATCH(BO$3-('3.1. BCAInputs'!$I19+'3.1. BCAInputs'!$J19-1),'3.1. BCAInputs'!$L$18:$AP$18,0))),0)*BO$4) -> 0 | BP10: =IF($H10="(blank)",0,IFERROR(IF(AND(BP$3-('3.1. BCAInputs'!$I19+'3.1. BCAInputs'!$J19-1)<1,BP$3-('3.1. BCAInputs'!$I19+'3.1. BCAInputs'!$J19)>=-'3.1. BCAInputs'!$J19),INDEX('3.1. BCAInputs'!$L19:$AP19,1,MATCH(0,'3.1. BCAInputs'!$L$18:$AP$18,0))/'3.1. BCAInputs'!$J19,INDEX('3.1. BCAInputs'!$L19:$AP19,1,MATCH(BP$3-('3.1. BCAInputs'!$I19+'3.1. BCAInputs'!$J19-1),'3.1. BCAInputs'!$L$18:$AP$18,0))),0)*BP$4) -> 0 | BQ10: =IF($H10="(blank)",0,IFERROR(IF(AND(BQ$3-('3.1. BCAInputs'!$I19+'3.1. BCAInputs'!$J19-1)<1,BQ$3-('3.1. BCAInputs'!$I19+'3.1. BCAInputs'!$J19)>=-'3.1. BCAInputs'!$J19),INDEX('3.1. BCAInputs'!$L19:$AP19,1,MATCH(0,'3.1. BCAInputs'!$L$18:$AP$18,0))/'3.1. BCAInputs'!$J19,INDEX('3.1. BCAInputs'!$L19:$AP19,1,MATCH(BQ$3-('3.1. BCAInputs'!$I19+'3.1. BCAInputs'!$J19-1),'3.1. BCAInputs'!$L$18:$AP$18,0))),0)*BQ$4) -> 0 | BR10: =IF($H10="(blank)",0,IFERROR(IF(AND(BR$3-('3.1. BCAInputs'!$I19+'3.1. BCAInputs'!$J19-1)<1,BR$3-('3.1. BCAInputs'!$I19+'3.1. BCAInputs'!$J19)>=-'3.1. BCAInputs'!$J19),INDEX('3.1. BCAInputs'!$L19:$AP19,1,MATCH(0,'3.1. BCAInputs'!$L$18:$AP$18,0))/'3.1. BCAInputs'!$J19,INDEX('3.1. BCAInputs'!$L19:$AP19,1,MATCH(BR$3-('3.1. BCAInputs'!$I19+'3.1. BCAInputs'!$J19-1),'3.1. BCAInputs'!$L$18:$AP$18,0))),0)*BR$4) -> 0 | BS10: =IF($H10="(blank)",0,IFERROR(IF(AND(BS$3-('3.1. BCAInputs'!$I19+'3.1. BCAInputs'!$J19-1)<1,BS$3-('3.1. BCAInputs'!$I19+'3.1. BCAInputs'!$J19)>=-'3.1. BCAInputs'!$J19),INDEX('3.1. BCAInputs'!$L19:$AP19,1,MATCH(0,'3.1. BCAInputs'!$L$18:$AP$18,0))/'3.1. BCAInputs'!$J19,INDEX('3.1. BCAInputs'!$L19:$AP19,1,MATCH(BS$3-('3.1. BCAInputs'!$I19+'3.1. BCAInputs'!$J19-1),'3.1. BCAInputs'!$L$18:$AP$18,0))),0)*BS$4) -> 0 | BT10: =IF($H10="(blank)",0,IFERROR(IF(AND(BT$3-('3.1. BCAInputs'!$I19+'3.1. BCAInputs'!$J19-1)<1,BT$3-('3.1. BCAInputs'!$I19+'3.1. BCAInputs'!$J19)>=-'3.1. BCAInputs'!$J19),INDEX('3.1. BCAInputs'!$L19:$AP19,1,MATCH(0,'3.1. BCAInputs'!$L$18:$AP$18,0))/'3.1. BCAInputs'!$J19,INDEX('3.1. BCAInputs'!$L19:$AP19,1,MATCH(BT$3-('3.1. BCAInputs'!$I19+'3.1. BCAInputs'!$J19-1),'3.1. BCAInputs'!$L$18:$AP$18,0))),0)*BT$4) -> 0 | BU10: =IF($H10="(blank)",0,IFERROR(IF(AND(BU$3-('3.1. BCAInputs'!$I19+'3.1. BCAInputs'!$J19-1)<1,BU$3-('3.1. BCAInputs'!$I19+'3.1. BCAInputs'!$J19)>=-'3.1. BCAInputs'!$J19),INDEX('3.1. BCAInputs'!$L19:$AP19,1,MATCH(0,'3.1. BCAInputs'!$L$18:$AP$18,0))/'3.1. BCAInputs'!$J19,INDEX('3.1. BCAInputs'!$L19:$AP19,1,MATCH(BU$3-('3.1. BCAInputs'!$I19+'3.1. BCAInputs'!$J19-1),'3.1. BCAInputs'!$L$18:$AP$18,0))),0)*BU$4) -> 0 | BV10: =IF($H10="(blank)",0,IFERROR(IF(AND(BV$3-('3.1. BCAInputs'!$I19+'3.1. BCAInputs'!$J19-1)<1,BV$3-('3.1. BCAInputs'!$I19+'3.1. BCAInputs'!$J19)>=-'3.1. BCAInputs'!$J19),INDEX('3.1. BCAInputs'!$L19:$AP19,1,MATCH(0,'3.1. BCAInputs'!$L$18:$AP$18,0))/'3.1. BCAInputs'!$J19,INDEX('3.1. BCAInputs'!$L19:$AP19,1,MATCH(BV$3-('3.1. BCAInputs'!$I19+'3.1. BCAInputs'!$J19-1),'3.1. BCAInputs'!$L$18:$AP$18,0))),0)*BV$4) -> 0 | BW10: =IF($H10="(blank)",0,IFERROR(IF(AND(BW$3-('3.1. BCAInputs'!$I19+'3.1. BCAInputs'!$J19-1)<1,BW$3-('3.1. BCAInputs'!$I19+'3.1. BCAInputs'!$J19)>=-'3.1. BCAInputs'!$J19),INDEX('3.1. BCAInputs'!$L19:$AP19,1,MATCH(0,'3.1. BCAInputs'!$L$18:$AP$18,0))/'3.1. BCAInputs'!$J19,INDEX('3.1. BCAInputs'!$L19:$AP19,1,MATCH(BW$3-('3.1. BCAInputs'!$I19+'3.1. BCAInputs'!$J19-1),'3.1. BCAInputs'!$L$18:$AP$18,0))),0)*BW$4) -> 0
G11: ='3.1. BCAInputs'!G20 -> 2 | H11: =IF('3.1. BCAInputs'!H20<>"",'3.1. BCAInputs'!H20,"(blank)") -> (blank) | I11: =SUM(J11:BW11) -> 0 | J11: =IF($H11="(blank)",0,IFERROR(IF(AND(J$3-('3.1. BCAInputs'!$I20+'3.1. BCAInputs'!$J20-1)<1,J$3-('3.1. BCAInputs'!$I20+'3.1. BCAInputs'!$J20)>=-'3.1. BCAInputs'!$J20),INDEX('3.1. BCAInputs'!$L20:$AP20,1,MATCH(0,'3.1. BCAInputs'!$L$18:$AP$18,0))/'3.1. BCAInputs'!$J20,INDEX('3.1. BCAInputs'!$L20:$AP20,1,MATCH(J$3-('3.1. BCAInputs'!$I20+'3.1. BCAInputs'!$J20-1),'3.1. BCAInputs'!$L$18:$AP$18,0))),0)*J$4) -> 0 | K11: =IF($H11="(blank)",0,IFERROR(IF(AND(K$3-('3.1. BCAInputs'!$I20+'3.1. BCAInputs'!$J20-1)<1,K$3-('3.1. BCAInputs'!$I20+'3.1. BCAInputs'!$J20)>=-'3.1. BCAInputs'!$J20),INDEX('3.1. BCAInputs'!$L20:$AP20,1,MATCH(0,'3.1. BCAInputs'!$L$18:$AP$18,0))/'3.1. BCAInputs'!$J20,INDEX('3.1. BCAInputs'!$L20:$AP20,1,MATCH(K$3-('3.1. BCAInputs'!$I20+'3.1. BCAInputs'!$J20-1),'3.1. BCAInputs'!$L$18:$AP$18,0))),0)*K$4) -> 0 | L11: =IF($H11="(blank)",0,IFERROR(IF(AND(L$3-('3.1. BCAInputs'!$I20+'3.1. BCAInputs'!$J20-1)<1,L$3-('3.1. BCAInputs'!$I20+'3.1. BCAInputs'!$J20)>=-'3.1. BCAInputs'!$J20),INDEX('3.1. BCAInputs'!$L20:$AP20,1,MATCH(0,'3.1. BCAInputs'!$L$18:$AP$18,0))/'3.1. BCAInputs'!$J20,INDEX('3.1. BCAInputs'!$L20:$AP20,1,MATCH(L$3-('3.1. BCAInputs'!$I20+'3.1. BCAInputs'!$J20-1),'3.1. BCAInputs'!$L$18:$AP$18,0))),0)*L$4) -> 0 | M11: =IF($H11="(blank)",0,IFERROR(IF(AND(M$3-('3.1. BCAInputs'!$I20+'3.1. BCAInputs'!$J20-1)<1,M$3-('3.1. BCAInputs'!$I20+'3.1. BCAInputs'!$J20)>=-'3.1. BCAInputs'!$J20),INDEX('3.1. BCAInputs'!$L20:$AP20,1,MATCH(0,'3.1. BCAInputs'!$L$18:$AP$18,0))/'3.1. BCAInputs'!$J20,INDEX('3.1. BCAInputs'!$L20:$AP20,1,MATCH(M$3-('3.1. BCAInputs'!$I20+'3.1. BCAInputs'!$J20-1),'3.1. BCAInputs'!$L$18:$AP$18,0))),0)*M$4) -> 0 | N11: =IF($H11="(blank)",0,IFERROR(IF(AND(N$3-('3.1. BCAInputs'!$I20+'3.1. BCAInputs'!$J20-1)<1,N$3-('3.1. BCAInputs'!$I20+'3.1. BCAInputs'!$J20)>=-'3.1. BCAInputs'!$J20),INDEX('3.1. BCAInputs'!$L20:$AP20,1,MATCH(0,'3.1. BCAInputs'!$L$18:$AP$18,0))/'3.1. BCAInputs'!$J20,INDEX('3.1. BCAInputs'!$L20:$AP20,1,MATCH(N$3-('3.1. BCAInputs'!$I20+'3.1. BCAInputs'!$J20-1),'3.1. BCAInputs'!$L$18:$AP$18,0))),0)*N$4) -> 0 | O11: =IF($H11="(blank)",0,IFERROR(IF(AND(O$3-('3.1. BCAInputs'!$I20+'3.1. BCAInputs'!$J20-1)<1,O$3-('3.1. BCAInputs'!$I20+'3.1. BCAInputs'!$J20)>=-'3.1. BCAInputs'!$J20),INDEX('3.1. BCAInputs'!$L20:$AP20,1,MATCH(0,'3.1. BCAInputs'!$L$18:$AP$18,0))/'3.1. BCAInputs'!$J20,INDEX('3.1. BCAInputs'!$L20:$AP20,1,MATCH(O$3-('3.1. BCAInputs'!$I20+'3.1. BCAInputs'!$J20-1),'3.1. BCAInputs'!$L$18:$AP$18,0))),0)*O$4) -> 0 | P11: =IF($H11="(blank)",0,IFERROR(IF(AND(P$3-('3.1. BCAInputs'!$I20+'3.1. BCAInputs'!$J20-1)<1,P$3-('3.1. BCAInputs'!$I20+'3.1. BCAInputs'!$J20)>=-'3.1. BCAInputs'!$J20),INDEX('3.1. BCAInputs'!$L20:$AP20,1,MATCH(0,'3.1. BCAInputs'!$L$18:$AP$18,0))/'3.1. BCAInputs'!$J20,INDEX('3.1. BCAInputs'!$L20:$AP20,1,MATCH(P$3-('3.1. BCAInputs'!$I20+'3.1. BCAInputs'!$J20-1),'3.1. BCAInputs'!$L$18:$AP$18,0))),0)*P$4) -> 0 | Q11: =IF($H11="(blank)",0,IFERROR(IF(AND(Q$3-('3.1. BCAInputs'!$I20+'3.1. BCAInputs'!$J20-1)<1,Q$3-('3.1. BCAInputs'!$I20+'3.1. BCAInputs'!$J20)>=-'3.1. BCAInputs'!$J20),INDEX('3.1. BCAInputs'!$L20:$AP20,1,MATCH(0,'3.1. BCAInputs'!$L$18:$AP$18,0))/'3.1. BCAInputs'!$J20,INDEX('3.1. BCAInputs'!$L20:$AP20,1,MATCH(Q$3-('3.1. BCAInputs'!$I20+'3.1. BCAInputs'!$J20-1),'3.1. BCAInputs'!$L$18:$AP$18,0))),0)*Q$4) -> 0 | R11: =IF($H11="(blank)",0,IFERROR(IF(AND(R$3-('3.1. BCAInputs'!$I20+'3.1. BCAInputs'!$J20-1)<1,R$3-('3.1. BCAInputs'!$I20+'3.1. BCAInputs'!$J20)>=-'3.1. BCAInputs'!$J20),INDEX('3.1. BCAInputs'!$L20:$AP20,1,MATCH(0,'3.1. BCAInputs'!$L$18:$AP$18,0))/'3.1. BCAInputs'!$J20,INDEX('3.1. BCAInputs'!$L20:$AP20,1,MATCH(R$3-('3.1. BCAInputs'!$I20+'3.1. BCAInputs'!$J20-1),'3.1. BCAInputs'!$L$18:$AP$18,0))),0)*R$4) -> 0 | S11: =IF($H11="(blank)",0,IFERROR(IF(AND(S$3-('3.1. BCAInputs'!$I20+'3.1. BCAInputs'!$J20-1)<1,S$3-('3.1. BCAInputs'!$I20+'3.1. BCAInputs'!$J20)>=-'3.1. BCAInputs'!$J20),INDEX('3.1. BCAInputs'!$L20:$AP20,1,MATCH(0,'3.1. BCAInputs'!$L$18:$AP$18,0))/'3.1. BCAInputs'!$J20,INDEX('3.1. BCAInputs'!$L20:$AP20,1,MATCH(S$3-('3.1. BCAInputs'!$I20+'3.1. BCAInputs'!$J20-1),'3.1. BCAInputs'!$L$18:$AP$18,0))),0)*S$4) -> 0 | T11: =IF($H11="(blank)",0,IFERROR(IF(AND(T$3-('3.1. BCAInputs'!$I20+'3.1. BCAInputs'!$J20-1)<1,T$3-('3.1. BCAInputs'!$I20+'3.1. BCAInputs'!$J20)>=-'3.1. BCAInputs'!$J20),INDEX('3.1. BCAInputs'!$L20:$AP20,1,MATCH(0,'3.1. BCAInputs'!$L$18:$AP$18,0))/'3.1. BCAInputs'!$J20,INDEX('3.1. BCAInputs'!$L20:$AP20,1,MATCH(T$3-('3.1. BCAInputs'!$I20+'3.1. BCAInputs'!$J20-1),'3.1. BCAInputs'!$L$18:$AP$18,0))),0)*T$4) -> 0 | U11: =IF($H11="(blank)",0,IFERROR(IF(AND(U$3-('3.1. BCAInputs'!$I20+'3.1. BCAInputs'!$J20-1)<1,U$3-('3.1. BCAInputs'!$I20+'3.1. BCAInputs'!$J20)>=-'3.1. BCAInputs'!$J20),INDEX('3.1. BCAInputs'!$L20:$AP20,1,MATCH(0,'3.1. BCAInputs'!$L$18:$AP$18,0))/'3.1. BCAInputs'!$J20,INDEX('3.1. BCAInputs'!$L20:$AP20,1,MATCH(U$3-('3.1. BCAInputs'!$I20+'3.1. BCAInputs'!$J20-1),'3.1. BCAInputs'!$L$18:$AP$18,0))),0)*U$4) -> 0 | V11: =IF($H11="(blank)",0,IFERROR(IF(AND(V$3-('3.1. BCAInputs'!$I20+'3.1. BCAInputs'!$J20-1)<1,V$3-('3.1. BCAInputs'!$I20+'3.1. BCAInputs'!$J20)>=-'3.1. BCAInputs'!$J20),INDEX('3.1. BCAInputs'!$L20:$AP20,1,MATCH(0,'3.1. BCAInputs'!$L$18:$AP$18,0))/'3.1. BCAInputs'!$J20,INDEX('3.1. BCAInputs'!$L20:$AP20,1,MATCH(V$3-('3.1. BCAInputs'!$I20+'3.1. BCAInputs'!$J20-1),'3.1. BCAInputs'!$L$18:$AP$18,0))),0)*V$4) -> 0 | W11: =IF($H11="(blank)",0,IFERROR(IF(AND(W$3-('3.1. BCAInputs'!$I20+'3.1. BCAInputs'!$J20-1)<1,W$3-('3.1. BCAInputs'!$I20+'3.1. BCAInputs'!$J20)>=-'3.1. BCAInputs'!$J20),INDEX('3.1. BCAInputs'!$L20:$AP20,1,MATCH(0,'3.1. BCAInputs'!$L$18:$AP$18,0))/'3.1. BCAInputs'!$J20,INDEX('3.1. BCAInputs'!$L20:$AP20,1,MATCH(W$3-('3.1. BCAInputs'!$I20+'3.1. BCAInputs'!$J20-1),'3.1. BCAInputs'!$L$18:$AP$18,0))),0)*W$4) -> 0 | X11: =IF($H11="(blank)",0,IFERROR(IF(AND(X$3-('3.1. BCAInputs'!$I20+'3.1. BCAInputs'!$J20-1)<1,X$3-('3.1. BCAInputs'!$I20+'3.1. BCAInputs'!$J20)>=-'3.1. BCAInputs'!$J20),INDEX('3.1. BCAInputs'!$L20:$AP20,1,MATCH(0,'3.1. BCAInputs'!$L$18:$AP$18,0))/'3.1. BCAInputs'!$J20,INDEX('3.1. BCAInputs'!$L20:$AP20,1,MATCH(X$3-('3.1. BCAInputs'!$I20+'3.1. BCAInputs'!$J20-1),'3.1. BCAInputs'!$L$18:$AP$18,0))),0)*X$4) -> 0 | Y11: =IF($H11="(blank)",0,IFERROR(IF(AND(Y$3-('3.1. BCAInputs'!$I20+'3.1. BCAInputs'!$J20-1)<1,Y$3-('3.1. BCAInputs'!$I20+'3.1. BCAInputs'!$J20)>=-'3.1. BCAInputs'!$J20),INDEX('3.1. BCAInputs'!$L20:$AP20,1,MATCH(0,'3.1. BCAInputs'!$L$18:$AP$18,0))/'3.1. BCAInputs'!$J20,INDEX('3.1. BCAInputs'!$L20:$AP20,1,MATCH(Y$3-('3.1. BCAInputs'!$I20+'3.1. BCAInputs'!$J20-1),'3.1. BCAInputs'!$L$18:$AP$18,0))),0)*Y$4) -> 0 | Z11: =IF($H11="(blank)",0,IFERROR(IF(AND(Z$3-('3.1. BCAInputs'!$I20+'3.1. BCAInputs'!$J20-1)<1,Z$3-('3.1. BCAInputs'!$I20+'3.1. BCAInputs'!$J20)>=-'3.1. BCAInputs'!$J20),INDEX('3.1. BCAInputs'!$L20:$AP20,1,MATCH(0,'3.1. BCAInputs'!$L$18:$AP$18,0))/'3.1. BCAInputs'!$J20,INDEX('3.1. BCAInputs'!$L20:$AP20,1,MATCH(Z$3-('3.1. BCAInputs'!$I20+'3.1. BCAInputs'!$J20-1),'3.1. BCAInputs'!$L$18:$AP$18,0))),0)*Z$4) -> 0 | AA11: =IF($H11="(blank)",0,IFERROR(IF(AND(AA$3-('3.1. BCAInputs'!$I20+'3.1. BCAInputs'!$J20-1)<1,AA$3-('3.1. BCAInputs'!$I20+'3.1. BCAInputs'!$J20)>=-'3.1. BCAInputs'!$J20),INDEX('3.1. BCAInputs'!$L20:$AP20,1,MATCH(0,'3.1. BCAInputs'!$L$18:$AP$18,0))/'3.1. BCAInputs'!$J20,INDEX('3.1. BCAInputs'!$L20:$AP20,1,MATCH(AA$3-('3.1. BCAInputs'!$I20+'3.1. BCAInputs'!$J20-1),'3.1. BCAInputs'!$L$18:$AP$18,0))),0)*AA$4) -> 0 | AB11: =IF($H11="(blank)",0,IFERROR(IF(AND(AB$3-('3.1. BCAInputs'!$I20+'3.1. BCAInputs'!$J20-1)<1,AB$3-('3.1. BCAInputs'!$I20+'3.1. BCAInputs'!$J20)>=-'3.1. BCAInputs'!$J20),INDEX('3.1. BCAInputs'!$L20:$AP20,1,MATCH(0,'3.1. BCAInputs'!$L$18:$AP$18,0))/'3.1. BCAInputs'!$J20,INDEX('3.1. BCAInputs'!$L20:$AP20,1,MATCH(AB$3-('3.1. BCAInputs'!$I20+'3.1. BCAInputs'!$J20-1),'3.1. BCAInputs'!$L$18:$AP$18,0))),0)*AB$4) -> 0 | AC11: =IF($H11="(blank)",0,IFERROR(IF(AND(AC$3-('3.1. BCAInputs'!$I20+'3.1. BCAInputs'!$J20-1)<1,AC$3-('3.1. BCAInputs'!$I20+'3.1. BCAInputs'!$J20)>=-'3.1. BCAInputs'!$J20),INDEX('3.1. BCAInputs'!$L20:$AP20,1,MATCH(0,'3.1. BCAInputs'!$L$18:$AP$18,0))/'3.1. BCAInputs'!$J20,INDEX('3.1. BCAInputs'!$L20:$AP20,1,MATCH(AC$3-('3.1. BCAInputs'!$I20+'3.1. BCAInputs'!$J20-1),'3.1. BCAInputs'!$L$18:$AP$18,0))),0)*AC$4) -> 0 | AD11: =IF($H11="(blank)",0,IFERROR(IF(AND(AD$3-('3.1. BCAInputs'!$I20+'3.1. BCAInputs'!$J20-1)<1,AD$3-('3.1. BCAInputs'!$I20+'3.1. BCAInputs'!$J20)>=-'3.1. BCAInputs'!$J20),INDEX('3.1. BCAInputs'!$L20:$AP20,1,MATCH(0,'3.1. BCAInputs'!$L$18:$AP$18,0))/'3.1. BCAInputs'!$J20,INDEX('3.1. BCAInputs'!$L20:$AP20,1,MATCH(AD$3-('3.1. BCAInputs'!$I20+'3.1. BCAInputs'!$J20-1),'3.1. BCAInputs'!$L$18:$AP$18,0))),0)*AD$4) -> 0 | AE11: =IF($H11="(blank)",0,IFERROR(IF(AND(AE$3-('3.1. BCAInputs'!$I20+'3.1. BCAInputs'!$J20-1)<1,AE$3-('3.1. BCAInputs'!$I20+'3.1. BCAInputs'!$J20)>=-'3.1. BCAInputs'!$J20),INDEX('3.1. BCAInputs'!$L20:$AP20,1,MATCH(0,'3.1. BCAInputs'!$L$18:$AP$18,0))/'3.1. BCAInputs'!$J20,INDEX('3.1. BCAInputs'!$L20:$AP20,1,MATCH(AE$3-('3.1. BCAInputs'!$I20+'3.1. BCAInputs'!$J20-1),'3.1. BCAInputs'!$L$18:$AP$18,0))),0)*AE$4) -> 0 | AF11: =IF($H11="(blank)",0,IFERROR(IF(AND(AF$3-('3.1. BCAInputs'!$I20+'3.1. BCAInputs'!$J20-1)<1,AF$3-('3.1. BCAInputs'!$I20+'3.1. BCAInputs'!$J20)>=-'3.1. BCAInputs'!$J20),INDEX('3.1. BCAInputs'!$L20:$AP20,1,MATCH(0,'3.1. BCAInputs'!$L$18:$AP$18,0))/'3.1. BCAInputs'!$J20,INDEX('3.1. BCAInputs'!$L20:$AP20,1,MATCH(AF$3-('3.1. BCAInputs'!$I20+'3.1. BCAInputs'!$J20-1),'3.1. BCAInputs'!$L$18:$AP$18,0))),0)*AF$4) -> 0 | AG11: =IF($H11="(blank)",0,IFERROR(IF(AND(AG$3-('3.1. BCAInputs'!$I20+'3.1. BCAInputs'!$J20-1)<1,AG$3-('3.1. BCAInputs'!$I20+'3.1. BCAInputs'!$J20)>=-'3.1. BCAInputs'!$J20),INDEX('3.1. BCAInputs'!$L20:$AP20,1,MATCH(0,'3.1. BCAInputs'!$L$18:$AP$18,0))/'3.1. BCAInputs'!$J20,INDEX('3.1. BCAInputs'!$L20:$AP20,1,MATCH(AG$3-('3.1. BCAInputs'!$I20+'3.1. BCAInputs'!$J20-1),'3.1. BCAInputs'!$L$18:$AP$18,0))),0)*AG$4) -> 0 | AH11: =IF($H11="(blank)",0,IFERROR(IF(AND(AH$3-('3.1. BCAInputs'!$I20+'3.1. BCAInputs'!$J20-1)<1,AH$3-('3.1. BCAInputs'!$I20+'3.1. BCAInputs'!$J20)>=-'3.1. BCAInputs'!$J20),INDEX('3.1. BCAInputs'!$L20:$AP20,1,MATCH(0,'3.1. BCAInputs'!$L$18:$AP$18,0))/'3.1. BCAInputs'!$J20,INDEX('3.1. BCAInputs'!$L20:$AP20,1,MATCH(AH$3-('3.1. BCAInputs'!$I20+'3.1. BCAInputs'!$J20-1),'3.1. BCAInputs'!$L$18:$AP$18,0))),0)*AH$4) -> 0 | AI11: =IF($H11="(blank)",0,IFERROR(IF(AND(AI$3-('3.1. BCAInputs'!$I20+'3.1. BCAInputs'!$J20-1)<1,AI$3-('3.1. BCAInputs'!$I20+'3.1. BCAInputs'!$J20)>=-'3.1. BCAInputs'!$J20),INDEX('3.1. BCAInputs'!$L20:$AP20,1,MATCH(0,'3.1. BCAInputs'!$L$18:$AP$18,0))/'3.1. BCAInputs'!$J20,INDEX('3.1. BCAInputs'!$L20:$AP20,1,MATCH(AI$3-('3.1. BCAInputs'!$I20+'3.1. BCAInputs'!$J20-1),'3.1. BCAInputs'!$L$18:$AP$18,0))),0)*AI$4) -> 0 | AJ11: =IF($H11="(blank)",0,IFERROR(IF(AND(AJ$3-('3.1. BCAInputs'!$I20+'3.1. BCAInputs'!$J20-1)<1,AJ$3-('3.1. BCAInputs'!$I20+'3.1. BCAInputs'!$J20)>=-'3.1. BCAInputs'!$J20),INDEX('3.1. BCAInputs'!$L20:$AP20,1,MATCH(0,'3.1. BCAInputs'!$L$18:$AP$18,0))/'3.1. BCAInputs'!$J20,INDEX('3.1. BCAInputs'!$L20:$AP20,1,MATCH(AJ$3-('3.1. BCAInputs'!$I20+'3.1. BCAInputs'!$J20-1),'3.1. BCAInputs'!$L$18:$AP$18,0))),0)*AJ$4) -> 0 | AK11: =IF($H11="(blank)",0,IFERROR(IF(AND(AK$3-('3.1. BCAInputs'!$I20+'3.1. BCAInputs'!$J20-1)<1,AK$3-('3.1. BCAInputs'!$I20+'3.1. BCAInputs'!$J20)>=-'3.1. BCAInputs'!$J20),INDEX('3.1. BCAInputs'!$L20:$AP20,1,MATCH(0,'3.1. BCAInputs'!$L$18:$AP$18,0))/'3.1. BCAInputs'!$J20,INDEX('3.1. BCAInputs'!$L20:$AP20,1,MATCH(AK$3-('3.1. BCAInputs'!$I20+'3.1. BCAInputs'!$J20-1),'3.1. BCAInputs'!$L$18:$AP$18,0))),0)*AK$4) -> 0 | AL11: =IF($H11="(blank)",0,IFERROR(IF(AND(AL$3-('3.1. BCAInputs'!$I20+'3.1. BCAInputs'!$J20-1)<1,AL$3-('3.1. BCAInputs'!$I20+'3.1. BCAInputs'!$J20)>=-'3.1. BCAInputs'!$J20),INDEX('3.1. BCAInputs'!$L20:$AP20,1,MATCH(0,'3.1. BCAInputs'!$L$18:$AP$18,0))/'3.1. BCAInputs'!$J20,INDEX('3.1. BCAInputs'!$L20:$AP20,1,MATCH(AL$3-('3.1. BCAInputs'!$I20+'3.1. BCAInputs'!$J20-1),'3.1. BCAInputs'!$L$18:$AP$18,0))),0)*AL$4) -> 0 | AM11: =IF($H11="(blank)",0,IFERROR(IF(AND(AM$3-('3.1. BCAInputs'!$I20+'3.1. BCAInputs'!$J20-1)<1,AM$3-('3.1. BCAInputs'!$I20+'3.1. BCAInputs'!$J20)>=-'3.1. BCAInputs'!$J20),INDEX('3.1. BCAInputs'!$L20:$AP20,1,MATCH(0,'3.1. BCAInputs'!$L$18:$AP$18,0))/'3.1. BCAInputs'!$J20,INDEX('3.1. BCAInputs'!$L20:$AP20,1,MATCH(AM$3-('3.1. BCAInputs'!$I20+'3.1. BCAInputs'!$J20-1),'3.1. BCAInputs'!$L$18:$AP$18,0))),0)*AM$4) -> 0 | AN11: =IF($H11="(blank)",0,IFERROR(IF(AND(AN$3-('3.1. BCAInputs'!$I20+'3.1. BCAInputs'!$J20-1)<1,AN$3-('3.1. BCAInputs'!$I20+'3.1. BCAInputs'!$J20)>=-'3.1. BCAInputs'!$J20),INDEX('3.1. BCAInputs'!$L20:$AP20,1,MATCH(0,'3.1. BCAInputs'!$L$18:$AP$18,0))/'3.1. BCAInputs'!$J20,INDEX('3.1. BCAInputs'!$L20:$AP20,1,MATCH(AN$3-('3.1. BCAInputs'!$I20+'3.1. BCAInputs'!$J20-1),'3.1. BCAInputs'!$L$18:$AP$18,0))),0)*AN$4) -> 0 | AO11: =IF($H11="(blank)",0,IFERROR(IF(AND(AO$3-('3.1. BCAInputs'!$I20+'3.1. BCAInputs'!$J20-1)<1,AO$3-('3.1. BCAInputs'!$I20+'3.1. BCAInputs'!$J20)>=-'3.1. BCAInputs'!$J20),INDEX('3.1. BCAInputs'!$L20:$AP20,1,MATCH(0,'3.1. BCAInputs'!$L$18:$AP$18,0))/'3.1. BCAInputs'!$J20,INDEX('3.1. BCAInputs'!$L20:$AP20,1,MATCH(AO$3-('3.1. BCAInputs'!$I20+'3.1. BCAInputs'!$J20-1),'3.1. BCAInputs'!$L$18:$AP$18,0))),0)*AO$4) -> 0 | AP11: =IF($H11="(blank)",0,IFERROR(IF(AND(AP$3-('3.1. BCAInputs'!$I20+'3.1. BCAInputs'!$J20-1)<1,AP$3-('3.1. BCAInputs'!$I20+'3.1. BCAInputs'!$J20)>=-'3.1. BCAInputs'!$J20),INDEX('3.1. BCAInputs'!$L20:$AP20,1,MATCH(0,'3.1. BCAInputs'!$L$18:$AP$18,0))/'3.1. BCAInputs'!$J20,INDEX('3.1. BCAInputs'!$L20:$AP20,1,MATCH(AP$3-('3.1. BCAInputs'!$I20+'3.1. BCAInputs'!$J20-1),'3.1. BCAInputs'!$L$18:$AP$18,0))),0)*AP$4) -> 0 | AQ11: =IF($H11="(blank)",0,IFERROR(IF(AND(AQ$3-('3.1. BCAInputs'!$I20+'3.1. BCAInputs'!$J20-1)<1,AQ$3-('3.1. BCAInputs'!$I20+'3.1. BCAInputs'!$J20)>=-'3.1. BCAInputs'!$J20),INDEX('3.1. BCAInputs'!$L20:$AP20,1,MATCH(0,'3.1. BCAInputs'!$L$18:$AP$18,0))/'3.1. BCAInputs'!$J20,INDEX('3.1. BCAInputs'!$L20:$AP20,1,MATCH(AQ$3-('3.1. BCAInputs'!$I20+'3.1. BCAInputs'!$J20-1),'3.1. BCAInputs'!$L$18:$AP$18,0))),0)*AQ$4) -> 0 | AR11: =IF($H11="(blank)",0,IFERROR(IF(AND(AR$3-('3.1. BCAInputs'!$I20+'3.1. BCAInputs'!$J20-1)<1,AR$3-('3.1. BCAInputs'!$I20+'3.1. BCAInputs'!$J20)>=-'3.1. BCAInputs'!$J20),INDEX('3.1. BCAInputs'!$L20:$AP20,1,MATCH(0,'3.1. BCAInputs'!$L$18:$AP$18,0))/'3.1. BCAInputs'!$J20,INDEX('3.1. BCAInputs'!$L20:$AP20,1,MATCH(AR$3-('3.1. BCAInputs'!$I20+'3.1. BCAInputs'!$J20-1),'3.1. BCAInputs'!$L$18:$AP$18,0))),0)*AR$4) -> 0 | AS11: =IF($H11="(blank)",0,IFERROR(IF(AND(AS$3-('3.1. BCAInputs'!$I20+'3.1. BCAInputs'!$J20-1)<1,AS$3-('3.1. BCAInputs'!$I20+'3.1. BCAInputs'!$J20)>=-'3.1. BCAInputs'!$J20),INDEX('3.1. BCAInputs'!$L20:$AP20,1,MATCH(0,'3.1. BCAInputs'!$L$18:$AP$18,0))/'3.1. BCAInputs'!$J20,INDEX('3.1. BCAInputs'!$L20:$AP20,1,MATCH(AS$3-('3.1. BCAInputs'!$I20+'3.1. BCAInputs'!$J20-1),'3.1. BCAInputs'!$L$18:$AP$18,0))),0)*AS$4) -> 0 | AT11: =IF($H11="(blank)",0,IFERROR(IF(AND(AT$3-('3.1. BCAInputs'!$I20+'3.1. BCAInputs'!$J20-1)<1,AT$3-('3.1. BCAInputs'!$I20+'3.1. BCAInputs'!$J20)>=-'3.1. BCAInputs'!$J20),INDEX('3.1. BCAInputs'!$L20:$AP20,1,MATCH(0,'3.1. BCAInputs'!$L$18:$AP$18,0))/'3.1. BCAInputs'!$J20,INDEX('3.1. BCAInputs'!$L20:$AP20,1,MATCH(AT$3-('3.1. BCAInputs'!$I20+'3.1. BCAInputs'!$J20-1),'3.1. BCAInputs'!$L$18:$AP$18,0))),0)*AT$4) -> 0 | AU11: =IF($H11="(blank)",0,IFERROR(IF(AND(AU$3-('3.1. BCAInputs'!$I20+'3.1. BCAInputs'!$J20-1)<1,AU$3-('3.1. BCAInputs'!$I20+'3.1. BCAInputs'!$J20)>=-'3.1. BCAInputs'!$J20),INDEX('3.1. BCAInputs'!$L20:$AP20,1,MATCH(0,'3.1. BCAInputs'!$L$18:$AP$18,0))/'3.1. BCAInputs'!$J20,INDEX('3.1. BCAInputs'!$L20:$AP20,1,MATCH(AU$3-('3.1. BCAInputs'!$I20+'3.1. BCAInputs'!$J20-1),'3.1. BCAInputs'!$L$18:$AP$18,0))),0)*AU$4) -> 0 | AV11: =IF($H11="(blank)",0,IFERROR(IF(AND(AV$3-('3.1. BCAInputs'!$I20+'3.1. BCAInputs'!$J20-1)<1,AV$3-('3.1. BCAInputs'!$I20+'3.1. BCAInputs'!$J20)>=-'3.1. BCAInputs'!$J20),INDEX('3.1. BCAInputs'!$L20:$AP20,1,MATCH(0,'3.1. BCAInputs'!$L$18:$AP$18,0))/'3.1. BCAInputs'!$J20,INDEX('3.1. BCAInputs'!$L20:$AP20,1,MATCH(AV$3-('3.1. BCAInputs'!$I20+'3.1. BCAInputs'!$J20-1),'3.1. BCAInputs'!$L$18:$AP$18,0))),0)*AV$4) -> 0 | AW11: =IF($H11="(blank)",0,IFERROR(IF(AND(AW$3-('3.1. BCAInputs'!$I20+'3.1. BCAInputs'!$J20-1)<1,AW$3-('3.1. BCAInputs'!$I20+'3.1. BCAInputs'!$J20)>=-'3.1. BCAInputs'!$J20),INDEX('3.1. BCAInputs'!$L20:$AP20,1,MATCH(0,'3.1. BCAInputs'!$L$18:$AP$18,0))/'3.1. BCAInputs'!$J20,INDEX('3.1. BCAInputs'!$L20:$AP20,1,MATCH(AW$3-('3.1. BCAInputs'!$I20+'3.1. BCAInputs'!$J20-1),'3.1. BCAInputs'!$L$18:$AP$18,0))),0)*AW$4) -> 0 | AX11: =IF($H11="(blank)",0,IFERROR(IF(AND(AX$3-('3.1. BCAInputs'!$I20+'3.1. BCAInputs'!$J20-1)<1,AX$3-('3.1. BCAInputs'!$I20+'3.1. BCAInputs'!$J20)>=-'3.1. BCAInputs'!$J20),INDEX('3.1. BCAInputs'!$L20:$AP20,1,MATCH(0,'3.1. BCAInputs'!$L$18:$AP$18,0))/'3.1. BCAInputs'!$J20,INDEX('3.1. BCAInputs'!$L20:$AP20,1,MATCH(AX$3-('3.1. BCAInputs'!$I20+'3.1. BCAInputs'!$J20-1),'3.1. BCAInputs'!$L$18:$AP$18,0))),0)*AX$4) -> 0 | AY11: =IF($H11="(blank)",0,IFERROR(IF(AND(AY$3-('3.1. BCAInputs'!$I20+'3.1. BCAInputs'!$J20-1)<1,AY$3-('3.1. BCAInputs'!$I20+'3.1. BCAInputs'!$J20)>=-'3.1. BCAInputs'!$J20),INDEX('3.1. BCAInputs'!$L20:$AP20,1,MATCH(0,'3.1. BCAInputs'!$L$18:$AP$18,0))/'3.1. BCAInputs'!$J20,INDEX('3.1. BCAInputs'!$L20:$AP20,1,MATCH(AY$3-('3.1. BCAInputs'!$I20+'3.1. BCAInputs'!$J20-1),'3.1. BCAInputs'!$L$18:$AP$18,0))),0)*AY$4) -> 0 | AZ11: =IF($H11="(blank)",0,IFERROR(IF(AND(AZ$3-('3.1. BCAInputs'!$I20+'3.1. BCAInputs'!$J20-1)<1,AZ$3-('3.1. BCAInputs'!$I20+'3.1. BCAInputs'!$J20)>=-'3.1. BCAInputs'!$J20),INDEX('3.1. BCAInputs'!$L20:$AP20,1,MATCH(0,'3.1. BCAInputs'!$L$18:$AP$18,0))/'3.1. BCAInputs'!$J20,INDEX('3.1. BCAInputs'!$L20:$AP20,1,MATCH(AZ$3-('3.1. BCAInputs'!$I20+'3.1. BCAInputs'!$J20-1),'3.1. BCAInputs'!$L$18:$AP$18,0))),0)*AZ$4) -> 0 | BA11: =IF($H11="(blank)",0,IFERROR(IF(AND(BA$3-('3.1. BCAInputs'!$I20+'3.1. BCAInputs'!$J20-1)<1,BA$3-('3.1. BCAInputs'!$I20+'3.1. BCAInputs'!$J20)>=-'3.1. BCAInputs'!$J20),INDEX('3.1. BCAInputs'!$L20:$AP20,1,MATCH(0,'3.1. BCAInputs'!$L$18:$AP$18,0))/'3.1. BCAInputs'!$J20,INDEX('3.1. BCAInputs'!$L20:$AP20,1,MATCH(BA$3-('3.1. BCAInputs'!$I20+'3.1. BCAInputs'!$J20-1),'3.1. BCAInputs'!$L$18:$AP$18,0))),0)*BA$4) -> 0 | BB11: =IF($H11="(blank)",0,IFERROR(IF(AND(BB$3-('3.1. BCAInputs'!$I20+'3.1. BCAInputs'!$J20-1)<1,BB$3-('3.1. BCAInputs'!$I20+'3.1. BCAInputs'!$J20)>=-'3.1. BCAInputs'!$J20),INDEX('3.1. BCAInputs'!$L20:$AP20,1,MATCH(0,'3.1. BCAInputs'!$L$18:$AP$18,0))/'3.1. BCAInputs'!$J20,INDEX('3.1. BCAInputs'!$L20:$AP20,1,MATCH(BB$3-('3.1. BCAInputs'!$I20+'3.1. BCAInputs'!$J20-1),'3.1. BCAInputs'!$L$18:$AP$18,0))),0)*BB$4) -> 0 | BC11: =IF($H11="(blank)",0,IFERROR(IF(AND(BC$3-('3.1. BCAInputs'!$I20+'3.1. BCAInputs'!$J20-1)<1,BC$3-('3.1. BCAInputs'!$I20+'3.1. BCAInputs'!$J20)>=-'3.1. BCAInputs'!$J20),INDEX('3.1. BCAInputs'!$L20:$AP20,1,MATCH(0,'3.1. BCAInputs'!$L$18:$AP$18,0))/'3.1. BCAInputs'!$J20,INDEX('3.1. BCAInputs'!$L20:$AP20,1,MATCH(BC$3-('3.1. BCAInputs'!$I20+'3.1. BCAInputs'!$J20-1),'3.1. BCAInputs'!$L$18:$AP$18,0))),0)*BC$4) -> 0 | BD11: =IF($H11="(blank)",0,IFERROR(IF(AND(BD$3-('3.1. BCAInputs'!$I20+'3.1. BCAInputs'!$J20-1)<1,BD$3-('3.1. BCAInputs'!$I20+'3.1. BCAInputs'!$J20)>=-'3.1. BCAInputs'!$J20),INDEX('3.1. BCAInputs'!$L20:$AP20,1,MATCH(0,'3.1. BCAInputs'!$L$18:$AP$18,0))/'3.1. BCAInputs'!$J20,INDEX('3.1. BCAInputs'!$L20:$AP20,1,MATCH(BD$3-('3.1. BCAInputs'!$I20+'3.1. BCAInputs'!$J20-1),'3.1. BCAInputs'!$L$18:$AP$18,0))),0)*BD$4) -> 0 | BE11: =IF($H11="(blank)",0,IFERROR(IF(AND(BE$3-('3.1. BCAInputs'!$I20+'3.1. BCAInputs'!$J20-1)<1,BE$3-('3.1. BCAInputs'!$I20+'3.1. BCAInputs'!$J20)>=-'3.1. BCAInputs'!$J20),INDEX('3.1. BCAInputs'!$L20:$AP20,1,MATCH(0,'3.1. BCAInputs'!$L$18:$AP$18,0))/'3.1. BCAInputs'!$J20,INDEX('3.1. BCAInputs'!$L20:$AP20,1,MATCH(BE$3-('3.1. BCAInputs'!$I20+'3.1. BCAInputs'!$J20-1),'3.1. BCAInputs'!$L$18:$AP$18,0))),0)*BE$4) -> 0 | BF11: =IF($H11="(blank)",0,IFERROR(IF(AND(BF$3-('3.1. BCAInputs'!$I20+'3.1. BCAInputs'!$J20-1)<1,BF$3-('3.1. BCAInputs'!$I20+'3.1. BCAInputs'!$J20)>=-'3.1. BCAInputs'!$J20),INDEX('3.1. BCAInputs'!$L20:$AP20,1,MATCH(0,'3.1. BCAInputs'!$L$18:$AP$18,0))/'3.1. BCAInputs'!$J20,INDEX('3.1. BCAInputs'!$L20:$AP20,1,MATCH(BF$3-('3.1. BCAInputs'!$I20+'3.1. BCAInputs'!$J20-1),'3.1. BCAInputs'!$L$18:$AP$18,0))),0)*BF$4) -> 0 | BG11: =IF($H11="(blank)",0,IFERROR(IF(AND(BG$3-('3.1. BCAInputs'!$I20+'3.1. BCAInputs'!$J20-1)<1,BG$3-('3.1. BCAInputs'!$I20+'3.1. BCAInputs'!$J20)>=-'3.1. BCAInputs'!$J20),INDEX('3.1. BCAInputs'!$L20:$AP20,1,MATCH(0,'3.1. BCAInputs'!$L$18:$AP$18,0))/'3.1. BCAInputs'!$J20,INDEX('3.1. BCAInputs'!$L20:$AP20,1,MATCH(BG$3-('3.1. BCAInputs'!$I20+'3.1. BCAInputs'!$J20-1),'3.1. BCAInputs'!$L$18:$AP$18,0))),0)*BG$4) -> 0 | BH11: =IF($H11="(blank)",0,IFERROR(IF(AND(BH$3-('3.1. BCAInputs'!$I20+'3.1. BCAInputs'!$J20-1)<1,BH$3-('3.1. BCAInputs'!$I20+'3.1. BCAInputs'!$J20)>=-'3.1. BCAInputs'!$J20),INDEX('3.1. BCAInputs'!$L20:$AP20,1,MATCH(0,'3.1. BCAInputs'!$L$18:$AP$18,0))/'3.1. BCAInputs'!$J20,INDEX('3.1. BCAInputs'!$L20:$AP20,1,MATCH(BH$3-('3.1. BCAInputs'!$I20+'3.1. BCAInputs'!$J20-1),'3.1. BCAInputs'!$L$18:$AP$18,0))),0)*BH$4) -> 0 | BI11: =IF($H11="(blank)",0,IFERROR(IF(AND(BI$3-('3.1. BCAInputs'!$I20+'3.1. BCAInputs'!$J20-1)<1,BI$3-('3.1. BCAInputs'!$I20+'3.1. BCAInputs'!$J20)>=-'3.1. BCAInputs'!$J20),INDEX('3.1. BCAInputs'!$L20:$AP20,1,MATCH(0,'3.1. BCAInputs'!$L$18:$AP$18,0))/'3.1. BCAInputs'!$J20,INDEX('3.1. BCAInputs'!$L20:$AP20,1,MATCH(BI$3-('3.1. BCAInputs'!$I20+'3.1. BCAInputs'!$J20-1),'3.1. BCAInputs'!$L$18:$AP$18,0))),0)*BI$4) -> 0 | BJ11: =IF($H11="(blank)",0,IFERROR(IF(AND(BJ$3-('3.1. BCAInputs'!$I20+'3.1. BCAInputs'!$J20-1)<1,BJ$3-('3.1. BCAInputs'!$I20+'3.1. BCAInputs'!$J20)>=-'3.1. BCAInputs'!$J20),INDEX('3.1. BCAInputs'!$L20:$AP20,1,MATCH(0,'3.1. BCAInputs'!$L$18:$AP$18,0))/'3.1. BCAInputs'!$J20,INDEX('3.1. BCAInputs'!$L20:$AP20,1,MATCH(BJ$3-('3.1. BCAInputs'!$I20+'3.1. BCAInputs'!$J20-1),'3.1. BCAInputs'!$L$18:$AP$18,0))),0)*BJ$4) -> 0 | BK11: =IF($H11="(blank)",0,IFERROR(IF(AND(BK$3-('3.1. BCAInputs'!$I20+'3.1. BCAInputs'!$J20-1)<1,BK$3-('3.1. BCAInputs'!$I20+'3.1. BCAInputs'!$J20)>=-'3.1. BCAInputs'!$J20),INDEX('3.1. BCAInputs'!$L20:$AP20,1,MATCH(0,'3.1. BCAInputs'!$L$18:$AP$18,0))/'3.1. BCAInputs'!$J20,INDEX('3.1. BCAInputs'!$L20:$AP20,1,MATCH(BK$3-('3.1. BCAInputs'!$I20+'3.1. BCAInputs'!$J20-1),'3.1. BCAInputs'!$L$18:$AP$18,0))),0)*BK$4) -> 0 | BL11: =IF($H11="(blank)",0,IFERROR(IF(AND(BL$3-('3.1. BCAInputs'!$I20+'3.1. BCAInputs'!$J20-1)<1,BL$3-('3.1. BCAInputs'!$I20+'3.1. BCAInputs'!$J20)>=-'3.1. BCAInputs'!$J20),INDEX('3.1. BCAInputs'!$L20:$AP20,1,MATCH(0,'3.1. BCAInputs'!$L$18:$AP$18,0))/'3.1. BCAInputs'!$J20,INDEX('3.1. BCAInputs'!$L20:$AP20,1,MATCH(BL$3-('3.1. BCAInputs'!$I20+'3.1. BCAInputs'!$J20-1),'3.1. BCAInputs'!$L$18:$AP$18,0))),0)*BL$4) -> 0 | BM11: =IF($H11="(blank)",0,IFERROR(IF(AND(BM$3-('3.1. BCAInputs'!$I20+'3.1. BCAInputs'!$J20-1)<1,BM$3-('3.1. BCAInputs'!$I20+'3.1. BCAInputs'!$J20)>=-'3.1. BCAInputs'!$J20),INDEX('3.1. BCAInputs'!$L20:$AP20,1,MATCH(0,'3.1. BCAInputs'!$L$18:$AP$18,0))/'3.1. BCAInputs'!$J20,INDEX('3.1. BCAInputs'!$L20:$AP20,1,MATCH(BM$3-('3.1. BCAInputs'!$I20+'3.1. BCAInputs'!$J20-1),'3.1. BCAInputs'!$L$18:$AP$18,0))),0)*BM$4) -> 0 | BN11: =IF($H11="(blank)",0,IFERROR(IF(AND(BN$3-('3.1. BCAInputs'!$I20+'3.1. BCAInputs'!$J20-1)<1,BN$3-('3.1. BCAInputs'!$I20+'3.1. BCAInputs'!$J20)>=-'3.1. BCAInputs'!$J20),INDEX('3.1. BCAInputs'!$L20:$AP20,1,MATCH(0,'3.1. BCAInputs'!$L$18:$AP$18,0))/'3.1. BCAInputs'!$J20,INDEX('3.1. BCAInputs'!$L20:$AP20,1,MATCH(BN$3-('3.1. BCAInputs'!$I20+'3.1. BCAInputs'!$J20-1),'3.1. BCAInputs'!$L$18:$AP$18,0))),0)*BN$4) -> 0 | BO11: =IF($H11="(blank)",0,IFERROR(IF(AND(BO$3-('3.1. BCAInputs'!$I20+'3.1. BCAInputs'!$J20-1)<1,BO$3-('3.1. BCAInputs'!$I20+'3.1. BCAInputs'!$J20)>=-'3.1. BCAInputs'!$J20),INDEX('3.1. BCAInputs'!$L20:$AP20,1,MATCH(0,'3.1. BCAInputs'!$L$18:$AP$18,0))/'3.1. BCAInputs'!$J20,INDEX('3.1. BCAInputs'!$L20:$AP20,1,MATCH(BO$3-('3.1. BCAInputs'!$I20+'3.1. BCAInputs'!$J20-1),'3.1. BCAInputs'!$L$18:$AP$18,0))),0)*BO$4) -> 0 | BP11: =IF($H11="(blank)",0,IFERROR(IF(AND(BP$3-('3.1. BCAInputs'!$I20+'3.1. BCAInputs'!$J20-1)<1,BP$3-('3.1. BCAInputs'!$I20+'3.1. BCAInputs'!$J20)>=-'3.1. BCAInputs'!$J20),INDEX('3.1. BCAInputs'!$L20:$AP20,1,MATCH(0,'3.1. BCAInputs'!$L$18:$AP$18,0))/'3.1. BCAInputs'!$J20,INDEX('3.1. BCAInputs'!$L20:$AP20,1,MATCH(BP$3-('3.1. BCAInputs'!$I20+'3.1. BCAInputs'!$J20-1),'3.1. BCAInputs'!$L$18:$AP$18,0))),0)*BP$4) -> 0 | BQ11: =IF($H11="(blank)",0,IFERROR(IF(AND(BQ$3-('3.1. BCAInputs'!$I20+'3.1. BCAInputs'!$J20-1)<1,BQ$3-('3.1. BCAInputs'!$I20+'3.1. BCAInputs'!$J20)>=-'3.1. BCAInputs'!$J20),INDEX('3.1. BCAInputs'!$L20:$AP20,1,MATCH(0,'3.1. BCAInputs'!$L$18:$AP$18,0))/'3.1. BCAInputs'!$J20,INDEX('3.1. BCAInputs'!$L20:$AP20,1,MATCH(BQ$3-('3.1. BCAInputs'!$I20+'3.1. BCAInputs'!$J20-1),'3.1. BCAInputs'!$L$18:$AP$18,0))),0)*BQ$4) -> 0 | BR11: =IF($H11="(blank)",0,IFERROR(IF(AND(BR$3-('3.1. BCAInputs'!$I20+'3.1. BCAInputs'!$J20-1)<1,BR$3-('3.1. BCAInputs'!$I20+'3.1. BCAInputs'!$J20)>=-'3.1. BCAInputs'!$J20),INDEX('3.1. BCAInputs'!$L20:$AP20,1,MATCH(0,'3.1. BCAInputs'!$L$18:$AP$18,0))/'3.1. BCAInputs'!$J20,INDEX('3.1. BCAInputs'!$L20:$AP20,1,MATCH(BR$3-('3.1. BCAInputs'!$I20+'3.1. BCAInputs'!$J20-1),'3.1. BCAInputs'!$L$18:$AP$18,0))),0)*BR$4) -> 0 | BS11: =IF($H11="(blank)",0,IFERROR(IF(AND(BS$3-('3.1. BCAInputs'!$I20+'3.1. BCAInputs'!$J20-1)<1,BS$3-('3.1. BCAInputs'!$I20+'3.1. BCAInputs'!$J20)>=-'3.1. BCAInputs'!$J20),INDEX('3.1. BCAInputs'!$L20:$AP20,1,MATCH(0,'3.1. BCAInputs'!$L$18:$AP$18,0))/'3.1. BCAInputs'!$J20,INDEX('3.1. BCAInputs'!$L20:$AP20,1,MATCH(BS$3-('3.1. BCAInputs'!$I20+'3.1. BCAInputs'!$J20-1),'3.1. BCAInputs'!$L$18:$AP$18,0))),0)*BS$4) -> 0 | BT11: =IF($H11="(blank)",0,IFERROR(IF(AND(BT$3-('3.1. BCAInputs'!$I20+'3.1. BCAInputs'!$J20-1)<1,BT$3-('3.1. BCAInputs'!$I20+'3.1. BCAInputs'!$J20)>=-'3.1. BCAInputs'!$J20),INDEX('3.1. BCAInputs'!$L20:$AP20,1,MATCH(0,'3.1. BCAInputs'!$L$18:$AP$18,0))/'3.1. BCAInputs'!$J20,INDEX('3.1. BCAInputs'!$L20:$AP20,1,MATCH(BT$3-('3.1. BCAInputs'!$I20+'3.1. BCAInputs'!$J20-1),'3.1. BCAInputs'!$L$18:$AP$18,0))),0)*BT$4) -> 0 | BU11: =IF($H11="(blank)",0,IFERROR(IF(AND(BU$3-('3.1. BCAInputs'!$I20+'3.1. BCAInputs'!$J20-1)<1,BU$3-('3.1. BCAInputs'!$I20+'3.1. BCAInputs'!$J20)>=-'3.1. BCAInputs'!$J20),INDEX('3.1. BCAInputs'!$L20:$AP20,1,MATCH(0,'3.1. BCAInputs'!$L$18:$AP$18,0))/'3.1. BCAInputs'!$J20,INDEX('3.1. BCAInputs'!$L20:$AP20,1,MATCH(BU$3-('3.1. BCAInputs'!$I20+'3.1. BCAInputs'!$J20-1),'3.1. BCAInputs'!$L$18:$AP$18,0))),0)*BU$4) -> 0 | BV11: =IF($H11="(blank)",0,IFERROR(IF(AND(BV$3-('3.1. BCAInputs'!$I20+'3.1. BCAInputs'!$J20-1)<1,BV$3-('3.1. BCAInputs'!$I20+'3.1. BCAInputs'!$J20)>=-'3.1. BCAInputs'!$J20),INDEX('3.1. BCAInputs'!$L20:$AP20,1,MATCH(0,'3.1. BCAInputs'!$L$18:$AP$18,0))/'3.1. BCAInputs'!$J20,INDEX('3.1. BCAInputs'!$L20:$AP20,1,MATCH(BV$3-('3.1. BCAInputs'!$I20+'3.1. BCAInputs'!$J20-1),'3.1. BCAInputs'!$L$18:$AP$18,0))),0)*BV$4) -> 0 | BW11: =IF($H11="(blank)",0,IFERROR(IF(AND(BW$3-('3.1. BCAInputs'!$I20+'3.1. BCAInputs'!$J20-1)<1,BW$3-('3.1. BCAInputs'!$I20+'3.1. BCAInputs'!$J20)>=-'3.1. BCAInputs'!$J20),INDEX('3.1. BCAInputs'!$L20:$AP20,1,MATCH(0,'3.1. BCAInputs'!$L$18:$AP$18,0))/'3.1. BCAInputs'!$J20,INDEX('3.1. BCAInputs'!$L20:$AP20,1,MATCH(BW$3-('3.1. BCAInputs'!$I20+'3.1. BCAInputs'!$J20-1),'3.1. BCAInputs'!$L$18:$AP$18,0))),0)*BW$4) -> 0
G12: ='3.1. BCAInputs'!G21 -> 3 | H12: =IF('3.1. BCAInputs'!H21<>"",'3.1. BCAInputs'!H21,"(blank)") -> (blank) | I12: 0 | J12: =IF($H12="(blank)",0,IFERROR(IF(AND(J$3-('3.1. BCAInputs'!$I21+'3.1. BCAInputs'!$J21-1)<1,J$3-('3.1. BCAInputs'!$I21+'3.1. BCAInputs'!$J21)>=-'3.1. BCAInputs'!$J21),INDEX('3.1. BCAInputs'!$L21:$AP21,1,MATCH(0,'3.1. BCAInputs'!$L$18:$AP$18,0))/'3.1. BCAInputs'!$J21,INDEX('3.1. BCAInputs'!$L21:$AP21,1,MATCH(J$3-('3.1. BCAInputs'!$I21+'3.1. BCAInputs'!$J21-1),'3.1. BCAInputs'!$L$18:$AP$18,0))),0)*J$4) -> 0 | K12: =IF($H12="(blank)",0,IFERROR(IF(AND(K$3-('3.1. BCAInputs'!$I21+'3.1. BCAInputs'!$J21-1)<1,K$3-('3.1. BCAInputs'!$I21+'3.1. BCAInputs'!$J21)>=-'3.1. BCAInputs'!$J21),INDEX('3.1. BCAInputs'!$L21:$AP21,1,MATCH(0,'3.1. BCAInputs'!$L$18:$AP$18,0))/'3.1. BCAInputs'!$J21,INDEX('3.1. BCAInputs'!$L21:$AP21,1,MATCH(K$3-('3.1. BCAInputs'!$I21+'3.1. BCAInputs'!$J21-1),'3.1. BCAInputs'!$L$18:$AP$18,0))),0)*K$4) -> 0 | L12: =IF($H12="(blank)",0,IFERROR(IF(AND(L$3-('3.1. BCAInputs'!$I21+'3.1. BCAInputs'!$J21-1)<1,L$3-('3.1. BCAInputs'!$I21+'3.1. BCAInputs'!$J21)>=-'3.1. BCAInputs'!$J21),INDEX('3.1. BCAInputs'!$L21:$AP21,1,MATCH(0,'3.1. BCAInputs'!$L$18:$AP$18,0))/'3.1. BCAInputs'!$J21,INDEX('3.1. BCAInputs'!$L21:$AP21,1,MATCH(L$3-('3.1. BCAInputs'!$I21+'3.1. BCAInputs'!$J21-1),'3.1. BCAInputs'!$L$18:$AP$18,0))),0)*L$4) -> 0 | M12: =IF($H12="(blank)",0,IFERROR(IF(AND(M$3-('3.1. BCAInputs'!$I21+'3.1. BCAInputs'!$J21-1)<1,M$3-('3.1. BCAInputs'!$I21+'3.1. BCAInputs'!$J21)>=-'3.1. BCAInputs'!$J21),INDEX('3.1. BCAInputs'!$L21:$AP21,1,MATCH(0,'3.1. BCAInputs'!$L$18:$AP$18,0))/'3.1. BCAInputs'!$J21,INDEX('3.1. BCAInputs'!$L21:$AP21,1,MATCH(M$3-('3.1. BCAInputs'!$I21+'3.1. BCAInputs'!$J21-1),'3.1. BCAInputs'!$L$18:$AP$18,0))),0)*M$4) -> 0 | N12: =IF($H12="(blank)",0,IFERROR(IF(AND(N$3-('3.1. BCAInputs'!$I21+'3.1. BCAInputs'!$J21-1)<1,N$3-('3.1. BCAInputs'!$I21+'3.1. BCAInputs'!$J21)>=-'3.1. BCAInputs'!$J21),INDEX('3.1. BCAInputs'!$L21:$AP21,1,MATCH(0,'3.1. BCAInputs'!$L$18:$AP$18,0))/'3.1. BCAInputs'!$J21,INDEX('3.1. BCAInputs'!$L21:$AP21,1,MATCH(N$3-('3.1. BCAInputs'!$I21+'3.1. BCAInputs'!$J21-1),'3.1. BCAInputs'!$L$18:$AP$18,0))),0)*N$4) -> 0 | O12: =IF($H12="(blank)",0,IFERROR(IF(AND(O$3-('3.1. BCAInputs'!$I21+'3.1. BCAInputs'!$J21-1)<1,O$3-('3.1. BCAInputs'!$I21+'3.1. BCAInputs'!$J21)>=-'3.1. BCAInputs'!$J21),INDEX('3.1. BCAInputs'!$L21:$AP21,1,MATCH(0,'3.1. BCAInputs'!$L$18:$AP$18,0))/'3.1. BCAInputs'!$J21,INDEX('3.1. BCAInputs'!$L21:$AP21,1,MATCH(O$3-('3.1. BCAInputs'!$I21+'3.1. BCAInputs'!$J21-1),'3.1. BCAInputs'!$L$18:$AP$18,0))),0)*O$4) -> 0 | P12: =IF($H12="(blank)",0,IFERROR(IF(AND(P$3-('3.1. BCAInputs'!$I21+'3.1. BCAInputs'!$J21-1)<1,P$3-('3.1. BCAInputs'!$I21+'3.1. BCAInputs'!$J21)>=-'3.1. BCAInputs'!$J21),INDEX('3.1. BCAInputs'!$L21:$AP21,1,MATCH(0,'3.1. BCAInputs'!$L$18:$AP$18,0))/'3.1. BCAInputs'!$J21,INDEX('3.1. BCAInputs'!$L21:$AP21,1,MATCH(P$3-('3.1. BCAInputs'!$I21+'3.1. BCAInputs'!$J21-1),'3.1. BCAInputs'!$L$18:$AP$18,0))),0)*P$4) -> 0 | Q12: =IF($H12="(blank)",0,IFERROR(IF(AND(Q$3-('3.1. BCAInputs'!$I21+'3.1. BCAInputs'!$J21-1)<1,Q$3-('3.1. BCAInputs'!$I21+'3.1. BCAInputs'!$J21)>=-'3.1. BCAInputs'!$J21),INDEX('3.1. BCAInputs'!$L21:$AP21,1,MATCH(0,'3.1. BCAInputs'!$L$18:$AP$18,0))/'3.1. BCAInputs'!$J21,INDEX('3.1. BCAInputs'!$L21:$AP21,1,MATCH(Q$3-('3.1. BCAInputs'!$I21+'3.1. BCAInputs'!$J21-1),'3.1. BCAInputs'!$L$18:$AP$18,0))),0)*Q$4) -> 0 | R12: =IF($H12="(blank)",0,IFERROR(IF(AND(R$3-('3.1. BCAInputs'!$I21+'3.1. BCAInputs'!$J21-1)<1,R$3-('3.1. BCAInputs'!$I21+'3.1. BCAInputs'!$J21)>=-'3.1. BCAInputs'!$J21),INDEX('3.1. BCAInputs'!$L21:$AP21,1,MATCH(0,'3.1. BCAInputs'!$L$18:$AP$18,0))/'3.1. BCAInputs'!$J21,INDEX('3.1. BCAInputs'!$L21:$AP21,1,MATCH(R$3-('3.1. BCAInputs'!$I21+'3.1. BCAInputs'!$J21-1),'3.1. BCAInputs'!$L$18:$AP$18,0))),0)*R$4) -> 0 | S12: =IF($H12="(blank)",0,IFERROR(IF(AND(S$3-('3.1. BCAInputs'!$I21+'3.1. BCAInputs'!$J21-1)<1,S$3-('3.1. BCAInputs'!$I21+'3.1. BCAInputs'!$J21)>=-'3.1. BCAInputs'!$J21),INDEX('3.1. BCAInputs'!$L21:$AP21,1,MATCH(0,'3.1. BCAInputs'!$L$18:$AP$18,0))/'3.1. BCAInputs'!$J21,INDEX('3.1. BCAInputs'!$L21:$AP21,1,MATCH(S$3-('3.1. BCAInputs'!$I21+'3.1. BCAInputs'!$J21-1),'3.1. BCAInputs'!$L$18:$AP$18,0))),0)*S$4) -> 0 | T12: =IF($H12="(blank)",0,IFERROR(IF(AND(T$3-('3.1. BCAInputs'!$I21+'3.1. BCAInputs'!$J21-1)<1,T$3-('3.1. BCAInputs'!$I21+'3.1. BCAInputs'!$J21)>=-'3.1. BCAInputs'!$J21),INDEX('3.1. BCAInputs'!$L21:$AP21,1,MATCH(0,'3.1. BCAInputs'!$L$18:$AP$18,0))/'3.1. BCAInputs'!$J21,INDEX('3.1. BCAInputs'!$L21:$AP21,1,MATCH(T$3-('3.1. BCAInputs'!$I21+'3.1. BCAInputs'!$J21-1),'3.1. BCAInputs'!$L$18:$AP$18,0))),0)*T$4) -> 0 | U12: =IF($H12="(blank)",0,IFERROR(IF(AND(U$3-('3.1. BCAInputs'!$I21+'3.1. BCAInputs'!$J21-1)<1,U$3-('3.1. BCAInputs'!$I21+'3.1. BCAInputs'!$J21)>=-'3.1. BCAInputs'!$J21),INDEX('3.1. BCAInputs'!$L21:$AP21,1,MATCH(0,'3.1. BCAInputs'!$L$18:$AP$18,0))/'3.1. BCAInputs'!$J21,INDEX('3.1. BCAInputs'!$L21:$AP21,1,MATCH(U$3-('3.1. BCAInputs'!$I21+'3.1. BCAInputs'!$J21-1),'3.1. BCAInputs'!$L$18:$AP$18,0))),0)*U$4) -> 0 | V12: =IF($H12="(blank)",0,IFERROR(IF(AND(V$3-('3.1. BCAInputs'!$I21+'3.1. BCAInputs'!$J21-1)<1,V$3-('3.1. BCAInputs'!$I21+'3.1. BCAInputs'!$J21)>=-'3.1. BCAInputs'!$J21),INDEX('3.1. BCAInputs'!$L21:$AP21,1,MATCH(0,'3.1. BCAInputs'!$L$18:$AP$18,0))/'3.1. BCAInputs'!$J21,INDEX('3.1. BCAInputs'!$L21:$AP21,1,MATCH(V$3-('3.1. BCAInputs'!$I21+'3.1. BCAInputs'!$J21-1),'3.1. BCAInputs'!$L$18:$AP$18,0))),0)*V$4) -> 0 | W12: =IF($H12="(blank)",0,IFERROR(IF(AND(W$3-('3.1. BCAInputs'!$I21+'3.1. BCAInputs'!$J21-1)<1,W$3-('3.1. BCAInputs'!$I21+'3.1. BCAInputs'!$J21)>=-'3.1. BCAInputs'!$J21),INDEX('3.1. BCAInputs'!$L21:$AP21,1,MATCH(0,'3.1. BCAInputs'!$L$18:$AP$18,0))/'3.1. BCAInputs'!$J21,INDEX('3.1. BCAInputs'!$L21:$AP21,1,MATCH(W$3-('3.1. BCAInputs'!$I21+'3.1. BCAInputs'!$J21-1),'3.1. BCAInputs'!$L$18:$AP$18,0))),0)*W$4) -> 0 | X12: =IF($H12="(blank)",0,IFERROR(IF(AND(X$3-('3.1. BCAInputs'!$I21+'3.1. BCAInputs'!$J21-1)<1,X$3-('3.1. BCAInputs'!$I21+'3.1. BCAInputs'!$J21)>=-'3.1. BCAInputs'!$J21),INDEX('3.1. BCAInputs'!$L21:$AP21,1,MATCH(0,'3.1. BCAInputs'!$L$18:$AP$18,0))/'3.1. BCAInputs'!$J21,INDEX('3.1. BCAInputs'!$L21:$AP21,1,MATCH(X$3-('3.1. BCAInputs'!$I21+'3.1. BCAInputs'!$J21-1),'3.1. BCAInputs'!$L$18:$AP$18,0))),0)*X$4) -> 0 | Y12: =IF($H12="(blank)",0,IFERROR(IF(AND(Y$3-('3.1. BCAInputs'!$I21+'3.1. BCAInputs'!$J21-1)<1,Y$3-('3.1. BCAInputs'!$I21+'3.1. BCAInputs'!$J21)>=-'3.1. BCAInputs'!$J21),INDEX('3.1. BCAInputs'!$L21:$AP21,1,MATCH(0,'3.1. BCAInputs'!$L$18:$AP$18,0))/'3.1. BCAInputs'!$J21,INDEX('3.1. BCAInputs'!$L21:$AP21,1,MATCH(Y$3-('3.1. BCAInputs'!$I21+'3.1. BCAInputs'!$J21-1),'3.1. BCAInputs'!$L$18:$AP$18,0))),0)*Y$4) -> 0 | Z12: =IF($H12="(blank)",0,IFERROR(IF(AND(Z$3-('3.1. BCAInputs'!$I21+'3.1. BCAInputs'!$J21-1)<1,Z$3-('3.1. BCAInputs'!$I21+'3.1. BCAInputs'!$J21)>=-'3.1. BCAInputs'!$J21),INDEX('3.1. BCAInputs'!$L21:$AP21,1,MATCH(0,'3.1. BCAInputs'!$L$18:$AP$18,0))/'3.1. BCAInputs'!$J21,INDEX('3.1. BCAInputs'!$L21:$AP21,1,MATCH(Z$3-('3.1. BCAInputs'!$I21+'3.1. BCAInputs'!$J21-1),'3.1. BCAInputs'!$L$18:$AP$18,0))),0)*Z$4) -> 0 | AA12: =IF($H12="(blank)",0,IFERROR(IF(AND(AA$3-('3.1. BCAInputs'!$I21+'3.1. BCAInputs'!$J21-1)<1,AA$3-('3.1. BCAInputs'!$I21+'3.1. BCAInputs'!$J21)>=-'3.1. BCAInputs'!$J21),INDEX('3.1. BCAInputs'!$L21:$AP21,1,MATCH(0,'3.1. BCAInputs'!$L$18:$AP$18,0))/'3.1. BCAInputs'!$J21,INDEX('3.1. BCAInputs'!$L21:$AP21,1,MATCH(AA$3-('3.1. BCAInputs'!$I21+'3.1. BCAInputs'!$J21-1),'3.1. BCAInputs'!$L$18:$AP$18,0))),0)*AA$4) -> 0 | AB12: =IF($H12="(blank)",0,IFERROR(IF(AND(AB$3-('3.1. BCAInputs'!$I21+'3.1. BCAInputs'!$J21-1)<1,AB$3-('3.1. BCAInputs'!$I21+'3.1. BCAInputs'!$J21)>=-'3.1. BCAInputs'!$J21),INDEX('3.1. BCAInputs'!$L21:$AP21,1,MATCH(0,'3.1. BCAInputs'!$L$18:$AP$18,0))/'3.1. BCAInputs'!$J21,INDEX('3.1. BCAInputs'!$L21:$AP21,1,MATCH(AB$3-('3.1. BCAInputs'!$I21+'3.1. BCAInputs'!$J21-1),'3.1. BCAInputs'!$L$18:$AP$18,0))),0)*AB$4) -> 0 | AC12: =IF($H12="(blank)",0,IFERROR(IF(AND(AC$3-('3.1. BCAInputs'!$I21+'3.1. BCAInputs'!$J21-1)<1,AC$3-('3.1. BCAInputs'!$I21+'3.1. BCAInputs'!$J21)>=-'3.1. BCAInputs'!$J21),INDEX('3.1. BCAInputs'!$L21:$AP21,1,MATCH(0,'3.1. BCAInputs'!$L$18:$AP$18,0))/'3.1. BCAInputs'!$J21,INDEX('3.1. BCAInputs'!$L21:$AP21,1,MATCH(AC$3-('3.1. BCAInputs'!$I21+'3.1. BCAInputs'!$J21-1),'3.1. BCAInputs'!$L$18:$AP$18,0))),0)*AC$4) -> 0 | AD12: =IF($H12="(blank)",0,IFERROR(IF(AND(AD$3-('3.1. BCAInputs'!$I21+'3.1. BCAInputs'!$J21-1)<1,AD$3-('3.1. BCAInputs'!$I21+'3.1. BCAInputs'!$J21)>=-'3.1. BCAInputs'!$J21),INDEX('3.1. BCAInputs'!$L21:$AP21,1,MATCH(0,'3.1. BCAInputs'!$L$18:$AP$18,0))/'3.1. BCAInputs'!$J21,INDEX('3.1. BCAInputs'!$L21:$AP21,1,MATCH(AD$3-('3.1. BCAInputs'!$I21+'3.1. BCAInputs'!$J21-1),'3.1. BCAInputs'!$L$18:$AP$18,0))),0)*AD$4) -> 0 | AE12: =IF($H12="(blank)",0,IFERROR(IF(AND(AE$3-('3.1. BCAInputs'!$I21+'3.1. BCAInputs'!$J21-1)<1,AE$3-('3.1. BCAInputs'!$I21+'3.1. BCAInputs'!$J21)>=-'3.1. BCAInputs'!$J21),INDEX('3.1. BCAInputs'!$L21:$AP21,1,MATCH(0,'3.1. BCAInputs'!$L$18:$AP$18,0))/'3.1. BCAInputs'!$J21,INDEX('3.1. BCAInputs'!$L21:$AP21,1,MATCH(AE$3-('3.1. BCAInputs'!$I21+'3.1. BCAInputs'!$J21-1),'3.1. BCAInputs'!$L$18:$AP$18,0))),0)*AE$4) -> 0 | AF12: =IF($H12="(blank)",0,IFERROR(IF(AND(AF$3-('3.1. BCAInputs'!$I21+'3.1. BCAInputs'!$J21-1)<1,AF$3-('3.1. BCAInputs'!$I21+'3.1. BCAInputs'!$J21)>=-'3.1. BCAInputs'!$J21),INDEX('3.1. BCAInputs'!$L21:$AP21,1,MATCH(0,'3.1. BCAInputs'!$L$18:$AP$18,0))/'3.1. BCAInputs'!$J21,INDEX('3.1. BCAInputs'!$L21:$AP21,1,MATCH(AF$3-('3.1. BCAInputs'!$I21+'3.1. BCAInputs'!$J21-1),'3.1. BCAInputs'!$L$18:$AP$18,0))),0)*AF$4) -> 0 | AG12: =IF($H12="(blank)",0,IFERROR(IF(AND(AG$3-('3.1. BCAInputs'!$I21+'3.1. BCAInputs'!$J21-1)<1,AG$3-('3.1. BCAInputs'!$I21+'3.1. BCAInputs'!$J21)>=-'3.1. BCAInputs'!$J21),INDEX('3.1. BCAInputs'!$L21:$AP21,1,MATCH(0,'3.1. BCAInputs'!$L$18:$AP$18,0))/'3.1. BCAInputs'!$J21,INDEX('3.1. BCAInputs'!$L21:$AP21,1,MATCH(AG$3-('3.1. BCAInputs'!$I21+'3.1. BCAInputs'!$J21-1),'3.1. BCAInputs'!$L$18:$AP$18,0))),0)*AG$4) -> 0 | AH12: =IF($H12="(blank)",0,IFERROR(IF(AND(AH$3-('3.1. BCAInputs'!$I21+'3.1. BCAInputs'!$J21-1)<1,AH$3-('3.1. BCAInputs'!$I21+'3.1. BCAInputs'!$J21)>=-'3.1. BCAInputs'!$J21),INDEX('3.1. BCAInputs'!$L21:$AP21,1,MATCH(0,'3.1. BCAInputs'!$L$18:$AP$18,0))/'3.1. BCAInputs'!$J21,INDEX('3.1. BCAInputs'!$L21:$AP21,1,MATCH(AH$3-('3.1. BCAInputs'!$I21+'3.1. BCAInputs'!$J21-1),'3.1. BCAInputs'!$L$18:$AP$18,0))),0)*AH$4) -> 0 | AI12: =IF($H12="(blank)",0,IFERROR(IF(AND(AI$3-('3.1. BCAInputs'!$I21+'3.1. BCAInputs'!$J21-1)<1,AI$3-('3.1. BCAInputs'!$I21+'3.1. BCAInputs'!$J21)>=-'3.1. BCAInputs'!$J21),INDEX('3.1. BCAInputs'!$L21:$AP21,1,MATCH(0,'3.1. BCAInputs'!$L$18:$AP$18,0))/'3.1. BCAInputs'!$J21,INDEX('3.1. BCAInputs'!$L21:$AP21,1,MATCH(AI$3-('3.1. BCAInputs'!$I21+'3.1. BCAInputs'!$J21-1),'3.1. BCAInputs'!$L$18:$AP$18,0))),0)*AI$4) -> 0 | AJ12: =IF($H12="(blank)",0,IFERROR(IF(AND(AJ$3-('3.1. BCAInputs'!$I21+'3.1. BCAInputs'!$J21-1)<1,AJ$3-('3.1. BCAInputs'!$I21+'3.1. BCAInputs'!$J21)>=-'3.1. BCAInputs'!$J21),INDEX('3.1. BCAInputs'!$L21:$AP21,1,MATCH(0,'3.1. BCAInputs'!$L$18:$AP$18,0))/'3.1. BCAInputs'!$J21,INDEX('3.1. BCAInputs'!$L21:$AP21,1,MATCH(AJ$3-('3.1. BCAInputs'!$I21+'3.1. BCAInputs'!$J21-1),'3.1. BCAInputs'!$L$18:$AP$18,0))),0)*AJ$4) -> 0 | AK12: =IF($H12="(blank)",0,IFERROR(IF(AND(AK$3-('3.1. BCAInputs'!$I21+'3.1. BCAInputs'!$J21-1)<1,AK$3-('3.1. BCAInputs'!$I21+'3.1. BCAInputs'!$J21)>=-'3.1. BCAInputs'!$J21),INDEX('3.1. BCAInputs'!$L21:$AP21,1,MATCH(0,'3.1. BCAInputs'!$L$18:$AP$18,0))/'3.1. BCAInputs'!$J21,INDEX('3.1. BCAInputs'!$L21:$AP21,1,MATCH(AK$3-('3.1. BCAInputs'!$I21+'3.1. BCAInputs'!$J21-1),'3.1. BCAInputs'!$L$18:$AP$18,0))),0)*AK$4) -> 0 | AL12: =IF($H12="(blank)",0,IFERROR(IF(AND(AL$3-('3.1. BCAInputs'!$I21+'3.1. BCAInputs'!$J21-1)<1,AL$3-('3.1. BCAInputs'!$I21+'3.1. BCAInputs'!$J21)>=-'3.1. BCAInputs'!$J21),INDEX('3.1. BCAInputs'!$L21:$AP21,1,MATCH(0,'3.1. BCAInputs'!$L$18:$AP$18,0))/'3.1. BCAInputs'!$J21,INDEX('3.1. BCAInputs'!$L21:$AP21,1,MATCH(AL$3-('3.1. BCAInputs'!$I21+'3.1. BCAInputs'!$J21-1),'3.1. BCAInputs'!$L$18:$AP$18,0))),0)*AL$4) -> 0 | AM12: =IF($H12="(blank)",0,IFERROR(IF(AND(AM$3-('3.1. BCAInputs'!$I21+'3.1. BCAInputs'!$J21-1)<1,AM$3-('3.1. BCAInputs'!$I21+'3.1. BCAInputs'!$J21)>=-'3.1. BCAInputs'!$J21),INDEX('3.1. BCAInputs'!$L21:$AP21,1,MATCH(0,'3.1. BCAInputs'!$L$18:$AP$18,0))/'3.1. BCAInputs'!$J21,INDEX('3.1. BCAInputs'!$L21:$AP21,1,MATCH(AM$3-('3.1. BCAInputs'!$I21+'3.1. BCAInputs'!$J21-1),'3.1. BCAInputs'!$L$18:$AP$18,0))),0)*AM$4) -> 0 | AN12: =IF($H12="(blank)",0,IFERROR(IF(AND(AN$3-('3.1. BCAInputs'!$I21+'3.1. BCAInputs'!$J21-1)<1,AN$3-('3.1. BCAInputs'!$I21+'3.1. BCAInputs'!$J21)>=-'3.1. BCAInputs'!$J21),INDEX('3.1. BCAInputs'!$L21:$AP21,1,MATCH(0,'3.1. BCAInputs'!$L$18:$AP$18,0))/'3.1. BCAInputs'!$J21,INDEX('3.1. BCAInputs'!$L21:$AP21,1,MATCH(AN$3-('3.1. BCAInputs'!$I21+'3.1. BCAInputs'!$J21-1),'3.1. BCAInputs'!$L$18:$AP$18,0))),0)*AN$4) -> 0 | AO12: =IF($H12="(blank)",0,IFERROR(IF(AND(AO$3-('3.1. BCAInputs'!$I21+'3.1. BCAInputs'!$J21-1)<1,AO$3-('3.1. BCAInputs'!$I21+'3.1. BCAInputs'!$J21)>=-'3.1. BCAInputs'!$J21),INDEX('3.1. BCAInputs'!$L21:$AP21,1,MATCH(0,'3.1. BCAInputs'!$L$18:$AP$18,0))/'3.1. BCAInputs'!$J21,INDEX('3.1. BCAInputs'!$L21:$AP21,1,MATCH(AO$3-('3.1. BCAInputs'!$I21+'3.1. BCAInputs'!$J21-1),'3.1. BCAInputs'!$L$18:$AP$18,0))),0)*AO$4) -> 0 | AP12: =IF($H12="(blank)",0,IFERROR(IF(AND(AP$3-('3.1. BCAInputs'!$I21+'3.1. BCAInputs'!$J21-1)<1,AP$3-('3.1. BCAInputs'!$I21+'3.1. BCAInputs'!$J21)>=-'3.1. BCAInputs'!$J21),INDEX('3.1. BCAInputs'!$L21:$AP21,1,MATCH(0,'3.1. BCAInputs'!$L$18:$AP$18,0))/'3.1. BCAInputs'!$J21,INDEX('3.1. BCAInputs'!$L21:$AP21,1,MATCH(AP$3-('3.1. BCAInputs'!$I21+'3.1. BCAInputs'!$J21-1),'3.1. BCAInputs'!$L$18:$AP$18,0))),0)*AP$4) -> 0 | AQ12: =IF($H12="(blank)",0,IFERROR(IF(AND(AQ$3-('3.1. BCAInputs'!$I21+'3.1. BCAInputs'!$J21-1)<1,AQ$3-('3.1. BCAInputs'!$I21+'3.1. BCAInputs'!$J21)>=-'3.1. BCAInputs'!$J21),INDEX('3.1. BCAInputs'!$L21:$AP21,1,MATCH(0,'3.1. BCAInputs'!$L$18:$AP$18,0))/'3.1. BCAInputs'!$J21,INDEX('3.1. BCAInputs'!$L21:$AP21,1,MATCH(AQ$3-('3.1. BCAInputs'!$I21+'3.1. BCAInputs'!$J21-1),'3.1. BCAInputs'!$L$18:$AP$18,0))),0)*AQ$4) -> 0 | AR12: =IF($H12="(blank)",0,IFERROR(IF(AND(AR$3-('3.1. BCAInputs'!$I21+'3.1. BCAInputs'!$J21-1)<1,AR$3-('3.1. BCAInputs'!$I21+'3.1. BCAInputs'!$J21)>=-'3.1. BCAInputs'!$J21),INDEX('3.1. BCAInputs'!$L21:$AP21,1,MATCH(0,'3.1. BCAInputs'!$L$18:$AP$18,0))/'3.1. BCAInputs'!$J21,INDEX('3.1. BCAInputs'!$L21:$AP21,1,MATCH(AR$3-('3.1. BCAInputs'!$I21+'3.1. BCAInputs'!$J21-1),'3.1. BCAInputs'!$L$18:$AP$18,0))),0)*AR$4) -> 0 | AS12: =IF($H12="(blank)",0,IFERROR(IF(AND(AS$3-('3.1. BCAInputs'!$I21+'3.1. BCAInputs'!$J21-1)<1,AS$3-('3.1. BCAInputs'!$I21+'3.1. BCAInputs'!$J21)>=-'3.1. BCAInputs'!$J21),INDEX('3.1. BCAInputs'!$L21:$AP21,1,MATCH(0,'3.1. BCAInputs'!$L$18:$AP$18,0))/'3.1. BCAInputs'!$J21,INDEX('3.1. BCAInputs'!$L21:$AP21,1,MATCH(AS$3-('3.1. BCAInputs'!$I21+'3.1. BCAInputs'!$J21-1),'3.1. BCAInputs'!$L$18:$AP$18,0))),0)*AS$4) -> 0 | AT12: =IF($H12="(blank)",0,IFERROR(IF(AND(AT$3-('3.1. BCAInputs'!$I21+'3.1. BCAInputs'!$J21-1)<1,AT$3-('3.1. BCAInputs'!$I21+'3.1. BCAInputs'!$J21)>=-'3.1. BCAInputs'!$J21),INDEX('3.1. BCAInputs'!$L21:$AP21,1,MATCH(0,'3.1. BCAInputs'!$L$18:$AP$18,0))/'3.1. BCAInputs'!$J21,INDEX('3.1. BCAInputs'!$L21:$AP21,1,MATCH(AT$3-('3.1. BCAInputs'!$I21+'3.1. BCAInputs'!$J21-1),'3.1. BCAInputs'!$L$18:$AP$18,0))),0)*AT$4) -> 0 | AU12: =IF($H12="(blank)",0,IFERROR(IF(AND(AU$3-('3.1. BCAInputs'!$I21+'3.1. BCAInputs'!$J21-1)<1,AU$3-('3.1. BCAInputs'!$I21+'3.1. BCAInputs'!$J21)>=-'3.1. BCAInputs'!$J21),INDEX('3.1. BCAInputs'!$L21:$AP21,1,MATCH(0,'3.1. BCAInputs'!$L$18:$AP$18,0))/'3.1. BCAInputs'!$J21,INDEX('3.1. BCAInputs'!$L21:$AP21,1,MATCH(AU$3-('3.1. BCAInputs'!$I21+'3.1. BCAInputs'!$J21-1),'3.1. BCAInputs'!$L$18:$AP$18,0))),0)*AU$4) -> 0 | AV12: =IF($H12="(blank)",0,IFERROR(IF(AND(AV$3-('3.1. BCAInputs'!$I21+'3.1. BCAInputs'!$J21-1)<1,AV$3-('3.1. BCAInputs'!$I21+'3.1. BCAInputs'!$J21)>=-'3.1. BCAInputs'!$J21),INDEX('3.1. BCAInputs'!$L21:$AP21,1,MATCH(0,'3.1. BCAInputs'!$L$18:$AP$18,0))/'3.1. BCAInputs'!$J21,INDEX('3.1. BCAInputs'!$L21:$AP21,1,MATCH(AV$3-('3.1. BCAInputs'!$I21+'3.1. BCAInputs'!$J21-1),'3.1. BCAInputs'!$L$18:$AP$18,0))),0)*AV$4) -> 0 | AW12: =IF($H12="(blank)",0,IFERROR(IF(AND(AW$3-('3.1. BCAInputs'!$I21+'3.1. BCAInputs'!$J21-1)<1,AW$3-('3.1. BCAInputs'!$I21+'3.1. BCAInputs'!$J21)>=-'3.1. BCAInputs'!$J21),INDEX('3.1. BCAInputs'!$L21:$AP21,1,MATCH(0,'3.1. BCAInputs'!$L$18:$AP$18,0))/'3.1. BCAInputs'!$J21,INDEX('3.1. BCAInputs'!$L21:$AP21,1,MATCH(AW$3-('3.1. BCAInputs'!$I21+'3.1. BCAInputs'!$J21-1),'3.1. BCAInputs'!$L$18:$AP$18,0))),0)*AW$4) -> 0 | AX12: =IF($H12="(blank)",0,IFERROR(IF(AND(AX$3-('3.1. BCAInputs'!$I21+'3.1. BCAInputs'!$J21-1)<1,AX$3-('3.1. BCAInputs'!$I21+'3.1. BCAInputs'!$J21)>=-'3.1. BCAInputs'!$J21),INDEX('3.1. BCAInputs'!$L21:$AP21,1,MATCH(0,'3.1. BCAInputs'!$L$18:$AP$18,0))/'3.1. BCAInputs'!$J21,INDEX('3.1. BCAInputs'!$L21:$AP21,1,MATCH(AX$3-('3.1. BCAInputs'!$I21+'3.1. BCAInputs'!$J21-1),'3.1. BCAInputs'!$L$18:$AP$18,0))),0)*AX$4) -> 0 | AY12: =IF($H12="(blank)",0,IFERROR(IF(AND(AY$3-('3.1. BCAInputs'!$I21+'3.1. BCAInputs'!$J21-1)<1,AY$3-('3.1. BCAInputs'!$I21+'3.1. BCAInputs'!$J21)>=-'3.1. BCAInputs'!$J21),INDEX('3.1. BCAInputs'!$L21:$AP21,1,MATCH(0,'3.1. BCAInputs'!$L$18:$AP$18,0))/'3.1. BCAInputs'!$J21,INDEX('3.1. BCAInputs'!$L21:$AP21,1,MATCH(AY$3-('3.1. BCAInputs'!$I21+'3.1. BCAInputs'!$J21-1),'3.1. BCAInputs'!$L$18:$AP$18,0))),0)*AY$4) -> 0 | AZ12: =IF($H12="(blank)",0,IFERROR(IF(AND(AZ$3-('3.1. BCAInputs'!$I21+'3.1. BCAInputs'!$J21-1)<1,AZ$3-('3.1. BCAInputs'!$I21+'3.1. BCAInputs'!$J21)>=-'3.1. BCAInputs'!$J21),INDEX('3.1. BCAInputs'!$L21:$AP21,1,MATCH(0,'3.1. BCAInputs'!$L$18:$AP$18,0))/'3.1. BCAInputs'!$J21,INDEX('3.1. BCAInputs'!$L21:$AP21,1,MATCH(AZ$3-('3.1. BCAInputs'!$I21+'3.1. BCAInputs'!$J21-1),'3.1. BCAInputs'!$L$18:$AP$18,0))),0)*AZ$4) -> 0 | BA12: =IF($H12="(blank)",0,IFERROR(IF(AND(BA$3-('3.1. BCAInputs'!$I21+'3.1. BCAInputs'!$J21-1)<1,BA$3-('3.1. BCAInputs'!$I21+'3.1. BCAInputs'!$J21)>=-'3.1. BCAInputs'!$J21),INDEX('3.1. BCAInputs'!$L21:$AP21,1,MATCH(0,'3.1. BCAInputs'!$L$18:$AP$18,0))/'3.1. BCAInputs'!$J21,INDEX('3.1. BCAInputs'!$L21:$AP21,1,MATCH(BA$3-('3.1. BCAInputs'!$I21+'3.1. BCAInputs'!$J21-1),'3.1. BCAInputs'!$L$18:$AP$18,0))),0)*BA$4) -> 0 | BB12: =IF($H12="(blank)",0,IFERROR(IF(AND(BB$3-('3.1. BCAInputs'!$I21+'3.1. BCAInputs'!$J21-1)<1,BB$3-('3.1. BCAInputs'!$I21+'3.1. BCAInputs'!$J21)>=-'3.1. BCAInputs'!$J21),INDEX('3.1. BCAInputs'!$L21:$AP21,1,MATCH(0,'3.1. BCAInputs'!$L$18:$AP$18,0))/'3.1. BCAInputs'!$J21,INDEX('3.1. BCAInputs'!$L21:$AP21,1,MATCH(BB$3-('3.1. BCAInputs'!$I21+'3.1. BCAInputs'!$J21-1),'3.1. BCAInputs'!$L$18:$AP$18,0))),0)*BB$4) -> 0 | BC12: =IF($H12="(blank)",0,IFERROR(IF(AND(BC$3-('3.1. BCAInputs'!$I21+'3.1. BCAInputs'!$J21-1)<1,BC$3-('3.1. BCAInputs'!$I21+'3.1. BCAInputs'!$J21)>=-'3.1. BCAInputs'!$J21),INDEX('3.1. BCAInputs'!$L21:$AP21,1,MATCH(0,'3.1. BCAInputs'!$L$18:$AP$18,0))/'3.1. BCAInputs'!$J21,INDEX('3.1. BCAInputs'!$L21:$AP21,1,MATCH(BC$3-('3.1. BCAInputs'!$I21+'3.1. BCAInputs'!$J21-1),'3.1. BCAInputs'!$L$18:$AP$18,0))),0)*BC$4) -> 0 | BD12: =IF($H12="(blank)",0,IFERROR(IF(AND(BD$3-('3.1. BCAInputs'!$I21+'3.1. BCAInputs'!$J21-1)<1,BD$3-('3.1. BCAInputs'!$I21+'3.1. BCAInputs'!$J21)>=-'3.1. BCAInputs'!$J21),INDEX('3.1. BCAInputs'!$L21:$AP21,1,MATCH(0,'3.1. BCAInputs'!$L$18:$AP$18,0))/'3.1. BCAInputs'!$J21,INDEX('3.1. BCAInputs'!$L21:$AP21,1,MATCH(BD$3-('3.1. BCAInputs'!$I21+'3.1. BCAInputs'!$J21-1),'3.1. BCAInputs'!$L$18:$AP$18,0))),0)*BD$4) -> 0 | BE12: =IF($H12="(blank)",0,IFERROR(IF(AND(BE$3-('3.1. BCAInputs'!$I21+'3.1. BCAInputs'!$J21-1)<1,BE$3-('3.1. BCAInputs'!$I21+'3.1. BCAInputs'!$J21)>=-'3.1. BCAInputs'!$J21),INDEX('3.1. BCAInputs'!$L21:$AP21,1,MATCH(0,'3.1. BCAInputs'!$L$18:$AP$18,0))/'3.1. BCAInputs'!$J21,INDEX('3.1. BCAInputs'!$L21:$AP21,1,MATCH(BE$3-('3.1. BCAInputs'!$I21+'3.1. BCAInputs'!$J21-1),'3.1. BCAInputs'!$L$18:$AP$18,0))),0)*BE$4) -> 0 | BF12: =IF($H12="(blank)",0,IFERROR(IF(AND(BF$3-('3.1. BCAInputs'!$I21+'3.1. BCAInputs'!$J21-1)<1,BF$3-('3.1. BCAInputs'!$I21+'3.1. BCAInputs'!$J21)>=-'3.1. BCAInputs'!$J21),INDEX('3.1. BCAInputs'!$L21:$AP21,1,MATCH(0,'3.1. BCAInputs'!$L$18:$AP$18,0))/'3.1. BCAInputs'!$J21,INDEX('3.1. BCAInputs'!$L21:$AP21,1,MATCH(BF$3-('3.1. BCAInputs'!$I21+'3.1. BCAInputs'!$J21-1),'3.1. BCAInputs'!$L$18:$AP$18,0))),0)*BF$4) -> 0 | BG12: =IF($H12="(blank)",0,IFERROR(IF(AND(BG$3-('3.1. BCAInputs'!$I21+'3.1. BCAInputs'!$J21-1)<1,BG$3-('3.1. BCAInputs'!$I21+'3.1. BCAInputs'!$J21)>=-'3.1. BCAInputs'!$J21),INDEX('3.1. BCAInputs'!$L21:$AP21,1,MATCH(0,'3.1. BCAInputs'!$L$18:$AP$18,0))/'3.1. BCAInputs'!$J21,INDEX('3.1. BCAInputs'!$L21:$AP21,1,MATCH(BG$3-('3.1. BCAInputs'!$I21+'3.1. BCAInputs'!$J21-1),'3.1. BCAInputs'!$L$18:$AP$18,0))),0)*BG$4) -> 0 | BH12: =IF($H12="(blank)",0,IFERROR(IF(AND(BH$3-('3.1. BCAInputs'!$I21+'3.1. BCAInputs'!$J21-1)<1,BH$3-('3.1. BCAInputs'!$I21+'3.1. BCAInputs'!$J21)>=-'3.1. BCAInputs'!$J21),INDEX('3.1. BCAInputs'!$L21:$AP21,1,MATCH(0,'3.1. BCAInputs'!$L$18:$AP$18,0))/'3.1. BCAInputs'!$J21,INDEX('3.1. BCAInputs'!$L21:$AP21,1,MATCH(BH$3-('3.1. BCAInputs'!$I21+'3.1. BCAInputs'!$J21-1),'3.1. BCAInputs'!$L$18:$AP$18,0))),0)*BH$4) -> 0 | BI12: =IF($H12="(blank)",0,IFERROR(IF(AND(BI$3-('3.1. BCAInputs'!$I21+'3.1. BCAInputs'!$J21-1)<1,BI$3-('3.1. BCAInputs'!$I21+'3.1. BCAInputs'!$J21)>=-'3.1. BCAInputs'!$J21),INDEX('3.1. BCAInputs'!$L21:$AP21,1,MATCH(0,'3.1. BCAInputs'!$L$18:$AP$18,0))/'3.1. BCAInputs'!$J21,INDEX('3.1. BCAInputs'!$L21:$AP21,1,MATCH(BI$3-('3.1. BCAInputs'!$I21+'3.1. BCAInputs'!$J21-1),'3.1. BCAInputs'!$L$18:$AP$18,0))),0)*BI$4) -> 0 | BJ12: =IF($H12="(blank)",0,IFERROR(IF(AND(BJ$3-('3.1. BCAInputs'!$I21+'3.1. BCAInputs'!$J21-1)<1,BJ$3-('3.1. BCAInputs'!$I21+'3.1. BCAInputs'!$J21)>=-'3.1. BCAInputs'!$J21),INDEX('3.1. BCAInputs'!$L21:$AP21,1,MATCH(0,'3.1. BCAInputs'!$L$18:$AP$18,0))/'3.1. BCAInputs'!$J21,INDEX('3.1. BCAInputs'!$L21:$AP21,1,MATCH(BJ$3-('3.1. BCAInputs'!$I21+'3.1. BCAInputs'!$J21-1),'3.1. BCAInputs'!$L$18:$AP$18,0))),0)*BJ$4) -> 0 | BK12: =IF($H12="(blank)",0,IFERROR(IF(AND(BK$3-('3.1. BCAInputs'!$I21+'3.1. BCAInputs'!$J21-1)<1,BK$3-('3.1. BCAInputs'!$I21+'3.1. BCAInputs'!$J21)>=-'3.1. BCAInputs'!$J21),INDEX('3.1. BCAInputs'!$L21:$AP21,1,MATCH(0,'3.1. BCAInputs'!$L$18:$AP$18,0))/'3.1. BCAInputs'!$J21,INDEX('3.1. BCAInputs'!$L21:$AP21,1,MATCH(BK$3-('3.1. BCAInputs'!$I21+'3.1. BCAInputs'!$J21-1),'3.1. BCAInputs'!$L$18:$AP$18,0))),0)*BK$4) -> 0 | BL12: =IF($H12="(blank)",0,IFERROR(IF(AND(BL$3-('3.1. BCAInputs'!$I21+'3.1. BCAInputs'!$J21-1)<1,BL$3-('3.1. BCAInputs'!$I21+'3.1. BCAInputs'!$J21)>=-'3.1. BCAInputs'!$J21),INDEX('3.1. BCAInputs'!$L21:$AP21,1,MATCH(0,'3.1. BCAInputs'!$L$18:$AP$18,0))/'3.1. BCAInputs'!$J21,INDEX('3.1. BCAInputs'!$L21:$AP21,1,MATCH(BL$3-('3.1. BCAInputs'!$I21+'3.1. BCAInputs'!$J21-1),'3.1. BCAInputs'!$L$18:$AP$18,0))),0)*BL$4) -> 0 | BM12: =IF($H12="(blank)",0,IFERROR(IF(AND(BM$3-('3.1. BCAInputs'!$I21+'3.1. BCAInputs'!$J21-1)<1,BM$3-('3.1. BCAInputs'!$I21+'3.1. BCAInputs'!$J21)>=-'3.1. BCAInputs'!$J21),INDEX('3.1. BCAInputs'!$L21:$AP21,1,MATCH(0,'3.1. BCAInputs'!$L$18:$AP$18,0))/'3.1. BCAInputs'!$J21,INDEX('3.1. BCAInputs'!$L21:$AP21,1,MATCH(BM$3-('3.1. BCAInputs'!$I21+'3.1. BCAInputs'!$J21-1),'3.1. BCAInputs'!$L$18:$AP$18,0))),0)*BM$4) -> 0 | BN12: =IF($H12="(blank)",0,IFERROR(IF(AND(BN$3-('3.1. BCAInputs'!$I21+'3.1. BCAInputs'!$J21-1)<1,BN$3-('3.1. BCAInputs'!$I21+'3.1. BCAInputs'!$J21)>=-'3.1. BCAInputs'!$J21),INDEX('3.1. BCAInputs'!$L21:$AP21,1,MATCH(0,'3.1. BCAInputs'!$L$18:$AP$18,0))/'3.1. BCAInputs'!$J21,INDEX('3.1. BCAInputs'!$L21:$AP21,1,MATCH(BN$3-('3.1. BCAInputs'!$I21+'3.1. BCAInputs'!$J21-1),'3.1. BCAInputs'!$L$18:$AP$18,0))),0)*BN$4) -> 0 | BO12: =IF($H12="(blank)",0,IFERROR(IF(AND(BO$3-('3.1. BCAInputs'!$I21+'3.1. BCAInputs'!$J21-1)<1,BO$3-('3.1. BCAInputs'!$I21+'3.1. BCAInputs'!$J21)>=-'3.1. BCAInputs'!$J21),INDEX('3.1. BCAInputs'!$L21:$AP21,1,MATCH(0,'3.1. BCAInputs'!$L$18:$AP$18,0))/'3.1. BCAInputs'!$J21,INDEX('3.1. BCAInputs'!$L21:$AP21,1,MATCH(BO$3-('3.1. BCAInputs'!$I21+'3.1. BCAInputs'!$J21-1),'3.1. BCAInputs'!$L$18:$AP$18,0))),0)*BO$4) -> 0 | BP12: =IF($H12="(blank)",0,IFERROR(IF(AND(BP$3-('3.1. BCAInputs'!$I21+'3.1. BCAInputs'!$J21-1)<1,BP$3-('3.1. BCAInputs'!$I21+'3.1. BCAInputs'!$J21)>=-'3.1. BCAInputs'!$J21),INDEX('3.1. BCAInputs'!$L21:$AP21,1,MATCH(0,'3.1. BCAInputs'!$L$18:$AP$18,0))/'3.1. BCAInputs'!$J21,INDEX('3.1. BCAInputs'!$L21:$AP21,1,MATCH(BP$3-('3.1. BCAInputs'!$I21+'3.1. BCAInputs'!$J21-1),'3.1. BCAInputs'!$L$18:$AP$18,0))),0)*BP$4) -> 0 | BQ12: =IF($H12="(blank)",0,IFERROR(IF(AND(BQ$3-('3.1. BCAInputs'!$I21+'3.1. BCAInputs'!$J21-1)<1,BQ$3-('3.1. BCAInputs'!$I21+'3.1. BCAInputs'!$J21)>=-'3.1. BCAInputs'!$J21),INDEX('3.1. BCAInputs'!$L21:$AP21,1,MATCH(0,'3.1. BCAInputs'!$L$18:$AP$18,0))/'3.1. BCAInputs'!$J21,INDEX('3.1. BCAInputs'!$L21:$AP21,1,MATCH(BQ$3-('3.1. BCAInputs'!$I21+'3.1. BCAInputs'!$J21-1),'3.1. BCAInputs'!$L$18:$AP$18,0))),0)*BQ$4) -> 0 | BR12: =IF($H12="(blank)",0,IFERROR(IF(AND(BR$3-('3.1. BCAInputs'!$I21+'3.1. BCAInputs'!$J21-1)<1,BR$3-('3.1. BCAInputs'!$I21+'3.1. BCAInputs'!$J21)>=-'3.1. BCAInputs'!$J21),INDEX('3.1. BCAInputs'!$L21:$AP21,1,MATCH(0,'3.1. BCAInputs'!$L$18:$AP$18,0))/'3.1. BCAInputs'!$J21,INDEX('3.1. BCAInputs'!$L21:$AP21,1,MATCH(BR$3-('3.1. BCAInputs'!$I21+'3.1. BCAInputs'!$J21-1),'3.1. BCAInputs'!$L$18:$AP$18,0))),0)*BR$4) -> 0 | BS12: =IF($H12="(blank)",0,IFERROR(IF(AND(BS$3-('3.1. BCAInputs'!$I21+'3.1. BCAInputs'!$J21-1)<1,BS$3-('3.1. BCAInputs'!$I21+'3.1. BCAInputs'!$J21)>=-'3.1. BCAInputs'!$J21),INDEX('3.1. BCAInputs'!$L21:$AP21,1,MATCH(0,'3.1. BCAInputs'!$L$18:$AP$18,0))/'3.1. BCAInputs'!$J21,INDEX('3.1. BCAInputs'!$L21:$AP21,1,MATCH(BS$3-('3.1. BCAInputs'!$I21+'3.1. BCAInputs'!$J21-1),'3.1. BCAInputs'!$L$18:$AP$18,0))),0)*BS$4) -> 0 | BT12: =IF($H12="(blank)",0,IFERROR(IF(AND(BT$3-('3.1. BCAInputs'!$I21+'3.1. BCAInputs'!$J21-1)<1,BT$3-('3.1. BCAInputs'!$I21+'3.1. BCAInputs'!$J21)>=-'3.1. BCAInputs'!$J21),INDEX('3.1. BCAInputs'!$L21:$AP21,1,MATCH(0,'3.1. BCAInputs'!$L$18:$AP$18,0))/'3.1. BCAInputs'!$J21,INDEX('3.1. BCAInputs'!$L21:$AP21,1,MATCH(BT$3-('3.1. BCAInputs'!$I21+'3.1. BCAInputs'!$J21-1),'3.1. BCAInputs'!$L$18:$AP$18,0))),0)*BT$4) -> 0 | BU12: =IF($H12="(blank)",0,IFERROR(IF(AND(BU$3-('3.1. BCAInputs'!$I21+'3.1. BCAInputs'!$J21-1)<1,BU$3-('3.1. BCAInputs'!$I21+'3.1. BCAInputs'!$J21)>=-'3.1. BCAInputs'!$J21),INDEX('3.1. BCAInputs'!$L21:$AP21,1,MATCH(0,'3.1. BCAInputs'!$L$18:$AP$18,0))/'3.1. BCAInputs'!$J21,INDEX('3.1. BCAInputs'!$L21:$AP21,1,MATCH(BU$3-('3.1. BCAInputs'!$I21+'3.1. BCAInputs'!$J21-1),'3.1. BCAInputs'!$L$18:$AP$18,0))),0)*BU$4) -> 0 | BV12: =IF($H12="(blank)",0,IFERROR(IF(AND(BV$3-('3.1. BCAInputs'!$I21+'3.1. BCAInputs'!$J21-1)<1,BV$3-('3.1. BCAInputs'!$I21+'3.1. BCAInputs'!$J21)>=-'3.1. BCAInputs'!$J21),INDEX('3.1. BCAInputs'!$L21:$AP21,1,MATCH(0,'3.1. BCAInputs'!$L$18:$AP$18,0))/'3.1. BCAInputs'!$J21,INDEX('3.1. BCAInputs'!$L21:$AP21,1,MATCH(BV$3-('3.1. BCAInputs'!$I21+'3.1. BCAInputs'!$J21-1),'3.1. BCAInputs'!$L$18:$AP$18,0))),0)*BV$4) -> 0 | BW12: =IF($H12="(blank)",0,IFERROR(IF(AND(BW$3-('3.1. BCAInputs'!$I21+'3.1. BCAInputs'!$J21-1)<1,BW$3-('3.1. BCAInputs'!$I21+'3.1. BCAInputs'!$J21)>=-'3.1. BCAInputs'!$J21),INDEX('3.1. BCAInputs'!$L21:$AP21,1,MATCH(0,'3.1. BCAInputs'!$L$18:$AP$18,0))/'3.1. BCAInputs'!$J21,INDEX('3.1. BCAInputs'!$L21:$AP21,1,MATCH(BW$3-('3.1. BCAInputs'!$I21+'3.1. BCAInputs'!$J21-1),'3.1. BCAInputs'!$L$18:$AP$18,0))),0)*BW$4) -> 0
